Workbook

Sheet INDICE
F1: TODO O MUNDO - DÉCADA
F2: Trocas comerciais com Portugal (PT) 2011-2020 Frutas, Hortícolas & Flores e Preparações (FH&F) (NC 06-07-08, 20)
C3: Fonte
D4: Estatísticas do Comércio Internacional | F4: 1. Todo o Mundo - Síntese
D5: dados: 2019 provisórios; 2020 preliminares | F5: 2. Evolução da balança comercial
F6: 3. Principais transações de Frutas, Hortícolas & Flores (NC 2 e 4 dígitos)
C7: Data | D7: 2021-12-30 | F7: 3A Principais produtos agrícolas e agroalimentares transacionados (NC 2D)
F8: 3B Principais origens/destinos para Frutas, Hortícolas & Flores
F9: 4. Evolução da balança comercial por país e produto
F10: 4A Evolução da balança comercial por produto
F11: 5.1. Trocas comerciais por país
F12: 5.2. Trocas comerciais por produto (NC 2 dígitos)

Sheet 1
A1: Todo o Mundo - Síntese para Frutas, Hortícolas & Flores 2011-2020
A3: • As trocas comerciais de bens transacionáveis (excluindo serviços) entre Portugal e Todo o Mundo representam um total de 51 mil milhões de € em exportações e 64,7 mil milhões de € em importações, na média do período 2011-2020, correspondendo a um saldo negativo da balança comercial de cerca de -13,7 mil milhões. No que se refere ao total da economia (incluindo serviços), as exportações totalizam 67,5 mil milhões de € e as importações 67,4 mil milhões, correspondendo a um saldo positivo de cerca de 0,1 mil milhões.
A4: • No que respeita aos produtos dos setores agrícola e agroalimentar, mar e florestas, Portugal exportou para Todo o Mundo 10,4 mil milhões de € em média anual, no mesmo período, enquanto as importações ascenderam a 12,1 mil milhões de € . Estes setores representam perto de 20,4% do total de exportações de bens transacionáveis e as importações 18,7% das correspondentes importações. Se nos referirmos apenas ao setor agrícola e agroalimentar, as exportações representam, em média, 5,4 mil milhões de € e as importações 8,2 mil milhões. Quanto ao setor Frutas, Hortícolas & Flores, corresponde a 1261,7 milhões de € de exportações e a 1433,1 milhões de importações.
A5: • As principais exportações do setor Frutas, Hortícolas & Flores (NC 4 dígitos) neste período são Tomates preparados (16%), Outras frutas frescas (12%) e Maçãs, peras e marmelos, frescos (8%). As importações mais relevantes do mesmo setor referem-se a Citrinos, frescos ou secos (7%), Bananas, frescas ou secas (7%) e Batatas, frescas ou refrigeradas (7%).
A6: • Os principais destinos das exportações do setor Frutas, Hortícolas & Flores no mesmo período são Espanha (30%), França (13%) e Reino Unido (10%). As principais origens das importações são Espanha (52%), Países Baixos (8%) e França (7%).
A8: Trocas PT-Todo o Mundo (milhões de euros) Frutas, Hortícolas & Flores | H8: Trocas PT-Todo o Mundo (milhões de euros) produtos agrícolas e agroalimentares, do mar e da floresta
B10: 2018 | C10: 2019 | D10: 2020 | E10: média 2011-2020 | F10: TVMA* 2011-2020 | G10: TVT* 2011-2020 | I10: 2018 | J10: 2019 | K10: 2020 | L10: média 2011-2020 | M10: TVMA* 2011-2020 | N10: TVT* 2011-2020
A11: Exportações | B11: 1492.933142 | C11: 1612.206162 | D11: 1696.139468 | E11: 1261.71708 | F11: 0.08169197021 | G11: 1.027367369 | H11: Exportações | I11: 11650.70959 | J11: 11827.78062 | K11: 11535.40309 | L11: 10420.46897 | M11: 0.03226116554 | N11: 0.3307801135
A12: Importações | B12: 1721.854459 | C12: 1755.978055 | D12: 1811.314041 | E12: 1433.097344 | F12: 0.05156055555 | G12: 0.5722028697 | H12: Importações | I12: 13630.59679 | J12: 13833.32078 | K12: 13045.35199 | L12: 12077.58541 | M12: 0.01703303514 | N12: 0.1641676815
A13: Saldo | B13: -228.921317 | C13: -143.771893 | D13: -115.174573 | E13: -171.3802639 | H13: Saldo | I13: -1979.8872 | J13: -2005.540159 | K13: -1509.948902 | L13: -1657.116437
A14: *TVMA - Taxa de variação média anual; TVT - Taxa de variação total
C15: Saldo da Balança Comercial PT-Todo o Mundo (milhões de euros)
C16: 2011 | D16: 2012 | E16: 2013 | F16: 2014 | G16: 2015 | H16: 2016 | I16: 2017 | J16: 2018 | K16: 2019 | L16: 2020 | M16: média 2011-2020
A17: Total Economia (bens e serviços) | C17: -7378.114 | D17: -832.742 | E17: 1872.986 | F17: 258.937 | G17: 1328.685 | H17: 2139.817 | I17: 1977.876 | J17: 949.34 | K17: 813.713 | L17: -4010.291 | M17: 113.0498
A18: Total bens transacionáveis* | C18: -16723.40841 | D18: -11161.06726 | E18: -9709.911546 | F18: -10978.42505 | G18: -10710.79818 | H18: -11385.17367 | I18: -14670.57693 | J18: -17589.25468 | K18: -20074.3184 | L18: -14388.17541 | M18: -13739.11095
A19: Agrícola e Agroalimentar (AA) | C19: -3495.734942 | D19: -2982.54503 | E19: -3010.443241 | F19: -2379.878712 | G19: -2384.775008 | H19: -2504.559947 | I19: -2848.388302 | J19: -2988.999761 | K19: -3025.413711 | L19: -2467.369548 | M19: -2808.81082
B20: Mar (M) | C20: -712.442204 | D20: -676.287217 | E20: -626.201725 | F20: -676.327948 | G20: -865.883351 | H20: -969.930835 | I20: -1076.900088 | J20: -1113.427774 | K20: -1110.955306 | L20: -1025.197342 | M20: -885.355379
B21: Florestas (F) | C21: 1670.595419 | D21: 2049.489449 | E21: 2127.812011 | F21: 2017.282822 | G21: 2163.388095 | H21: 2067.075817 | I21: 2038.866826 | J21: 2122.540335 | K21: 2130.828858 | L21: 1982.617988 | M21: 2037.049762
B22: AA + M + F | C22: -2537.581727 | D22: -1609.342798 | E22: -1508.832955 | F22: -1038.923838 | G22: -1087.270264 | H22: -1407.414965 | I22: -1886.421564 | J22: -1979.8872 | K22: -2005.540159 | L22: -1509.948902 | M22: -1657.116437
B23: Frutas, Hortícolas & Flores | C23: -315.465049 | D23: -152.460214 | E23: -238.841652 | F23: -94.724174 | G23: -49.593252 | H23: -222.630844 | I23: -152.219671 | J23: -228.921317 | K23: -143.771893 | L23: -115.174573 | M23: -171.3802639
B24: *exclui serviços
A25: Evolução das trocas comerciais PT-Todo o Mundo (em milhões de euros 2011-2020)
F34: Exportações | H34: Importações | J34: Saldo
A35: Principais transações de Frutas, Hortícolas & Flores (NC 2 dígitos)
A54: Principais origens e destinos em Todo o Mundo para Frutas, Hortícolas & Flores (média 2011-2020)
A69: Principais transações de Frutas, Hortícolas & Flores (NC 4 dígitos - média 2011-2020)
A91: Fonte: GPP a partir de dados INE/Comércio Internacional (2019 provisórios; 2020 preliminares) | L91: 2021-12-30

Sheet 2
A1: Evolução da balança comercial Portugal-Todo o Mundo 2011-2020 em milhões de euros
A3: Total da Economia (TE)(1) | B3: 2011 | C3: 2012 | D3: 2013 | E3: 2014 | F3: 2015 | G3: 2016 | H3: 2017 | I3: 2018 | J3: 2019 | K3: 2020 | L3: média período | M3: var. 11/12 | N3: var. 12/13 | O3: var. 13/14 | P3: var. 14/15 | Q3: var. 15/16 | R3: var. 16/17 | S3: var. 17/18 | T3: var. 18/19 | U3: var. 19/20 | V3: TVMA* 2011-2020 | W3: TVT* 2011-2020
A4: Exportações | B4: 60673.692 | C4: 63578.725 | D4: 67526.029 | E4: 69595.217 | F4: 72990.707 | G4: 74989.089 | H4: 83717.008 | I4: 89143.718 | J4: 93162.742 | K4: 74302.273 | L4: 67537.6927 | M4: 0.04787961478 | N4: 0.06208529661 | O4: 0.03064282071 | P4: 0.04878912871 | Q4: 0.02737858122 | R4: 0.1163891856 | S4: 0.06482207295 | T4: 0.04508476974 | U4: -0.202446478 | V4: 0.02276996076 | W4: 0.224620928
A5: Importações | B5: 68051.806 | C5: 64411.467 | D5: 65653.043 | E5: 69336.28 | F5: 71662.022 | G5: 72849.272 | H5: 81739.132 | I5: 88194.378 | J5: 92349.029 | K5: 78312.564 | L5: 67424.6429 | M5: -0.05349364277 | N5: 0.01927569822 | O5: 0.05610154277 | P5: 0.03354293019 | Q5: 0.01656735279 | R5: 0.1220308694 | S5: 0.07897375274 | T5: 0.04710788935 | U5: -0.1519936393 | V5: 0.01572669206 | W5: 0.1507786289
A6: Saldo (exp-imp) | B6: -7378.114 | C6: -832.742 | D6: 1872.986 | E6: 258.937 | F6: 1328.685 | G6: 2139.817 | H6: 1977.876 | I6: 949.34 | J6: 813.713 | K6: -4010.291 | L6: 113.0498
A7: Cobertura (exp/imp) | B7: 0.8915809229 | C7: 0.9870715256 | D7: 1.028528548 | E7: 1.00373451 | F7: 1.018540992 | G7: 1.02937321 | H7: 1.024197419 | I7: 1.010764178 | J7: 1.008811278 | K7: 0.9487912182 | L7: 1.001676684
A8: (1) Todas as transações entre PT e Todo o Mundo (inclui bens e serviços) | H8: *TVMA - Taxa de variação média anual; TVT - Taxa de variação total | V8: Exportações
A9: Fonte: GPP a partir de INE/Contas Nacionais (2019 provisórios; 2020 preliminares) | V9: Importações
A24: Total de Bens Transacionáveis (BT)(1) | B24: 2011 | C24: 2012 | D24: 2013 | E24: 2014 | F24: 2015 | G24: 2016 | H24: 2017 | I24: 2018 | J24: 2019 | K24: 2020 | L24: média período | M24: var. 11/12 | N24: var. 12/13 | O24: var. 13/14 | P24: var. 14/15 | Q24: var. 15/16 | R24: var. 16/17 | S24: var. 17/18 | T24: var. 18/19 | U24: var. 19/20 | V24: TVMA* 2011-2020 | W24: TVT* 2011-2020
A25: Exportações | B25: 42828.03339 | C25: 45213.01563 | D25: 47302.91332 | E25: 48053.69564 | F25: 49634.00136 | G25: 50038.84123 | H25: 55017.9877 | I25: 57849.99162 | J25: 59902.80994 | K25: 53757.39256 | L25: 50959.86824 | M25: 0.05568740956 | N25: 0.04622336427 | O25: 0.01587179885 | P25: 0.03288624731 | Q25: 0.008156502718 | R25: 0.09950563092 | S25: 0.05147414581 | T25: 0.0354851966 | U25: -0.1025898015 | V25: 0.02557584797 | W25: 0.2551917122
A26: Importações | B26: 59551.44181 | C26: 56374.08289 | D26: 57012.82486 | E26: 59032.12069 | F26: 60344.79954 | G26: 61424.0149 | H26: 69688.56463 | I26: 75439.2463 | J26: 79977.12835 | K26: 68145.56797 | L26: 64698.97919 | M26: -0.05335486127 | N26: 0.01133041893 | O26: 0.03541827359 | P26: 0.02223668799 | Q26: 0.0178841485 | R26: 0.1345491619 | S26: 0.08251973197 | T26: 0.06015280199 | U26: -0.1479367992 | V26: 0.01509114015 | W26: 0.1443143257
A27: Saldo (exp-imp) | B27: -16723.40841 | C27: -11161.06726 | D27: -9709.911546 | E27: -10978.42505 | F27: -10710.79818 | G27: -11385.17367 | H27: -14670.57693 | I27: -17589.25468 | J27: -20074.3184 | K27: -14388.17541 | L27: -13739.11095
A28: Cobertura (exp/imp) | B28: 0.7191771029 | C28: 0.8020177591 | D28: 0.8296889942 | E28: 0.8140262467 | F28: 0.8225066905 | G28: 0.8146462147 | H28: 0.7894837265 | I28: 0.7668421207 | J28: 0.74899926 | K28: 0.7888611712 | L28: 0.7876456302
A29: Exp BT / Exp TE | B29: 0.7058748525 | C29: 0.7451831945 | D29: 0.7440053779 | E29: 0.7116321862 | F29: 0.7131812142 | G29: 0.6855508501 | H29: 0.733679905 | I29: 0.6910183844 | J29: 0.6719801607 | K29: 0.577026732 | L29: 0.7545396682 | V29: Exportações
A30: Imp BT / Imp TE | B30: 0.8750898074 | C30: 0.8283995121 | D30: 0.8851347054 | E30: 0.8991528495 | F30: 0.8703206971 | G30: 0.857134828 | H30: 0.9566130548 | I30: 0.9229269317 | J30: 0.9068279652 | K30: 0.737913205 | L30: 0.959574666 | V30: Importações
A31: (1) Todos os produtos transacionados entre PT e Todo o Mundo (exclui serviços) | D31: TE - Total da Economia (bens e serviços) | H31: *TVMA - Taxa de variação média anual; TVT - Taxa de variação total
A43: Agro(1) + Mar + Florestas (AMF) | B43: 2011 | C43: 2012 | D43: 2013 | E43: 2014 | F43: 2015 | G43: 2016 | H43: 2017 | I43: 2018 | J43: 2019 | K43: 2020 | L43: média período | M43: var. 11/12 | N43: var. 12/13 | O43: var. 13/14 | P43: var. 14/15 | Q43: var. 15/16 | R43: var. 16/17 | S43: var. 17/18 | T43: var. 18/19 | U43: var. 19/20 | V43: TVMA* 2011-2020 | W43: TVT* 2011-2020
A44: Exportações | B44: 8668.151088 | C44: 8976.636159 | D44: 9515.868858 | E44: 9967.994201 | F44: 10404.70208 | G44: 10510.5231 | H44: 11146.92093 | I44: 11650.70959 | J44: 11827.78062 | K44: 11535.40309 | L44: 10420.46897 | M44: 0.03558833572 | N44: 0.06007068677 | O44: 0.04751277574 | P44: 0.04381100873 | Q44: 0.01017049995 | R44: 0.06054863442 | S44: 0.04519532079 | T44: 0.01519830415 | U44: -0.02471955986 | V44: 0.03226116554 | W44: 0.3307801135
A45: Importações | B45: 11205.73281 | C45: 10585.97896 | D45: 11024.70181 | E45: 11006.91804 | F45: 11491.97235 | G45: 11917.93807 | H45: 13033.34249 | I45: 13630.59679 | J45: 13833.32078 | K45: 13045.35199 | L45: 12077.58541 | M45: -0.05530685661 | N45: 0.04144376801 | O45: -0.001613084354 | P45: 0.04406813109 | Q45: 0.03706637209 | R45: 0.09359038565 | S45: 0.04582510615 | T45: 0.01487271541 | U45: -0.05696165083 | V45: 0.01703303514 | W45: 0.1641676815
A46: Saldo (exp-imp) | B46: -2537.581727 | C46: -1609.342798 | D46: -1508.832955 | E46: -1038.923838 | F46: -1087.270264 | G46: -1407.414965 | H46: -1886.421564 | I46: -1979.8872 | J46: -2005.540159 | K46: -1509.948902 | L46: -1657.116437
A47: Cobertura (exp/imp) | B47: 0.7735461153 | C47: 0.847974117 | D47: 0.8631407016 | E47: 0.9056117403 | F47: 0.9053887156 | G47: 0.8819078471 | H47: 0.8552618743 | I47: 0.8547468442 | J47: 0.8550210618 | K47: 0.8842538781 | L47: 0.8627940618
A48: Exp AMF / Exp BT | B48: 0.2023943292 | C48: 0.198540974 | D48: 0.2011687693 | E48: 0.2074344973 | F48: 0.2096285167 | G48: 0.2100472922 | H48: 0.2026050278 | I48: 0.201395182 | J48: 0.1974495125 | K48: 0.2145826376 | L48: 0.2044838288 | V48: Exportações
A49: Imp AMF / Imp BT | B49: 0.1881689591 | C49: 0.1877809521 | D49: 0.193372313 | E49: 0.1864564225 | F49: 0.1904384874 | G49: 0.1940273375 | H49: 0.1870226853 | I49: 0.1806830988 | J49: 0.17296596 | K49: 0.1914336087 | L49: 0.186673508 | V49: Importações
A50: Exp AMF / Exp TE | B50: 0.1428650673 | C50: 0.1479493972 | D50: 0.1496706462 | E50: 0.1476170648 | F50: 0.14950312 | G50: 0.1439980997 | H50: 0.1486472375 | I50: 0.1391677733 | J50: 0.1326821551 | K50: 0.1238199181 | L50: 0.1542911603
A51: Imp AMF / Imp TE | B51: 0.1646647381 | C51: 0.1555576491 | D51: 0.1711605453 | E51: 0.1676528236 | F51: 0.1657425571 | G51: 0.1663075885 | H51: 0.1789083423 | I51: 0.166757298 | J51: 0.1568503695 | K51: 0.1412613877 | L51: 0.1791271691
A52: (1) Produtos agrícolas e agroalimentares | B52: BT - Total de Bens Transacionáveis (exclui serviços); TE - Total da Economia (bens e serviços) | M52: *TVMA - Taxa de variação média anual; TVT - Taxa de variação total
A64: Frutas, Hortícolas & Flores | B64: 2011 | C64: 2012 | D64: 2013 | E64: 2014 | F64: 2015 | G64: 2016 | H64: 2017 | I64: 2018 | J64: 2019 | K64: 2020 | L64: média período | M64: var. 11/12 | N64: var. 12/13 | O64: var. 13/14 | P64: var. 14/15 | Q64: var. 15/16 | R64: var. 16/17 | S64: var. 17/18 | T64: var. 18/19 | U64: var. 19/20 | V64: TVMA* 2011-2020 | W64: TVT* 2011-2020
A65: Exportações | B65: 836.621667 | C65: 920.934023 | D65: 999.935589 | E65: 1101.31396 | F65: 1213.923155 | G65: 1273.454108 | H65: 1469.709525 | I65: 1492.933142 | J65: 1612.206162 | K65: 1696.139468 | L65: 1261.71708 | M65: 0.1007771605 | N65: 0.08578417566 | O65: 0.1013849013 | P65: 0.1022498571 | Q65: 0.04904013302 | R65: 0.1541126734 | S65: 0.01580150132 | T65: 0.0798917357 | U65: 0.05206114948 | V65: 0.08169197021 | W65: 1.027367369
A66: Importações | B66: 1152.086716 | C66: 1073.394237 | D66: 1238.777241 | E66: 1196.038134 | F66: 1263.516407 | G66: 1496.084952 | H66: 1621.929196 | I66: 1721.854459 | J66: 1755.978055 | K66: 1811.314041 | L66: 1433.097344 | M66: -0.06830430202 | N66: 0.1540748015 | O66: -0.03450104311 | P66: 0.05641816183 | Q66: 0.1840645232 | R66: 0.08411570735 | S66: 0.06160889344 | T66: 0.01981793282 | U66: 0.03151291432 | V66: 0.05156055555 | W66: 0.5722028697
A67: Saldo (exp-imp) | B67: -315.465049 | C67: -152.460214 | D67: -238.841652 | E67: -94.724174 | F67: -49.593252 | G67: -222.630844 | H67: -152.219671 | I67: -228.921317 | J67: -143.771893 | K67: -115.174573 | L67: -171.3802639
A68: Cobertura (exp/imp) | B68: 0.7261794233 | C68: 0.8579643818 | D68: 0.8071956409 | E68: 0.9208017108 | F68: 0.9607498156 | G68: 0.8511910412 | H68: 0.9061490037 | I68: 0.8670495547 | J68: 0.9181243225 | K68: 0.9364138021 | L68: 0.8804126847
A69: Exp Agrícola & Agroalimentar / Exp TE | B69: 0.01378887026 | C69: 0.01517847345 | D69: 0.01572751874 | E69: 0.0163094732 | F69: 0.01744262332 | G69: 0.01744679782 | H69: 0.01959897826 | I69: 0.01783309243 | J69: 0.0180854714 | K69: 0.01820619951 | L69: 0.01868167285 | V69: Exportações
A70: Imp Frutas, Hortícolas & Flores / Imp TE | B70: 0.01692955388 | C70: 0.01577319251 | D70: 0.01923224697 | E70: 0.01821755823 | F70: 0.01822301985 | G70: 0.020876957 | H70: 0.02226417851 | I70: 0.02106524032 | J70: 0.01991031736 | K70: 0.01961378545 | L70: 0.02125480065 | V70: Importações
A71: Exp Frutas, Hortícolas & Flores / Exp BT | B71: 0.01953444043 | C71: 0.02036878121 | D71: 0.02113898529 | E71: 0.02291840295 | F71: 0.02445749127 | G71: 0.02544931251 | H71: 0.02671325482 | I71: 0.02580697249 | J71: 0.02691369843 | K71: 0.03155174362 | L71: 0.0247590334
A72: Imp Frutas, Hortícolas & Flores / Imp BT | B72: 0.01934607595 | C72: 0.01904056229 | D72: 0.02172804529 | E72: 0.02026080242 | F72: 0.02093828162 | G72: 0.02435667799 | H72: 0.02327396474 | I72: 0.02282438576 | J72: 0.02195600281 | K72: 0.02658007109 | L72: 0.02215023114
A73: Exp Frutas, Hortícolas & Flores / Exp AMF | B73: 0.09651673794 | C73: 0.1025923304 | D73: 0.1050808501 | E73: 0.1104850121 | F73: 0.1166706308 | G73: 0.1211599171 | H73: 0.1318489236 | I73: 0.1281409626 | J73: 0.1363067353 | K73: 0.1470377285 | L73: 0.1210806427
A74: Imp Frutas, Hortícolas & Flores / Imp AMF | B74: 0.10281226 | C74: 0.1013977301 | D74: 0.1123637865 | E74: 0.1086624003 | F74: 0.1099477417 | G74: 0.1255321972 | H74: 0.1244446079 | I74: 0.1263227491 | J74: 0.1269382879 | K74: 0.138847464 | L74: 0.1186576038
A75: Exp Frutas, Hortícolas & Flores / Exp AA | B75: 0.2012865975 | C75: 0.2058380773 | D75: 0.207290857 | E75: 0.2136475414 | F75: 0.2256697595 | G75: 0.2328048219 | H75: 0.2495692125 | I75: 0.2444675385 | J75: 0.2562449825 | K75: 0.2563274207 | L75: 0.2320913903 | M75: APENAS PARA PRODUTOS AA ou alterar para prod M ou F!!
A76: Imp Frutas, Hortícolas & Flores / Imp AA | B76: 0.1505581348 | C76: 0.1439519397 | D76: 0.1581228285 | E76: 0.1587374187 | F76: 0.1627408806 | G76: 0.1876060256 | H76: 0.1856311971 | I76: 0.1893005523 | J76: 0.1884688493 | K76: 0.1993861825 | L76: 0.1738118968
A77: AA - Produtos agrícolas e agroalimentares; AMF - Agroalimentar, Mar e Florestas; BT - Total de Bens Transacionáveis (exclui serviços); TE - Total da Economia (bens e serviços) | M77: *TVMA - Taxa de variação média anual; TVT - Taxa de variação total
A89: Agroalimentar (AA)(1) | B89: 2011 | C89: 2012 | D89: 2013 | E89: 2014 | F89: 2015 | G89: 2016 | H89: 2017 | I89: 2018 | J89: 2019 | K89: 2020 | L89: média período | M89: var. 11/12 | N89: var. 12/13 | O89: var. 13/14 | P89: var. 14/15 | Q89: var. 15/16 | R89: var. 16/17 | S89: var. 17/18 | T89: var. 18/19 | U89: var. 19/20 | V89: TVMA* 2011-2020 | W89: TVT* 2011-2020
A90: Exportações | B90: 4156.370456 | C90: 4474.070275 | D90: 4823.828717 | E90: 5154.816914 | F90: 5379.201704 | G90: 5470.050396 | H90: 5888.985705 | I90: 6106.876812 | J90: 6291.659436 | K90: 6617.081634 | L90: 5436.294205 | M90: 0.07643683891 | N90: 0.07817455259 | O90: 0.06861524661 | P90: 0.04352914832 | Q90: 0.01688887999 | R90: 0.07658710225 | S90: 0.03699976837 | T90: 0.03025812206 | U90: 0.0517227929 | V90: 0.05302610615 | W90: 0.5920336515
A91: Importações | B91: 7652.105398 | C91: 7456.615305 | D91: 7834.271958 | E91: 7534.695626 | F91: 7763.976712 | G91: 7974.610343 | H91: 8737.374007 | I91: 9095.876573 | J91: 9317.073147 | K91: 9084.451182 | L91: 8245.105025 | M91: -0.02554722953 | N91: 0.05064719548 | O91: -0.03823920507 | P91: 0.03043003956 | Q91: 0.02712960623 | R91: 0.09564901998 | S91: 0.04103092825 | T91: 0.02431833504 | U91: -0.02496727903 | V91: 0.01924772378 | W91: 0.1871832273
A92: Saldo (exp-imp) | B92: -3495.734942 | C92: -2982.54503 | D92: -3010.443241 | E92: -2379.878712 | F92: -2384.775008 | G92: -2504.559947 | H92: -2848.388302 | I92: -2988.999761 | J92: -3025.413711 | K92: -2467.369548 | L92: -2808.81082
A93: Cobertura (exp/imp) | B93: 0.5431669116 | C93: 0.6000135574 | D93: 0.6157341413 | E93: 0.6841440146 | F93: 0.6928410406 | G93: 0.6859332507 | H93: 0.6739994992 | I93: 0.6713895866 | J93: 0.6752828208 | K93: 0.7283964107 | L93: 0.6593359561
A94: Exp AA / Exp AMF | B94: 0.4794990782 | C94: 0.4984127902 | D94: 0.5069246738 | E94: 0.5171368291 | F94: 0.5169971866 | G94: 0.5204355998 | H94: 0.5283060447 | I94: 0.5241635081 | J94: 0.5319391387 | K94: 0.5736324585 | L94: 0.5216938143 | V94: Exportações
A95: Imp AA / Imp AMF | B95: 0.6828741613 | C95: 0.7043859935 | D95: 0.7106107803 | E95: 0.6845418126 | F95: 0.675600017 | G95: 0.6691266809 | H95: 0.6703862815 | I95: 0.6673131567 | J95: 0.6735239713 | K95: 0.6963745546 | L95: 0.6826782627 | V95: Importações
A96: Exp AA / Exp BT | B96: 0.09704789426 | C96: 0.09895536081 | D96: 0.1019774128 | E96: 0.1072720182 | F96: 0.1083773534 | G96: 0.1093160885 | H96: 0.1070374609 | I96: 0.1055640051 | J96: 0.1050311236 | K96: 0.123091566 | L96: 0.1066779486
A97: Imp AA / Imp BT | B97: 0.1284957201 | C97: 0.1322702725 | D97: 0.1374124502 | E97: 0.1276372175 | F97: 0.1286602453 | G97: 0.1298288683 | H97: 0.1253774425 | I97: 0.120572209 | J97: 0.1164967202 | K97: 0.133309494 | L97: 0.1274379461
A98: Exp AA / Exp TE | B98: 0.06850366805 | C98: 0.07373987189 | D98: 0.07587174353 | E98: 0.07633822084 | F98: 0.07729269246 | G98: 0.07494173739 | H98: 0.07853123412 | I98: 0.07294666828 | J98: 0.07057883132 | K98: 0.07102712406 | L98: 0.08049274394
A99: Imp AA / Imp TE | B99: 0.112445295 | C99: 0.1095726292 | D99: 0.1216285286 | E99: 0.1147653678 | F99: 0.1119756744 | G99: 0.1112808447 | H99: 0.1199376983 | I99: 0.1112793389 | J99: 0.1056424838 | K99: 0.09837083595 | L99: 0.1222862246
A100: (1) Produtos agrícolas e agroalimentares | B100: AMF - Agroalimentar, Mar e Florestas; BT - Total de Bens Transacionáveis (exclui serviços); TE - Total da Economia (bens e serviços) | M100: *TVMA - Taxa de variação média anual; TVT - Taxa de variação total
A112: Mar (M) | B112: 2011 | C112: 2012 | D112: 2013 | E112: 2014 | F112: 2015 | G112: 2016 | H112: 2017 | I112: 2018 | J112: 2019 | K112: 2020 | L112: média período | M112: var. 11/12 | N112: var. 12/13 | O112: var. 13/14 | P112: var. 14/15 | Q112: var. 15/16 | R112: var. 16/17 | S112: var. 17/18 | T112: var. 18/19 | U112: var. 19/20 | V112: TVMA* 2011-2020 | W112: TVT* 2011-2020
A113: Exportações | B113: 796.110497 | C113: 784.329728 | D113: 817.063244 | E113: 897.358068 | F113: 897.821496 | G113: 959.898484 | H113: 1060.042797 | I113: 1090.807087 | J113: 1068.342159 | K113: 899.633733 | L113: 927.1407293 | M113: -0.01479790688 | N113: 0.04173438139 | O113: 0.09827247106 | P113: 0.0005164359875 | Q113: 0.06914179297 | R113: 0.104328025 | S113: 0.02902174336 | T113: -0.02059477635 | U113: -0.1579160989 | V113: 0.01367597503 | W113: 0.1300362656
A114: Importações | B114: 1508.552701 | C114: 1460.616945 | D114: 1443.264969 | E114: 1573.686016 | F114: 1763.704847 | G114: 1929.829319 | H114: 2136.942885 | I114: 2204.234861 | J114: 2179.297465 | K114: 1924.831075 | L114: 1812.496108 | M114: -0.0317759903 | N114: -0.01187989504 | O114: 0.09036528275 | P114: 0.1207476136 | Q114: 0.09419063075 | R114: 0.1073222196 | S114: 0.03148983366 | T114: -0.01131340242 | U114: -0.1167653311 | V114: 0.02744628474 | W114: 0.2759455296
A115: Saldo (exp-imp) | B115: -712.442204 | C115: -676.287217 | D115: -626.201725 | E115: -676.327948 | F115: -865.883351 | G115: -969.930835 | H115: -1076.900088 | I115: -1113.427774 | J115: -1110.955306 | K115: -1025.197342 | L115: -885.355379
A116: Cobertura (exp/imp) | B116: 0.5277313126 | C116: 0.5369852313 | D116: 0.566121441 | E116: 0.5702268806 | F116: 0.5090542772 | G116: 0.4974007155 | H116: 0.496055746 | I116: 0.494868812 | J116: 0.4902231917 | K116: 0.4673832134 | L116: 0.5115270179
A117: Exp M / Exp AMF | B117: 0.09184317266 | C117: 0.0873745704 | D117: 0.0858632308 | E117: 0.0900239356 | F117: 0.08628997629 | G117: 0.09132737491 | H117: 0.09509736403 | I117: 0.09362580694 | J117: 0.0903248203 | K117: 0.07798892904 | L117: 0.08897303296 | V117: Exportações
A118: Imp M/ Imp AMF | B118: 0.1346232974 | C118: 0.1379765585 | D118: 0.1309119279 | E118: 0.1429724479 | F118: 0.1534727716 | G118: 0.161926443 | H118: 0.163959697 | I118: 0.1617122782 | J118: 0.1575397188 | K118: 0.1475491866 | L118: 0.1500710653 | V118: Importações
A119: Exp M / Exp BT | B119: 0.01858853732 | C119: 0.01734743231 | D119: 0.01727300047 | E119: 0.01867406983 | F119: 0.01808883973 | G119: 0.0191830678 | H119: 0.01926720408 | I119: 0.01885578643 | J119: 0.01783459173 | K119: 0.0167350701 | L119: 0.01819354644
A120: Imp M / Imp BT | B120: 0.02533192573 | C120: 0.02590936952 | D120: 0.0253147423 | E120: 0.02665813116 | F120: 0.02922712248 | G120: 0.0314181566 | H120: 0.0306641828 | I120: 0.02921867555 | J120: 0.02724900869 | K120: 0.02824587324 | L120: 0.0280142922
A121: Exp M / Exp TE | B121: 0.01312118104 | C121: 0.01292701502 | D121: 0.01285120524 | E121: 0.01328906914 | F121: 0.01290062068 | G121: 0.01315096844 | H121: 0.01413596046 | I121: 0.01302969508 | J121: 0.01198449182 | K121: 0.009656582811 | L121: 0.01372775249
A122: Imp M / Imp TE | B122: 0.02216771001 | C122: 0.02146330907 | D122: 0.02240695696 | E122: 0.02396973459 | F122: 0.02543696961 | G122: 0.02692959625 | H122: 0.02933375758 | I122: 0.02696670257 | J122: 0.0247101631 | K122: 0.02084300285 | L122: 0.02688180508
A123: AMF - Agroalimentar, Mar e Florestas; BT - Total de Bens Transacionáveis (exclui serviços); TE - Total da Economia (bens e serviços) | M123: *TVMA - Taxa de variação média anual; TVT - Taxa de variação total
A135: Florestas (F) | B135: 2011 | C135: 2012 | D135: 2013 | E135: 2014 | F135: 2015 | G135: 2016 | H135: 2017 | I135: 2018 | J135: 2019 | K135: 2020 | L135: média período | M135: var. 11/12 | N135: var. 12/13 | O135: var. 13/14 | P135: var. 14/15 | Q135: var. 15/16 | R135: var. 16/17 | S135: var. 17/18 | T135: var. 18/19 | U135: var. 19/20 | V135: TVMA* 2011-2020 | W135: TVT* 2011-2020
A136: Exportações | B136: 3715.670135 | C136: 3718.236156 | D136: 3874.976897 | E136: 3915.819219 | F136: 4127.678882 | G136: 4080.574224 | H136: 4197.892423 | I136: 4453.025693 | J136: 4467.779025 | K136: 4018.687722 | L136: 4057.034038 | M136: 0.0006905944034 | N136: 0.04215459547 | O136: 0.0105400169 | P136: 0.05410353521 | Q136: -0.01141189985 | R136: 0.02875041417 | S136: 0.06077651457 | T136: 0.003313102824 | U136: -0.1005177965 | V136: 0.0087487557 | W136: 0.08155126155
A137: Importações | B137: 2045.074716 | C137: 1668.746707 | D137: 1747.164886 | E137: 1898.536397 | F137: 1964.290787 | G137: 2013.498407 | H137: 2159.025597 | I137: 2330.485358 | J137: 2336.950167 | K137: 2036.069734 | L137: 2019.984276 | M137: -0.1840167531 | N137: 0.04699225992 | O137: 0.08663836608 | P137: 0.03463425305 | Q137: 0.02505108731 | R137: 0.07227579098 | S137: 0.07941534424 | T137: 0.002774018287 | U137: -0.1287491865 | V137: -0.0004902104938 | W137: -0.004403253304
A138: Saldo (exp-imp) | B138: 1670.595419 | C138: 2049.489449 | D138: 2127.812011 | E138: 2017.282822 | F138: 2163.388095 | G138: 2067.075817 | H138: 2038.866826 | I138: 2122.540335 | J138: 2130.828858 | K138: 1982.617988 | L138: 2037.049762
A139: Cobertura (exp/imp) | B139: 1.81688723 | C139: 2.228160895 | D139: 2.217865599 | E139: 2.062546299 | F139: 2.101358368 | G139: 2.026609115 | H139: 1.944345833 | I139: 1.910771796 | J139: 1.911799014 | K139: 1.973747586 | L139: 2.008448326
A140: Exp F / Exp AMF | B140: 0.4286577492 | C140: 0.4142126394 | D140: 0.4072120954 | E140: 0.3928392353 | F140: 0.3967128371 | G140: 0.3882370253 | H140: 0.3765965912 | I140: 0.3822106849 | J140: 0.377736041 | K140: 0.3483786124 | L140: 0.3893331527 | V140: Exportações
A141: Imp F / Imp AMF | B141: 0.1825025413 | C141: 0.157637448 | D141: 0.1584772918 | E141: 0.1724857394 | F141: 0.1709272114 | G141: 0.1689468762 | H141: 0.1656540215 | I141: 0.1709745651 | J141: 0.16893631 | K141: 0.1560762588 | L141: 0.167250672 | V141: Importações
A142: Exp F / Exp BT | B142: 0.08675789759 | C142: 0.08223818085 | D142: 0.08191835608 | E142: 0.0814884093 | F142: 0.08316232358 | G142: 0.08154813588 | H142: 0.07630036282 | I142: 0.07697539046 | J142: 0.07458379714 | K142: 0.07475600155 | L142: 0.07961233374
A143: Imp F / Imp BT | B143: 0.03434131322 | C143: 0.02960131006 | D143: 0.03064512046 | E143: 0.03216107392 | F143: 0.0325511196 | G143: 0.03278031256 | H143: 0.03098105993 | I143: 0.03089221423 | J143: 0.02922023103 | K143: 0.02987824146 | L143: 0.03122126965
A144: Exp F / Exp TE | B144: 0.06124021817 | C144: 0.06128251032 | D144: 0.06094769747 | E144: 0.05798977486 | F144: 0.05930980691 | G144: 0.05590539387 | H144: 0.05598004295 | I144: 0.05319140996 | J144: 0.05011883199 | K144: 0.04313621128 | L144: 0.06007066388
A145: Imp F / Imp TE | B145: 0.03005173318 | C145: 0.02452171081 | D145: 0.02712505967 | E145: 0.02891772125 | F145: 0.0283299131 | G145: 0.02809714757 | H145: 0.02963688638 | I145: 0.02851125649 | J145: 0.02649772264 | K145: 0.02204754891 | L145: 0.0299591394
A146: AMF - Agroalimentar, Mar e Florestas; BT - Total de Bens Transacionáveis (exclui serviços); TE - Total da Economia (bens e serviços) | M146: *TVMA - Taxa de variação média anual; TVT - Taxa de variação total
A157: Fonte: GPP a partir de dados INE/Comércio Internacional (2019 provisórios; 2020 preliminares) | M157: 2021-12-30

Sheet 3
A1: Principais transações de Frutas, Hortícolas & Flores entre Portugal e Todo o Mundo em 2011-2020 (NC a 2 e 4 dígitos) em milhões de euros
AC4: P | AE4: Cód.NC | AF4: Descritivo | AG4: Média export quinquénio | AH4: % do total | AI4: % acumulada | AN4: P | AO4: NC | AP4: Exportações | AQ4: 2011 | AR4: 2012 | AS4: 2013 | AT4: 2014 | AU4: 2015 | AV4: 2016 | AW4: 2017 | AX4: 2018 | AY4: 2019 | AZ4: 2020 | BA4: média período
AC5: 1 | AD5: º | AE5: 08 | AF5: Frutas | AG5: 522.0830083 | AH5: 0.4137876998 | AN5: 1º | AO5: 08 | AP5: Frutas | AQ5: 284.786575 | AR5: 324.8151 | AS5: 341.087977 | AT5: 435.806584 | AU5: 476.570357 | AV5: 493.125153 | AW5: 637.352063 | AX5: 681.485425 | AY5: 745.963948 | AZ5: 799.836901 | BA5: 522.0830083
AC6: 2 | AD6: º | AE6: 20 | AF6: Preparações de produtos vegetais | AG6: 410.4087216 | AH6: 0.3252779313 | AN6: 2º | AO6: 20 | AP6: Preparações de produtos vegetais | AQ6: 319.526456 | AR6: 344.355501 | AS6: 388.233833 | AT6: 399.596223 | AU6: 422.067721 | AV6: 435.609138 | AW6: 457.617299 | AX6: 437.02461 | AY6: 433.206758 | AZ6: 466.849677 | BA6: 410.4087216
AC7: 3 | AD7: º | AE7: 07 | AF7: Produtos hortícolas | AG7: 256.3863117 | AH7: 0.2032042807 | AI7: 0.9422699118 | AN7: 3º | AO7: 07 | AP7: Produtos hortícolas | AQ7: 171.004098 | AR7: 196.913816 | AS7: 219.304317 | AT7: 211.465956 | AU7: 250.309243 | AV7: 267.880634 | AW7: 295.566522 | AX7: 295.844097 | AY7: 334.87496 | AZ7: 320.699474 | BA7: 256.3863117
AC8: 4 | AD8: º | AE8: 06 | AF8: Plantas vivas e produtos de floricultura | AG8: 72.8390383 | AH8: 0.0577300882 | AO8: - | AP8: Outros | AQ8: 61.304538 | AR8: 54.849606 | AS8: 51.309462 | AT8: 54.445197 | AU8: 64.975834 | AV8: 76.839183 | AW8: 79.173641 | AX8: 78.57901 | AY8: 98.160496 | AZ8: 108.753416 | BA8: 72.8390383
AC9: 5 | AD9: º | AG9: 0 | AH9: 0 | AP9: Total | AQ9: 836.621667 | AR9: 920.934023 | AS9: 999.935589 | AT9: 1101.31396 | AU9: 1213.923155 | AV9: 1273.454108 | AW9: 1469.709525 | AX9: 1492.933142 | AY9: 1612.206162 | AZ9: 1696.139468 | BA9: 1261.71708
AC10: 6 | AD10: º | AG10: 0 | AH10: 0
AC11: 7 | AD11: º | AG11: 0 | AH11: 0
AC12: 8 | AD12: º | AG12: 0 | AH12: 0
AC13: 9 | AD13: º | AG13: 0 | AH13: 0
AC14: 10 | AD14: º | AG14: 0 | AH14: 0 | AI14: 1
AG15: 0 | AH15: 0
AE16: Total | AG16: 1261.71708 | AH16: 1
AC38: P | AE38: Cód.NC | AF38: Descritivo | AG38: Média import quinquénio | AH38: % do total | AI38: % acumulada | AN38: P | AO38: NC | AP38: Importações | AQ38: 2011 | AR38: 2012 | AS38: 2013 | AT38: 2014 | AU38: 2015 | AV38: 2016 | AW38: 2017 | AX38: 2018 | AY38: 2019 | AZ38: 2020 | BA38: média período
AC39: 1 | AD39: º | AE39: 08 | AF39: Frutas | AG39: 643.7676368 | AH39: 0.4492141721 | AN39: 1º | AO39: 08 | AP39: Frutas | AQ39: 478.958235 | AR39: 450.23829 | AS39: 535.091613 | AT39: 509.633802 | AU39: 553.923014 | AV39: 673.769371 | AW39: 755.955282 | AX39: 814.572377 | AY39: 779.192888 | AZ39: 886.341496 | BA39: 643.7676368
AC40: 2 | AD40: º | AE40: 07 | AF40: Produtos hortícolas | AG40: 363.7116917 | AH40: 0.2537941287 | AN40: 2º | AO40: 07 | AP40: Produtos hortícolas | AQ40: 309.38259 | AR40: 277.84851 | AS40: 345.245708 | AT40: 303.304601 | AU40: 329.173364 | AV40: 384.765203 | AW40: 384.427992 | AX40: 418.728772 | AY40: 455.255074 | AZ40: 428.985103 | BA40: 363.7116917
AC41: 3 | AD41: º | AE41: 20 | AF41: Preparações de produtos vegetais | AG41: 324.9760879 | AH41: 0.2267648386 | AI41: 0.9297731394 | AN41: 3º | AO41: 20 | AP41: Preparações de produtos vegetais | AQ41: 284.949299 | AR41: 272.697042 | AS41: 283.736897 | AT41: 299.197689 | AU41: 293.32665 | AV41: 334.368529 | AW41: 357.647402 | AX41: 361.967279 | AY41: 394.264055 | AZ41: 367.606037 | BA41: 324.9760879
AC42: 4 | AD42: º | AE42: 06 | AF42: Plantas vivas e produtos de floricultura | AG42: 100.6419274 | AH42: 0.07022686061 | AO42: - | AP42: Outros | AQ42: 78.796592 | AR42: 72.610395 | AS42: 74.703023 | AT42: 83.902042 | AU42: 87.093379 | AV42: 103.181849 | AW42: 123.89852 | AX42: 126.586031 | AY42: 127.266038 | AZ42: 128.381405 | BA42: 100.6419274
AC43: 5 | AD43: º | AG43: 0 | AH43: 0 | AP43: Total | AQ43: 1152.086716 | AR43: 1073.394237 | AS43: 1238.777241 | AT43: 1196.038134 | AU43: 1263.516407 | AV43: 1496.084952 | AW43: 1621.929196 | AX43: 1721.854459 | AY43: 1755.978055 | AZ43: 1811.314041 | BA43: 1433.097344
AC44: 6 | AD44: º | AG44: 0 | AH44: 0
AC45: 7 | AD45: º | AG45: 0 | AH45: 0
AC46: 8 | AD46: º | AG46: 0 | AH46: 0
AC47: 9 | AD47: º | AG47: 0 | AH47: 0
AC48: 10 | AD48: º | AG48: 0 | AH48: 0 | AI48: 1
AG49: 0 | AH49: 0
AE50: Total | AG50: 1433.097344 | AH50: 1
AC62: DESAGREGAÇÃO A 4 DÍGITOS | AN62: DESAGREGAÇÃO A 4 DÍGITOS
AC64: P | AE64: Cód.NC | AF64: Descritivo | AG64: Média export quinquénio | AH64: % do total | AI64: % acumulada | AN64: P | AO64: NC | AP64: Exportações | AQ64: 2011 | AR64: 2012 | AS64: 2013 | AT64: 2014 | AU64: 2015 | AV64: 2016 | AW64: 2017 | AX64: 2018 | AY64: 2019 | AZ64: 2020 | BA64: média período
AC65: 1 | AD65: º | AE65: 2002 | AF65: Tomates preparados | AG65: 197.4811227 | AH65: 0.1565177533 | AN65: 1º | AO65: 2002 | AP65: Tomates preparados | AQ65: 153.564711 | AR65: 164.131073 | AS65: 192.650986 | AT65: 190.057644 | AU65: 209.022704 | AV65: 208.159712 | AW65: 211.829656 | AX65: 207.176434 | AY65: 199.656599 | AZ65: 238.561708 | BA65: 197.4811227
AC66: 2 | AD66: º | AE66: 0810 | AF66: Outras frutas frescas | AG66: 145.3248219 | AH66: 0.1151801971 | AN66: 2º | AO66: 0810 | AP66: Outras frutas frescas | AQ66: 40.679826 | AR66: 53.089941 | AS66: 54.465023 | AT66: 96.215562 | AU66: 117.984505 | AV66: 143.695272 | AW66: 185.652283 | AX66: 227.935079 | AY66: 260.096547 | AZ66: 273.434181 | BA66: 145.3248219
AC67: 3 | AD67: º | AE67: 0808 | AF67: Maçãs, peras e marmelos, frescos | AG67: 105.1829058 | AH67: 0.08336489018 | AI67: 0.3550628406 | AN67: 3º | AO67: 0808 | AP67: Maçãs, peras e marmelos, frescos | AQ67: 85.418536 | AR67: 87.741386 | AS67: 82.770368 | AT67: 110.546305 | AU67: 110.906968 | AV67: 95.247884 | AW67: 123.693911 | AX67: 111.568564 | AY67: 120.871734 | AZ67: 123.063402 | BA67: 105.1829058
AC68: 4 | AD68: º | AE68: 0805 | AF68: Citrinos, frescos ou secos | AG68: 100.0443207 | AH68: 0.07929219814 | AN68: - | AO68: - | AP68: Outros | AQ68: 556.958594 | AR68: 615.971623 | AS68: 670.049212 | AT68: 704.494449 | AU68: 776.008978 | AV68: 826.35124 | AW68: 948.533675 | AX68: 946.253065 | AY68: 1031.581282 | AZ68: 1061.080177 | BA68: 813.7282295
AC69: 5 | AD69: º | AE69: 2005 | AF69: Produtos hortícolas preparados, não congelados | AG69: 82.8450818 | AH69: 0.06566058518 | AP69: Total | AQ69: 836.621667 | AR69: 920.934023 | AS69: 999.935589 | AT69: 1101.31396 | AU69: 1213.923155 | AV69: 1273.454108 | AW69: 1469.709525 | AX69: 1492.933142 | AY69: 1612.206162 | AZ69: 1696.139468 | BA69: 1261.71708
AC70: 6 | AD70: º | AE70: 0802 | AF70: Frutas de casca rija | AG70: 67.623977 | AH70: 0.05359678337
AC71: 7 | AD71: º | AE71: 0709 | AF71: Outros produtos hortícolas, frescos ou refrigerados | AG71: 54.3487748 | AH71: 0.04307524695
AC72: 8 | AD72: º | AE72: 2008 | AF72: Frutas preparadas | AG72: 52.1402025 | AH72: 0.04132479724
AC73: 9 | AD73: º | AE73: 0710 | AF73: Produtos hortícolas congelados | AG73: 51.7547072 | AH73: 0.04101926496
AC74: 10 | AD74: º | AE74: 0602 | AF74: Plantas vivas | AG74: 46.6857731 | AH74: 0.03700177626 | AI74: 0.7160334927
AE75: - | AF75: Outros | AG75: 358.2853924 | AH75: 0.2839665073
AE76: Total | AG76: 1261.71708 | AH76: 1
AC89: DESAGREGAÇÃO A 4 DÍGITOS | AN89: DESAGREGAÇÃO A 4 DÍGITOS
G91: média 2011-2020 em milhões de euros | I91: Cód. NC | J91: Descritivo | K91: Export | L91: Import | M91: Saldo | AC91: P | AE91: Cód.NC | AF91: Descritivo | AG91: Média import quinquénio | AH91: % do total | AI91: % acumulada | AN91: P | AO91: NC | AP91: Importações | AQ91: 2011 | AR91: 2012 | AS91: 2013 | AT91: 2014 | AU91: 2015 | AV91: 2016 | AW91: 2017 | AX91: 2018 | AY91: 2019 | AZ91: 2020 | BA91: média período
I92: 2002 | J92: Tomates preparados | K92: 197.4811227 | L92: 14.9057393 | M92: 182.5753834 | AC92: 1 | AD92: º | AE92: 0805 | AF92: Citrinos, frescos ou secos | AG92: 105.2479243 | AH92: 0.07344087598 | AN92: 1º | AO92: 0805 | AP92: Citrinos, frescos ou secos | AQ92: 50.08513 | AR92: 52.599193 | AS92: 71.489096 | AT92: 69.174854 | AU92: 85.309012 | AV92: 114.023068 | AW92: 142.035406 | AX92: 152.936037 | AY92: 124.772476 | AZ92: 190.054971 | BA92: 105.2479243
I93: 0810 | J93: Outras frutas frescas | K93: 145.3248219 | L93: 60.0742542 | M93: 85.2505677 | AC93: 2 | AD93: º | AE93: 0803 | AF93: Bananas, frescas ou secas | AG93: 99.3114644 | AH93: 0.06929847775 | AN93: 2º | AO93: 0803 | AP93: Bananas, frescas ou secas | AQ93: 78.471818 | AR93: 81.708395 | AS93: 80.869298 | AT93: 80.522468 | AU93: 87.924133 | AV93: 99.517689 | AW93: 109.130679 | AX93: 110.989145 | AY93: 121.129715 | AZ93: 142.851304 | BA93: 99.3114644
I94: 0808 | J94: Maçãs, peras e marmelos, frescos | K94: 105.1829058 | L94: 50.8740863 | M94: 54.3088195 | AC94: 3 | AD94: º | AE94: 0701 | AF94: Batatas, frescas ou refrigeradas | AG94: 93.3051944 | AH94: 0.06510736678 | AI94: 0.2078467205 | AN94: 3º | AO94: 0701 | AP94: Batatas, frescas ou refrigeradas | AQ94: 97.744997 | AR94: 75.809059 | AS94: 115.086815 | AT94: 69.139498 | AU94: 77.5706 | AV94: 110.348269 | AW94: 85.980168 | AX94: 101.776078 | AY94: 112.361376 | AZ94: 87.235084 | BA94: 93.3051944
I95: 2005 | J95: Produtos hortícolas preparados, não congelados | K95: 82.8450818 | L95: 46.6104636 | M95: 36.2346182 | AC95: 4 | AD95: º | AE95: 2009 | AF95: Sumos de frutas | AG95: 92.1744808 | AH95: 0.06431836693 | AN95: - | AO95: - | AP95: Outros | AQ95: 925.784771 | AR95: 863.27759 | AS95: 971.332032 | AT95: 977.201314 | AU95: 1012.712662 | AV95: 1172.195926 | AW95: 1284.782943 | AX95: 1356.153199 | AY95: 1397.714488 | AZ95: 1391.172682 | BA95: 1135.232761
I96: 0802 | J96: Frutas de casca rija | K96: 67.623977 | L96: 50.8697561 | M96: 16.7542209 | AC96: 5 | AD96: º | AE96: 0804 | AF96: Tâmaras, figos, ananases, abacates, goiabas, mangas | AG96: 86.7184555 | AH96: 0.06051121082 | AP96: Total | AQ96: 1152.086716 | AR96: 1073.394237 | AS96: 1238.777241 | AT96: 1196.038134 | AU96: 1263.516407 | AV96: 1496.084952 | AW96: 1621.929196 | AX96: 1721.854459 | AY96: 1755.978055 | AZ96: 1811.314041 | BA96: 1433.097344
I97: 0702 | J97: Tomates, frescos ou refrigerados | K97: 43.3855863 | L97: 29.8937626 | M97: 13.4918237 | AC97: 6 | AD97: º | AE97: 2004 | AF97: Produtos hortícolas preparados, congelados | AG97: 68.011327 | AH97: 0.04745757662
I98: 0604 | J98: Folhagem, folhas, ramos e outras partes de plantas | K98: 16.644931 | L98: 4.4801657 | M98: 12.1647653 | AC98: 7 | AD98: º | AE98: 0602 | AF98: Plantas vivas | AG98: 66.3026982 | AH98: 0.04626531372
I99: 0710 | J99: Produtos hortícolas congelados | K99: 51.7547072 | L99: 40.7447669 | M99: 11.0099403 | AC99: 8 | AD99: º | AE99: 0810 | AF99: Outras frutas frescas | AG99: 60.0742542 | AH99: 0.04191917211
I100: 0811 | J100: Frutas não cozidas ou cozidas em água ou vapor, congeladas | K100: 25.686476 | L100: 16.3404316 | M100: 9.3460444 | AC100: 9 | AD100: º | AE100: 0807 | AF100: Melões, melancias e papaia, frescos | AG100: 56.6686385 | AH100: 0.03954276989
I101: 0704 | J101: Couves, frescas ou refrigeradas | K101: 20.1751411 | L101: 15.2912143 | M101: 4.8839268 | AC101: 10 | AD101: º | AE101: 2008 | AF101: Frutas preparadas | AG101: 56.0330844 | AH101: 0.03909928704 | AI101: 0.5469604177
I102: - | J102: Outros | K102: 313.2369421 | L102: 421.7665123 | M102: -108.5295702 | AE102: - | AF102: Outros | AG102: 649.2498221 | AH102: 0.4530395823
I103: 0703 | J103: Cebolas, alhos, etc., frescos ou refrigerados | K103: 9.4573308 | L103: 36.5217675 | M103: -27.0644367 | AE103: Total | AG103: 1433.097344 | AH103: 1
I104: 0713 | J104: Legumes de vagem, secos, em grão | K104: 19.6969913 | L104: 52.915121 | M104: -33.2181297
I105: 0806 | J105: Uvas, frescas ou secas | K105: 8.8964808 | L105: 45.9141148 | M105: -37.017634
I106: 0809 | J106: Damascos, cerejas, pêssegos, etc., frescos | K106: 12.4932516 | L106: 49.705627 | M106: -37.2123754
J107: Produtos hortícolas preparados, congelados | K107: 29.6020591 | L107: 68.011327 | M107: -38.4092679
I108: 0807 | J108: Melões, melancias e papaia, frescos | K108: 8.4914097 | L108: 56.6686385 | M108: -48.1772288
I109: 0804 | J109: Tâmaras, figos, ananases, abacates, goiabas, mangas | K109: 35.8600022 | L109: 86.7184555 | M109: -50.8584533
I110: 2009 | J110: Sumos de frutas | K110: 38.1666556 | L110: 92.1744808 | M110: -54.0078252
I111: 0701 | J111: Batatas, frescas ou refrigeradas | K111: 19.8746819 | L111: 93.3051944 | M111: -73.4305125
I112: 0803 | J112: Bananas, frescas ou secas | K112: 9.836524 | L112: 99.3114644 | M112: -89.4749404
I113: Total | K113: 1261.71708 | L113: 1433.097344 | M113: -171.3802639
A116: Fonte: GPP a partir de dados INE/Comércio Internacional (2019 provisórios; 2020 preliminares) | Y116: 2021-12-30

Sheet 3A
A1: Principais produtos agrícolas e agroalimentares transacionados entre Portugal e Todo o Mundo em 2011-2020 (NC 2 dígitos) em milhões de euros
AC4: P | AE4: Cód.NC | AF4: Descritivo | AG4: Média export quinquénio | AH4: % do total | AI4: % acumulada | AN4: P | AO4: NC | AP4: Exportações | AQ4: 2011 | AR4: 2012 | AS4: 2013 | AT4: 2014 | AU4: 2015 | AV4: 2016 | AW4: 2017 | AX4: 2018 | AY4: 2019 | AZ4: 2020 | BA4: média período
AC5: 1 | AD5: º | AE5: 22 | AF5: Bebidas, líquidos alcoólicos e vinagres | AG5: 1093.27927 | AH5: 0.2011074509 | AN5: 1º | AO5: 22 | AP5: Bebidas, líquidos alcoólicos e vinagres | AQ5: 1031.719373 | AR5: 1106.47112 | AS5: 1097.151762 | AT5: 1159.344139 | AU5: 1059.288431 | AV5: 1006.119222 | AW5: 1078.398257 | AX5: 1090.840732 | AY5: 1135.764179 | AZ5: 1167.695485 | BA5: 1093.27927
AC6: 2 | AD6: º | AE6: 15 | AF6: Gorduras e óleos animais ou vegetais | AG6: 625.9009827 | AH6: 0.1151337582 | AN6: 2º | AO6: 15 | AP6: Gorduras e óleos animais ou vegetais | AQ6: 415.709734 | AR6: 439.942097 | AS6: 536.384637 | AT6: 524.803551 | AU6: 592.20783 | AV6: 599.135721 | AW6: 759.753283 | AX6: 816.699821 | AY6: 771.591783 | AZ6: 802.78137 | BA6: 625.9009827
AC7: 3 | AD7: º | AE7: 24 | AF7: Tabaco | AG7: 562.850908 | AH7: 0.1035357703 | AI7: 0.4197769794 | AN7: 3º | AO7: 24 | AP7: Tabaco | AQ7: 387.429433 | AR7: 411.528998 | AS7: 460.428646 | AT7: 563.697778 | AU7: 714.552027 | AV7: 656.199074 | AW7: 553.167679 | AX7: 587.898534 | AY7: 607.806963 | AZ7: 685.799948 | BA7: 562.850908
AC8: 4 | AD8: º | AE8: 08 | AF8: Frutas | AG8: 522.0830083 | AH8: 0.09603656252 | AO8: - | AP8: Outros | AQ8: 2321.511916 | AR8: 2516.12806 | AS8: 2729.863672 | AT8: 2906.971446 | AU8: 3013.153416 | AV8: 3208.596379 | AW8: 3497.666486 | AX8: 3611.437725 | AY8: 3776.496511 | AZ8: 3960.804831 | BA8: 3154.263044
AC9: 5 | AD9: º | AE9: 20 | AF9: Preparações de produtos vegetais | AG9: 410.4087216 | AH9: 0.07549420729 | AP9: Total | AQ9: 4156.370456 | AR9: 4474.070275 | AS9: 4823.828717 | AT9: 5154.816914 | AU9: 5379.201704 | AV9: 5470.050396 | AW9: 5888.985705 | AX9: 6106.876812 | AY9: 6291.659436 | AZ9: 6617.081634 | BA9: 5436.294205
AC10: 6 | AD10: º | AE10: 04 | AF10: Leite e laticínios; ovos; mel, etc. | AG10: 331.5355528 | AH10: 0.06098557957
AC11: 7 | AD11: º | AE11: 19a | AF11: Preparações à base de cereais (exc. NC 19022010) (a) | AG11: 311.1304255 | AH11: 0.05723208012
AC12: 8 | AD12: º | AE12: 07 | AF12: Produtos hortícolas | AG12: 256.3863117 | AH12: 0.04716196402
AC13: 9 | AD13: º | AE13: 02 | AF13: Carnes e miudezas | AG13: 193.5357365 | AH13: 0.03560067377
AC14: 10 | AD14: º | AE14: 21 | AF14: Preparações alimentícias diversas | AG14: 167.8498288 | AH14: 0.0308757809 | AI14: 0.8231638276
AE15: - | AF15: Outros | AG15: 961.333459 | AH15: 0.1768361724
AE16: Total | AG16: 5436.294205 | AH16: 1
AC38: P | AE38: Cód.NC | AF38: Descritivo | AG38: Média import quinquénio | AH38: % do total | AI38: % acumulada | AN38: P | AO38: NC | AP38: Importações | AQ38: 2011 | AR38: 2012 | AS38: 2013 | AT38: 2014 | AU38: 2015 | AV38: 2016 | AW38: 2017 | AX38: 2018 | AY38: 2019 | AZ38: 2020 | BA38: média período
AC39: 1 | AD39: º | AE39: 02 | AF39: Carnes e miudezas | AG39: 965.0967579 | AH39: 0.117050875 | AN39: 1º | AO39: 02 | AP39: Carnes e miudezas | AQ39: 796.89738 | AR39: 794.758824 | AS39: 898.104206 | AT39: 959.857388 | AU39: 934.522579 | AV39: 931.358889 | AW39: 1027.780381 | AX39: 1125.824426 | AY39: 1165.965459 | AZ39: 1015.898047 | BA39: 965.0967579
AC40: 2 | AD40: º | AE40: 10 | AF40: Cereais | AG40: 778.3323015 | AH40: 0.09439931925 | AN40: 2º | AO40: 10 | AP40: Cereais | AQ40: 829.52501 | AR40: 834.330103 | AS40: 746.740469 | AT40: 710.988357 | AU40: 729.365585 | AV40: 737.446415 | AW40: 770.612636 | AX40: 856.184287 | AY40: 796.616051 | AZ40: 771.514102 | BA40: 778.3323015
AC41: 3 | AD41: º | AE41: 08 | AF41: Frutas | AG41: 643.7676368 | AH41: 0.07807876732 | AI41: 0.2895289616 | AN41: 3º | AO41: 08 | AP41: Frutas | AQ41: 478.958235 | AR41: 450.23829 | AS41: 535.091613 | AT41: 509.633802 | AU41: 553.923014 | AV41: 673.769371 | AW41: 755.955282 | AX41: 814.572377 | AY41: 779.192888 | AZ41: 886.341496 | BA41: 643.7676368
AC42: 4 | AD42: º | AE42: 12 | AF42: Sementes e frutos oleaginosos | AG42: 630.8288161 | AH42: 0.07650949432 | AO42: - | AP42: Outros | AQ42: 5546.724773 | AR42: 5377.288088 | AS42: 5654.33567 | AT42: 5354.216079 | AU42: 5546.165534 | AV42: 5632.035668 | AW42: 6183.025708 | AX42: 6299.295483 | AY42: 6575.298749 | AZ42: 6410.697537 | BA42: 5857.908329
AC43: 5 | AD43: º | AE43: 15 | AF43: Gorduras e óleos animais ou vegetais | AG43: 604.6193408 | AH43: 0.07333070215 | AP43: Total | AQ43: 7652.105398 | AR43: 7456.615305 | AS43: 7834.271958 | AT43: 7534.695626 | AU43: 7763.976712 | AV43: 7974.610343 | AW43: 8737.374007 | AX43: 9095.876573 | AY43: 9317.073147 | AZ43: 9084.451182 | BA43: 8245.105025
AC44: 6 | AD44: º | AE44: 04 | AF44: Leite e laticínios; ovos; mel, etc. | AG44: 528.6301963 | AH44: 0.06411442846
AC45: 7 | AD45: º | AE45: 19a | AF45: Preparações à base de cereais (exc. NC 19022010) (a) | AG45: 501.8620763 | AH45: 0.06086788158
AC46: 8 | AD46: º | AE46: 22 | AF46: Bebidas, líquidos alcoólicos e vinagres | AG46: 440.0165119 | AH46: 0.05336699903
AC47: 9 | AD47: º | AE47: 21 | AF47: Preparações alimentícias diversas | AG47: 374.8913608 | AH47: 0.04546835482
AC48: 10 | AD48: º | AE48: 07 | AF48: Produtos hortícolas | AG48: 363.7116917 | AH48: 0.04411243891 | AI48: 0.7072992609
AE49: - | AF49: Outros | AG49: 2413.348335 | AH49: 0.2927007391
AE50: Total | AG50: 8245.105025 | AH50: 1
A56: Fonte: GPP a partir de dados INE/Comércio Internacional (2019 provisórios; 2020 preliminares) | Y56: 2021-12-30

Sheet 3B
A1: Principais origens e destinos em Todo o Mundo para Frutas, Hortícolas & Flores (2011-2020) em milhões de euros
AC4: P | AE4: País | AF4: Média export quinquénio | AG4: % do total | AH4: % acumulada | AM4: P | AN4: Exportações | AO4: 2011 | AP4: 2012 | AQ4: 2013 | AR4: 2014 | AS4: 2015 | AT4: 2016 | AU4: 2017 | AV4: 2018 | AW4: 2019 | AX4: 2020 | AY4: média período
AC5: 1 | AD5: º | AE5: Espanha | AF5: 380.3728419 | AG5: 0.3014723728 | AM5: 1º | AN5: Espanha | AO5: 264.262612 | AP5: 273.808533 | AQ5: 285.510232 | AR5: 307.799522 | AS5: 349.293472 | AT5: 366.518498 | AU5: 448.962411 | AV5: 449.950942 | AW5: 494.314358 | AX5: 563.307839 | AY5: 380.3728419
AC6: 2 | AD6: º | AE6: França | AF6: 158.5375644 | AG6: 0.1256522297 | AM6: 2º | AN6: França | AO6: 95.953045 | AP6: 121.703656 | AQ6: 142.057131 | AR6: 142.550238 | AS6: 149.31514 | AT6: 154.263083 | AU6: 179.106105 | AV6: 171.697737 | AW6: 206.94366 | AX6: 221.785849 | AY6: 158.5375644
AC7: 3 | AD7: º | AE7: Reino Unido | AF7: 123.2232375 | AG7: 0.09766312865 | AH7: 0.5247877312 | AM7: 3º | AN7: Reino Unido | AO7: 95.456809 | AP7: 107.719178 | AQ7: 104.681041 | AR7: 113.299471 | AS7: 117.89805 | AT7: 117.346592 | AU7: 138.371168 | AV7: 141.362532 | AW7: 142.537303 | AX7: 153.560231 | AY7: 123.2232375
AC8: 4 | AD8: º | AE8: Países Baixos | AF8: 115.8919923 | AG8: 0.09185259845 | AN8: Outros | AO8: 380.949201 | AP8: 417.702656 | AQ8: 467.687185 | AR8: 537.664729 | AS8: 597.416493 | AT8: 635.325935 | AU8: 703.269841 | AV8: 729.921931 | AW8: 768.410841 | AX8: 757.485549 | AY8: 599.5834361
AC9: 5 | AD9: º | AE9: Alemanha | AF9: 71.7376078 | AG9: 0.05685712664 | AN9: Total | AO9: 836.621667 | AP9: 920.934023 | AQ9: 999.935589 | AR9: 1101.31396 | AS9: 1213.923155 | AT9: 1273.454108 | AU9: 1469.709525 | AV9: 1492.933142 | AW9: 1612.206162 | AX9: 1696.139468 | AY9: 1261.71708
AC10: 6 | AD10: º | AE10: Bélgica | AF10: 57.2555153 | AG10: 0.04537904433
AC11: 7 | AD11: º | AE11: Itália | AF11: 49.1981593 | AG11: 0.03899301998
AC12: 8 | AD12: º | AE12: Polónia | AF12: 46.9672443 | AG12: 0.03722486209
AC13: 9 | AD13: º | AE13: Brasil | AF13: 43.0092814 | AG13: 0.03408789663
AC14: 10 | AD14: º | AE14: Angola | AF14: 35.1790021 | AG14: 0.02788184662 | AH14: 0.857064126
AE15: Outros | AF15: 180.3446336 | AG15: 0.142935874
AE16: Total | AF16: 1261.71708 | AG16: 1
AF18: 0
AC38: P | AE38: País | AF38: Média import quinquénio | AG38: % do total | AH38: % acumulada | AM38: P | AN38: Importações | AO38: 2011 | AP38: 2012 | AQ38: 2013 | AR38: 2014 | AS38: 2015 | AT38: 2016 | AU38: 2017 | AV38: 2018 | AW38: 2019 | AX38: 2020 | AY38: média período
AC39: 1 | AD39: º | AE39: Espanha | AF39: 739.8265188 | AG39: 0.5162430326 | AM39: 1º | AN39: Espanha | AO39: 557.042861 | AP39: 570.693348 | AQ39: 646.251491 | AR39: 609.122588 | AS39: 645.743875 | AT39: 781.205227 | AU39: 833.000364 | AV39: 898.467869 | AW39: 902.501072 | AX39: 954.236493 | AY39: 739.8265188
AC40: 2 | AD40: º | AE40: Países Baixos | AF40: 114.9164068 | AG40: 0.08018743967 | AM40: 2º | AN40: Países Baixos | AO40: 104.080648 | AP40: 91.05209 | AQ40: 99.21135 | AR40: 96.521093 | AS40: 106.527243 | AT40: 127.369765 | AU40: 122.771796 | AV40: 132.744702 | AW40: 140.554191 | AX40: 128.33119 | AY40: 114.9164068
AC41: 3 | AD41: º | AE41: França | AF41: 101.7633437 | AG41: 0.07100937291 | AH41: 0.6674398452 | AM41: 3º | AN41: França | AO41: 113.25078 | AP41: 88.890598 | AQ41: 111.749816 | AR41: 93.486382 | AS41: 86.637328 | AT41: 105.55504 | AU41: 102.129087 | AV41: 106.777097 | AW41: 109.816564 | AX41: 99.340745 | AY41: 101.7633437
AC42: 4 | AD42: º | AE42: África do Sul | AF42: 63.1368427 | AG42: 0.04405621361 | AN42: Outros | AO42: 377.712427 | AP42: 322.758201 | AQ42: 381.564584 | AR42: 396.908071 | AS42: 424.607961 | AT42: 481.95492 | AU42: 564.027949 | AV42: 583.864791 | AW42: 603.106228 | AX42: 629.405613 | AY42: 476.5910745
AC43: 5 | AD43: º | AE43: Alemanha | AF43: 58.1490689 | AG43: 0.04057579839 | AN43: Total | AO43: 1152.086716 | AP43: 1073.394237 | AQ43: 1238.777241 | AR43: 1196.038134 | AS43: 1263.516407 | AT43: 1496.084952 | AU43: 1621.929196 | AV43: 1721.854459 | AW43: 1755.978055 | AX43: 1811.314041 | AY43: 1433.097344
AC44: 6 | AD44: º | AE44: Bélgica | AF44: 49.6384727 | AG44: 0.03463719538
AC45: 7 | AD45: º | AE45: Costa Rica | AF45: 42.1066915 | AG45: 0.02938159901
AC46: 8 | AD46: º | AE46: Brasil | AF46: 41.1096163 | AG46: 0.0286858506
AC47: 9 | AD47: º | AE47: Irlanda | AF47: 25.5309024 | AG47: 0.01781519065
AC48: 10 | AD48: º | AE48: Itália | AF48: 23.9337151 | AG48: 0.01670069043 | AH48: 0.8792923833
AE49: Outros | AF49: 172.9857649 | AG49: 0.1207076167
AE50: Total | AF50: 1433.097344 | AG50: 1
AF52: 0
A57: Fonte: GPP a partir de dados INE/Comércio Internacional (2019 provisórios; 2020 preliminares) | Y57: 2021-12-30

Sheet 4
A1: Evolução da balança comercial por país e por produto 2011-2020 em euros (NC 2 dígitos) Frutas, Hortícolas & Flores
A2: =+aux!A55 -> Evolução da balança comercial Portugal-Espanha
A4: Selecione o país:
A19: =+aux!A56 -> Evolução da balança comercial Portugal-Espanha para Frutas
M21: Selecione o produto:
A38: Fonte: GPP a partir de dados INE/Comércio Internacional (2019 provisórios; 2020 preliminares) | R38: 2021-12-30

Sheet 4A
A1: Evolução da balança comercial Portugal-Todo o Mundo 2011-2020 por produto em euros (NC 2 dígitos)
A3: =+aux!A31 -> Evolução da balança comercial Portugal-Todo o Mundo para Preparações de produtos vegetais
A5: Selecione o produto:
U7: Para obter uma maior desagregação deste produto, clique no botão respetivo:
A20: =+aux!A43 -> Evolução da balança comercial Portugal-Todo o Mundo para Frutas
A22: Selecione o produto:
A38: Fonte: GPP a partir de dados INE/Comércio Internacional (2019 provisórios; 2020 preliminares) | R38: 2021-12-30

Sheet 5.1
A1: Trocas comerciais Portugal-Todo o Mundo (2011-2020) por país em milhares de euros | C1: Frutas, Hortícolas & Flores
A2: Cód. País | B2: País | C2: Importações | O2: Exportações | AA2: Saldo período (exp-imp) | AB2: Evolução das importações | AC2: =+"Variação das Importações " & INDEX(C3:K3,1,aux!$BA$1) & "-"& L3 &"" -> Variação das Importações 2011-2020 | AG2: Evolução das exportações | AH2: ="Variação das Exportações " & INDEX(O3:W3,1,aux!BA1) & "-"& X3 &"" -> Variação das Exportações 2011-2020
C3: 2011 | D3: 2012 | E3: 2013 | F3: 2014 | G3: 2015 | H3: 2016 | I3: 2017 | J3: 2018 | K3: 2019 | L3: 2020 | M3: média período | N3: % Total | O3: 2011 | P3: 2012 | Q3: 2013 | R3: 2014 | S3: 2015 | T3: 2016 | U3: 2017 | V3: 2018 | W3: 2019 | X3: 2020 | Y3: média período | Z3: % Total | AC3: variação total em valor | AD3: % no total de variação | AE3: taxa de variação média anual | AF3: taxa de variação total | AH3: variação total em valor | AI3: % no total de variação | AJ3: taxa de variação média anual | AK3: taxa de variação total | CC3: filtro
A4: 0660 | B4: Afeganistão | C4: 0 | D4: 0 | E4: 0 | F4: 0 | G4: 15.895 | H4: 0 | I4: 385.134 | J4: 21.004 | K4: 0 | L4: 0 | M4: 42.2033 | N4: 2.944901139e-05 | O4: 0 | P4: 0 | Q4: 0 | R4: 0 | S4: 0.015 | T4: 0 | U4: 0 | V4: 0 | W4: 0 | X4: 0 | Y4: 0.0015 | Z4: 1.188856063e-09 | AA4: -42.2018 | AC4: =L4-INDEX($C4:$L4,1,aux!$BA$1) -> 0 | AD4: =AC4/$AC$252 -> 0 | AE4: =+IF(INDEX($C4:$L4,1,aux!$BA$1)>0,(L4/INDEX($C4:$L4,1,aux!$BA$1))^(1/($L$3-INDEX($C$3:$L$3,1,aux!$BA$1)))-1,"n.d.") -> n.d. | AF4: =IF(INDEX($C4:$L4,1,aux!$BA$1)>0,(L4-INDEX($C4:$L4,1,aux!$BA$1))/INDEX($C4:$L4,1,aux!$BA$1),"n.d.") -> n.d. | AH4: =X4-INDEX($O4:$X4,1,aux!$BA$1) -> 0 | AI4: =AH4/$AH$252 -> 0 | AJ4: =+IF(INDEX($O4:$X4,1,aux!$BA$1)>0,(X4/INDEX($O4:$X4,1,aux!$BA$1))^(1/($X$3-INDEX($O$3:$X$3,1,aux!$BA$1)))-1,"n.d.") -> n.d. | AK4: =IF(INDEX($O4:$X4,1,aux!$BA$1)>0,(X4-INDEX($O4:$X4,1,aux!$BA$1))/INDEX($O4:$X4,1,aux!$BA$1),"n.d.") -> n.d. | CC4: =+IF(ISNA(MATCH('5.1'!A4,AUX_2d_pais!$G$2:$G$40000,0)),0,1) -> 1
A5: 0388 | B5: África do Sul | C5: 27728.917 | D5: 33734.72 | E5: 36731.378 | F5: 35949.188 | G5: 53329.664 | H5: 63649.824 | I5: 81120.196 | J5: 95427.861 | K5: 77652.995 | L5: 126043.684 | M5: 63136.8427 | N5: 0.04405621361 | O5: 442.02 | P5: 287.541 | Q5: 531.756 | R5: 373.268 | S5: 780.036 | T5: 2155.269 | U5: 2930.381 | V5: 2230.155 | W5: 1923.283 | X5: 1949.402 | Y5: 1360.3111 | Z5: 0.001078142732 | AA5: -61776.5316 | AC5: =L5-INDEX($C5:$L5,1,aux!$BA$1) -> 98314.767 | AD5: 0.1491363651 | AE5: =+IF(INDEX($C5:$L5,1,aux!$BA$1)>0,(L5/INDEX($C5:$L5,1,aux!$BA$1))^(1/($L$3-INDEX($C$3:$L$3,1,aux!$BA$1)))-1,"n.d.") -> 0.1832195953 | AF5: =IF(INDEX($C5:$L5,1,aux!$BA$1)>0,(L5-INDEX($C5:$L5,1,aux!$BA$1))/INDEX($C5:$L5,1,aux!$BA$1),"n.d.") -> 3.545568224 | AH5: =X5-INDEX($O5:$X5,1,aux!$BA$1) -> 1507.382 | AI5: 0.001753753091 | AJ5: =+IF(INDEX($O5:$X5,1,aux!$BA$1)>0,(X5/INDEX($O5:$X5,1,aux!$BA$1))^(1/($X$3-INDEX($O$3:$X$3,1,aux!$BA$1)))-1,"n.d.") -> 0.1792519679 | AK5: =IF(INDEX($O5:$X5,1,aux!$BA$1)>0,(X5-INDEX($O5:$X5,1,aux!$BA$1))/INDEX($O5:$X5,1,aux!$BA$1),"n.d.") -> 3.410212208 | CC5: =+IF(ISNA(MATCH('5.1'!A5,AUX_2d_pais!$G$2:$G$40000,0)),0,1) -> 1
A6: 0070 | B6: Albânia | C6: 0 | D6: 0 | E6: 0 | F6: 0 | G6: 0 | H6: 0 | I6: 0 | J6: 0 | K6: 0 | L6: 0.096 | M6: 0.0096 | N6: 6.698777331e-09 | O6: 0 | P6: 0 | Q6: 0 | R6: 0 | S6: 0 | T6: 0 | U6: 0 | V6: 0 | W6: 0 | X6: 0 | Y6: 0 | Z6: 0 | AA6: -0.0096 | AC6: =L6-INDEX($C6:$L6,1,aux!$BA$1) -> 0.096 | AD6: 1.456250315e-07 | AE6: =+IF(INDEX($C6:$L6,1,aux!$BA$1)>0,(L6/INDEX($C6:$L6,1,aux!$BA$1))^(1/($L$3-INDEX($C$3:$L$3,1,aux!$BA$1)))-1,"n.d.") -> n.d. | AF6: =IF(INDEX($C6:$L6,1,aux!$BA$1)>0,(L6-INDEX($C6:$L6,1,aux!$BA$1))/INDEX($C6:$L6,1,aux!$BA$1),"n.d.") -> n.d. | AH6: =X6-INDEX($O6:$X6,1,aux!$BA$1) -> 0 | AI6: 0 | AJ6: =+IF(INDEX($O6:$X6,1,aux!$BA$1)>0,(X6/INDEX($O6:$X6,1,aux!$BA$1))^(1/($X$3-INDEX($O$3:$X$3,1,aux!$BA$1)))-1,"n.d.") -> n.d. | AK6: =IF(INDEX($O6:$X6,1,aux!$BA$1)>0,(X6-INDEX($O6:$X6,1,aux!$BA$1))/INDEX($O6:$X6,1,aux!$BA$1),"n.d.") -> n.d. | CC6: =+IF(ISNA(MATCH('5.1'!A6,AUX_2d_pais!$G$2:$G$40000,0)),0,1) -> 1
A7: 0004 | B7: Alemanha | C7: 35847.142 | D7: 34775.056 | E7: 36245.915 | F7: 42778.55 | G7: 44207.243 | H7: 58736.03 | I7: 68282.297 | J7: 77768.236 | K7: 86780.402 | L7: 96069.818 | M7: 58149.0689 | N7: 0.04057579839 | O7: 28031.692 | P7: 33042.093 | Q7: 33160.386 | R7: 39263.179 | S7: 78751.365 | T7: 84174.431 | U7: 92154.066 | V7: 97007.148 | W7: 112385.498 | X7: 119406.22 | Y7: 71737.6078 | Z7: 0.05685712664 | AA7: 13588.5389 | AC7: =L7-INDEX($C7:$L7,1,aux!$BA$1) -> 60222.676 | AD7: 0.09135342805 | AE7: =+IF(INDEX($C7:$L7,1,aux!$BA$1)>0,(L7/INDEX($C7:$L7,1,aux!$BA$1))^(1/($L$3-INDEX($C$3:$L$3,1,aux!$BA$1)))-1,"n.d.") -> 0.11575867 | AF7: =IF(INDEX($C7:$L7,1,aux!$BA$1)>0,(L7-INDEX($C7:$L7,1,aux!$BA$1))/INDEX($C7:$L7,1,aux!$BA$1),"n.d.") -> 1.679985423 | AH7: =X7-INDEX($O7:$X7,1,aux!$BA$1) -> 91374.528 | AI7: 0.1063090583 | AJ7: =+IF(INDEX($O7:$X7,1,aux!$BA$1)>0,(X7/INDEX($O7:$X7,1,aux!$BA$1))^(1/($X$3-INDEX($O$3:$X$3,1,aux!$BA$1)))-1,"n.d.") -> 0.1747104945 | AK7: =IF(INDEX($O7:$X7,1,aux!$BA$1)>0,(X7-INDEX($O7:$X7,1,aux!$BA$1))/INDEX($O7:$X7,1,aux!$BA$1),"n.d.") -> 3.259686501 | CC7: =+IF(ISNA(MATCH('5.1'!A7,AUX_2d_pais!$G$2:$G$40000,0)),0,1) -> 1
A8: 0043 | B8: Andorra | C8: 0 | D8: 0 | E8: 0 | F8: 0 | G8: 0 | H8: 0 | I8: 0 | J8: 0 | K8: 0 | L8: 0 | M8: 0 | N8: 0 | O8: 29.659 | P8: 19.948 | Q8: 41.968 | R8: 25.571 | S8: 21.648 | T8: 16.042 | U8: 21.866 | V8: 22.876 | W8: 26.209 | X8: 16.777 | Y8: 24.2564 | Z8: 1.922491213e-05 | AA8: 24.2564 | AC8: =L8-INDEX($C8:$L8,1,aux!$BA$1) -> 0 | AD8: 0 | AE8: =+IF(INDEX($C8:$L8,1,aux!$BA$1)>0,(L8/INDEX($C8:$L8,1,aux!$BA$1))^(1/($L$3-INDEX($C$3:$L$3,1,aux!$BA$1)))-1,"n.d.") -> n.d. | AF8: =IF(INDEX($C8:$L8,1,aux!$BA$1)>0,(L8-INDEX($C8:$L8,1,aux!$BA$1))/INDEX($C8:$L8,1,aux!$BA$1),"n.d.") -> n.d. | AH8: =X8-INDEX($O8:$X8,1,aux!$BA$1) -> -12.882 | AI8: -1.498747319e-05 | AJ8: =+IF(INDEX($O8:$X8,1,aux!$BA$1)>0,(X8/INDEX($O8:$X8,1,aux!$BA$1))^(1/($X$3-INDEX($O$3:$X$3,1,aux!$BA$1)))-1,"n.d.") -> -0.06134408273 | AK8: =IF(INDEX($O8:$X8,1,aux!$BA$1)>0,(X8-INDEX($O8:$X8,1,aux!$BA$1))/INDEX($O8:$X8,1,aux!$BA$1),"n.d.") -> -0.4343369635 | CC8: =+IF(ISNA(MATCH('5.1'!A8,AUX_2d_pais!$G$2:$G$40000,0)),0,1) -> 1
A9: 0330 | B9: Angola | C9: 0 | D9: 0.782 | E9: 0.786 | F9: 0 | G9: 2.721 | H9: 7.472 | I9: 260.773 | J9: 584.74 | K9: 2619.431 | L9: 3608.383 | M9: 708.5088 | N9: 0.0004943898634 | O9: 43614.788 | P9: 50161.145 | Q9: 54432.626 | R9: 55310.993 | S9: 41894.832 | T9: 31918.037 | U9: 29523.749 | V9: 21987.648 | W9: 14555.929 | X9: 8390.274 | Y9: 35179.0021 | Z9: 0.02788184662 | AA9: 34470.4933 | AC9: =L9-INDEX($C9:$L9,1,aux!$BA$1) -> 3608.383 | AD9: 0.005473655086 | AE9: =+IF(INDEX($C9:$L9,1,aux!$BA$1)>0,(L9/INDEX($C9:$L9,1,aux!$BA$1))^(1/($L$3-INDEX($C$3:$L$3,1,aux!$BA$1)))-1,"n.d.") -> n.d. | AF9: =IF(INDEX($C9:$L9,1,aux!$BA$1)>0,(L9-INDEX($C9:$L9,1,aux!$BA$1))/INDEX($C9:$L9,1,aux!$BA$1),"n.d.") -> n.d. | AH9: =X9-INDEX($O9:$X9,1,aux!$BA$1) -> -35224.514 | AI9: -0.04098171551 | AJ9: =+IF(INDEX($O9:$X9,1,aux!$BA$1)>0,(X9/INDEX($O9:$X9,1,aux!$BA$1))^(1/($X$3-INDEX($O$3:$X$3,1,aux!$BA$1)))-1,"n.d.") -> -0.1673542604 | AK9: =IF(INDEX($O9:$X9,1,aux!$BA$1)>0,(X9-INDEX($O9:$X9,1,aux!$BA$1))/INDEX($O9:$X9,1,aux!$BA$1),"n.d.") -> -0.8076277707 | CC9: =+IF(ISNA(MATCH('5.1'!A9,AUX_2d_pais!$G$2:$G$40000,0)),0,1) -> 1
A10: 0446 | B10: Anguila | C10: 0 | D10: 0 | E10: 0 | F10: 0 | G10: 0 | H10: 0 | I10: 0 | J10: 0 | K10: 0 | L10: 0 | M10: 0 | N10: 0 | O10: 0 | P10: 0 | Q10: 9 | R10: 0 | S10: 0 | T10: 0 | U10: 0 | V10: 0 | W10: 0 | X10: 0 | Y10: 0.9 | Z10: 7.133136377e-07 | AA10: 0.9 | AC10: =L10-INDEX($C10:$L10,1,aux!$BA$1) -> 0 | AD10: 0 | AE10: =+IF(INDEX($C10:$L10,1,aux!$BA$1)>0,(L10/INDEX($C10:$L10,1,aux!$BA$1))^(1/($L$3-INDEX($C$3:$L$3,1,aux!$BA$1)))-1,"n.d.") -> n.d. | AF10: =IF(INDEX($C10:$L10,1,aux!$BA$1)>0,(L10-INDEX($C10:$L10,1,aux!$BA$1))/INDEX($C10:$L10,1,aux!$BA$1),"n.d.") -> n.d. | AH10: =X10-INDEX($O10:$X10,1,aux!$BA$1) -> 0 | AI10: 0 | AJ10: =+IF(INDEX($O10:$X10,1,aux!$BA$1)>0,(X10/INDEX($O10:$X10,1,aux!$BA$1))^(1/($X$3-INDEX($O$3:$X$3,1,aux!$BA$1)))-1,"n.d.") -> n.d. | AK10: =IF(INDEX($O10:$X10,1,aux!$BA$1)>0,(X10-INDEX($O10:$X10,1,aux!$BA$1))/INDEX($O10:$X10,1,aux!$BA$1),"n.d.") -> n.d. | CC10: =+IF(ISNA(MATCH('5.1'!A10,AUX_2d_pais!$G$2:$G$40000,0)),0,1) -> 1
A11: 0891 | B11: Antárctica | C11: 0 | D11: 0 | E11: 0 | F11: 0 | G11: 0 | H11: 0 | I11: 0 | J11: 0 | K11: 0 | L11: 0 | M11: 0 | N11: 0 | O11: 0 | P11: 0 | Q11: 0 | R11: 0 | S11: 0 | T11: 0 | U11: 0 | V11: 0 | W11: 0 | X11: 0 | Y11: 0 | Z11: 0 | AA11: 0 | AC11: =L11-INDEX($C11:$L11,1,aux!$BA$1) -> 0 | AD11: 0 | AE11: =+IF(INDEX($C11:$L11,1,aux!$BA$1)>0,(L11/INDEX($C11:$L11,1,aux!$BA$1))^(1/($L$3-INDEX($C$3:$L$3,1,aux!$BA$1)))-1,"n.d.") -> n.d. | AF11: =IF(INDEX($C11:$L11,1,aux!$BA$1)>0,(L11-INDEX($C11:$L11,1,aux!$BA$1))/INDEX($C11:$L11,1,aux!$BA$1),"n.d.") -> n.d. | AH11: =X11-INDEX($O11:$X11,1,aux!$BA$1) -> 0 | AI11: 0 | AJ11: =+IF(INDEX($O11:$X11,1,aux!$BA$1)>0,(X11/INDEX($O11:$X11,1,aux!$BA$1))^(1/($X$3-INDEX($O$3:$X$3,1,aux!$BA$1)))-1,"n.d.") -> n.d. | AK11: =IF(INDEX($O11:$X11,1,aux!$BA$1)>0,(X11-INDEX($O11:$X11,1,aux!$BA$1))/INDEX($O11:$X11,1,aux!$BA$1),"n.d.") -> n.d. | AM11: =SUM(A11:AA11) -> 0 | BO11: =SUM(C11:L11,O11:X11) -> 0 | CC11: =+IF(ISNA(MATCH('5.1'!A11,AUX_2d_pais!$G$2:$G$40000,0)),0,1) -> 0
A12: 0459 | B12: Antígua e Barbuda | C12: 0 | D12: 0 | E12: 0 | F12: 0 | G12: 0 | H12: 0 | I12: 0 | J12: 0 | K12: 0 | L12: 0 | M12: 0 | N12: 0 | O12: 0 | P12: 0 | Q12: 0 | R12: 0 | S12: 0 | T12: 0.242 | U12: 0 | V12: 1.131 | W12: 0 | X12: 0 | Y12: 0.1373 | Z12: 1.088199583e-07 | AA12: 0.1373 | AC12: =L12-INDEX($C12:$L12,1,aux!$BA$1) -> 0 | AD12: 0 | AE12: =+IF(INDEX($C12:$L12,1,aux!$BA$1)>0,(L12/INDEX($C12:$L12,1,aux!$BA$1))^(1/($L$3-INDEX($C$3:$L$3,1,aux!$BA$1)))-1,"n.d.") -> n.d. | AF12: =IF(INDEX($C12:$L12,1,aux!$BA$1)>0,(L12-INDEX($C12:$L12,1,aux!$BA$1))/INDEX($C12:$L12,1,aux!$BA$1),"n.d.") -> n.d. | AH12: =X12-INDEX($O12:$X12,1,aux!$BA$1) -> 0 | AI12: 0 | AJ12: =+IF(INDEX($O12:$X12,1,aux!$BA$1)>0,(X12/INDEX($O12:$X12,1,aux!$BA$1))^(1/($X$3-INDEX($O$3:$X$3,1,aux!$BA$1)))-1,"n.d.") -> n.d. | AK12: =IF(INDEX($O12:$X12,1,aux!$BA$1)>0,(X12-INDEX($O12:$X12,1,aux!$BA$1))/INDEX($O12:$X12,1,aux!$BA$1),"n.d.") -> n.d. | CC12: =+IF(ISNA(MATCH('5.1'!A12,AUX_2d_pais!$G$2:$G$40000,0)),0,1) -> 1
A13: 0478 | B13: Antilhas Holandesas | C13: 0 | D13: 0 | E13: 0 | F13: 0 | G13: 0 | H13: 0 | I13: 0 | J13: 0 | K13: 0 | L13: 0 | M13: 0 | N13: 0 | O13: 1.676 | P13: 0 | Q13: 0 | R13: 0 | S13: 0 | T13: 0 | U13: 0 | V13: 0 | W13: 0 | X13: 0 | Y13: 0.1676 | Z13: 1.328348508e-07 | AA13: 0.1676 | AC13: =L13-INDEX($C13:$L13,1,aux!$BA$1) -> 0 | AD13: 0 | AE13: =+IF(INDEX($C13:$L13,1,aux!$BA$1)>0,(L13/INDEX($C13:$L13,1,aux!$BA$1))^(1/($L$3-INDEX($C$3:$L$3,1,aux!$BA$1)))-1,"n.d.") -> n.d. | AF13: =IF(INDEX($C13:$L13,1,aux!$BA$1)>0,(L13-INDEX($C13:$L13,1,aux!$BA$1))/INDEX($C13:$L13,1,aux!$BA$1),"n.d.") -> n.d. | AH13: =X13-INDEX($O13:$X13,1,aux!$BA$1) -> -1.676 | AI13: -1.949930529e-06 | AJ13: =+IF(INDEX($O13:$X13,1,aux!$BA$1)>0,(X13/INDEX($O13:$X13,1,aux!$BA$1))^(1/($X$3-INDEX($O$3:$X$3,1,aux!$BA$1)))-1,"n.d.") -> -1 | AK13: =IF(INDEX($O13:$X13,1,aux!$BA$1)>0,(X13-INDEX($O13:$X13,1,aux!$BA$1))/INDEX($O13:$X13,1,aux!$BA$1),"n.d.") -> -1 | BO13: 1.676 | CC13: =+IF(ISNA(MATCH('5.1'!A13,AUX_2d_pais!$G$2:$G$40000,0)),0,1) -> 1
A14: 0632 | B14: Arábia Saudita | C14: 0 | D14: 0 | E14: 0.567 | F14: 0 | G14: 0 | H14: 0 | I14: 0 | J14: 0.085 | K14: 0.095 | L14: 0.01 | M14: 0.0757 | N14: 5.282265041e-08 | O14: 1637.353 | P14: 1828.126 | Q14: 3328.156 | R14: 3152.428 | S14: 13133.051 | T14: 8059.86 | U14: 6679.422 | V14: 8369.064 | W14: 6483.714 | X14: 7199.228 | Y14: 5987.0402 | Z14: 0.004745152693 | AA14: 5986.9645 | AC14: =L14-INDEX($C14:$L14,1,aux!$BA$1) -> 0.01 | AD14: 1.516927412e-08 | AE14: =+IF(INDEX($C14:$L14,1,aux!$BA$1)>0,(L14/INDEX($C14:$L14,1,aux!$BA$1))^(1/($L$3-INDEX($C$3:$L$3,1,aux!$BA$1)))-1,"n.d.") -> n.d. | AF14: =IF(INDEX($C14:$L14,1,aux!$BA$1)>0,(L14-INDEX($C14:$L14,1,aux!$BA$1))/INDEX($C14:$L14,1,aux!$BA$1),"n.d.") -> n.d. | AH14: =X14-INDEX($O14:$X14,1,aux!$BA$1) -> 5561.875 | AI14: 0.006470924737 | AJ14: =+IF(INDEX($O14:$X14,1,aux!$BA$1)>0,(X14/INDEX($O14:$X14,1,aux!$BA$1))^(1/($X$3-INDEX($O$3:$X$3,1,aux!$BA$1)))-1,"n.d.") -> 0.17885503 | AK14: =IF(INDEX($O14:$X14,1,aux!$BA$1)>0,(X14-INDEX($O14:$X14,1,aux!$BA$1))/INDEX($O14:$X14,1,aux!$BA$1),"n.d.") -> 3.396869826 | CC14: =+IF(ISNA(MATCH('5.1'!A14,AUX_2d_pais!$G$2:$G$40000,0)),0,1) -> 1
A15: 0208 | B15: Argélia | C15: 0 | D15: 0 | E15: 0 | F15: 0 | G15: 0 | H15: 0 | I15: 0 | J15: 0 | K15: 0 | L15: 0 | M15: 0 | N15: 0 | O15: 974.397 | P15: 2825.738 | Q15: 2202.691 | R15: 847.611 | S15: 2045.634 | T15: 3210.051 | U15: 3406.02 | V15: 2113.972 | W15: 1917.592 | X15: 1569.199 | Y15: 2111.2905 | Z15: 0.001673347008 | AA15: 2111.2905 | AC15: =L15-INDEX($C15:$L15,1,aux!$BA$1) -> 0 | AD15: 0 | AE15: =+IF(INDEX($C15:$L15,1,aux!$BA$1)>0,(L15/INDEX($C15:$L15,1,aux!$BA$1))^(1/($L$3-INDEX($C$3:$L$3,1,aux!$BA$1)))-1,"n.d.") -> n.d. | AF15: =IF(INDEX($C15:$L15,1,aux!$BA$1)>0,(L15-INDEX($C15:$L15,1,aux!$BA$1))/INDEX($C15:$L15,1,aux!$BA$1),"n.d.") -> n.d. | AH15: =X15-INDEX($O15:$X15,1,aux!$BA$1) -> 594.802 | AI15: 0.0006920182448 | AJ15: =+IF(INDEX($O15:$X15,1,aux!$BA$1)>0,(X15/INDEX($O15:$X15,1,aux!$BA$1))^(1/($X$3-INDEX($O$3:$X$3,1,aux!$BA$1)))-1,"n.d.") -> 0.05437127339 | AK15: =IF(INDEX($O15:$X15,1,aux!$BA$1)>0,(X15-INDEX($O15:$X15,1,aux!$BA$1))/INDEX($O15:$X15,1,aux!$BA$1),"n.d.") -> 0.6104308613 | CC15: =+IF(ISNA(MATCH('5.1'!A15,AUX_2d_pais!$G$2:$G$40000,0)),0,1) -> 1
A16: 0528 | B16: Argentina | C16: 25991.984 | D16: 25413.057 | E16: 18686.53 | F16: 15523.227 | G16: 15752.577 | H16: 21626.457 | I16: 19337.292 | J16: 24417.916 | K16: 20840.395 | L16: 24738.642 | M16: 21232.8077 | N16: 0.01481602614 | O16: 10.44 | P16: 0 | Q16: 101.76 | R16: 385.934 | S16: 0 | T16: 12.114 | U16: 0 | V16: 0 | W16: 35.59 | X16: 0.008 | Y16: 54.5846 | Z16: 4.32621551e-05 | AA16: -21178.2231 | AC16: =L16-INDEX($C16:$L16,1,aux!$BA$1) -> -1253.342 | AD16: -0.001901228836 | AE16: =+IF(INDEX($C16:$L16,1,aux!$BA$1)>0,(L16/INDEX($C16:$L16,1,aux!$BA$1))^(1/($L$3-INDEX($C$3:$L$3,1,aux!$BA$1)))-1,"n.d.") -> -0.005476251278 | AF16: =IF(INDEX($C16:$L16,1,aux!$BA$1)>0,(L16-INDEX($C16:$L16,1,aux!$BA$1))/INDEX($C16:$L16,1,aux!$BA$1),"n.d.") -> -0.04822032824 | AH16: =X16-INDEX($O16:$X16,1,aux!$BA$1) -> -10.432 | AI16: -1.213703775e-05 | AJ16: =+IF(INDEX($O16:$X16,1,aux!$BA$1)>0,(X16/INDEX($O16:$X16,1,aux!$BA$1))^(1/($X$3-INDEX($O$3:$X$3,1,aux!$BA$1)))-1,"n.d.") -> -0.5493690107 | AK16: =IF(INDEX($O16:$X16,1,aux!$BA$1)>0,(X16-INDEX($O16:$X16,1,aux!$BA$1))/INDEX($O16:$X16,1,aux!$BA$1),"n.d.") -> -0.9992337165 | CC16: =+IF(ISNA(MATCH('5.1'!A16,AUX_2d_pais!$G$2:$G$40000,0)),0,1) -> 1
A17: 0077 | B17: Arménia | C17: 0 | D17: 0 | E17: 0 | F17: 0 | G17: 0 | H17: 0 | I17: 0 | J17: 0 | K17: 0 | L17: 0 | M17: 0 | N17: 0 | O17: 0 | P17: 50.727 | Q17: 0 | R17: 286.528 | S17: 163.158 | T17: 242.597 | U17: 229.208 | V17: 195.908 | W17: 132.469 | X17: 88.633 | Y17: 138.9228 | Z17: 0.000110106142 | AA17: 138.9228 | AC17: =L17-INDEX($C17:$L17,1,aux!$BA$1) -> 0 | AD17: 0 | AE17: =+IF(INDEX($C17:$L17,1,aux!$BA$1)>0,(L17/INDEX($C17:$L17,1,aux!$BA$1))^(1/($L$3-INDEX($C$3:$L$3,1,aux!$BA$1)))-1,"n.d.") -> n.d. | AF17: =IF(INDEX($C17:$L17,1,aux!$BA$1)>0,(L17-INDEX($C17:$L17,1,aux!$BA$1))/INDEX($C17:$L17,1,aux!$BA$1),"n.d.") -> n.d. | AH17: =X17-INDEX($O17:$X17,1,aux!$BA$1) -> 88.633 | AI17: 0.0001031194466 | AJ17: =+IF(INDEX($O17:$X17,1,aux!$BA$1)>0,(X17/INDEX($O17:$X17,1,aux!$BA$1))^(1/($X$3-INDEX($O$3:$X$3,1,aux!$BA$1)))-1,"n.d.") -> n.d. | AK17: =IF(INDEX($O17:$X17,1,aux!$BA$1)>0,(X17-INDEX($O17:$X17,1,aux!$BA$1))/INDEX($O17:$X17,1,aux!$BA$1),"n.d.") -> n.d. | CC17: =+IF(ISNA(MATCH('5.1'!A17,AUX_2d_pais!$G$2:$G$40000,0)),0,1) -> 1
A18: 0474 | B18: Aruba | C18: 0 | D18: 0 | E18: 0 | F18: 0 | G18: 0 | H18: 0 | I18: 0 | J18: 0 | K18: 0 | L18: 0 | M18: 0 | N18: 0 | O18: 0 | P18: 0 | Q18: 0 | R18: 0 | S18: 0 | T18: 0 | U18: 0 | V18: 2.108 | W18: 43.905 | X18: 73.081 | Y18: 11.9094 | Z18: 9.439041596e-06 | AA18: 11.9094 | AC18: =L18-INDEX($C18:$L18,1,aux!$BA$1) -> 0 | AD18: 0 | AE18: =+IF(INDEX($C18:$L18,1,aux!$BA$1)>0,(L18/INDEX($C18:$L18,1,aux!$BA$1))^(1/($L$3-INDEX($C$3:$L$3,1,aux!$BA$1)))-1,"n.d.") -> n.d. | AF18: =IF(INDEX($C18:$L18,1,aux!$BA$1)>0,(L18-INDEX($C18:$L18,1,aux!$BA$1))/INDEX($C18:$L18,1,aux!$BA$1),"n.d.") -> n.d. | AH18: =X18-INDEX($O18:$X18,1,aux!$BA$1) -> 73.081 | AI18: 8.502558052e-05 | AJ18: =+IF(INDEX($O18:$X18,1,aux!$BA$1)>0,(X18/INDEX($O18:$X18,1,aux!$BA$1))^(1/($X$3-INDEX($O$3:$X$3,1,aux!$BA$1)))-1,"n.d.") -> n.d. | AK18: =IF(INDEX($O18:$X18,1,aux!$BA$1)>0,(X18-INDEX($O18:$X18,1,aux!$BA$1))/INDEX($O18:$X18,1,aux!$BA$1),"n.d.") -> n.d. | BO18: 119.094 | CC18: =+IF(ISNA(MATCH('5.1'!A18,AUX_2d_pais!$G$2:$G$40000,0)),0,1) -> 1
A19: 0800 | B19: Austrália | C19: 80.277 | D19: 191.791 | E19: 232.054 | F19: 1759.314 | G19: 185.397 | H19: 0.081 | I19: 69.124 | J19: 1894.336 | K19: 206.732 | L19: 92.192 | M19: 471.1298 | N19: 0.0003287493359 | O19: 6368.007 | P19: 1206.216 | Q19: 1104.517 | R19: 796.811 | S19: 864.043 | T19: 824.64 | U19: 3070.316 | V19: 1975.82 | W19: 1694.534 | X19: 1520.733 | Y19: 1942.5637 | Z19: 0.001539619088 | AA19: 1471.4339 | AC19: =L19-INDEX($C19:$L19,1,aux!$BA$1) -> 11.915 | AD19: 1.807419011e-05 | AE19: =+IF(INDEX($C19:$L19,1,aux!$BA$1)>0,(L19/INDEX($C19:$L19,1,aux!$BA$1))^(1/($L$3-INDEX($C$3:$L$3,1,aux!$BA$1)))-1,"n.d.") -> 0.01549551901 | AF19: =IF(INDEX($C19:$L19,1,aux!$BA$1)>0,(L19-INDEX($C19:$L19,1,aux!$BA$1))/INDEX($C19:$L19,1,aux!$BA$1),"n.d.") -> 0.1484235833 | AH19: =X19-INDEX($O19:$X19,1,aux!$BA$1) -> -4847.274 | AI19: -0.005639527179 | AJ19: =+IF(INDEX($O19:$X19,1,aux!$BA$1)>0,(X19/INDEX($O19:$X19,1,aux!$BA$1))^(1/($X$3-INDEX($O$3:$X$3,1,aux!$BA$1)))-1,"n.d.") -> -0.1471073299 | AK19: =IF(INDEX($O19:$X19,1,aux!$BA$1)>0,(X19-INDEX($O19:$X19,1,aux!$BA$1))/INDEX($O19:$X19,1,aux!$BA$1),"n.d.") -> -0.7611916884 | CC19: =+IF(ISNA(MATCH('5.1'!A19,AUX_2d_pais!$G$2:$G$40000,0)),0,1) -> 1
A20: 0038 | B20: Áustria | C20: 175.647 | D20: 632.637 | E20: 1201.486 | F20: 1133.63 | G20: 1162.815 | H20: 693.263 | I20: 1821.031 | J20: 2067.385 | K20: 2120.799 | L20: 1786.521 | M20: 1279.5214 | N20: 0.0008928363489 | O20: 2296.517 | P20: 2762.922 | Q20: 1966.284 | R20: 1688.275 | S20: 2407.818 | T20: 2741.689 | U20: 3005.113 | V20: 2965.668 | W20: 2228.657 | X20: 3847.638 | Y20: 2591.0581 | Z20: 0.002053596754 | AA20: 1311.5367 | AC20: =L20-INDEX($C20:$L20,1,aux!$BA$1) -> 1610.874 | AD20: 0.002443578928 | AE20: =+IF(INDEX($C20:$L20,1,aux!$BA$1)>0,(L20/INDEX($C20:$L20,1,aux!$BA$1))^(1/($L$3-INDEX($C$3:$L$3,1,aux!$BA$1)))-1,"n.d.") -> 0.2939863941 | AF20: =IF(INDEX($C20:$L20,1,aux!$BA$1)>0,(L20-INDEX($C20:$L20,1,aux!$BA$1))/INDEX($C20:$L20,1,aux!$BA$1),"n.d.") -> 9.171087465 | AH20: =X20-INDEX($O20:$X20,1,aux!$BA$1) -> 1551.121 | AI20: 0.001804640926 | AJ20: =+IF(INDEX($O20:$X20,1,aux!$BA$1)>0,(X20/INDEX($O20:$X20,1,aux!$BA$1))^(1/($X$3-INDEX($O$3:$X$3,1,aux!$BA$1)))-1,"n.d.") -> 0.05901650013 | AK20: =IF(INDEX($O20:$X20,1,aux!$BA$1)>0,(X20-INDEX($O20:$X20,1,aux!$BA$1))/INDEX($O20:$X20,1,aux!$BA$1),"n.d.") -> 0.6754232605 | CC20: =+IF(ISNA(MATCH('5.1'!A20,AUX_2d_pais!$G$2:$G$40000,0)),0,1) -> 1
A21: 0078 | B21: Azerbaijão | C21: 0 | D21: 0 | E21: 0 | F21: 0 | G21: 0 | H21: 0 | I21: 0 | J21: 0 | K21: 0 | L21: 0 | M21: 0 | N21: 0 | O21: 35.991 | P21: 0 | Q21: 84.498 | R21: 523.733 | S21: 255.288 | T21: 0 | U21: 16.408 | V21: 50.344 | W21: 66.279 | X21: 103.725 | Y21: 113.6266 | Z21: 9.005711487e-05 | AA21: 113.6266 | AC21: =L21-INDEX($C21:$L21,1,aux!$BA$1) -> 0 | AD21: 0 | AE21: =+IF(INDEX($C21:$L21,1,aux!$BA$1)>0,(L21/INDEX($C21:$L21,1,aux!$BA$1))^(1/($L$3-INDEX($C$3:$L$3,1,aux!$BA$1)))-1,"n.d.") -> n.d. | AF21: =IF(INDEX($C21:$L21,1,aux!$BA$1)>0,(L21-INDEX($C21:$L21,1,aux!$BA$1))/INDEX($C21:$L21,1,aux!$BA$1),"n.d.") -> n.d. | AH21: =X21-INDEX($O21:$X21,1,aux!$BA$1) -> 67.734 | AI21: 7.880465061e-05 | AJ21: =+IF(INDEX($O21:$X21,1,aux!$BA$1)>0,(X21/INDEX($O21:$X21,1,aux!$BA$1))^(1/($X$3-INDEX($O$3:$X$3,1,aux!$BA$1)))-1,"n.d.") -> 0.1248033844 | AK21: =IF(INDEX($O21:$X21,1,aux!$BA$1)>0,(X21-INDEX($O21:$X21,1,aux!$BA$1))/INDEX($O21:$X21,1,aux!$BA$1),"n.d.") -> 1.881970493 | CC21: =+IF(ISNA(MATCH('5.1'!A21,AUX_2d_pais!$G$2:$G$40000,0)),0,1) -> 1
A22: 0453 | B22: Bahamas | C22: 0 | D22: 0 | E22: 0 | F22: 0 | G22: 0 | H22: 0 | I22: 0 | J22: 0 | K22: 0 | L22: 0 | M22: 0 | N22: 0 | O22: 0 | P22: 0 | Q22: 0 | R22: 0 | S22: 0 | T22: 0 | U22: 0 | V22: 0 | W22: 0 | X22: 0 | Y22: 0 | Z22: 0 | AA22: 0 | AC22: =L22-INDEX($C22:$L22,1,aux!$BA$1) -> 0 | AD22: 0 | AE22: =+IF(INDEX($C22:$L22,1,aux!$BA$1)>0,(L22/INDEX($C22:$L22,1,aux!$BA$1))^(1/($L$3-INDEX($C$3:$L$3,1,aux!$BA$1)))-1,"n.d.") -> n.d. | AF22: =IF(INDEX($C22:$L22,1,aux!$BA$1)>0,(L22-INDEX($C22:$L22,1,aux!$BA$1))/INDEX($C22:$L22,1,aux!$BA$1),"n.d.") -> n.d. | AH22: =X22-INDEX($O22:$X22,1,aux!$BA$1) -> 0 | AI22: 0 | AJ22: =+IF(INDEX($O22:$X22,1,aux!$BA$1)>0,(X22/INDEX($O22:$X22,1,aux!$BA$1))^(1/($X$3-INDEX($O$3:$X$3,1,aux!$BA$1)))-1,"n.d.") -> n.d. | AK22: =IF(INDEX($O22:$X22,1,aux!$BA$1)>0,(X22-INDEX($O22:$X22,1,aux!$BA$1))/INDEX($O22:$X22,1,aux!$BA$1),"n.d.") -> n.d. | AM22: 0 | BO22: 0 | CC22: =+IF(ISNA(MATCH('5.1'!A22,AUX_2d_pais!$G$2:$G$40000,0)),0,1) -> 0
A23: 0666 | B23: Bangladesh | C23: 0 | D23: 0 | E23: 0 | F23: 0 | G23: 0 | H23: 10.224 | I23: 13.843 | J23: 30.378 | K23: 25.984 | L23: 33.833 | M23: 11.4262 | N23: 7.973080161e-06 | O23: 0 | P23: 0 | Q23: 0 | R23: 14.418 | S23: 0 | T23: 11.643 | U23: 11.821 | V23: 0 | W23: 0 | X23: 0 | Y23: 3.7882 | Z23: 3.002416358e-06 | AA23: -7.638 | AC23: =L23-INDEX($C23:$L23,1,aux!$BA$1) -> 33.833 | AD23: 5.132220513e-05 | AE23: =+IF(INDEX($C23:$L23,1,aux!$BA$1)>0,(L23/INDEX($C23:$L23,1,aux!$BA$1))^(1/($L$3-INDEX($C$3:$L$3,1,aux!$BA$1)))-1,"n.d.") -> n.d. | AF23: =IF(INDEX($C23:$L23,1,aux!$BA$1)>0,(L23-INDEX($C23:$L23,1,aux!$BA$1))/INDEX($C23:$L23,1,aux!$BA$1),"n.d.") -> n.d. | AH23: =X23-INDEX($O23:$X23,1,aux!$BA$1) -> 0 | AI23: 0 | AJ23: =+IF(INDEX($O23:$X23,1,aux!$BA$1)>0,(X23/INDEX($O23:$X23,1,aux!$BA$1))^(1/($X$3-INDEX($O$3:$X$3,1,aux!$BA$1)))-1,"n.d.") -> n.d. | AK23: =IF(INDEX($O23:$X23,1,aux!$BA$1)>0,(X23-INDEX($O23:$X23,1,aux!$BA$1))/INDEX($O23:$X23,1,aux!$BA$1),"n.d.") -> n.d. | CC23: =+IF(ISNA(MATCH('5.1'!A23,AUX_2d_pais!$G$2:$G$40000,0)),0,1) -> 1
A24: 0469 | B24: Barbados | C24: 0 | D24: 0 | E24: 0 | F24: 0 | G24: 0 | H24: 0 | I24: 0 | J24: 0 | K24: 0 | L24: 0 | M24: 0 | N24: 0 | O24: 0 | P24: 0 | Q24: 0 | R24: 0 | S24: 0 | T24: 0 | U24: 0 | V24: 0 | W24: 0 | X24: 0 | Y24: 0 | Z24: 0 | AA24: 0 | AC24: =L24-INDEX($C24:$L24,1,aux!$BA$1) -> 0 | AD24: 0 | AE24: =+IF(INDEX($C24:$L24,1,aux!$BA$1)>0,(L24/INDEX($C24:$L24,1,aux!$BA$1))^(1/($L$3-INDEX($C$3:$L$3,1,aux!$BA$1)))-1,"n.d.") -> n.d. | AF24: =IF(INDEX($C24:$L24,1,aux!$BA$1)>0,(L24-INDEX($C24:$L24,1,aux!$BA$1))/INDEX($C24:$L24,1,aux!$BA$1),"n.d.") -> n.d. | AH24: =X24-INDEX($O24:$X24,1,aux!$BA$1) -> 0 | AI24: 0 | AJ24: =+IF(INDEX($O24:$X24,1,aux!$BA$1)>0,(X24/INDEX($O24:$X24,1,aux!$BA$1))^(1/($X$3-INDEX($O$3:$X$3,1,aux!$BA$1)))-1,"n.d.") -> n.d. | AK24: =IF(INDEX($O24:$X24,1,aux!$BA$1)>0,(X24-INDEX($O24:$X24,1,aux!$BA$1))/INDEX($O24:$X24,1,aux!$BA$1),"n.d.") -> n.d. | AM24: 0 | BO24: 0 | CC24: =+IF(ISNA(MATCH('5.1'!A24,AUX_2d_pais!$G$2:$G$40000,0)),0,1) -> 0
A25: 0640 | B25: Barém | C25: 0 | D25: 0 | E25: 0 | F25: 0 | G25: 0 | H25: 0 | I25: 0 | J25: 0 | K25: 0 | L25: 0 | M25: 0 | N25: 0 | O25: 0 | P25: 0 | Q25: 0 | R25: 0 | S25: 42.246 | T25: 0 | U25: 26.526 | V25: 44.483 | W25: 108.578 | X25: 35.55 | Y25: 25.7383 | Z25: 2.039942267e-05 | AA25: 25.7383 | AC25: =L25-INDEX($C25:$L25,1,aux!$BA$1) -> 0 | AD25: 0 | AE25: =+IF(INDEX($C25:$L25,1,aux!$BA$1)>0,(L25/INDEX($C25:$L25,1,aux!$BA$1))^(1/($L$3-INDEX($C$3:$L$3,1,aux!$BA$1)))-1,"n.d.") -> n.d. | AF25: =IF(INDEX($C25:$L25,1,aux!$BA$1)>0,(L25-INDEX($C25:$L25,1,aux!$BA$1))/INDEX($C25:$L25,1,aux!$BA$1),"n.d.") -> n.d. | AH25: =X25-INDEX($O25:$X25,1,aux!$BA$1) -> 35.55 | AI25: 4.136039993e-05 | AJ25: =+IF(INDEX($O25:$X25,1,aux!$BA$1)>0,(X25/INDEX($O25:$X25,1,aux!$BA$1))^(1/($X$3-INDEX($O$3:$X$3,1,aux!$BA$1)))-1,"n.d.") -> n.d. | AK25: =IF(INDEX($O25:$X25,1,aux!$BA$1)>0,(X25-INDEX($O25:$X25,1,aux!$BA$1))/INDEX($O25:$X25,1,aux!$BA$1),"n.d.") -> n.d. | CC25: =+IF(ISNA(MATCH('5.1'!A25,AUX_2d_pais!$G$2:$G$40000,0)),0,1) -> 1
A26: 0073 | B26: Belarus | C26: 0 | D26: 0 | E26: 0 | F26: 0 | G26: 0 | H26: 0 | I26: 0 | J26: 0 | K26: 0 | L26: 0 | M26: 0 | N26: 0 | O26: 594.069 | P26: 436.486 | Q26: 738.772 | R26: 685.72 | S26: 304.317 | T26: 415.875 | U26: 539.22 | V26: 257.684 | W26: 135.463 | X26: 105.243 | Y26: 421.2849 | Z26: 0.0003338980717 | AA26: 421.2849 | AC26: =L26-INDEX($C26:$L26,1,aux!$BA$1) -> 0 | AD26: 0 | AE26: =+IF(INDEX($C26:$L26,1,aux!$BA$1)>0,(L26/INDEX($C26:$L26,1,aux!$BA$1))^(1/($L$3-INDEX($C$3:$L$3,1,aux!$BA$1)))-1,"n.d.") -> n.d. | AF26: =IF(INDEX($C26:$L26,1,aux!$BA$1)>0,(L26-INDEX($C26:$L26,1,aux!$BA$1))/INDEX($C26:$L26,1,aux!$BA$1),"n.d.") -> n.d. | AH26: =X26-INDEX($O26:$X26,1,aux!$BA$1) -> -488.826 | AI26: -0.0005687212056 | AJ26: =+IF(INDEX($O26:$X26,1,aux!$BA$1)>0,(X26/INDEX($O26:$X26,1,aux!$BA$1))^(1/($X$3-INDEX($O$3:$X$3,1,aux!$BA$1)))-1,"n.d.") -> -0.1749428419 | AK26: =IF(INDEX($O26:$X26,1,aux!$BA$1)>0,(X26-INDEX($O26:$X26,1,aux!$BA$1))/INDEX($O26:$X26,1,aux!$BA$1),"n.d.") -> -0.8228438111 | CC26: =+IF(ISNA(MATCH('5.1'!A26,AUX_2d_pais!$G$2:$G$40000,0)),0,1) -> 1
A27: 0017 | B27: Bélgica | C27: 41227.86 | D27: 35739.588 | E27: 45889.544 | F27: 47307.646 | G27: 49236.819 | H27: 55979.133 | I27: 53358.9 | J27: 57931.074 | K27: 60208.036 | L27: 49506.127 | M27: 49638.4727 | N27: 0.03463719538 | O27: 27539.533 | P27: 34466.255 | Q27: 41743.587 | R27: 49538.239 | S27: 58318.609 | T27: 60560.285 | U27: 71709.784 | V27: 77513.521 | W27: 78347.225 | X27: 72818.115 | Y27: 57255.5153 | Z27: 0.04537904433 | AA27: 7617.0426 | AC27: =L27-INDEX($C27:$L27,1,aux!$BA$1) -> 8278.267 | AD27: 0.01255753014 | AE27: =+IF(INDEX($C27:$L27,1,aux!$BA$1)>0,(L27/INDEX($C27:$L27,1,aux!$BA$1))^(1/($L$3-INDEX($C$3:$L$3,1,aux!$BA$1)))-1,"n.d.") -> 0.02053944523 | AF27: =IF(INDEX($C27:$L27,1,aux!$BA$1)>0,(L27-INDEX($C27:$L27,1,aux!$BA$1))/INDEX($C27:$L27,1,aux!$BA$1),"n.d.") -> 0.2007930317 | AH27: =X27-INDEX($O27:$X27,1,aux!$BA$1) -> 45278.582 | AI27: 0.05267905091 | AJ27: =+IF(INDEX($O27:$X27,1,aux!$BA$1)>0,(X27/INDEX($O27:$X27,1,aux!$BA$1))^(1/($X$3-INDEX($O$3:$X$3,1,aux!$BA$1)))-1,"n.d.") -> 0.1140901073 | AK27: =IF(INDEX($O27:$X27,1,aux!$BA$1)>0,(X27-INDEX($O27:$X27,1,aux!$BA$1))/INDEX($O27:$X27,1,aux!$BA$1),"n.d.") -> 1.644130349 | CC27: =+IF(ISNA(MATCH('5.1'!A27,AUX_2d_pais!$G$2:$G$40000,0)),0,1) -> 1
A28: 0421 | B28: Belize | C28: 309.307 | D28: 0 | E28: 38.137 | F28: 0 | G28: 240.568 | H28: 102.563 | I28: 227.542 | J28: 0 | K28: 515.001 | L28: 0 | M28: 143.3118 | N28: 0.0001000014414 | O28: 0 | P28: 0 | Q28: 0 | R28: 0 | S28: 0 | T28: 0 | U28: 0 | V28: 0 | W28: 0 | X28: 0 | Y28: 0 | Z28: 0 | AA28: -143.3118 | AC28: =L28-INDEX($C28:$L28,1,aux!$BA$1) -> -309.307 | AD28: -0.000469196267 | AE28: =+IF(INDEX($C28:$L28,1,aux!$BA$1)>0,(L28/INDEX($C28:$L28,1,aux!$BA$1))^(1/($L$3-INDEX($C$3:$L$3,1,aux!$BA$1)))-1,"n.d.") -> -1 | AF28: =IF(INDEX($C28:$L28,1,aux!$BA$1)>0,(L28-INDEX($C28:$L28,1,aux!$BA$1))/INDEX($C28:$L28,1,aux!$BA$1),"n.d.") -> -1 | AH28: =X28-INDEX($O28:$X28,1,aux!$BA$1) -> 0 | AI28: 0 | AJ28: =+IF(INDEX($O28:$X28,1,aux!$BA$1)>0,(X28/INDEX($O28:$X28,1,aux!$BA$1))^(1/($X$3-INDEX($O$3:$X$3,1,aux!$BA$1)))-1,"n.d.") -> n.d. | AK28: =IF(INDEX($O28:$X28,1,aux!$BA$1)>0,(X28-INDEX($O28:$X28,1,aux!$BA$1))/INDEX($O28:$X28,1,aux!$BA$1),"n.d.") -> n.d. | CC28: =+IF(ISNA(MATCH('5.1'!A28,AUX_2d_pais!$G$2:$G$40000,0)),0,1) -> 1
A29: 0284 | B29: Benim | C29: 0 | D29: 0 | E29: 0 | F29: 35.056 | G29: 0 | H29: 0 | I29: 0 | J29: 0 | K29: 103.6 | L29: 0 | M29: 13.8656 | N29: 9.675267392e-06 | O29: 24.583 | P29: 9.973 | Q29: 7.982 | R29: 51.027 | S29: 497.725 | T29: 27.324 | U29: 46.998 | V29: 0 | W29: 0 | X29: 4.714 | Y29: 67.0326 | Z29: 5.312807528e-05 | AA29: 53.167 | AC29: =L29-INDEX($C29:$L29,1,aux!$BA$1) -> 0 | AD29: 0 | AE29: =+IF(INDEX($C29:$L29,1,aux!$BA$1)>0,(L29/INDEX($C29:$L29,1,aux!$BA$1))^(1/($L$3-INDEX($C$3:$L$3,1,aux!$BA$1)))-1,"n.d.") -> n.d. | AF29: =IF(INDEX($C29:$L29,1,aux!$BA$1)>0,(L29-INDEX($C29:$L29,1,aux!$BA$1))/INDEX($C29:$L29,1,aux!$BA$1),"n.d.") -> n.d. | AH29: =X29-INDEX($O29:$X29,1,aux!$BA$1) -> -19.869 | AI29: -2.311644968e-05 | AJ29: =+IF(INDEX($O29:$X29,1,aux!$BA$1)>0,(X29/INDEX($O29:$X29,1,aux!$BA$1))^(1/($X$3-INDEX($O$3:$X$3,1,aux!$BA$1)))-1,"n.d.") -> -0.1676498207 | AK29: =IF(INDEX($O29:$X29,1,aux!$BA$1)>0,(X29-INDEX($O29:$X29,1,aux!$BA$1))/INDEX($O29:$X29,1,aux!$BA$1),"n.d.") -> -0.8082414677 | CC29: =+IF(ISNA(MATCH('5.1'!A29,AUX_2d_pais!$G$2:$G$40000,0)),0,1) -> 1
A30: 0413 | B30: Bermudas | C30: 0 | D30: 0 | E30: 0 | F30: 0 | G30: 0 | H30: 0 | I30: 0 | J30: 0 | K30: 0 | L30: 0 | M30: 0 | N30: 0 | O30: 17.721 | P30: 15.037 | Q30: 14.27 | R30: 16.464 | S30: 18.97 | T30: 24.156 | U30: 17.759 | V30: 25.908 | W30: 32.543 | X30: 29.012 | Y30: 21.184 | Z30: 1.678981789e-05 | AA30: 21.184 | AC30: =L30-INDEX($C30:$L30,1,aux!$BA$1) -> 0 | AD30: 0 | AE30: =+IF(INDEX($C30:$L30,1,aux!$BA$1)>0,(L30/INDEX($C30:$L30,1,aux!$BA$1))^(1/($L$3-INDEX($C$3:$L$3,1,aux!$BA$1)))-1,"n.d.") -> n.d. | AF30: =IF(INDEX($C30:$L30,1,aux!$BA$1)>0,(L30-INDEX($C30:$L30,1,aux!$BA$1))/INDEX($C30:$L30,1,aux!$BA$1),"n.d.") -> n.d. | AH30: =X30-INDEX($O30:$X30,1,aux!$BA$1) -> 11.291 | AI30: 1.313643532e-05 | AJ30: =+IF(INDEX($O30:$X30,1,aux!$BA$1)>0,(X30/INDEX($O30:$X30,1,aux!$BA$1))^(1/($X$3-INDEX($O$3:$X$3,1,aux!$BA$1)))-1,"n.d.") -> 0.05630106075 | AK30: =IF(INDEX($O30:$X30,1,aux!$BA$1)>0,(X30-INDEX($O30:$X30,1,aux!$BA$1))/INDEX($O30:$X30,1,aux!$BA$1),"n.d.") -> 0.6371536595 | CC30: =+IF(ISNA(MATCH('5.1'!A30,AUX_2d_pais!$G$2:$G$40000,0)),0,1) -> 1
A31: 0516 | B31: Bolívia | C31: 0 | D31: 0 | E31: 49.12 | F31: 28.703 | G31: 0 | H31: 87.684 | I31: 0 | J31: 181.885 | K31: 0 | L31: 0 | M31: 34.7392 | N31: 2.424064224e-05 | O31: 1.727 | P31: 3.203 | Q31: 2.627 | R31: 1.823 | S31: 0.411 | T31: 1.775 | U31: 0 | V31: 0 | W31: 0.46 | X31: 0.534 | Y31: 1.256 | Z31: 9.954688099e-07 | AA31: -33.4832 | AC31: =L31-INDEX($C31:$L31,1,aux!$BA$1) -> 0 | AD31: 0 | AE31: =+IF(INDEX($C31:$L31,1,aux!$BA$1)>0,(L31/INDEX($C31:$L31,1,aux!$BA$1))^(1/($L$3-INDEX($C$3:$L$3,1,aux!$BA$1)))-1,"n.d.") -> n.d. | AF31: =IF(INDEX($C31:$L31,1,aux!$BA$1)>0,(L31-INDEX($C31:$L31,1,aux!$BA$1))/INDEX($C31:$L31,1,aux!$BA$1),"n.d.") -> n.d. | AH31: =X31-INDEX($O31:$X31,1,aux!$BA$1) -> -1.193 | AI31: -1.387987542e-06 | AJ31: =+IF(INDEX($O31:$X31,1,aux!$BA$1)>0,(X31/INDEX($O31:$X31,1,aux!$BA$1))^(1/($X$3-INDEX($O$3:$X$3,1,aux!$BA$1)))-1,"n.d.") -> -0.1222699017 | AK31: =IF(INDEX($O31:$X31,1,aux!$BA$1)>0,(X31-INDEX($O31:$X31,1,aux!$BA$1))/INDEX($O31:$X31,1,aux!$BA$1),"n.d.") -> -0.6907932831 | CC31: =+IF(ISNA(MATCH('5.1'!A31,AUX_2d_pais!$G$2:$G$40000,0)),0,1) -> 1
A32: 0477 | B32: Bonaire, Santo Eustáquio e Saba | C32: 0 | D32: 0 | E32: 0 | F32: 0 | G32: 0 | H32: 0 | I32: 0 | J32: 0 | K32: 0 | L32: 0 | M32: 0 | N32: 0 | O32: 0 | P32: 0 | Q32: 0 | R32: 0 | S32: 0 | T32: 0 | U32: 0.056 | V32: 0 | W32: 0 | X32: 0 | Y32: 0.0056 | Z32: 4.438395968e-09 | AA32: 0.0056 | AC32: =L32-INDEX($C32:$L32,1,aux!$BA$1) -> 0 | AD32: 0 | AE32: =+IF(INDEX($C32:$L32,1,aux!$BA$1)>0,(L32/INDEX($C32:$L32,1,aux!$BA$1))^(1/($L$3-INDEX($C$3:$L$3,1,aux!$BA$1)))-1,"n.d.") -> n.d. | AF32: =IF(INDEX($C32:$L32,1,aux!$BA$1)>0,(L32-INDEX($C32:$L32,1,aux!$BA$1))/INDEX($C32:$L32,1,aux!$BA$1),"n.d.") -> n.d. | AH32: =X32-INDEX($O32:$X32,1,aux!$BA$1) -> 0 | AI32: 0 | AJ32: =+IF(INDEX($O32:$X32,1,aux!$BA$1)>0,(X32/INDEX($O32:$X32,1,aux!$BA$1))^(1/($X$3-INDEX($O$3:$X$3,1,aux!$BA$1)))-1,"n.d.") -> n.d. | AK32: =IF(INDEX($O32:$X32,1,aux!$BA$1)>0,(X32-INDEX($O32:$X32,1,aux!$BA$1))/INDEX($O32:$X32,1,aux!$BA$1),"n.d.") -> n.d. | BO32: 0.056 | CC32: =+IF(ISNA(MATCH('5.1'!A32,AUX_2d_pais!$G$2:$G$40000,0)),0,1) -> 1
A33: 0093 | B33: Bósnia-Herzegovina | C33: 0 | D33: 0 | E33: 0 | F33: 0 | G33: 0 | H33: 0 | I33: 0 | J33: 0 | K33: 0 | L33: 0 | M33: 0 | N33: 0 | O33: 10.8 | P33: 44.55 | Q33: 55.584 | R33: 0 | S33: 34.473 | T33: 22.59 | U33: 33.84 | V33: 42.632 | W33: 53.941 | X33: 47.735 | Y33: 34.6145 | Z33: 2.743443879e-05 | AA33: 34.6145 | AC33: =L33-INDEX($C33:$L33,1,aux!$BA$1) -> 0 | AD33: 0 | AE33: =+IF(INDEX($C33:$L33,1,aux!$BA$1)>0,(L33/INDEX($C33:$L33,1,aux!$BA$1))^(1/($L$3-INDEX($C$3:$L$3,1,aux!$BA$1)))-1,"n.d.") -> n.d. | AF33: =IF(INDEX($C33:$L33,1,aux!$BA$1)>0,(L33-INDEX($C33:$L33,1,aux!$BA$1))/INDEX($C33:$L33,1,aux!$BA$1),"n.d.") -> n.d. | AH33: =X33-INDEX($O33:$X33,1,aux!$BA$1) -> 36.935 | AI33: 4.297176854e-05 | AJ33: =+IF(INDEX($O33:$X33,1,aux!$BA$1)>0,(X33/INDEX($O33:$X33,1,aux!$BA$1))^(1/($X$3-INDEX($O$3:$X$3,1,aux!$BA$1)))-1,"n.d.") -> 0.1795397326 | AK33: =IF(INDEX($O33:$X33,1,aux!$BA$1)>0,(X33-INDEX($O33:$X33,1,aux!$BA$1))/INDEX($O33:$X33,1,aux!$BA$1),"n.d.") -> 3.419907407 | CC33: =+IF(ISNA(MATCH('5.1'!A33,AUX_2d_pais!$G$2:$G$40000,0)),0,1) -> 1
A34: 0391 | B34: Botswana | C34: 0 | D34: 0 | E34: 0 | F34: 0 | G34: 0 | H34: 0 | I34: 0 | J34: 0 | K34: 0 | L34: 0 | M34: 0 | N34: 0 | O34: 0 | P34: 0 | Q34: 0 | R34: 0 | S34: 0 | T34: 40.814 | U34: 3.286 | V34: 0 | W34: 0 | X34: 0.006 | Y34: 4.4106 | Z34: 3.495712367e-06 | AA34: 4.4106 | AC34: =L34-INDEX($C34:$L34,1,aux!$BA$1) -> 0 | AD34: 0 | AE34: =+IF(INDEX($C34:$L34,1,aux!$BA$1)>0,(L34/INDEX($C34:$L34,1,aux!$BA$1))^(1/($L$3-INDEX($C$3:$L$3,1,aux!$BA$1)))-1,"n.d.") -> n.d. | AF34: =IF(INDEX($C34:$L34,1,aux!$BA$1)>0,(L34-INDEX($C34:$L34,1,aux!$BA$1))/INDEX($C34:$L34,1,aux!$BA$1),"n.d.") -> n.d. | AH34: =X34-INDEX($O34:$X34,1,aux!$BA$1) -> 0.006 | AI34: 6.980658217e-09 | AJ34: =+IF(INDEX($O34:$X34,1,aux!$BA$1)>0,(X34/INDEX($O34:$X34,1,aux!$BA$1))^(1/($X$3-INDEX($O$3:$X$3,1,aux!$BA$1)))-1,"n.d.") -> n.d. | AK34: =IF(INDEX($O34:$X34,1,aux!$BA$1)>0,(X34-INDEX($O34:$X34,1,aux!$BA$1))/INDEX($O34:$X34,1,aux!$BA$1),"n.d.") -> n.d. | CC34: =+IF(ISNA(MATCH('5.1'!A34,AUX_2d_pais!$G$2:$G$40000,0)),0,1) -> 1
A35: 0892 | B35: Bouvet, Ilha | C35: 0 | D35: 0 | E35: 0 | F35: 0 | G35: 0 | H35: 0 | I35: 0 | J35: 0 | K35: 0 | L35: 0 | M35: 0 | N35: 0 | O35: 0 | P35: 0 | Q35: 0 | R35: 0 | S35: 0 | T35: 0 | U35: 0 | V35: 0 | W35: 0 | X35: 0 | Y35: 0 | Z35: 0 | AA35: 0 | AC35: =L35-INDEX($C35:$L35,1,aux!$BA$1) -> 0 | AD35: 0 | AE35: =+IF(INDEX($C35:$L35,1,aux!$BA$1)>0,(L35/INDEX($C35:$L35,1,aux!$BA$1))^(1/($L$3-INDEX($C$3:$L$3,1,aux!$BA$1)))-1,"n.d.") -> n.d. | AF35: =IF(INDEX($C35:$L35,1,aux!$BA$1)>0,(L35-INDEX($C35:$L35,1,aux!$BA$1))/INDEX($C35:$L35,1,aux!$BA$1),"n.d.") -> n.d. | AH35: =X35-INDEX($O35:$X35,1,aux!$BA$1) -> 0 | AI35: 0 | AJ35: =+IF(INDEX($O35:$X35,1,aux!$BA$1)>0,(X35/INDEX($O35:$X35,1,aux!$BA$1))^(1/($X$3-INDEX($O$3:$X$3,1,aux!$BA$1)))-1,"n.d.") -> n.d. | AK35: =IF(INDEX($O35:$X35,1,aux!$BA$1)>0,(X35-INDEX($O35:$X35,1,aux!$BA$1))/INDEX($O35:$X35,1,aux!$BA$1),"n.d.") -> n.d. | AM35: 0 | BO35: 0 | CC35: =+IF(ISNA(MATCH('5.1'!A35,AUX_2d_pais!$G$2:$G$40000,0)),0,1) -> 0
A36: 0508 | B36: Brasil | C36: 30434.774 | D36: 22689.99 | E36: 27495.655 | F36: 34245.524 | G36: 41008.275 | H36: 45374.427 | I36: 55288.103 | J36: 57028.226 | K36: 56374.861 | L36: 41156.328 | M36: 41109.6163 | N36: 0.0286858506 | O36: 37958.705 | P36: 37112.059 | Q36: 31938.714 | R36: 48287.927 | S36: 44703.081 | T36: 48274.828 | U36: 55103.195 | V36: 44256.148 | W36: 49461.765 | X36: 32996.392 | Y36: 43009.2814 | Z36: 0.03408789663 | AA36: 1899.6651 | AC36: =L36-INDEX($C36:$L36,1,aux!$BA$1) -> 10721.554 | AD36: =AC36/$AC$252 -> 0.01626381916 | AE36: =+IF(INDEX($C36:$L36,1,aux!$BA$1)>0,(L36/INDEX($C36:$L36,1,aux!$BA$1))^(1/($L$3-INDEX($C$3:$L$3,1,aux!$BA$1)))-1,"n.d.") -> 0.03410097769 | AF36: =IF(INDEX($C36:$L36,1,aux!$BA$1)>0,(L36-INDEX($C36:$L36,1,aux!$BA$1))/INDEX($C36:$L36,1,aux!$BA$1),"n.d.") -> 0.3522797311 | AH36: =X36-INDEX($O36:$X36,1,aux!$BA$1) -> -4962.313 | AI36: =AH36/$AH$252 -> -0.005773368503 | AJ36: =+IF(INDEX($O36:$X36,1,aux!$BA$1)>0,(X36/INDEX($O36:$X36,1,aux!$BA$1))^(1/($X$3-INDEX($O$3:$X$3,1,aux!$BA$1)))-1,"n.d.") -> -0.01544620195 | AK36: =IF(INDEX($O36:$X36,1,aux!$BA$1)>0,(X36-INDEX($O36:$X36,1,aux!$BA$1))/INDEX($O36:$X36,1,aux!$BA$1),"n.d.") -> -0.1307292491 | CC36: =+IF(ISNA(MATCH('5.1'!A36,AUX_2d_pais!$G$2:$G$40000,0)),0,1) -> 1
A37: 0703 | B37: Brunei Darussalam | C37: 0 | D37: 0 | E37: 0 | F37: 0 | G37: 0 | H37: 0 | I37: 0 | J37: 0 | K37: 0 | L37: 0 | M37: 0 | N37: 0 | O37: 0 | P37: 0 | Q37: 0 | R37: 0 | S37: 0 | T37: 0 | U37: 0 | V37: 0 | W37: 0 | X37: 0 | Y37: 0 | Z37: 0 | AA37: 0 | AC37: =L37-INDEX($C37:$L37,1,aux!$BA$1) -> 0 | AD37: 0 | AE37: =+IF(INDEX($C37:$L37,1,aux!$BA$1)>0,(L37/INDEX($C37:$L37,1,aux!$BA$1))^(1/($L$3-INDEX($C$3:$L$3,1,aux!$BA$1)))-1,"n.d.") -> n.d. | AF37: =IF(INDEX($C37:$L37,1,aux!$BA$1)>0,(L37-INDEX($C37:$L37,1,aux!$BA$1))/INDEX($C37:$L37,1,aux!$BA$1),"n.d.") -> n.d. | AH37: =X37-INDEX($O37:$X37,1,aux!$BA$1) -> 0 | AI37: 0 | AJ37: =+IF(INDEX($O37:$X37,1,aux!$BA$1)>0,(X37/INDEX($O37:$X37,1,aux!$BA$1))^(1/($X$3-INDEX($O$3:$X$3,1,aux!$BA$1)))-1,"n.d.") -> n.d. | AK37: =IF(INDEX($O37:$X37,1,aux!$BA$1)>0,(X37-INDEX($O37:$X37,1,aux!$BA$1))/INDEX($O37:$X37,1,aux!$BA$1),"n.d.") -> n.d. | AM37: 0 | BO37: 0 | CC37: =+IF(ISNA(MATCH('5.1'!A37,AUX_2d_pais!$G$2:$G$40000,0)),0,1) -> 0
A38: 0068 | B38: Bulgária | C38: 0 | D38: 0 | E38: 0.097 | F38: 1.112 | G38: 51.915 | H38: 4.41 | I38: 542.08 | J38: 176.883 | K38: 87.602 | L38: 34.117 | M38: 89.8216 | N38: 6.267655187e-05 | O38: 0.524 | P38: 0 | Q38: 25.162 | R38: 132.859 | S38: 212.162 | T38: 436.149 | U38: 373.433 | V38: 835.816 | W38: 878.047 | X38: 1550.279 | Y38: 444.4431 | Z38: 0.0003522525827 | AA38: 354.6215 | AC38: =L38-INDEX($C38:$L38,1,aux!$BA$1) -> 34.117 | AD38: 5.175301251e-05 | AE38: =+IF(INDEX($C38:$L38,1,aux!$BA$1)>0,(L38/INDEX($C38:$L38,1,aux!$BA$1))^(1/($L$3-INDEX($C$3:$L$3,1,aux!$BA$1)))-1,"n.d.") -> n.d. | AF38: =IF(INDEX($C38:$L38,1,aux!$BA$1)>0,(L38-INDEX($C38:$L38,1,aux!$BA$1))/INDEX($C38:$L38,1,aux!$BA$1),"n.d.") -> n.d. | AH38: =X38-INDEX($O38:$X38,1,aux!$BA$1) -> 1549.755 | AI38: 0.001803051662 | AJ38: =+IF(INDEX($O38:$X38,1,aux!$BA$1)>0,(X38/INDEX($O38:$X38,1,aux!$BA$1))^(1/($X$3-INDEX($O$3:$X$3,1,aux!$BA$1)))-1,"n.d.") -> 1.430386798 | AK38: =IF(INDEX($O38:$X38,1,aux!$BA$1)>0,(X38-INDEX($O38:$X38,1,aux!$BA$1))/INDEX($O38:$X38,1,aux!$BA$1),"n.d.") -> 2957.54771 | CC38: =+IF(ISNA(MATCH('5.1'!A38,AUX_2d_pais!$G$2:$G$40000,0)),0,1) -> 1
A39: 0236 | B39: Burquina Faso | C39: 0 | D39: 0 | E39: 0 | F39: 0 | G39: 0 | H39: 0 | I39: 0 | J39: 0 | K39: 0 | L39: 0 | M39: 0 | N39: 0 | O39: 0 | P39: 0 | Q39: 0 | R39: 0 | S39: 39.996 | T39: 25.498 | U39: 110.227 | V39: 7.64 | W39: 0.152 | X39: 26.892 | Y39: 21.0405 | Z39: 1.667608399e-05 | AA39: 21.0405 | AC39: =L39-INDEX($C39:$L39,1,aux!$BA$1) -> 0 | AD39: 0 | AE39: =+IF(INDEX($C39:$L39,1,aux!$BA$1)>0,(L39/INDEX($C39:$L39,1,aux!$BA$1))^(1/($L$3-INDEX($C$3:$L$3,1,aux!$BA$1)))-1,"n.d.") -> n.d. | AF39: =IF(INDEX($C39:$L39,1,aux!$BA$1)>0,(L39-INDEX($C39:$L39,1,aux!$BA$1))/INDEX($C39:$L39,1,aux!$BA$1),"n.d.") -> n.d. | AH39: =X39-INDEX($O39:$X39,1,aux!$BA$1) -> 26.892 | AI39: 3.128731013e-05 | AJ39: =+IF(INDEX($O39:$X39,1,aux!$BA$1)>0,(X39/INDEX($O39:$X39,1,aux!$BA$1))^(1/($X$3-INDEX($O$3:$X$3,1,aux!$BA$1)))-1,"n.d.") -> n.d. | AK39: =IF(INDEX($O39:$X39,1,aux!$BA$1)>0,(X39-INDEX($O39:$X39,1,aux!$BA$1))/INDEX($O39:$X39,1,aux!$BA$1),"n.d.") -> n.d. | CC39: =+IF(ISNA(MATCH('5.1'!A39,AUX_2d_pais!$G$2:$G$40000,0)),0,1) -> 1
A40: 0328 | B40: Burundi | C40: 0 | D40: 0 | E40: 0 | F40: 0 | G40: 0 | H40: 0 | I40: 0 | J40: 0 | K40: 0 | L40: 0 | M40: 0 | N40: 0 | O40: 0 | P40: 0 | Q40: 0 | R40: 0 | S40: 0 | T40: 0 | U40: 0 | V40: 0 | W40: 0 | X40: 0 | Y40: 0 | Z40: 0 | AA40: 0 | AC40: =L40-INDEX($C40:$L40,1,aux!$BA$1) -> 0 | AD40: 0 | AE40: =+IF(INDEX($C40:$L40,1,aux!$BA$1)>0,(L40/INDEX($C40:$L40,1,aux!$BA$1))^(1/($L$3-INDEX($C$3:$L$3,1,aux!$BA$1)))-1,"n.d.") -> n.d. | AF40: =IF(INDEX($C40:$L40,1,aux!$BA$1)>0,(L40-INDEX($C40:$L40,1,aux!$BA$1))/INDEX($C40:$L40,1,aux!$BA$1),"n.d.") -> n.d. | AH40: =X40-INDEX($O40:$X40,1,aux!$BA$1) -> 0 | AI40: 0 | AJ40: =+IF(INDEX($O40:$X40,1,aux!$BA$1)>0,(X40/INDEX($O40:$X40,1,aux!$BA$1))^(1/($X$3-INDEX($O$3:$X$3,1,aux!$BA$1)))-1,"n.d.") -> n.d. | AK40: =IF(INDEX($O40:$X40,1,aux!$BA$1)>0,(X40-INDEX($O40:$X40,1,aux!$BA$1))/INDEX($O40:$X40,1,aux!$BA$1),"n.d.") -> n.d. | AM40: 0 | BO40: 0 | CC40: =+IF(ISNA(MATCH('5.1'!A40,AUX_2d_pais!$G$2:$G$40000,0)),0,1) -> 0
A41: 0675 | B41: Butão | C41: 0 | D41: 0 | E41: 0 | F41: 0 | G41: 0 | H41: 0 | I41: 0 | J41: 0 | K41: 0 | L41: 0 | M41: 0 | N41: 0 | O41: 0 | P41: 0 | Q41: 0 | R41: 0 | S41: 0 | T41: 0 | U41: 0 | V41: 0 | W41: 0 | X41: 0 | Y41: 0 | Z41: 0 | AA41: 0 | AC41: =L41-INDEX($C41:$L41,1,aux!$BA$1) -> 0 | AD41: 0 | AE41: =+IF(INDEX($C41:$L41,1,aux!$BA$1)>0,(L41/INDEX($C41:$L41,1,aux!$BA$1))^(1/($L$3-INDEX($C$3:$L$3,1,aux!$BA$1)))-1,"n.d.") -> n.d. | AF41: =IF(INDEX($C41:$L41,1,aux!$BA$1)>0,(L41-INDEX($C41:$L41,1,aux!$BA$1))/INDEX($C41:$L41,1,aux!$BA$1),"n.d.") -> n.d. | AH41: =X41-INDEX($O41:$X41,1,aux!$BA$1) -> 0 | AI41: 0 | AJ41: =+IF(INDEX($O41:$X41,1,aux!$BA$1)>0,(X41/INDEX($O41:$X41,1,aux!$BA$1))^(1/($X$3-INDEX($O$3:$X$3,1,aux!$BA$1)))-1,"n.d.") -> n.d. | AK41: =IF(INDEX($O41:$X41,1,aux!$BA$1)>0,(X41-INDEX($O41:$X41,1,aux!$BA$1))/INDEX($O41:$X41,1,aux!$BA$1),"n.d.") -> n.d. | AM41: 0 | BO41: 0 | CC41: =+IF(ISNA(MATCH('5.1'!A41,AUX_2d_pais!$G$2:$G$40000,0)),0,1) -> 0
A42: 0247 | B42: Cabo Verde | C42: 0.122 | D42: 0 | E42: 1.696 | F42: 30.289 | G42: 0 | H42: 3.371 | I42: 48.4 | J42: 17.63 | K42: 0 | L42: 12.072 | M42: 11.358 | N42: 7.92549093e-06 | O42: 12702.781 | P42: 12888.849 | Q42: 12827.91 | R42: 12162.871 | S42: 14327.758 | T42: 15707.03 | U42: 17145.941 | V42: 19141.795 | W42: 22056.391 | X42: 20219.187 | Y42: 15918.0513 | Z42: 0.0126161812 | AA42: 15906.6933 | AC42: =L42-INDEX($C42:$L42,1,aux!$BA$1) -> 11.95 | AD42: 1.812728257e-05 | AE42: =+IF(INDEX($C42:$L42,1,aux!$BA$1)>0,(L42/INDEX($C42:$L42,1,aux!$BA$1))^(1/($L$3-INDEX($C$3:$L$3,1,aux!$BA$1)))-1,"n.d.") -> 0.6661468111 | AF42: =IF(INDEX($C42:$L42,1,aux!$BA$1)>0,(L42-INDEX($C42:$L42,1,aux!$BA$1))/INDEX($C42:$L42,1,aux!$BA$1),"n.d.") -> 97.95081967 | AH42: =X42-INDEX($O42:$X42,1,aux!$BA$1) -> 7516.406 | AI42: 0.008744910217 | AJ42: =+IF(INDEX($O42:$X42,1,aux!$BA$1)>0,(X42/INDEX($O42:$X42,1,aux!$BA$1))^(1/($X$3-INDEX($O$3:$X$3,1,aux!$BA$1)))-1,"n.d.") -> 0.05300256942 | AK42: =IF(INDEX($O42:$X42,1,aux!$BA$1)>0,(X42-INDEX($O42:$X42,1,aux!$BA$1))/INDEX($O42:$X42,1,aux!$BA$1),"n.d.") -> 0.5917134209 | CC42: =+IF(ISNA(MATCH('5.1'!A42,AUX_2d_pais!$G$2:$G$40000,0)),0,1) -> 1
A43: 0463 | B43: Caimão, Ilhas | C43: 0 | D43: 0 | E43: 0 | F43: 0 | G43: 0 | H43: 0 | I43: 0 | J43: 0 | K43: 0 | L43: 0 | M43: 0 | N43: 0 | O43: 0 | P43: 0 | Q43: 0 | R43: 0 | S43: 0 | T43: 0 | U43: 0 | V43: 0 | W43: 0 | X43: 0 | Y43: 0 | Z43: 0 | AA43: 0 | AC43: =L43-INDEX($C43:$L43,1,aux!$BA$1) -> 0 | AD43: 0 | AE43: =+IF(INDEX($C43:$L43,1,aux!$BA$1)>0,(L43/INDEX($C43:$L43,1,aux!$BA$1))^(1/($L$3-INDEX($C$3:$L$3,1,aux!$BA$1)))-1,"n.d.") -> n.d. | AF43: =IF(INDEX($C43:$L43,1,aux!$BA$1)>0,(L43-INDEX($C43:$L43,1,aux!$BA$1))/INDEX($C43:$L43,1,aux!$BA$1),"n.d.") -> n.d. | AH43: =X43-INDEX($O43:$X43,1,aux!$BA$1) -> 0 | AI43: 0 | AJ43: =+IF(INDEX($O43:$X43,1,aux!$BA$1)>0,(X43/INDEX($O43:$X43,1,aux!$BA$1))^(1/($X$3-INDEX($O$3:$X$3,1,aux!$BA$1)))-1,"n.d.") -> n.d. | AK43: =IF(INDEX($O43:$X43,1,aux!$BA$1)>0,(X43-INDEX($O43:$X43,1,aux!$BA$1))/INDEX($O43:$X43,1,aux!$BA$1),"n.d.") -> n.d. | AM43: 0 | BO43: 0 | CC43: =+IF(ISNA(MATCH('5.1'!A43,AUX_2d_pais!$G$2:$G$40000,0)),0,1) -> 0
A44: 0302 | B44: Camarões | C44: 0 | D44: 0 | E44: 0 | F44: 0 | G44: 0 | H44: 0 | I44: 0 | J44: 0 | K44: 0 | L44: 0 | M44: 0 | N44: 0 | O44: 25.797 | P44: 7.679 | Q44: 24.624 | R44: 215.618 | S44: 182.305 | T44: 0.152 | U44: 21.409 | V44: 123.317 | W44: 222.056 | X44: 85.092 | Y44: 90.8049 | Z44: 7.196930393e-05 | AA44: 90.8049 | AC44: =L44-INDEX($C44:$L44,1,aux!$BA$1) -> 0 | AD44: 0 | AE44: =+IF(INDEX($C44:$L44,1,aux!$BA$1)>0,(L44/INDEX($C44:$L44,1,aux!$BA$1))^(1/($L$3-INDEX($C$3:$L$3,1,aux!$BA$1)))-1,"n.d.") -> n.d. | AF44: =IF(INDEX($C44:$L44,1,aux!$BA$1)>0,(L44-INDEX($C44:$L44,1,aux!$BA$1))/INDEX($C44:$L44,1,aux!$BA$1),"n.d.") -> n.d. | AH44: =X44-INDEX($O44:$X44,1,aux!$BA$1) -> 59.295 | AI44: 6.898635483e-05 | AJ44: =+IF(INDEX($O44:$X44,1,aux!$BA$1)>0,(X44/INDEX($O44:$X44,1,aux!$BA$1))^(1/($X$3-INDEX($O$3:$X$3,1,aux!$BA$1)))-1,"n.d.") -> 0.1418026816 | AK44: =IF(INDEX($O44:$X44,1,aux!$BA$1)>0,(X44-INDEX($O44:$X44,1,aux!$BA$1))/INDEX($O44:$X44,1,aux!$BA$1),"n.d.") -> 2.298523084 | CC44: =+IF(ISNA(MATCH('5.1'!A44,AUX_2d_pais!$G$2:$G$40000,0)),0,1) -> 1
A45: 0696 | B45: Camboja | C45: 0 | D45: 0 | E45: 0 | F45: 0 | G45: 0 | H45: 0 | I45: 0 | J45: 0 | K45: 0 | L45: 0 | M45: 0 | N45: 0 | O45: 0 | P45: 0.158 | Q45: 0 | R45: 0 | S45: 0 | T45: 0 | U45: 0 | V45: 0 | W45: 0 | X45: 0 | Y45: 0.0158 | Z45: 1.25226172e-08 | AA45: 0.0158 | AC45: =L45-INDEX($C45:$L45,1,aux!$BA$1) -> 0 | AD45: 0 | AE45: =+IF(INDEX($C45:$L45,1,aux!$BA$1)>0,(L45/INDEX($C45:$L45,1,aux!$BA$1))^(1/($L$3-INDEX($C$3:$L$3,1,aux!$BA$1)))-1,"n.d.") -> n.d. | AF45: =IF(INDEX($C45:$L45,1,aux!$BA$1)>0,(L45-INDEX($C45:$L45,1,aux!$BA$1))/INDEX($C45:$L45,1,aux!$BA$1),"n.d.") -> n.d. | AH45: =X45-INDEX($O45:$X45,1,aux!$BA$1) -> 0 | AI45: 0 | AJ45: =+IF(INDEX($O45:$X45,1,aux!$BA$1)>0,(X45/INDEX($O45:$X45,1,aux!$BA$1))^(1/($X$3-INDEX($O$3:$X$3,1,aux!$BA$1)))-1,"n.d.") -> n.d. | AK45: =IF(INDEX($O45:$X45,1,aux!$BA$1)>0,(X45-INDEX($O45:$X45,1,aux!$BA$1))/INDEX($O45:$X45,1,aux!$BA$1),"n.d.") -> n.d. | CC45: =+IF(ISNA(MATCH('5.1'!A45,AUX_2d_pais!$G$2:$G$40000,0)),0,1) -> 1
A46: 0404 | B46: Canadá | C46: 4884.514 | D46: 3835.798 | E46: 6455.469 | F46: 6548.755 | G46: 6011.745 | H46: 8723.003 | I46: 10741.96 | J46: 7310.112 | K46: 8690.599 | L46: 5506.552 | M46: 6870.8507 | N46: 0.004794406137 | O46: 3290.28 | P46: 2940.592 | Q46: 2927.066 | R46: 4448.354 | S46: 5878.334 | T46: 9830.818 | U46: 9855.007 | V46: 8773.696 | W46: 8981.575 | X46: 8648.053 | Y46: 6557.3775 | Z46: 0.005197185331 | AA46: -313.4732 | AC46: =L46-INDEX($C46:$L46,1,aux!$BA$1) -> 622.038 | AD46: 0.0009435864935 | AE46: =+IF(INDEX($C46:$L46,1,aux!$BA$1)>0,(L46/INDEX($C46:$L46,1,aux!$BA$1))^(1/($L$3-INDEX($C$3:$L$3,1,aux!$BA$1)))-1,"n.d.") -> 0.01340785243 | AF46: =IF(INDEX($C46:$L46,1,aux!$BA$1)>0,(L46-INDEX($C46:$L46,1,aux!$BA$1))/INDEX($C46:$L46,1,aux!$BA$1),"n.d.") -> 0.1273490054 | AH46: =X46-INDEX($O46:$X46,1,aux!$BA$1) -> 5357.773 | AI46: 0.006233463686 | AJ46: =+IF(INDEX($O46:$X46,1,aux!$BA$1)>0,(X46/INDEX($O46:$X46,1,aux!$BA$1))^(1/($X$3-INDEX($O$3:$X$3,1,aux!$BA$1)))-1,"n.d.") -> 0.1133500182 | AK46: =IF(INDEX($O46:$X46,1,aux!$BA$1)>0,(X46-INDEX($O46:$X46,1,aux!$BA$1))/INDEX($O46:$X46,1,aux!$BA$1),"n.d.") -> 1.628363847 | CC46: =+IF(ISNA(MATCH('5.1'!A46,AUX_2d_pais!$G$2:$G$40000,0)),0,1) -> 1
A47: 0644 | B47: Catar | C47: 0 | D47: 0 | E47: 0 | F47: 0 | G47: 0 | H47: 0 | I47: 0 | J47: 0 | K47: 0 | L47: 0 | M47: 0 | N47: 0 | O47: 0.732 | P47: 0 | Q47: 19.014 | R47: 31.958 | S47: 430.729 | T47: 0.044 | U47: 93.114 | V47: 270.13 | W47: 279.453 | X47: 314.003 | Y47: 143.9177 | Z47: 0.0001140649535 | AA47: 143.9177 | AC47: =L47-INDEX($C47:$L47,1,aux!$BA$1) -> 0 | AD47: 0 | AE47: =+IF(INDEX($C47:$L47,1,aux!$BA$1)>0,(L47/INDEX($C47:$L47,1,aux!$BA$1))^(1/($L$3-INDEX($C$3:$L$3,1,aux!$BA$1)))-1,"n.d.") -> n.d. | AF47: =IF(INDEX($C47:$L47,1,aux!$BA$1)>0,(L47-INDEX($C47:$L47,1,aux!$BA$1))/INDEX($C47:$L47,1,aux!$BA$1),"n.d.") -> n.d. | AH47: =X47-INDEX($O47:$X47,1,aux!$BA$1) -> 313.271 | AI47: 0.0003644729634 | AJ47: =+IF(INDEX($O47:$X47,1,aux!$BA$1)>0,(X47/INDEX($O47:$X47,1,aux!$BA$1))^(1/($X$3-INDEX($O$3:$X$3,1,aux!$BA$1)))-1,"n.d.") -> 0.9610624 | AK47: =IF(INDEX($O47:$X47,1,aux!$BA$1)>0,(X47-INDEX($O47:$X47,1,aux!$BA$1))/INDEX($O47:$X47,1,aux!$BA$1),"n.d.") -> 427.965847 | CC47: =+IF(ISNA(MATCH('5.1'!A47,AUX_2d_pais!$G$2:$G$40000,0)),0,1) -> 1
A48: 0079 | B48: Cazaquistão | C48: 0 | D48: 0 | E48: 0 | F48: 0 | G48: 0 | H48: 0 | I48: 0 | J48: 0 | K48: 0 | L48: 0 | M48: 0 | N48: 0 | O48: 56.352 | P48: 108.442 | Q48: 107.293 | R48: 161.213 | S48: 59.547 | T48: 218.608 | U48: 210.616 | V48: 173.092 | W48: 23.494 | X48: 165.738 | Y48: 128.4395 | Z48: 0.0001017973855 | AA48: 128.4395 | AC48: =L48-INDEX($C48:$L48,1,aux!$BA$1) -> 0 | AD48: 0 | AE48: =+IF(INDEX($C48:$L48,1,aux!$BA$1)>0,(L48/INDEX($C48:$L48,1,aux!$BA$1))^(1/($L$3-INDEX($C$3:$L$3,1,aux!$BA$1)))-1,"n.d.") -> n.d. | AF48: =IF(INDEX($C48:$L48,1,aux!$BA$1)>0,(L48-INDEX($C48:$L48,1,aux!$BA$1))/INDEX($C48:$L48,1,aux!$BA$1),"n.d.") -> n.d. | AH48: =X48-INDEX($O48:$X48,1,aux!$BA$1) -> 109.386 | AI48: 0.0001272643799 | AJ48: =+IF(INDEX($O48:$X48,1,aux!$BA$1)>0,(X48/INDEX($O48:$X48,1,aux!$BA$1))^(1/($X$3-INDEX($O$3:$X$3,1,aux!$BA$1)))-1,"n.d.") -> 0.1273453382 | AK48: =IF(INDEX($O48:$X48,1,aux!$BA$1)>0,(X48-INDEX($O48:$X48,1,aux!$BA$1))/INDEX($O48:$X48,1,aux!$BA$1),"n.d.") -> 1.941120102 | CC48: =+IF(ISNA(MATCH('5.1'!A48,AUX_2d_pais!$G$2:$G$40000,0)),0,1) -> 1
A49: 0306 | B49: Centro-Africana, República | C49: 0 | D49: 0 | E49: 0 | F49: 0 | G49: 0 | H49: 0 | I49: 0 | J49: 0 | K49: 0 | L49: 0 | M49: 0 | N49: 0 | O49: 0 | P49: 0 | Q49: 0 | R49: 0 | S49: 0 | T49: 0 | U49: 0 | V49: 0 | W49: 0.245 | X49: 0 | Y49: 0.0245 | Z49: 1.941798236e-08 | AA49: 0.0245 | AC49: =L49-INDEX($C49:$L49,1,aux!$BA$1) -> 0 | AD49: 0 | AE49: =+IF(INDEX($C49:$L49,1,aux!$BA$1)>0,(L49/INDEX($C49:$L49,1,aux!$BA$1))^(1/($L$3-INDEX($C$3:$L$3,1,aux!$BA$1)))-1,"n.d.") -> n.d. | AF49: =IF(INDEX($C49:$L49,1,aux!$BA$1)>0,(L49-INDEX($C49:$L49,1,aux!$BA$1))/INDEX($C49:$L49,1,aux!$BA$1),"n.d.") -> n.d. | AH49: =X49-INDEX($O49:$X49,1,aux!$BA$1) -> 0 | AI49: 0 | AJ49: =+IF(INDEX($O49:$X49,1,aux!$BA$1)>0,(X49/INDEX($O49:$X49,1,aux!$BA$1))^(1/($X$3-INDEX($O$3:$X$3,1,aux!$BA$1)))-1,"n.d.") -> n.d. | AK49: =IF(INDEX($O49:$X49,1,aux!$BA$1)>0,(X49-INDEX($O49:$X49,1,aux!$BA$1))/INDEX($O49:$X49,1,aux!$BA$1),"n.d.") -> n.d. | BO49: 0.245 | CC49: =+IF(ISNA(MATCH('5.1'!A49,AUX_2d_pais!$G$2:$G$40000,0)),0,1) -> 1
A50: 0021 | B50: Ceuta | C50: 0 | D50: 0 | E50: 0 | F50: 0 | G50: 0 | H50: 0 | I50: 0 | J50: 0 | K50: 0 | L50: 0 | M50: 0 | N50: 0 | O50: 0 | P50: 0 | Q50: 0 | R50: 0 | S50: 0 | T50: 0 | U50: 0 | V50: 0 | W50: 0 | X50: 0 | Y50: 0 | Z50: 0 | AA50: 0 | AC50: =L50-INDEX($C50:$L50,1,aux!$BA$1) -> 0 | AD50: 0 | AE50: =+IF(INDEX($C50:$L50,1,aux!$BA$1)>0,(L50/INDEX($C50:$L50,1,aux!$BA$1))^(1/($L$3-INDEX($C$3:$L$3,1,aux!$BA$1)))-1,"n.d.") -> n.d. | AF50: =IF(INDEX($C50:$L50,1,aux!$BA$1)>0,(L50-INDEX($C50:$L50,1,aux!$BA$1))/INDEX($C50:$L50,1,aux!$BA$1),"n.d.") -> n.d. | AH50: =X50-INDEX($O50:$X50,1,aux!$BA$1) -> 0 | AI50: 0 | AJ50: =+IF(INDEX($O50:$X50,1,aux!$BA$1)>0,(X50/INDEX($O50:$X50,1,aux!$BA$1))^(1/($X$3-INDEX($O$3:$X$3,1,aux!$BA$1)))-1,"n.d.") -> n.d. | AK50: =IF(INDEX($O50:$X50,1,aux!$BA$1)>0,(X50-INDEX($O50:$X50,1,aux!$BA$1))/INDEX($O50:$X50,1,aux!$BA$1),"n.d.") -> n.d. | AM50: 0 | CC50: =+IF(ISNA(MATCH('5.1'!A50,AUX_2d_pais!$G$2:$G$40000,0)),0,1) -> 0
A51: 0022 | B51: Ceuta e Melilha | C51: 0 | D51: 0 | E51: 0 | F51: 0 | G51: 0 | H51: 0 | I51: 0 | J51: 0 | K51: 0 | L51: 0 | M51: 0 | N51: 0 | O51: 0 | P51: 0 | Q51: 0 | R51: 87.892 | S51: 67.758 | T51: 52.225 | U51: 0 | V51: 22.523 | W51: 0 | X51: 0 | Y51: 23.0398 | Z51: 1.826067061e-05 | AA51: 23.0398 | AC51: =L51-INDEX($C51:$L51,1,aux!$BA$1) -> 0 | AD51: 0 | AE51: =+IF(INDEX($C51:$L51,1,aux!$BA$1)>0,(L51/INDEX($C51:$L51,1,aux!$BA$1))^(1/($L$3-INDEX($C$3:$L$3,1,aux!$BA$1)))-1,"n.d.") -> n.d. | AF51: =IF(INDEX($C51:$L51,1,aux!$BA$1)>0,(L51-INDEX($C51:$L51,1,aux!$BA$1))/INDEX($C51:$L51,1,aux!$BA$1),"n.d.") -> n.d. | AH51: =X51-INDEX($O51:$X51,1,aux!$BA$1) -> 0 | AI51: 0 | AJ51: =+IF(INDEX($O51:$X51,1,aux!$BA$1)>0,(X51/INDEX($O51:$X51,1,aux!$BA$1))^(1/($X$3-INDEX($O$3:$X$3,1,aux!$BA$1)))-1,"n.d.") -> n.d. | AK51: =IF(INDEX($O51:$X51,1,aux!$BA$1)>0,(X51-INDEX($O51:$X51,1,aux!$BA$1))/INDEX($O51:$X51,1,aux!$BA$1),"n.d.") -> n.d. | CC51: =+IF(ISNA(MATCH('5.1'!A51,AUX_2d_pais!$G$2:$G$40000,0)),0,1) -> 1
A52: 0244 | B52: Chade | C52: 0 | D52: 0 | E52: 0 | F52: 0 | G52: 0 | H52: 0 | I52: 0 | J52: 0 | K52: 0 | L52: 0 | M52: 0 | N52: 0 | O52: 0 | P52: 0 | Q52: 8.92 | R52: 0 | S52: 0 | T52: 0 | U52: 0 | V52: 0 | W52: 0 | X52: 0 | Y52: 0.892 | Z52: 7.06973072e-07 | AA52: 0.892 | AC52: =L52-INDEX($C52:$L52,1,aux!$BA$1) -> 0 | AD52: 0 | AE52: =+IF(INDEX($C52:$L52,1,aux!$BA$1)>0,(L52/INDEX($C52:$L52,1,aux!$BA$1))^(1/($L$3-INDEX($C$3:$L$3,1,aux!$BA$1)))-1,"n.d.") -> n.d. | AF52: =IF(INDEX($C52:$L52,1,aux!$BA$1)>0,(L52-INDEX($C52:$L52,1,aux!$BA$1))/INDEX($C52:$L52,1,aux!$BA$1),"n.d.") -> n.d. | AH52: =X52-INDEX($O52:$X52,1,aux!$BA$1) -> 0 | AI52: 0 | AJ52: =+IF(INDEX($O52:$X52,1,aux!$BA$1)>0,(X52/INDEX($O52:$X52,1,aux!$BA$1))^(1/($X$3-INDEX($O$3:$X$3,1,aux!$BA$1)))-1,"n.d.") -> n.d. | AK52: =IF(INDEX($O52:$X52,1,aux!$BA$1)>0,(X52-INDEX($O52:$X52,1,aux!$BA$1))/INDEX($O52:$X52,1,aux!$BA$1),"n.d.") -> n.d. | CC52: =+IF(ISNA(MATCH('5.1'!A52,AUX_2d_pais!$G$2:$G$40000,0)),0,1) -> 1
A53: 0061 | B53: Checa, República | C53: 2.295 | D53: 2.118 | E53: 0.085 | F53: 7.381 | G53: 7.993 | H53: 454.914 | I53: 357.549 | J53: 257.099 | K53: 435.13 | L53: 874.573 | M53: 239.9137 | N53: 0.0001674092141 | O53: 1111.85 | P53: 1463.25 | Q53: 1285.4 | R53: 4201.752 | S53: 5058.173 | T53: 6727.305 | U53: 7842.006 | V53: 8105.796 | W53: 8309.606 | X53: 9483.031 | Y53: 5358.8169 | Z53: 0.004247241307 | AA53: 5118.9032 | AC53: =L53-INDEX($C53:$L53,1,aux!$BA$1) -> 872.278 | AD53: 0.001323182409 | AE53: =+IF(INDEX($C53:$L53,1,aux!$BA$1)>0,(L53/INDEX($C53:$L53,1,aux!$BA$1))^(1/($L$3-INDEX($C$3:$L$3,1,aux!$BA$1)))-1,"n.d.") -> 0.9354380014 | AF53: =IF(INDEX($C53:$L53,1,aux!$BA$1)>0,(L53-INDEX($C53:$L53,1,aux!$BA$1))/INDEX($C53:$L53,1,aux!$BA$1),"n.d.") -> 380.0775599 | AH53: =X53-INDEX($O53:$X53,1,aux!$BA$1) -> 8371.181 | AI53: 0.009739392239 | AJ53: =+IF(INDEX($O53:$X53,1,aux!$BA$1)>0,(X53/INDEX($O53:$X53,1,aux!$BA$1))^(1/($X$3-INDEX($O$3:$X$3,1,aux!$BA$1)))-1,"n.d.") -> 0.2689176583 | AK53: =IF(INDEX($O53:$X53,1,aux!$BA$1)>0,(X53-INDEX($O53:$X53,1,aux!$BA$1))/INDEX($O53:$X53,1,aux!$BA$1),"n.d.") -> 7.529056078 | CC53: =+IF(ISNA(MATCH('5.1'!A53,AUX_2d_pais!$G$2:$G$40000,0)),0,1) -> 1
A54: 0512 | B54: Chile | C54: 13531.24 | D54: 10858.374 | E54: 18743.051 | F54: 22636.756 | G54: 26502.729 | H54: 27892.753 | I54: 28262.927 | J54: 20760.648 | K54: 18010.486 | L54: 20654.916 | M54: 20785.388 | N54: 0.01450382145 | O54: 2.452 | P54: 8.286 | Q54: 32.165 | R54: 185.731 | S54: 357.495 | T54: 627.923 | U54: 567.806 | V54: 762.047 | W54: 743.307 | X54: 665.936 | Y54: 395.3148 | Z54: 0.0003133149311 | AA54: -20390.0732 | AC54: =L54-INDEX($C54:$L54,1,aux!$BA$1) -> 7123.676 | AD54: 0.0108060994 | AE54: =+IF(INDEX($C54:$L54,1,aux!$BA$1)>0,(L54/INDEX($C54:$L54,1,aux!$BA$1))^(1/($L$3-INDEX($C$3:$L$3,1,aux!$BA$1)))-1,"n.d.") -> 0.0481164503 | AF54: =IF(INDEX($C54:$L54,1,aux!$BA$1)>0,(L54-INDEX($C54:$L54,1,aux!$BA$1))/INDEX($C54:$L54,1,aux!$BA$1),"n.d.") -> 0.526461433 | AH54: =X54-INDEX($O54:$X54,1,aux!$BA$1) -> 663.484 | AI54: 0.0007719258394 | AJ54: =+IF(INDEX($O54:$X54,1,aux!$BA$1)>0,(X54/INDEX($O54:$X54,1,aux!$BA$1))^(1/($X$3-INDEX($O$3:$X$3,1,aux!$BA$1)))-1,"n.d.") -> 0.8639517656 | AK54: =IF(INDEX($O54:$X54,1,aux!$BA$1)>0,(X54-INDEX($O54:$X54,1,aux!$BA$1))/INDEX($O54:$X54,1,aux!$BA$1),"n.d.") -> 270.588907 | CC54: =+IF(ISNA(MATCH('5.1'!A54,AUX_2d_pais!$G$2:$G$40000,0)),0,1) -> 1
A55: 0720 | B55: China, República Popular da | C55: 11912.566 | D55: 12399.768 | E55: 16498.642 | F55: 16962.519 | G55: 12412.513 | H55: 8871.11 | I55: 9528.869 | J55: 8002.708 | K55: 7452.52 | L55: 8359.181 | M55: 11240.0396 | N55: 0.007843179424 | O55: 397.251 | P55: 429.074 | Q55: 650.065 | R55: 773.312 | S55: 1029.913 | T55: 768.713 | U55: 737.328 | V55: 742.375 | W55: 629.99 | X55: 461.345 | Y55: 661.9366 | Z55: 0.0005246315601 | AA55: -10578.103 | AC55: =L55-INDEX($C55:$L55,1,aux!$BA$1) -> -3553.385 | AD55: -0.005390227112 | AE55: =+IF(INDEX($C55:$L55,1,aux!$BA$1)>0,(L55/INDEX($C55:$L55,1,aux!$BA$1))^(1/($L$3-INDEX($C$3:$L$3,1,aux!$BA$1)))-1,"n.d.") -> -0.03859474881 | AF55: =IF(INDEX($C55:$L55,1,aux!$BA$1)>0,(L55-INDEX($C55:$L55,1,aux!$BA$1))/INDEX($C55:$L55,1,aux!$BA$1),"n.d.") -> -0.2982887986 | AH55: =X55-INDEX($O55:$X55,1,aux!$BA$1) -> 64.094 | AI55: 7.456971796e-05 | AJ55: =+IF(INDEX($O55:$X55,1,aux!$BA$1)>0,(X55/INDEX($O55:$X55,1,aux!$BA$1))^(1/($X$3-INDEX($O$3:$X$3,1,aux!$BA$1)))-1,"n.d.") -> 0.01675863351 | AK55: =IF(INDEX($O55:$X55,1,aux!$BA$1)>0,(X55-INDEX($O55:$X55,1,aux!$BA$1))/INDEX($O55:$X55,1,aux!$BA$1),"n.d.") -> 0.1613438355 | CC55: =+IF(ISNA(MATCH('5.1'!A55,AUX_2d_pais!$G$2:$G$40000,0)),0,1) -> 1
A56: 0600 | B56: Chipre | C56: 82.03 | D56: 80.331 | E56: 3.469 | F56: 4.867 | G56: 10.019 | H56: 119.621 | I56: 0 | J56: 0 | K56: 71.904 | L56: 0 | M56: 37.2241 | N56: 2.597457888e-05 | O56: 15.123 | P56: 27.639 | Q56: 169.538 | R56: 54.073 | S56: 111.893 | T56: 101.115 | U56: 267.247 | V56: 227.277 | W56: 277.423 | X56: 438.097 | Y56: 168.9425 | Z56: 0.0001338988769 | AA56: 131.7184 | AC56: =L56-INDEX($C56:$L56,1,aux!$BA$1) -> -82.03 | AD56: -0.0001244335556 | AE56: =+IF(INDEX($C56:$L56,1,aux!$BA$1)>0,(L56/INDEX($C56:$L56,1,aux!$BA$1))^(1/($L$3-INDEX($C$3:$L$3,1,aux!$BA$1)))-1,"n.d.") -> -1 | AF56: =IF(INDEX($C56:$L56,1,aux!$BA$1)>0,(L56-INDEX($C56:$L56,1,aux!$BA$1))/INDEX($C56:$L56,1,aux!$BA$1),"n.d.") -> -1 | AH56: =X56-INDEX($O56:$X56,1,aux!$BA$1) -> 422.974 | AI56: 0.0004921061548 | AJ56: =+IF(INDEX($O56:$X56,1,aux!$BA$1)>0,(X56/INDEX($O56:$X56,1,aux!$BA$1))^(1/($X$3-INDEX($O$3:$X$3,1,aux!$BA$1)))-1,"n.d.") -> 0.4535732605 | AK56: =IF(INDEX($O56:$X56,1,aux!$BA$1)>0,(X56-INDEX($O56:$X56,1,aux!$BA$1))/INDEX($O56:$X56,1,aux!$BA$1),"n.d.") -> 27.96892151 | CC56: =+IF(ISNA(MATCH('5.1'!A56,AUX_2d_pais!$G$2:$G$40000,0)),0,1) -> 1
A57: 0834 | B57: Christmas, Ilha | C57: 0 | D57: 0 | E57: 0 | F57: 0 | G57: 0 | H57: 0 | I57: 0 | J57: 0 | K57: 0 | L57: 0 | M57: 0 | N57: 0 | O57: 0 | P57: 0 | Q57: 0 | R57: 0 | S57: 0 | T57: 0 | U57: 0 | V57: 0 | W57: 0 | X57: 0 | Y57: 0 | Z57: 0 | AA57: 0 | AC57: =L57-INDEX($C57:$L57,1,aux!$BA$1) -> 0 | AD57: 0 | AE57: =+IF(INDEX($C57:$L57,1,aux!$BA$1)>0,(L57/INDEX($C57:$L57,1,aux!$BA$1))^(1/($L$3-INDEX($C$3:$L$3,1,aux!$BA$1)))-1,"n.d.") -> n.d. | AF57: =IF(INDEX($C57:$L57,1,aux!$BA$1)>0,(L57-INDEX($C57:$L57,1,aux!$BA$1))/INDEX($C57:$L57,1,aux!$BA$1),"n.d.") -> n.d. | AH57: =X57-INDEX($O57:$X57,1,aux!$BA$1) -> 0 | AI57: 0 | AJ57: =+IF(INDEX($O57:$X57,1,aux!$BA$1)>0,(X57/INDEX($O57:$X57,1,aux!$BA$1))^(1/($X$3-INDEX($O$3:$X$3,1,aux!$BA$1)))-1,"n.d.") -> n.d. | AK57: =IF(INDEX($O57:$X57,1,aux!$BA$1)>0,(X57-INDEX($O57:$X57,1,aux!$BA$1))/INDEX($O57:$X57,1,aux!$BA$1),"n.d.") -> n.d. | AM57: 0 | BO57: 0 | CC57: =+IF(ISNA(MATCH('5.1'!A57,AUX_2d_pais!$G$2:$G$40000,0)),0,1) -> 0
A58: 0833 | B58: Cocos (Keeling), Ilhas | C58: 0 | D58: 0 | E58: 0 | F58: 0 | G58: 0 | H58: 0 | I58: 0 | J58: 0 | K58: 0 | L58: 0 | M58: 0 | N58: 0 | O58: 0 | P58: 0 | Q58: 0 | R58: 0 | S58: 0 | T58: 0 | U58: 0 | V58: 0 | W58: 0 | X58: 0 | Y58: 0 | Z58: 0 | AA58: 0 | AC58: =L58-INDEX($C58:$L58,1,aux!$BA$1) -> 0 | AD58: 0 | AE58: =+IF(INDEX($C58:$L58,1,aux!$BA$1)>0,(L58/INDEX($C58:$L58,1,aux!$BA$1))^(1/($L$3-INDEX($C$3:$L$3,1,aux!$BA$1)))-1,"n.d.") -> n.d. | AF58: =IF(INDEX($C58:$L58,1,aux!$BA$1)>0,(L58-INDEX($C58:$L58,1,aux!$BA$1))/INDEX($C58:$L58,1,aux!$BA$1),"n.d.") -> n.d. | AH58: =X58-INDEX($O58:$X58,1,aux!$BA$1) -> 0 | AI58: 0 | AJ58: =+IF(INDEX($O58:$X58,1,aux!$BA$1)>0,(X58/INDEX($O58:$X58,1,aux!$BA$1))^(1/($X$3-INDEX($O$3:$X$3,1,aux!$BA$1)))-1,"n.d.") -> n.d. | AK58: =IF(INDEX($O58:$X58,1,aux!$BA$1)>0,(X58-INDEX($O58:$X58,1,aux!$BA$1))/INDEX($O58:$X58,1,aux!$BA$1),"n.d.") -> n.d. | AM58: 0 | BO58: 0 | CC58: =+IF(ISNA(MATCH('5.1'!A58,AUX_2d_pais!$G$2:$G$40000,0)),0,1) -> 0
A59: 0480 | B59: Colômbia | C59: 10884.791 | D59: 13616.051 | E59: 13808.482 | F59: 2405.703 | G59: 13045.313 | H59: 11031.376 | I59: 22550.515 | J59: 13463.214 | K59: 22397.94 | L59: 22323.445 | M59: 14552.683 | N59: 0.01015470656 | O59: 0.023 | P59: 0 | Q59: 13.103 | R59: 283.027 | S59: 995.582 | T59: 374.199 | U59: 1019.109 | V59: 601.887 | W59: 1868.88 | X59: 1250.856 | Y59: 640.6666 | Z59: 0.0005077735811 | AA59: -13912.0164 | AC59: =L59-INDEX($C59:$L59,1,aux!$BA$1) -> 11438.654 | AD59: 0.01735160781 | AE59: =+IF(INDEX($C59:$L59,1,aux!$BA$1)>0,(L59/INDEX($C59:$L59,1,aux!$BA$1))^(1/($L$3-INDEX($C$3:$L$3,1,aux!$BA$1)))-1,"n.d.") -> 0.0830789735 | AF59: =IF(INDEX($C59:$L59,1,aux!$BA$1)>0,(L59-INDEX($C59:$L59,1,aux!$BA$1))/INDEX($C59:$L59,1,aux!$BA$1),"n.d.") -> 1.050884119 | AH59: =X59-INDEX($O59:$X59,1,aux!$BA$1) -> 1250.833 | AI59: 0.001455272943 | AJ59: =+IF(INDEX($O59:$X59,1,aux!$BA$1)>0,(X59/INDEX($O59:$X59,1,aux!$BA$1))^(1/($X$3-INDEX($O$3:$X$3,1,aux!$BA$1)))-1,"n.d.") -> 2.358647198 | AK59: =IF(INDEX($O59:$X59,1,aux!$BA$1)>0,(X59-INDEX($O59:$X59,1,aux!$BA$1))/INDEX($O59:$X59,1,aux!$BA$1),"n.d.") -> 54384.04348 | CC59: =+IF(ISNA(MATCH('5.1'!A59,AUX_2d_pais!$G$2:$G$40000,0)),0,1) -> 1
A60: 0375 | B60: Comores | C60: 0 | D60: 0 | E60: 0 | F60: 0 | G60: 0 | H60: 0 | I60: 0 | J60: 0 | K60: 0 | L60: 0 | M60: 0 | N60: 0 | O60: 0 | P60: 0 | Q60: 0.02 | R60: 0 | S60: 0 | T60: 0 | U60: 4.639 | V60: 0 | W60: 0 | X60: 0 | Y60: 0.4659 | Z60: 3.692586931e-07 | AA60: 0.4659 | AC60: =L60-INDEX($C60:$L60,1,aux!$BA$1) -> 0 | AD60: 0 | AE60: =+IF(INDEX($C60:$L60,1,aux!$BA$1)>0,(L60/INDEX($C60:$L60,1,aux!$BA$1))^(1/($L$3-INDEX($C$3:$L$3,1,aux!$BA$1)))-1,"n.d.") -> n.d. | AF60: =IF(INDEX($C60:$L60,1,aux!$BA$1)>0,(L60-INDEX($C60:$L60,1,aux!$BA$1))/INDEX($C60:$L60,1,aux!$BA$1),"n.d.") -> n.d. | AH60: =X60-INDEX($O60:$X60,1,aux!$BA$1) -> 0 | AI60: 0 | AJ60: =+IF(INDEX($O60:$X60,1,aux!$BA$1)>0,(X60/INDEX($O60:$X60,1,aux!$BA$1))^(1/($X$3-INDEX($O$3:$X$3,1,aux!$BA$1)))-1,"n.d.") -> n.d. | AK60: =IF(INDEX($O60:$X60,1,aux!$BA$1)>0,(X60-INDEX($O60:$X60,1,aux!$BA$1))/INDEX($O60:$X60,1,aux!$BA$1),"n.d.") -> n.d. | CC60: =+IF(ISNA(MATCH('5.1'!A60,AUX_2d_pais!$G$2:$G$40000,0)),0,1) -> 1
A61: 0318 | B61: Congo | C61: 0 | D61: 0 | E61: 0 | F61: 0 | G61: 0 | H61: 0 | I61: 0 | J61: 0 | K61: 0 | L61: 0 | M61: 0 | N61: 0 | O61: 0.046 | P61: 38.082 | Q61: 0.029 | R61: 15.485 | S61: 180.626 | T61: 15.224 | U61: 5.568 | V61: 3.157 | W61: 6.79 | X61: 27.87 | Y61: 29.2877 | Z61: 2.321257314e-05 | AA61: 29.2877 | AC61: =L61-INDEX($C61:$L61,1,aux!$BA$1) -> 0 | AD61: 0 | AE61: =+IF(INDEX($C61:$L61,1,aux!$BA$1)>0,(L61/INDEX($C61:$L61,1,aux!$BA$1))^(1/($L$3-INDEX($C$3:$L$3,1,aux!$BA$1)))-1,"n.d.") -> n.d. | AF61: =IF(INDEX($C61:$L61,1,aux!$BA$1)>0,(L61-INDEX($C61:$L61,1,aux!$BA$1))/INDEX($C61:$L61,1,aux!$BA$1),"n.d.") -> n.d. | AH61: =X61-INDEX($O61:$X61,1,aux!$BA$1) -> 27.824 | AI61: 3.237163904e-05 | AJ61: =+IF(INDEX($O61:$X61,1,aux!$BA$1)>0,(X61/INDEX($O61:$X61,1,aux!$BA$1))^(1/($X$3-INDEX($O$3:$X$3,1,aux!$BA$1)))-1,"n.d.") -> 1.037760959 | AK61: =IF(INDEX($O61:$X61,1,aux!$BA$1)>0,(X61-INDEX($O61:$X61,1,aux!$BA$1))/INDEX($O61:$X61,1,aux!$BA$1),"n.d.") -> 604.8695652 | CC61: =+IF(ISNA(MATCH('5.1'!A61,AUX_2d_pais!$G$2:$G$40000,0)),0,1) -> 1
A62: 0322 | B62: Congo, República Democrática do | C62: 0 | D62: 0 | E62: 0.224 | F62: 0 | G62: 0 | H62: 0 | I62: 0 | J62: 0 | K62: 0 | L62: 0 | M62: 0.0224 | N62: 1.563048044e-08 | O62: 111.286 | P62: 65.513 | Q62: 209.323 | R62: 103.112 | S62: 123.679 | T62: 82.421 | U62: 37.699 | V62: 72.489 | W62: 62.427 | X62: 84.349 | Y62: 95.2298 | Z62: 7.547635006e-05 | AA62: 95.2074 | AC62: =L62-INDEX($C62:$L62,1,aux!$BA$1) -> 0 | AD62: 0 | AE62: =+IF(INDEX($C62:$L62,1,aux!$BA$1)>0,(L62/INDEX($C62:$L62,1,aux!$BA$1))^(1/($L$3-INDEX($C$3:$L$3,1,aux!$BA$1)))-1,"n.d.") -> n.d. | AF62: =IF(INDEX($C62:$L62,1,aux!$BA$1)>0,(L62-INDEX($C62:$L62,1,aux!$BA$1))/INDEX($C62:$L62,1,aux!$BA$1),"n.d.") -> n.d. | AH62: =X62-INDEX($O62:$X62,1,aux!$BA$1) -> -26.937 | AI62: -3.133966506e-05 | AJ62: =+IF(INDEX($O62:$X62,1,aux!$BA$1)>0,(X62/INDEX($O62:$X62,1,aux!$BA$1))^(1/($X$3-INDEX($O$3:$X$3,1,aux!$BA$1)))-1,"n.d.") -> -0.03032410295 | AK62: =IF(INDEX($O62:$X62,1,aux!$BA$1)>0,(X62-INDEX($O62:$X62,1,aux!$BA$1))/INDEX($O62:$X62,1,aux!$BA$1),"n.d.") -> -0.2420520101 | CC62: =+IF(ISNA(MATCH('5.1'!A62,AUX_2d_pais!$G$2:$G$40000,0)),0,1) -> 1
A63: 0837 | B63: Cook, Ilhas | C63: 0 | D63: 0 | E63: 0 | F63: 0 | G63: 0 | H63: 0 | I63: 0 | J63: 0 | K63: 0 | L63: 0 | M63: 0 | N63: 0 | O63: 0 | P63: 0 | Q63: 0 | R63: 0 | S63: 0 | T63: 0 | U63: 0 | V63: 0 | W63: 0 | X63: 0 | Y63: 0 | Z63: 0 | AA63: 0 | AC63: =L63-INDEX($C63:$L63,1,aux!$BA$1) -> 0 | AD63: 0 | AE63: =+IF(INDEX($C63:$L63,1,aux!$BA$1)>0,(L63/INDEX($C63:$L63,1,aux!$BA$1))^(1/($L$3-INDEX($C$3:$L$3,1,aux!$BA$1)))-1,"n.d.") -> n.d. | AF63: =IF(INDEX($C63:$L63,1,aux!$BA$1)>0,(L63-INDEX($C63:$L63,1,aux!$BA$1))/INDEX($C63:$L63,1,aux!$BA$1),"n.d.") -> n.d. | AH63: =X63-INDEX($O63:$X63,1,aux!$BA$1) -> 0 | AI63: 0 | AJ63: =+IF(INDEX($O63:$X63,1,aux!$BA$1)>0,(X63/INDEX($O63:$X63,1,aux!$BA$1))^(1/($X$3-INDEX($O$3:$X$3,1,aux!$BA$1)))-1,"n.d.") -> n.d. | AK63: =IF(INDEX($O63:$X63,1,aux!$BA$1)>0,(X63-INDEX($O63:$X63,1,aux!$BA$1))/INDEX($O63:$X63,1,aux!$BA$1),"n.d.") -> n.d. | AM63: 0 | BO63: 0 | CC63: =+IF(ISNA(MATCH('5.1'!A63,AUX_2d_pais!$G$2:$G$40000,0)),0,1) -> 0
A64: 0728 | B64: Coreia, República da | C64: 9.439 | D64: 0.462 | E64: 0.688 | F64: 1.092 | G64: 0.506 | H64: 0.507 | I64: 178.936 | J64: 15.238 | K64: 147.779 | L64: 24.479 | M64: 37.9126 | N64: 2.645500682e-05 | O64: 175.549 | P64: 366.625 | Q64: 222.925 | R64: 280.397 | S64: 220.625 | T64: 262.506 | U64: 145.583 | V64: 221.332 | W64: 217.908 | X64: 213.686 | Y64: 232.7136 | Z64: 0.0001844419828 | AA64: 194.801 | AC64: =L64-INDEX($C64:$L64,1,aux!$BA$1) -> 15.04 | AD64: 2.281458828e-05 | AE64: =+IF(INDEX($C64:$L64,1,aux!$BA$1)>0,(L64/INDEX($C64:$L64,1,aux!$BA$1))^(1/($L$3-INDEX($C$3:$L$3,1,aux!$BA$1)))-1,"n.d.") -> 0.1116940941 | AF64: =IF(INDEX($C64:$L64,1,aux!$BA$1)>0,(L64-INDEX($C64:$L64,1,aux!$BA$1))/INDEX($C64:$L64,1,aux!$BA$1),"n.d.") -> 1.59338913 | AH64: =X64-INDEX($O64:$X64,1,aux!$BA$1) -> 38.137 | AI64: 4.437022707e-05 | AJ64: =+IF(INDEX($O64:$X64,1,aux!$BA$1)>0,(X64/INDEX($O64:$X64,1,aux!$BA$1))^(1/($X$3-INDEX($O$3:$X$3,1,aux!$BA$1)))-1,"n.d.") -> 0.02208358207 | AK64: =IF(INDEX($O64:$X64,1,aux!$BA$1)>0,(X64-INDEX($O64:$X64,1,aux!$BA$1))/INDEX($O64:$X64,1,aux!$BA$1),"n.d.") -> 0.2172441882 | CC64: =+IF(ISNA(MATCH('5.1'!A64,AUX_2d_pais!$G$2:$G$40000,0)),0,1) -> 1
A65: 0724 | B65: Coreia, República Popular Democrática da | C65: 0 | D65: 0 | E65: 0 | F65: 0 | G65: 0 | H65: 0 | I65: 0 | J65: 0 | K65: 0 | L65: 0 | M65: 0 | N65: 0 | O65: 0 | P65: 0 | Q65: 0 | R65: 0 | S65: 0 | T65: 0 | U65: 0 | V65: 0 | W65: 0 | X65: 0 | Y65: 0 | Z65: 0 | AA65: 0 | AC65: =L65-INDEX($C65:$L65,1,aux!$BA$1) -> 0 | AD65: 0 | AE65: =+IF(INDEX($C65:$L65,1,aux!$BA$1)>0,(L65/INDEX($C65:$L65,1,aux!$BA$1))^(1/($L$3-INDEX($C$3:$L$3,1,aux!$BA$1)))-1,"n.d.") -> n.d. | AF65: =IF(INDEX($C65:$L65,1,aux!$BA$1)>0,(L65-INDEX($C65:$L65,1,aux!$BA$1))/INDEX($C65:$L65,1,aux!$BA$1),"n.d.") -> n.d. | AH65: =X65-INDEX($O65:$X65,1,aux!$BA$1) -> 0 | AI65: 0 | AJ65: =+IF(INDEX($O65:$X65,1,aux!$BA$1)>0,(X65/INDEX($O65:$X65,1,aux!$BA$1))^(1/($X$3-INDEX($O$3:$X$3,1,aux!$BA$1)))-1,"n.d.") -> n.d. | AK65: =IF(INDEX($O65:$X65,1,aux!$BA$1)>0,(X65-INDEX($O65:$X65,1,aux!$BA$1))/INDEX($O65:$X65,1,aux!$BA$1),"n.d.") -> n.d. | AM65: 0 | BO65: 0 | CC65: =+IF(ISNA(MATCH('5.1'!A65,AUX_2d_pais!$G$2:$G$40000,0)),0,1) -> 0
A66: 0272 | B66: Costa do Marfim | C66: 202.585 | D66: 0 | E66: 0 | F66: 0 | G66: 1321.994 | H66: 314.554 | I66: 0 | J66: 15.558 | K66: 103.731 | L66: 324.6 | M66: 228.3022 | N66: 0.0001593068335 | O66: 0 | P66: 8.4 | Q66: 56.805 | R66: 113.862 | S66: 291.75 | T66: 63.305 | U66: 84.856 | V66: 45.157 | W66: 155.595 | X66: 122.587 | Y66: 94.2317 | Z66: 7.468528524e-05 | AA66: -134.0705 | AC66: =L66-INDEX($C66:$L66,1,aux!$BA$1) -> 122.015 | AD66: 0.0001850878982 | AE66: =+IF(INDEX($C66:$L66,1,aux!$BA$1)>0,(L66/INDEX($C66:$L66,1,aux!$BA$1))^(1/($L$3-INDEX($C$3:$L$3,1,aux!$BA$1)))-1,"n.d.") -> 0.05377775269 | AF66: =IF(INDEX($C66:$L66,1,aux!$BA$1)>0,(L66-INDEX($C66:$L66,1,aux!$BA$1))/INDEX($C66:$L66,1,aux!$BA$1),"n.d.") -> 0.6022903966 | AH66: =X66-INDEX($O66:$X66,1,aux!$BA$1) -> 122.587 | AI66: 0.0001426229915 | AJ66: =+IF(INDEX($O66:$X66,1,aux!$BA$1)>0,(X66/INDEX($O66:$X66,1,aux!$BA$1))^(1/($X$3-INDEX($O$3:$X$3,1,aux!$BA$1)))-1,"n.d.") -> n.d. | AK66: =IF(INDEX($O66:$X66,1,aux!$BA$1)>0,(X66-INDEX($O66:$X66,1,aux!$BA$1))/INDEX($O66:$X66,1,aux!$BA$1),"n.d.") -> n.d. | CC66: =+IF(ISNA(MATCH('5.1'!A66,AUX_2d_pais!$G$2:$G$40000,0)),0,1) -> 1
A67: 0436 | B67: Costa Rica | C67: 48697.357 | D67: 27536.803 | E67: 31524.014 | F67: 13131.225 | G67: 21817.458 | H67: 29505.807 | I67: 54645.51 | J67: 57431.2 | K67: 68183.449 | L67: 68594.092 | M67: 42106.6915 | N67: 0.02938159901 | O67: 0 | P67: 0 | Q67: 0 | R67: 2.076 | S67: 52.592 | T67: 12.697 | U67: 218.157 | V67: 332.849 | W67: 806.475 | X67: 752.874 | Y67: 217.772 | Z67: 0.0001725997083 | AA67: -41888.9195 | AC67: =L67-INDEX($C67:$L67,1,aux!$BA$1) -> 19896.735 | AD67: 0.03018190273 | AE67: =+IF(INDEX($C67:$L67,1,aux!$BA$1)>0,(L67/INDEX($C67:$L67,1,aux!$BA$1))^(1/($L$3-INDEX($C$3:$L$3,1,aux!$BA$1)))-1,"n.d.") -> 0.03879836606 | AF67: =IF(INDEX($C67:$L67,1,aux!$BA$1)>0,(L67-INDEX($C67:$L67,1,aux!$BA$1))/INDEX($C67:$L67,1,aux!$BA$1),"n.d.") -> 0.4085793609 | AH67: =X67-INDEX($O67:$X67,1,aux!$BA$1) -> 752.874 | AI67: 0.0008759260124 | AJ67: =+IF(INDEX($O67:$X67,1,aux!$BA$1)>0,(X67/INDEX($O67:$X67,1,aux!$BA$1))^(1/($X$3-INDEX($O$3:$X$3,1,aux!$BA$1)))-1,"n.d.") -> n.d. | AK67: =IF(INDEX($O67:$X67,1,aux!$BA$1)>0,(X67-INDEX($O67:$X67,1,aux!$BA$1))/INDEX($O67:$X67,1,aux!$BA$1),"n.d.") -> n.d. | CC67: =+IF(ISNA(MATCH('5.1'!A67,AUX_2d_pais!$G$2:$G$40000,0)),0,1) -> 1
A68: 0092 | B68: Croácia | C68: 11.481 | D68: 0 | E68: 0 | F68: 0 | G68: 15.236 | H68: 0 | I68: 1.053 | J68: 1.269 | K68: 140.629 | L68: 6.9 | M68: 17.6568 | N68: 1.232072621e-05 | O68: 46.122 | P68: 41.194 | Q68: 28.024 | R68: 269.095 | S68: 352.424 | T68: 236.65 | U68: 390.736 | V68: 110.854 | W68: 154.804 | X68: 491.541 | Y68: 212.1444 | Z68: 0.0001681394374 | AA68: 194.4876 | AC68: =L68-INDEX($C68:$L68,1,aux!$BA$1) -> -4.581 | AD68: =AC68/$AC$252 -> -6.949044474e-06 | AE68: =+IF(INDEX($C68:$L68,1,aux!$BA$1)>0,(L68/INDEX($C68:$L68,1,aux!$BA$1))^(1/($L$3-INDEX($C$3:$L$3,1,aux!$BA$1)))-1,"n.d.") -> -0.0550040866 | AF68: =IF(INDEX($C68:$L68,1,aux!$BA$1)>0,(L68-INDEX($C68:$L68,1,aux!$BA$1))/INDEX($C68:$L68,1,aux!$BA$1),"n.d.") -> -0.3990070551 | AH68: =X68-INDEX($O68:$X68,1,aux!$BA$1) -> 445.419 | AI68: =AH68/$AH$252 -> 0.0005182196337 | AJ68: =+IF(INDEX($O68:$X68,1,aux!$BA$1)>0,(X68/INDEX($O68:$X68,1,aux!$BA$1))^(1/($X$3-INDEX($O$3:$X$3,1,aux!$BA$1)))-1,"n.d.") -> 0.3007190864 | AK68: =IF(INDEX($O68:$X68,1,aux!$BA$1)>0,(X68-INDEX($O68:$X68,1,aux!$BA$1))/INDEX($O68:$X68,1,aux!$BA$1),"n.d.") -> 9.657408612 | CC68: =+IF(ISNA(MATCH('5.1'!A68,AUX_2d_pais!$G$2:$G$40000,0)),0,1) -> 1
A69: 0448 | B69: Cuba | C69: 0 | D69: 0 | E69: 0 | F69: 0 | G69: 0 | H69: 0 | I69: 0 | J69: 0 | K69: 0 | L69: 0 | M69: 0 | N69: 0 | O69: 0 | P69: 0 | Q69: 0 | R69: 0 | S69: 0.352 | T69: 2.723 | U69: 8.972 | V69: 3.422 | W69: 2.006 | X69: 90.751 | Y69: 10.8226 | Z69: 8.57767575e-06 | AA69: 10.8226 | AC69: =L69-INDEX($C69:$L69,1,aux!$BA$1) -> 0 | AD69: 0 | AE69: =+IF(INDEX($C69:$L69,1,aux!$BA$1)>0,(L69/INDEX($C69:$L69,1,aux!$BA$1))^(1/($L$3-INDEX($C$3:$L$3,1,aux!$BA$1)))-1,"n.d.") -> n.d. | AF69: =IF(INDEX($C69:$L69,1,aux!$BA$1)>0,(L69-INDEX($C69:$L69,1,aux!$BA$1))/INDEX($C69:$L69,1,aux!$BA$1),"n.d.") -> n.d. | AH69: =X69-INDEX($O69:$X69,1,aux!$BA$1) -> 90.751 | AI69: 0.000105583619 | AJ69: =+IF(INDEX($O69:$X69,1,aux!$BA$1)>0,(X69/INDEX($O69:$X69,1,aux!$BA$1))^(1/($X$3-INDEX($O$3:$X$3,1,aux!$BA$1)))-1,"n.d.") -> n.d. | AK69: =IF(INDEX($O69:$X69,1,aux!$BA$1)>0,(X69-INDEX($O69:$X69,1,aux!$BA$1))/INDEX($O69:$X69,1,aux!$BA$1),"n.d.") -> n.d. | CC69: =+IF(ISNA(MATCH('5.1'!A69,AUX_2d_pais!$G$2:$G$40000,0)),0,1) -> 1
A70: 0475 | B70: Curaçau | C70: 0 | D70: 0 | E70: 0 | F70: 0 | G70: 0 | H70: 0 | I70: 0 | J70: 0 | K70: 0 | L70: 0 | M70: 0 | N70: 0 | O70: 0 | P70: 0 | Q70: 0.208 | R70: 1.868 | S70: 0.109 | T70: 0 | U70: 0 | V70: 4.024 | W70: 21.505 | X70: 23.543 | Y70: 5.1257 | Z70: 4.062479681e-06 | AA70: 5.1257 | AC70: =L70-INDEX($C70:$L70,1,aux!$BA$1) -> 0 | AD70: 0 | AE70: =+IF(INDEX($C70:$L70,1,aux!$BA$1)>0,(L70/INDEX($C70:$L70,1,aux!$BA$1))^(1/($L$3-INDEX($C$3:$L$3,1,aux!$BA$1)))-1,"n.d.") -> n.d. | AF70: =IF(INDEX($C70:$L70,1,aux!$BA$1)>0,(L70-INDEX($C70:$L70,1,aux!$BA$1))/INDEX($C70:$L70,1,aux!$BA$1),"n.d.") -> n.d. | AH70: =X70-INDEX($O70:$X70,1,aux!$BA$1) -> 23.543 | AI70: 2.73909394e-05 | AJ70: =+IF(INDEX($O70:$X70,1,aux!$BA$1)>0,(X70/INDEX($O70:$X70,1,aux!$BA$1))^(1/($X$3-INDEX($O$3:$X$3,1,aux!$BA$1)))-1,"n.d.") -> n.d. | AK70: =IF(INDEX($O70:$X70,1,aux!$BA$1)>0,(X70-INDEX($O70:$X70,1,aux!$BA$1))/INDEX($O70:$X70,1,aux!$BA$1),"n.d.") -> n.d. | CC70: =+IF(ISNA(MATCH('5.1'!A70,AUX_2d_pais!$G$2:$G$40000,0)),0,1) -> 1
A71: 0008 | B71: Dinamarca | C71: 11674.062 | D71: 8034.069 | E71: 10264.406 | F71: 8213.952 | G71: 7199.098 | H71: 7178.108 | I71: 1751.767 | J71: 1852.839 | K71: 2344.045 | L71: 863.418 | M71: 5937.5764 | N71: 0.004143177311 | O71: 3257.875 | P71: 3710.91 | Q71: 4267.81 | R71: 3898.874 | S71: 4743.65 | T71: 6445.814 | U71: 7246.576 | V71: 7358.97 | W71: 10032.098 | X71: 11132.703 | Y71: 6209.528 | Z71: 0.004921490007 | AA71: 271.9516 | AC71: =L71-INDEX($C71:$L71,1,aux!$BA$1) -> -10810.644 | AD71: -0.01639896222 | AE71: =+IF(INDEX($C71:$L71,1,aux!$BA$1)>0,(L71/INDEX($C71:$L71,1,aux!$BA$1))^(1/($L$3-INDEX($C$3:$L$3,1,aux!$BA$1)))-1,"n.d.") -> -0.2512562096 | AF71: =IF(INDEX($C71:$L71,1,aux!$BA$1)>0,(L71-INDEX($C71:$L71,1,aux!$BA$1))/INDEX($C71:$L71,1,aux!$BA$1),"n.d.") -> -0.9260396253 | AH71: =X71-INDEX($O71:$X71,1,aux!$BA$1) -> 7874.828 | AI71: 0.009161913797 | AJ71: =+IF(INDEX($O71:$X71,1,aux!$BA$1)>0,(X71/INDEX($O71:$X71,1,aux!$BA$1))^(1/($X$3-INDEX($O$3:$X$3,1,aux!$BA$1)))-1,"n.d.") -> 0.1462945963 | AK71: =IF(INDEX($O71:$X71,1,aux!$BA$1)>0,(X71-INDEX($O71:$X71,1,aux!$BA$1))/INDEX($O71:$X71,1,aux!$BA$1),"n.d.") -> 2.417167018 | CC71: =+IF(ISNA(MATCH('5.1'!A71,AUX_2d_pais!$G$2:$G$40000,0)),0,1) -> 1
A72: 0460 | B72: Domínica | C72: 0 | D72: 0 | E72: 0 | F72: 0 | G72: 0 | H72: 0 | I72: 0 | J72: 0 | K72: 0 | L72: 0 | M72: 0 | N72: 0 | O72: 0 | P72: 0 | Q72: 0 | R72: 0 | S72: 0 | T72: 0 | U72: 0 | V72: 0 | W72: 0 | X72: 0 | Y72: 0 | Z72: 0 | AA72: 0 | AC72: =L72-INDEX($C72:$L72,1,aux!$BA$1) -> 0 | AD72: 0 | AE72: =+IF(INDEX($C72:$L72,1,aux!$BA$1)>0,(L72/INDEX($C72:$L72,1,aux!$BA$1))^(1/($L$3-INDEX($C$3:$L$3,1,aux!$BA$1)))-1,"n.d.") -> n.d. | AF72: =IF(INDEX($C72:$L72,1,aux!$BA$1)>0,(L72-INDEX($C72:$L72,1,aux!$BA$1))/INDEX($C72:$L72,1,aux!$BA$1),"n.d.") -> n.d. | AH72: =X72-INDEX($O72:$X72,1,aux!$BA$1) -> 0 | AI72: 0 | AJ72: =+IF(INDEX($O72:$X72,1,aux!$BA$1)>0,(X72/INDEX($O72:$X72,1,aux!$BA$1))^(1/($X$3-INDEX($O$3:$X$3,1,aux!$BA$1)))-1,"n.d.") -> n.d. | AK72: =IF(INDEX($O72:$X72,1,aux!$BA$1)>0,(X72-INDEX($O72:$X72,1,aux!$BA$1))/INDEX($O72:$X72,1,aux!$BA$1),"n.d.") -> n.d. | AM72: =SUM(A72:AA72) -> 0 | BO72: =SUM(C72:L72,O72:X72) -> 0 | CC72: =+IF(ISNA(MATCH('5.1'!A72,AUX_2d_pais!$G$2:$G$40000,0)),0,1) -> 0
A73: 0456 | B73: Dominicana, República | C73: 18.119 | D73: 442.762 | E73: 2918.22 | F73: 1585.257 | G73: 832.26 | H73: 35.289 | I73: 102.81 | J73: 471.035 | K73: 246.069 | L73: 174.353 | M73: 682.6174 | N73: 0.0004763231214 | O73: 0 | P73: 0 | Q73: 3.805 | R73: 0 | S73: 0 | T73: 24.992 | U73: 45.316 | V73: 105.517 | W73: 13.688 | X73: 21.309 | Y73: 21.4627 | Z73: 1.701070735e-05 | AA73: -661.1547 | AC73: =L73-INDEX($C73:$L73,1,aux!$BA$1) -> 156.234 | AD73: 0.0002369956373 | AE73: =+IF(INDEX($C73:$L73,1,aux!$BA$1)>0,(L73/INDEX($C73:$L73,1,aux!$BA$1))^(1/($L$3-INDEX($C$3:$L$3,1,aux!$BA$1)))-1,"n.d.") -> 0.2860416151 | AF73: =IF(INDEX($C73:$L73,1,aux!$BA$1)>0,(L73-INDEX($C73:$L73,1,aux!$BA$1))/INDEX($C73:$L73,1,aux!$BA$1),"n.d.") -> 8.622661295 | AH73: =X73-INDEX($O73:$X73,1,aux!$BA$1) -> 21.309 | AI73: 2.479180766e-05 | AJ73: =+IF(INDEX($O73:$X73,1,aux!$BA$1)>0,(X73/INDEX($O73:$X73,1,aux!$BA$1))^(1/($X$3-INDEX($O$3:$X$3,1,aux!$BA$1)))-1,"n.d.") -> n.d. | AK73: =IF(INDEX($O73:$X73,1,aux!$BA$1)>0,(X73-INDEX($O73:$X73,1,aux!$BA$1))/INDEX($O73:$X73,1,aux!$BA$1),"n.d.") -> n.d. | CC73: =+IF(ISNA(MATCH('5.1'!A73,AUX_2d_pais!$G$2:$G$40000,0)),0,1) -> 1
A74: 0220 | B74: Egito | C74: 125.898 | D74: 380.165 | E74: 741.189 | F74: 1919.239 | G74: 1152.828 | H74: 665.331 | I74: 617.003 | J74: 1233.862 | K74: 1376.344 | L74: 712.997 | M74: 892.4856 | N74: 0.0006227669068 | O74: 243.597 | P74: 247.378 | Q74: 191.313 | R74: 214.206 | S74: 170.339 | T74: 597.261 | U74: 243.227 | V74: 405.265 | W74: 193.576 | X74: 497.703 | Y74: 300.3865 | Z74: 0.0002380775411 | AA74: -592.0991 | AC74: =L74-INDEX($C74:$L74,1,aux!$BA$1) -> 587.099 | AD74: 0.0008905865666 | AE74: =+IF(INDEX($C74:$L74,1,aux!$BA$1)>0,(L74/INDEX($C74:$L74,1,aux!$BA$1))^(1/($L$3-INDEX($C$3:$L$3,1,aux!$BA$1)))-1,"n.d.") -> 0.2124792615 | AF74: =IF(INDEX($C74:$L74,1,aux!$BA$1)>0,(L74-INDEX($C74:$L74,1,aux!$BA$1))/INDEX($C74:$L74,1,aux!$BA$1),"n.d.") -> 4.663290918 | AH74: =X74-INDEX($O74:$X74,1,aux!$BA$1) -> 254.106 | AI74: 0.0002956378561 | AJ74: =+IF(INDEX($O74:$X74,1,aux!$BA$1)>0,(X74/INDEX($O74:$X74,1,aux!$BA$1))^(1/($X$3-INDEX($O$3:$X$3,1,aux!$BA$1)))-1,"n.d.") -> 0.08262385291 | AK74: =IF(INDEX($O74:$X74,1,aux!$BA$1)>0,(X74-INDEX($O74:$X74,1,aux!$BA$1))/INDEX($O74:$X74,1,aux!$BA$1),"n.d.") -> 1.043140925 | CC74: =+IF(ISNA(MATCH('5.1'!A74,AUX_2d_pais!$G$2:$G$40000,0)),0,1) -> 1
A75: 0428 | B75: El Salvador | C75: 0 | D75: 0 | E75: 0 | F75: 2.737 | G75: 16.175 | H75: 85.082 | I75: 41.771 | J75: 49.489 | K75: 98.643 | L75: 94.355 | M75: 38.8252 | N75: 2.709180934e-05 | O75: 0 | P75: 0 | Q75: 0 | R75: 0 | S75: 0 | T75: 4.794 | U75: 0 | V75: 60.302 | W75: 129.766 | X75: 88.348 | Y75: 28.321 | Z75: 2.244639504e-05 | AA75: -10.5042 | AC75: =L75-INDEX($C75:$L75,1,aux!$BA$1) -> 94.355 | AD75: 0.000143129686 | AE75: =+IF(INDEX($C75:$L75,1,aux!$BA$1)>0,(L75/INDEX($C75:$L75,1,aux!$BA$1))^(1/($L$3-INDEX($C$3:$L$3,1,aux!$BA$1)))-1,"n.d.") -> n.d. | AF75: =IF(INDEX($C75:$L75,1,aux!$BA$1)>0,(L75-INDEX($C75:$L75,1,aux!$BA$1))/INDEX($C75:$L75,1,aux!$BA$1),"n.d.") -> n.d. | AH75: =X75-INDEX($O75:$X75,1,aux!$BA$1) -> 88.348 | AI75: 0.0001027878654 | AJ75: =+IF(INDEX($O75:$X75,1,aux!$BA$1)>0,(X75/INDEX($O75:$X75,1,aux!$BA$1))^(1/($X$3-INDEX($O$3:$X$3,1,aux!$BA$1)))-1,"n.d.") -> n.d. | AK75: =IF(INDEX($O75:$X75,1,aux!$BA$1)>0,(X75-INDEX($O75:$X75,1,aux!$BA$1))/INDEX($O75:$X75,1,aux!$BA$1),"n.d.") -> n.d. | CC75: =+IF(ISNA(MATCH('5.1'!A75,AUX_2d_pais!$G$2:$G$40000,0)),0,1) -> 1
A76: 0647 | B76: Emirados Árabes Unidos | C76: 0 | D76: 71.592 | E76: 41.318 | F76: 53.7 | G76: 23.121 | H76: 0 | I76: 41.292 | J76: 123.171 | K76: 116.305 | L76: 152.519 | M76: 62.3018 | N76: 4.347352974e-05 | O76: 55.805 | P76: 165.674 | Q76: 333.882 | R76: 1309.226 | S76: 2395.511 | T76: 2745.778 | U76: 2579.836 | V76: 957.2 | W76: 2176.603 | X76: 2322.957 | Y76: 1504.2472 | Z76: 0.001192222269 | AA76: 1441.9454 | AC76: =L76-INDEX($C76:$L76,1,aux!$BA$1) -> 152.519 | AD76: 0.0002313602519 | AE76: =+IF(INDEX($C76:$L76,1,aux!$BA$1)>0,(L76/INDEX($C76:$L76,1,aux!$BA$1))^(1/($L$3-INDEX($C$3:$L$3,1,aux!$BA$1)))-1,"n.d.") -> n.d. | AF76: =IF(INDEX($C76:$L76,1,aux!$BA$1)>0,(L76-INDEX($C76:$L76,1,aux!$BA$1))/INDEX($C76:$L76,1,aux!$BA$1),"n.d.") -> n.d. | AH76: =X76-INDEX($O76:$X76,1,aux!$BA$1) -> 2267.152 | AI76: 0.002637702206 | AJ76: =+IF(INDEX($O76:$X76,1,aux!$BA$1)>0,(X76/INDEX($O76:$X76,1,aux!$BA$1))^(1/($X$3-INDEX($O$3:$X$3,1,aux!$BA$1)))-1,"n.d.") -> 0.513316559 | AK76: =IF(INDEX($O76:$X76,1,aux!$BA$1)>0,(X76-INDEX($O76:$X76,1,aux!$BA$1))/INDEX($O76:$X76,1,aux!$BA$1),"n.d.") -> 40.62632381 | CC76: =+IF(ISNA(MATCH('5.1'!A76,AUX_2d_pais!$G$2:$G$40000,0)),0,1) -> 1
A77: 0500 | B77: Equador | C77: 14454.225 | D77: 6950.444 | E77: 4760.327 | F77: 3416.118 | G77: 3334.236 | H77: 2918.403 | I77: 3421.289 | J77: 4726.705 | K77: 5598.429 | L77: 8661.276 | M77: 5824.1452 | N77: 0.004064026233 | O77: 0 | P77: 0 | Q77: 19.387 | R77: 48.458 | S77: 51.31 | T77: 5.95 | U77: 24.665 | V77: 0 | W77: 10.382 | X77: 0 | Y77: 16.0152 | Z77: 1.269317841e-05 | AA77: -5808.13 | AC77: =L77-INDEX($C77:$L77,1,aux!$BA$1) -> -5792.949 | AD77: -0.008787483134 | AE77: =+IF(INDEX($C77:$L77,1,aux!$BA$1)>0,(L77/INDEX($C77:$L77,1,aux!$BA$1))^(1/($L$3-INDEX($C$3:$L$3,1,aux!$BA$1)))-1,"n.d.") -> -0.05531405952 | AF77: =IF(INDEX($C77:$L77,1,aux!$BA$1)>0,(L77-INDEX($C77:$L77,1,aux!$BA$1))/INDEX($C77:$L77,1,aux!$BA$1),"n.d.") -> -0.4007789418 | AH77: =X77-INDEX($O77:$X77,1,aux!$BA$1) -> 0 | AI77: 0 | AJ77: =+IF(INDEX($O77:$X77,1,aux!$BA$1)>0,(X77/INDEX($O77:$X77,1,aux!$BA$1))^(1/($X$3-INDEX($O$3:$X$3,1,aux!$BA$1)))-1,"n.d.") -> n.d. | AK77: =IF(INDEX($O77:$X77,1,aux!$BA$1)>0,(X77-INDEX($O77:$X77,1,aux!$BA$1))/INDEX($O77:$X77,1,aux!$BA$1),"n.d.") -> n.d. | CC77: =+IF(ISNA(MATCH('5.1'!A77,AUX_2d_pais!$G$2:$G$40000,0)),0,1) -> 1
A78: 0336 | B78: Eritreia | C78: 0 | D78: 0 | E78: 0 | F78: 0 | G78: 0 | H78: 0 | I78: 0 | J78: 0 | K78: 0 | L78: 0 | M78: 0 | N78: 0 | O78: 0 | P78: 0 | Q78: 0 | R78: 0 | S78: 0 | T78: 0 | U78: 0 | V78: 0 | W78: 0 | X78: 0 | Y78: 0 | Z78: 0 | AA78: 0 | AC78: =L78-INDEX($C78:$L78,1,aux!$BA$1) -> 0 | AD78: 0 | AE78: =+IF(INDEX($C78:$L78,1,aux!$BA$1)>0,(L78/INDEX($C78:$L78,1,aux!$BA$1))^(1/($L$3-INDEX($C$3:$L$3,1,aux!$BA$1)))-1,"n.d.") -> n.d. | AF78: =IF(INDEX($C78:$L78,1,aux!$BA$1)>0,(L78-INDEX($C78:$L78,1,aux!$BA$1))/INDEX($C78:$L78,1,aux!$BA$1),"n.d.") -> n.d. | AH78: =X78-INDEX($O78:$X78,1,aux!$BA$1) -> 0 | AI78: 0 | AJ78: =+IF(INDEX($O78:$X78,1,aux!$BA$1)>0,(X78/INDEX($O78:$X78,1,aux!$BA$1))^(1/($X$3-INDEX($O$3:$X$3,1,aux!$BA$1)))-1,"n.d.") -> n.d. | AK78: =IF(INDEX($O78:$X78,1,aux!$BA$1)>0,(X78-INDEX($O78:$X78,1,aux!$BA$1))/INDEX($O78:$X78,1,aux!$BA$1),"n.d.") -> n.d. | AM78: 0 | BO78: 0 | CC78: =+IF(ISNA(MATCH('5.1'!A78,AUX_2d_pais!$G$2:$G$40000,0)),0,1) -> 0
A79: 0063 | B79: Eslováquia | C79: 0 | D79: 14.425 | E79: 22.61 | F79: 15.736 | G79: 52.978 | H79: 52.1 | I79: 55.844 | J79: 62.679 | K79: 53.598 | L79: 122.249 | M79: 45.2219 | N79: 3.155535819e-05 | O79: 167.808 | P79: 969.703 | Q79: 1158.756 | R79: 1133.125 | S79: 1133.039 | T79: 916.55 | U79: 1216.547 | V79: 1251.719 | W79: 961.404 | X79: 605.453 | Y79: 951.4104 | Z79: 0.0007540600148 | AA79: 906.1885 | AC79: =L79-INDEX($C79:$L79,1,aux!$BA$1) -> 122.249 | AD79: 0.0001854428592 | AE79: =+IF(INDEX($C79:$L79,1,aux!$BA$1)>0,(L79/INDEX($C79:$L79,1,aux!$BA$1))^(1/($L$3-INDEX($C$3:$L$3,1,aux!$BA$1)))-1,"n.d.") -> n.d. | AF79: =IF(INDEX($C79:$L79,1,aux!$BA$1)>0,(L79-INDEX($C79:$L79,1,aux!$BA$1))/INDEX($C79:$L79,1,aux!$BA$1),"n.d.") -> n.d. | AH79: =X79-INDEX($O79:$X79,1,aux!$BA$1) -> 437.645 | AI79: 0.0005091750275 | AJ79: =+IF(INDEX($O79:$X79,1,aux!$BA$1)>0,(X79/INDEX($O79:$X79,1,aux!$BA$1))^(1/($X$3-INDEX($O$3:$X$3,1,aux!$BA$1)))-1,"n.d.") -> 0.1532371962 | AK79: =IF(INDEX($O79:$X79,1,aux!$BA$1)>0,(X79-INDEX($O79:$X79,1,aux!$BA$1))/INDEX($O79:$X79,1,aux!$BA$1),"n.d.") -> 2.608010345 | CC79: =+IF(ISNA(MATCH('5.1'!A79,AUX_2d_pais!$G$2:$G$40000,0)),0,1) -> 1
A80: 0091 | B80: Eslovénia | C80: 0 | D80: 306.507 | E80: 0 | F80: 0 | G80: 0 | H80: 0 | I80: 0 | J80: 121.158 | K80: 105.931 | L80: 189.651 | M80: 72.3247 | N80: 5.046740217e-05 | O80: 193.293 | P80: 138.244 | Q80: 184.834 | R80: 187.887 | S80: 211.812 | T80: 177.551 | U80: 79.253 | V80: 81.293 | W80: 132.18 | X80: 478.089 | Y80: 186.4436 | Z80: 0.0001477697362 | AA80: 114.1189 | AC80: =L80-INDEX($C80:$L80,1,aux!$BA$1) -> 189.651 | AD80: 0.0002876868006 | AE80: =+IF(INDEX($C80:$L80,1,aux!$BA$1)>0,(L80/INDEX($C80:$L80,1,aux!$BA$1))^(1/($L$3-INDEX($C$3:$L$3,1,aux!$BA$1)))-1,"n.d.") -> n.d. | AF80: =IF(INDEX($C80:$L80,1,aux!$BA$1)>0,(L80-INDEX($C80:$L80,1,aux!$BA$1))/INDEX($C80:$L80,1,aux!$BA$1),"n.d.") -> n.d. | AH80: =X80-INDEX($O80:$X80,1,aux!$BA$1) -> 284.796 | AI80: 0.0003313439229 | AJ80: =+IF(INDEX($O80:$X80,1,aux!$BA$1)>0,(X80/INDEX($O80:$X80,1,aux!$BA$1))^(1/($X$3-INDEX($O$3:$X$3,1,aux!$BA$1)))-1,"n.d.") -> 0.1058575327 | AK80: =IF(INDEX($O80:$X80,1,aux!$BA$1)>0,(X80-INDEX($O80:$X80,1,aux!$BA$1))/INDEX($O80:$X80,1,aux!$BA$1),"n.d.") -> 1.473390138 | CC80: =+IF(ISNA(MATCH('5.1'!A80,AUX_2d_pais!$G$2:$G$40000,0)),0,1) -> 1
A81: 0011 | B81: Espanha | C81: 557042.861 | D81: 570693.348 | E81: 646251.491 | F81: 609122.588 | G81: 645743.875 | H81: 781205.227 | I81: 833000.364 | J81: 898467.869 | K81: 902501.072 | L81: 954236.493 | M81: 739826.5188 | N81: 0.5162430326 | O81: 264262.612 | P81: 273808.533 | Q81: 285510.232 | R81: 307799.522 | S81: 349293.472 | T81: 366518.498 | U81: 448962.411 | V81: 449950.942 | W81: 494314.358 | X81: 563307.839 | Y81: 380372.8419 | Z81: 0.3014723728 | AA81: -359453.6769 | AC81: =L81-INDEX($C81:$L81,1,aux!$BA$1) -> 397193.632 | AD81: 0.6025139082 | AE81: =+IF(INDEX($C81:$L81,1,aux!$BA$1)>0,(L81/INDEX($C81:$L81,1,aux!$BA$1))^(1/($L$3-INDEX($C$3:$L$3,1,aux!$BA$1)))-1,"n.d.") -> 0.06163238094 | AF81: =IF(INDEX($C81:$L81,1,aux!$BA$1)>0,(L81-INDEX($C81:$L81,1,aux!$BA$1))/INDEX($C81:$L81,1,aux!$BA$1),"n.d.") -> 0.7130396237 | AH81: =X81-INDEX($O81:$X81,1,aux!$BA$1) -> 299045.227 | AI81: 0.3479220868 | AJ81: =+IF(INDEX($O81:$X81,1,aux!$BA$1)>0,(X81/INDEX($O81:$X81,1,aux!$BA$1))^(1/($X$3-INDEX($O$3:$X$3,1,aux!$BA$1)))-1,"n.d.") -> 0.08773559675 | AK81: =IF(INDEX($O81:$X81,1,aux!$BA$1)>0,(X81-INDEX($O81:$X81,1,aux!$BA$1))/INDEX($O81:$X81,1,aux!$BA$1),"n.d.") -> 1.1316214 | CC81: =+IF(ISNA(MATCH('5.1'!A81,AUX_2d_pais!$G$2:$G$40000,0)),0,1) -> 1
A82: 0400 | B82: Estados Unidos | C82: 7749.379 | D82: 6448.23 | E82: 12536.409 | F82: 19039.174 | G82: 12214.649 | H82: 10851.235 | I82: 15238.947 | J82: 12603.684 | K82: 15198.731 | L82: 12573.499 | M82: 12445.3937 | N82: 0.008684262624 | O82: 6247.637 | P82: 7663.846 | Q82: 8194.536 | R82: 10033.298 | S82: 12847.405 | T82: 14290.534 | U82: 16767.166 | V82: 18272.741 | W82: 24885.813 | X82: 24966.271 | Y82: 14416.9247 | Z82: 0.01142643222 | AA82: 1971.531 | AC82: =L82-INDEX($C82:$L82,1,aux!$BA$1) -> 4824.12 | AD82: 0.007317839867 | AE82: =+IF(INDEX($C82:$L82,1,aux!$BA$1)>0,(L82/INDEX($C82:$L82,1,aux!$BA$1))^(1/($L$3-INDEX($C$3:$L$3,1,aux!$BA$1)))-1,"n.d.") -> 0.05524757091 | AF82: =IF(INDEX($C82:$L82,1,aux!$BA$1)>0,(L82-INDEX($C82:$L82,1,aux!$BA$1))/INDEX($C82:$L82,1,aux!$BA$1),"n.d.") -> 0.6225169785 | AH82: =X82-INDEX($O82:$X82,1,aux!$BA$1) -> 18718.634 | AI82: 0.02177806437 | AJ82: =+IF(INDEX($O82:$X82,1,aux!$BA$1)>0,(X82/INDEX($O82:$X82,1,aux!$BA$1))^(1/($X$3-INDEX($O$3:$X$3,1,aux!$BA$1)))-1,"n.d.") -> 0.1664030717 | AK82: =IF(INDEX($O82:$X82,1,aux!$BA$1)>0,(X82-INDEX($O82:$X82,1,aux!$BA$1))/INDEX($O82:$X82,1,aux!$BA$1),"n.d.") -> 2.996114211 | CC82: =+IF(ISNA(MATCH('5.1'!A82,AUX_2d_pais!$G$2:$G$40000,0)),0,1) -> 1
A83: 0053 | B83: Estónia | C83: 139.755 | D83: 218.701 | E83: 470.781 | F83: 523.612 | G83: 966.122 | H83: 670.187 | I83: 131.044 | J83: 420.459 | K83: 368.227 | L83: 961.795 | M83: 487.0683 | N83: 0.0003398710507 | O83: 656.495 | P83: 545.535 | Q83: 845.834 | R83: 705.612 | S83: 649.07 | T83: 932.414 | U83: 1511.494 | V83: 1415.001 | W83: 1224.256 | X83: 871.084 | Y83: 935.6795 | Z83: 0.0007415921643 | AA83: 448.6112 | AC83: =L83-INDEX($C83:$L83,1,aux!$BA$1) -> 822.04 | AD83: 0.00124697501 | AE83: =+IF(INDEX($C83:$L83,1,aux!$BA$1)>0,(L83/INDEX($C83:$L83,1,aux!$BA$1))^(1/($L$3-INDEX($C$3:$L$3,1,aux!$BA$1)))-1,"n.d.") -> 0.2390232682 | AF83: =IF(INDEX($C83:$L83,1,aux!$BA$1)>0,(L83-INDEX($C83:$L83,1,aux!$BA$1))/INDEX($C83:$L83,1,aux!$BA$1),"n.d.") -> 5.882007799 | AH83: =X83-INDEX($O83:$X83,1,aux!$BA$1) -> 214.589 | AI83: 0.0002496620777 | AJ83: =+IF(INDEX($O83:$X83,1,aux!$BA$1)>0,(X83/INDEX($O83:$X83,1,aux!$BA$1))^(1/($X$3-INDEX($O$3:$X$3,1,aux!$BA$1)))-1,"n.d.") -> 0.03192378755 | AK83: =IF(INDEX($O83:$X83,1,aux!$BA$1)>0,(X83-INDEX($O83:$X83,1,aux!$BA$1))/INDEX($O83:$X83,1,aux!$BA$1),"n.d.") -> 0.3268707302 | CC83: =+IF(ISNA(MATCH('5.1'!A83,AUX_2d_pais!$G$2:$G$40000,0)),0,1) -> 1
A84: 0334 | B84: Etiópia | C84: 0 | D84: 1447.741 | E84: 2347.018 | F84: 5069.63 | G84: 2365.694 | H84: 3404.507 | I84: 5057.259 | J84: 4454.097 | K84: 4915.387 | L84: 5144.267 | M84: 3420.56 | N84: 0.002386830186 | O84: 0 | P84: 2.36 | Q84: 2.445 | R84: 14.596 | S84: 186.823 | T84: 308.657 | U84: 119.968 | V84: 79.387 | W84: 24.768 | X84: 1.739 | Y84: 74.0743 | Z84: 5.870912044e-05 | AA84: -3346.4857 | AC84: =L84-INDEX($C84:$L84,1,aux!$BA$1) -> 5144.267 | AD84: 0.007803479627 | AE84: =+IF(INDEX($C84:$L84,1,aux!$BA$1)>0,(L84/INDEX($C84:$L84,1,aux!$BA$1))^(1/($L$3-INDEX($C$3:$L$3,1,aux!$BA$1)))-1,"n.d.") -> n.d. | AF84: =IF(INDEX($C84:$L84,1,aux!$BA$1)>0,(L84-INDEX($C84:$L84,1,aux!$BA$1))/INDEX($C84:$L84,1,aux!$BA$1),"n.d.") -> n.d. | AH84: =X84-INDEX($O84:$X84,1,aux!$BA$1) -> 1.739 | AI84: 2.02322744e-06 | AJ84: =+IF(INDEX($O84:$X84,1,aux!$BA$1)>0,(X84/INDEX($O84:$X84,1,aux!$BA$1))^(1/($X$3-INDEX($O$3:$X$3,1,aux!$BA$1)))-1,"n.d.") -> n.d. | AK84: =IF(INDEX($O84:$X84,1,aux!$BA$1)>0,(X84-INDEX($O84:$X84,1,aux!$BA$1))/INDEX($O84:$X84,1,aux!$BA$1),"n.d.") -> n.d. | CC84: =+IF(ISNA(MATCH('5.1'!A84,AUX_2d_pais!$G$2:$G$40000,0)),0,1) -> 1
A85: 0529 | B85: Falkland Ilhas (Malvinas) | C85: 0 | D85: 0 | E85: 0 | F85: 0 | G85: 0 | H85: 0 | I85: 0 | J85: 0 | K85: 0 | L85: 0 | M85: 0 | N85: 0 | O85: 0 | P85: 0 | Q85: 0 | R85: 0 | S85: 0 | T85: 0 | U85: 0 | V85: 0 | W85: 0 | X85: 0 | Y85: 0 | Z85: 0 | AA85: 0 | AC85: =L85-INDEX($C85:$L85,1,aux!$BA$1) -> 0 | AD85: 0 | AE85: =+IF(INDEX($C85:$L85,1,aux!$BA$1)>0,(L85/INDEX($C85:$L85,1,aux!$BA$1))^(1/($L$3-INDEX($C$3:$L$3,1,aux!$BA$1)))-1,"n.d.") -> n.d. | AF85: =IF(INDEX($C85:$L85,1,aux!$BA$1)>0,(L85-INDEX($C85:$L85,1,aux!$BA$1))/INDEX($C85:$L85,1,aux!$BA$1),"n.d.") -> n.d. | AH85: =X85-INDEX($O85:$X85,1,aux!$BA$1) -> 0 | AI85: 0 | AJ85: =+IF(INDEX($O85:$X85,1,aux!$BA$1)>0,(X85/INDEX($O85:$X85,1,aux!$BA$1))^(1/($X$3-INDEX($O$3:$X$3,1,aux!$BA$1)))-1,"n.d.") -> n.d. | AK85: =IF(INDEX($O85:$X85,1,aux!$BA$1)>0,(X85-INDEX($O85:$X85,1,aux!$BA$1))/INDEX($O85:$X85,1,aux!$BA$1),"n.d.") -> n.d. | AM85: 0 | BO85: 0 | CC85: =+IF(ISNA(MATCH('5.1'!A85,AUX_2d_pais!$G$2:$G$40000,0)),0,1) -> 0
A86: 0041 | B86: Faroé, Ilhas | C86: 0 | D86: 0 | E86: 0 | F86: 0 | G86: 0 | H86: 0 | I86: 0 | J86: 0 | K86: 0 | L86: 0 | M86: 0 | N86: 0 | O86: 0 | P86: 0 | Q86: 0 | R86: 0 | S86: 0 | T86: 0 | U86: 0 | V86: 0 | W86: 0 | X86: 0 | Y86: 0 | Z86: 0 | AA86: 0 | AC86: =L86-INDEX($C86:$L86,1,aux!$BA$1) -> 0 | AD86: 0 | AE86: =+IF(INDEX($C86:$L86,1,aux!$BA$1)>0,(L86/INDEX($C86:$L86,1,aux!$BA$1))^(1/($L$3-INDEX($C$3:$L$3,1,aux!$BA$1)))-1,"n.d.") -> n.d. | AF86: =IF(INDEX($C86:$L86,1,aux!$BA$1)>0,(L86-INDEX($C86:$L86,1,aux!$BA$1))/INDEX($C86:$L86,1,aux!$BA$1),"n.d.") -> n.d. | AH86: =X86-INDEX($O86:$X86,1,aux!$BA$1) -> 0 | AI86: 0 | AJ86: =+IF(INDEX($O86:$X86,1,aux!$BA$1)>0,(X86/INDEX($O86:$X86,1,aux!$BA$1))^(1/($X$3-INDEX($O$3:$X$3,1,aux!$BA$1)))-1,"n.d.") -> n.d. | AK86: =IF(INDEX($O86:$X86,1,aux!$BA$1)>0,(X86-INDEX($O86:$X86,1,aux!$BA$1))/INDEX($O86:$X86,1,aux!$BA$1),"n.d.") -> n.d. | AM86: 0 | BO86: 0 | CC86: =+IF(ISNA(MATCH('5.1'!A86,AUX_2d_pais!$G$2:$G$40000,0)),0,1) -> 0
A87: 0815 | B87: Fiji, Ilhas | C87: 0 | D87: 0 | E87: 0 | F87: 0 | G87: 0 | H87: 0 | I87: 0 | J87: 0 | K87: 0 | L87: 0 | M87: 0 | N87: 0 | O87: 0 | P87: 0 | Q87: 0 | R87: 0 | S87: 0 | T87: 0 | U87: 0 | V87: 0 | W87: 0 | X87: 0 | Y87: 0 | Z87: 0 | AA87: 0 | AC87: =L87-INDEX($C87:$L87,1,aux!$BA$1) -> 0 | AD87: 0 | AE87: =+IF(INDEX($C87:$L87,1,aux!$BA$1)>0,(L87/INDEX($C87:$L87,1,aux!$BA$1))^(1/($L$3-INDEX($C$3:$L$3,1,aux!$BA$1)))-1,"n.d.") -> n.d. | AF87: =IF(INDEX($C87:$L87,1,aux!$BA$1)>0,(L87-INDEX($C87:$L87,1,aux!$BA$1))/INDEX($C87:$L87,1,aux!$BA$1),"n.d.") -> n.d. | AH87: =X87-INDEX($O87:$X87,1,aux!$BA$1) -> 0 | AI87: 0 | AJ87: =+IF(INDEX($O87:$X87,1,aux!$BA$1)>0,(X87/INDEX($O87:$X87,1,aux!$BA$1))^(1/($X$3-INDEX($O$3:$X$3,1,aux!$BA$1)))-1,"n.d.") -> n.d. | AK87: =IF(INDEX($O87:$X87,1,aux!$BA$1)>0,(X87-INDEX($O87:$X87,1,aux!$BA$1))/INDEX($O87:$X87,1,aux!$BA$1),"n.d.") -> n.d. | AM87: 0 | BO87: 0 | CC87: =+IF(ISNA(MATCH('5.1'!A87,AUX_2d_pais!$G$2:$G$40000,0)),0,1) -> 0
A88: 0708 | B88: Filipinas | C88: 675.849 | D88: 461.75 | E88: 611.095 | F88: 460.986 | G88: 768.496 | H88: 572.732 | I88: 3314.178 | J88: 1754.816 | K88: 1436.489 | L88: 1779.281 | M88: 1183.5672 | N88: 0.0008258805343 | O88: 0 | P88: 0 | Q88: 0 | R88: 0 | S88: 0 | T88: 0 | U88: 0 | V88: 17.322 | W88: 47.588 | X88: 74.494 | Y88: 13.9404 | Z88: 1.104875271e-05 | AA88: -1169.6268 | AC88: =L88-INDEX($C88:$L88,1,aux!$BA$1) -> 1103.432 | AD88: 0.001673826248 | AE88: =+IF(INDEX($C88:$L88,1,aux!$BA$1)>0,(L88/INDEX($C88:$L88,1,aux!$BA$1))^(1/($L$3-INDEX($C$3:$L$3,1,aux!$BA$1)))-1,"n.d.") -> 0.1135520983 | AF88: =IF(INDEX($C88:$L88,1,aux!$BA$1)>0,(L88-INDEX($C88:$L88,1,aux!$BA$1))/INDEX($C88:$L88,1,aux!$BA$1),"n.d.") -> 1.63266055 | AH88: =X88-INDEX($O88:$X88,1,aux!$BA$1) -> 74.494 | AI88: 8.666952553e-05 | AJ88: =+IF(INDEX($O88:$X88,1,aux!$BA$1)>0,(X88/INDEX($O88:$X88,1,aux!$BA$1))^(1/($X$3-INDEX($O$3:$X$3,1,aux!$BA$1)))-1,"n.d.") -> n.d. | AK88: =IF(INDEX($O88:$X88,1,aux!$BA$1)>0,(X88-INDEX($O88:$X88,1,aux!$BA$1))/INDEX($O88:$X88,1,aux!$BA$1),"n.d.") -> n.d. | CC88: =+IF(ISNA(MATCH('5.1'!A88,AUX_2d_pais!$G$2:$G$40000,0)),0,1) -> 1
A89: 0032 | B89: Finlândia | C89: 8.202 | D89: 86.242 | E89: 137.44 | F89: 391.266 | G89: 100.217 | H89: 1509.323 | I89: 249.18 | J89: 164.568 | K89: 383.614 | L89: 169.527 | M89: 319.9579 | N89: 0.0002232632008 | O89: 2767.5 | P89: 2525.755 | Q89: 2546.766 | R89: 2769.993 | S89: 3186.645 | T89: 3645.009 | U89: 4536.035 | V89: 3923.287 | W89: 4601.461 | X89: 4051.771 | Y89: 3455.4222 | Z89: 0.002738666421 | AA89: 3135.4643 | AC89: =L89-INDEX($C89:$L89,1,aux!$BA$1) -> 161.325 | AD89: 0.0002447183147 | AE89: =+IF(INDEX($C89:$L89,1,aux!$BA$1)>0,(L89/INDEX($C89:$L89,1,aux!$BA$1))^(1/($L$3-INDEX($C$3:$L$3,1,aux!$BA$1)))-1,"n.d.") -> 0.4000597423 | AF89: =IF(INDEX($C89:$L89,1,aux!$BA$1)>0,(L89-INDEX($C89:$L89,1,aux!$BA$1))/INDEX($C89:$L89,1,aux!$BA$1),"n.d.") -> 19.66898317 | AH89: =X89-INDEX($O89:$X89,1,aux!$BA$1) -> 1284.271 | AI89: 0.001494176151 | AJ89: =+IF(INDEX($O89:$X89,1,aux!$BA$1)>0,(X89/INDEX($O89:$X89,1,aux!$BA$1))^(1/($X$3-INDEX($O$3:$X$3,1,aux!$BA$1)))-1,"n.d.") -> 0.04326647415 | AK89: =IF(INDEX($O89:$X89,1,aux!$BA$1)>0,(X89-INDEX($O89:$X89,1,aux!$BA$1))/INDEX($O89:$X89,1,aux!$BA$1),"n.d.") -> 0.4640545619 | CC89: =+IF(ISNA(MATCH('5.1'!A89,AUX_2d_pais!$G$2:$G$40000,0)),0,1) -> 1
A90: 0001 | B90: França | C90: 113250.78 | D90: 88890.598 | E90: 111749.816 | F90: 93486.382 | G90: 86637.328 | H90: 105555.04 | I90: 102129.087 | J90: 106777.097 | K90: 109816.564 | L90: 99340.745 | M90: 101763.3437 | N90: 0.07100937291 | O90: 95953.045 | P90: 121703.656 | Q90: 142057.131 | R90: 142550.238 | S90: 149315.14 | T90: 154263.083 | U90: 179106.105 | V90: 171697.737 | W90: 206943.66 | X90: 221785.849 | Y90: 158537.5644 | Z90: 0.1256522297 | AA90: 56774.2207 | AC90: =L90-INDEX($C90:$L90,1,aux!$BA$1) -> -13910.035 | AD90: -0.02110051339 | AE90: =+IF(INDEX($C90:$L90,1,aux!$BA$1)>0,(L90/INDEX($C90:$L90,1,aux!$BA$1))^(1/($L$3-INDEX($C$3:$L$3,1,aux!$BA$1)))-1,"n.d.") -> -0.01445548408 | AF90: =IF(INDEX($C90:$L90,1,aux!$BA$1)>0,(L90-INDEX($C90:$L90,1,aux!$BA$1))/INDEX($C90:$L90,1,aux!$BA$1),"n.d.") -> -0.1228250702 | AH90: =X90-INDEX($O90:$X90,1,aux!$BA$1) -> 125832.804 | AI90: 0.1463992995 | AJ90: =+IF(INDEX($O90:$X90,1,aux!$BA$1)>0,(X90/INDEX($O90:$X90,1,aux!$BA$1))^(1/($X$3-INDEX($O$3:$X$3,1,aux!$BA$1)))-1,"n.d.") -> 0.09756579359 | AK90: =IF(INDEX($O90:$X90,1,aux!$BA$1)>0,(X90-INDEX($O90:$X90,1,aux!$BA$1))/INDEX($O90:$X90,1,aux!$BA$1),"n.d.") -> 1.3113998 | CC90: =+IF(ISNA(MATCH('5.1'!A90,AUX_2d_pais!$G$2:$G$40000,0)),0,1) -> 1
A91: 0314 | B91: Gabão | C91: 0 | D91: 0 | E91: 0 | F91: 0 | G91: 0 | H91: 0 | I91: 0 | J91: 0 | K91: 0 | L91: 0 | M91: 0 | N91: 0 | O91: 8.89 | P91: 0 | Q91: 16.929 | R91: 0.544 | S91: 75.587 | T91: 10.962 | U91: 1.355 | V91: 159.602 | W91: 71.136 | X91: 1.082 | Y91: 34.6087 | Z91: 2.742984188e-05 | AA91: 34.6087 | AC91: =L91-INDEX($C91:$L91,1,aux!$BA$1) -> 0 | AD91: 0 | AE91: =+IF(INDEX($C91:$L91,1,aux!$BA$1)>0,(L91/INDEX($C91:$L91,1,aux!$BA$1))^(1/($L$3-INDEX($C$3:$L$3,1,aux!$BA$1)))-1,"n.d.") -> n.d. | AF91: =IF(INDEX($C91:$L91,1,aux!$BA$1)>0,(L91-INDEX($C91:$L91,1,aux!$BA$1))/INDEX($C91:$L91,1,aux!$BA$1),"n.d.") -> n.d. | AH91: =X91-INDEX($O91:$X91,1,aux!$BA$1) -> -7.808 | AI91: -9.084163226e-06 | AJ91: =+IF(INDEX($O91:$X91,1,aux!$BA$1)>0,(X91/INDEX($O91:$X91,1,aux!$BA$1))^(1/($X$3-INDEX($O$3:$X$3,1,aux!$BA$1)))-1,"n.d.") -> -0.2086483723 | AK91: =IF(INDEX($O91:$X91,1,aux!$BA$1)>0,(X91-INDEX($O91:$X91,1,aux!$BA$1))/INDEX($O91:$X91,1,aux!$BA$1),"n.d.") -> -0.8782902137 | CC91: =+IF(ISNA(MATCH('5.1'!A91,AUX_2d_pais!$G$2:$G$40000,0)),0,1) -> 1
A92: 0252 | B92: Gâmbia | C92: 0 | D92: 0 | E92: 0 | F92: 0 | G92: 2.732 | H92: 0 | I92: 0 | J92: 0 | K92: 0 | L92: 0 | M92: 0.2732 | N92: 1.906360382e-07 | O92: 1.462 | P92: 48.104 | Q92: 0 | R92: 0 | S92: 38.103 | T92: 0.299 | U92: 0.752 | V92: 1.391 | W92: 0.384 | X92: 0.099 | Y92: 9.0594 | Z92: 7.180215077e-06 | AA92: 8.7862 | AC92: =L92-INDEX($C92:$L92,1,aux!$BA$1) -> 0 | AD92: 0 | AE92: =+IF(INDEX($C92:$L92,1,aux!$BA$1)>0,(L92/INDEX($C92:$L92,1,aux!$BA$1))^(1/($L$3-INDEX($C$3:$L$3,1,aux!$BA$1)))-1,"n.d.") -> n.d. | AF92: =IF(INDEX($C92:$L92,1,aux!$BA$1)>0,(L92-INDEX($C92:$L92,1,aux!$BA$1))/INDEX($C92:$L92,1,aux!$BA$1),"n.d.") -> n.d. | AH92: =X92-INDEX($O92:$X92,1,aux!$BA$1) -> -1.363 | AI92: -1.585772858e-06 | AJ92: =+IF(INDEX($O92:$X92,1,aux!$BA$1)>0,(X92/INDEX($O92:$X92,1,aux!$BA$1))^(1/($X$3-INDEX($O$3:$X$3,1,aux!$BA$1)))-1,"n.d.") -> -0.2585592957 | AK92: =IF(INDEX($O92:$X92,1,aux!$BA$1)>0,(X92-INDEX($O92:$X92,1,aux!$BA$1))/INDEX($O92:$X92,1,aux!$BA$1),"n.d.") -> -0.9322845417 | CC92: =+IF(ISNA(MATCH('5.1'!A92,AUX_2d_pais!$G$2:$G$40000,0)),0,1) -> 1
A93: 0276 | B93: Gana | C93: 0.494 | D93: 0 | E93: 0 | F93: 0.471 | G93: 40.384 | H93: 1.393 | I93: 159.833 | J93: 0.371 | K93: 257.893 | L93: 171.947 | M93: 63.2786 | N93: 4.415513034e-05 | O93: 24.592 | P93: 12.538 | Q93: 40.26 | R93: 34.162 | S93: 173.365 | T93: 71.357 | U93: 37.594 | V93: 8.864 | W93: 61.685 | X93: 125.293 | Y93: 58.971 | Z93: 4.673868725e-05 | AA93: -4.3076 | AC93: =L93-INDEX($C93:$L93,1,aux!$BA$1) -> 171.453 | AD93: 0.0002600817556 | AE93: =+IF(INDEX($C93:$L93,1,aux!$BA$1)>0,(L93/INDEX($C93:$L93,1,aux!$BA$1))^(1/($L$3-INDEX($C$3:$L$3,1,aux!$BA$1)))-1,"n.d.") -> 0.9160529964 | AF93: =IF(INDEX($C93:$L93,1,aux!$BA$1)>0,(L93-INDEX($C93:$L93,1,aux!$BA$1))/INDEX($C93:$L93,1,aux!$BA$1),"n.d.") -> 347.0708502 | AH93: =X93-INDEX($O93:$X93,1,aux!$BA$1) -> 100.701 | AI93: 0.0001171598772 | AJ93: =+IF(INDEX($O93:$X93,1,aux!$BA$1)>0,(X93/INDEX($O93:$X93,1,aux!$BA$1))^(1/($X$3-INDEX($O$3:$X$3,1,aux!$BA$1)))-1,"n.d.") -> 0.1983131596 | AK93: =IF(INDEX($O93:$X93,1,aux!$BA$1)>0,(X93-INDEX($O93:$X93,1,aux!$BA$1))/INDEX($O93:$X93,1,aux!$BA$1),"n.d.") -> 4.09486825 | CC93: =+IF(ISNA(MATCH('5.1'!A93,AUX_2d_pais!$G$2:$G$40000,0)),0,1) -> 1
A94: 0076 | B94: Geórgia | C94: 0 | D94: 0 | E94: 62.16 | F94: 0 | G94: 0 | H94: 0 | I94: 0 | J94: 1.39 | K94: 0 | L94: 0 | M94: 6.355 | N94: 4.434451035e-06 | O94: 553.785 | P94: 755.135 | Q94: 655.849 | R94: 0 | S94: 24.467 | T94: 0.002 | U94: 1.208 | V94: 0 | W94: 4.467 | X94: 24.451 | Y94: 201.9364 | Z94: 0.0001600488756 | AA94: 195.5814 | AC94: =L94-INDEX($C94:$L94,1,aux!$BA$1) -> 0 | AD94: 0 | AE94: =+IF(INDEX($C94:$L94,1,aux!$BA$1)>0,(L94/INDEX($C94:$L94,1,aux!$BA$1))^(1/($L$3-INDEX($C$3:$L$3,1,aux!$BA$1)))-1,"n.d.") -> n.d. | AF94: =IF(INDEX($C94:$L94,1,aux!$BA$1)>0,(L94-INDEX($C94:$L94,1,aux!$BA$1))/INDEX($C94:$L94,1,aux!$BA$1),"n.d.") -> n.d. | AH94: =X94-INDEX($O94:$X94,1,aux!$BA$1) -> -529.334 | AI94: -0.0006158499561 | AJ94: =+IF(INDEX($O94:$X94,1,aux!$BA$1)>0,(X94/INDEX($O94:$X94,1,aux!$BA$1))^(1/($X$3-INDEX($O$3:$X$3,1,aux!$BA$1)))-1,"n.d.") -> -0.2929673117 | AK94: =IF(INDEX($O94:$X94,1,aux!$BA$1)>0,(X94-INDEX($O94:$X94,1,aux!$BA$1))/INDEX($O94:$X94,1,aux!$BA$1),"n.d.") -> -0.9558474859 | CC94: =+IF(ISNA(MATCH('5.1'!A94,AUX_2d_pais!$G$2:$G$40000,0)),0,1) -> 1
A95: 0893 | B95: Geórgia do Sul e Ilhas Sandwich do Sul | C95: 0 | D95: 0 | E95: 0 | F95: 0 | G95: 0 | H95: 0 | I95: 0 | J95: 0 | K95: 0 | L95: 0 | M95: 0 | N95: 0 | O95: 0 | P95: 0 | Q95: 0 | R95: 0 | S95: 0 | T95: 0 | U95: 0 | V95: 0 | W95: 0 | X95: 0 | Y95: 0 | Z95: 0 | AA95: 0 | AC95: =L95-INDEX($C95:$L95,1,aux!$BA$1) -> 0 | AD95: 0 | AE95: =+IF(INDEX($C95:$L95,1,aux!$BA$1)>0,(L95/INDEX($C95:$L95,1,aux!$BA$1))^(1/($L$3-INDEX($C$3:$L$3,1,aux!$BA$1)))-1,"n.d.") -> n.d. | AF95: =IF(INDEX($C95:$L95,1,aux!$BA$1)>0,(L95-INDEX($C95:$L95,1,aux!$BA$1))/INDEX($C95:$L95,1,aux!$BA$1),"n.d.") -> n.d. | AH95: =X95-INDEX($O95:$X95,1,aux!$BA$1) -> 0 | AI95: 0 | AJ95: =+IF(INDEX($O95:$X95,1,aux!$BA$1)>0,(X95/INDEX($O95:$X95,1,aux!$BA$1))^(1/($X$3-INDEX($O$3:$X$3,1,aux!$BA$1)))-1,"n.d.") -> n.d. | AK95: =IF(INDEX($O95:$X95,1,aux!$BA$1)>0,(X95-INDEX($O95:$X95,1,aux!$BA$1))/INDEX($O95:$X95,1,aux!$BA$1),"n.d.") -> n.d. | AM95: 0 | BO95: 0 | CC95: =+IF(ISNA(MATCH('5.1'!A95,AUX_2d_pais!$G$2:$G$40000,0)),0,1) -> 0
A96: 0044 | B96: Gibraltar | C96: 0 | D96: 0 | E96: 0 | F96: 0 | G96: 0 | H96: 0 | I96: 0 | J96: 0 | K96: 0 | L96: 0 | M96: 0 | N96: 0 | O96: 0 | P96: 0.027 | Q96: 7.81 | R96: 19.628 | S96: 2.629 | T96: 8.794 | U96: 3.142 | V96: 5.154 | W96: 4.012 | X96: 9.645 | Y96: 6.0841 | Z96: 4.822079448e-06 | AA96: 6.0841 | AC96: =L96-INDEX($C96:$L96,1,aux!$BA$1) -> 0 | AD96: 0 | AE96: =+IF(INDEX($C96:$L96,1,aux!$BA$1)>0,(L96/INDEX($C96:$L96,1,aux!$BA$1))^(1/($L$3-INDEX($C$3:$L$3,1,aux!$BA$1)))-1,"n.d.") -> n.d. | AF96: =IF(INDEX($C96:$L96,1,aux!$BA$1)>0,(L96-INDEX($C96:$L96,1,aux!$BA$1))/INDEX($C96:$L96,1,aux!$BA$1),"n.d.") -> n.d. | AH96: =X96-INDEX($O96:$X96,1,aux!$BA$1) -> 9.645 | AI96: 1.122140808e-05 | AJ96: =+IF(INDEX($O96:$X96,1,aux!$BA$1)>0,(X96/INDEX($O96:$X96,1,aux!$BA$1))^(1/($X$3-INDEX($O$3:$X$3,1,aux!$BA$1)))-1,"n.d.") -> n.d. | AK96: =IF(INDEX($O96:$X96,1,aux!$BA$1)>0,(X96-INDEX($O96:$X96,1,aux!$BA$1))/INDEX($O96:$X96,1,aux!$BA$1),"n.d.") -> n.d. | CC96: =+IF(ISNA(MATCH('5.1'!A96,AUX_2d_pais!$G$2:$G$40000,0)),0,1) -> 1
A97: 0473 | B97: Granada | C97: 0 | D97: 0 | E97: 0 | F97: 0 | G97: 0 | H97: 0 | I97: 0 | J97: 0 | K97: 0 | L97: 0 | M97: 0 | N97: 0 | O97: 0 | P97: 0 | Q97: 0 | R97: 0 | S97: 0 | T97: 0 | U97: 0 | V97: 0 | W97: 0 | X97: 0 | Y97: 0 | Z97: 0 | AA97: 0 | AC97: =L97-INDEX($C97:$L97,1,aux!$BA$1) -> 0 | AD97: 0 | AE97: =+IF(INDEX($C97:$L97,1,aux!$BA$1)>0,(L97/INDEX($C97:$L97,1,aux!$BA$1))^(1/($L$3-INDEX($C$3:$L$3,1,aux!$BA$1)))-1,"n.d.") -> n.d. | AF97: =IF(INDEX($C97:$L97,1,aux!$BA$1)>0,(L97-INDEX($C97:$L97,1,aux!$BA$1))/INDEX($C97:$L97,1,aux!$BA$1),"n.d.") -> n.d. | AH97: =X97-INDEX($O97:$X97,1,aux!$BA$1) -> 0 | AI97: 0 | AJ97: =+IF(INDEX($O97:$X97,1,aux!$BA$1)>0,(X97/INDEX($O97:$X97,1,aux!$BA$1))^(1/($X$3-INDEX($O$3:$X$3,1,aux!$BA$1)))-1,"n.d.") -> n.d. | AK97: =IF(INDEX($O97:$X97,1,aux!$BA$1)>0,(X97-INDEX($O97:$X97,1,aux!$BA$1))/INDEX($O97:$X97,1,aux!$BA$1),"n.d.") -> n.d. | AM97: 0 | BO97: 0 | CC97: =+IF(ISNA(MATCH('5.1'!A97,AUX_2d_pais!$G$2:$G$40000,0)),0,1) -> 0
A98: 0009 | B98: Grécia | C98: 2264.51 | D98: 2196.317 | E98: 2437.093 | F98: 2141.62 | G98: 4012.616 | H98: 4001.619 | I98: 2298.87 | J98: 2680.353 | K98: 2640.252 | L98: 2895.926 | M98: 2756.9176 | N98: 0.001923747617 | O98: 862.35 | P98: 978.411 | Q98: 937.211 | R98: 51.265 | S98: 344.462 | T98: 384.287 | U98: 510.458 | V98: 573.646 | W98: 652.445 | X98: 774.237 | Y98: 606.8772 | Z98: 0.0004809930924 | AA98: -2150.0404 | AC98: =L98-INDEX($C98:$L98,1,aux!$BA$1) -> 631.416 | AD98: 0.0009578122387 | AE98: =+IF(INDEX($C98:$L98,1,aux!$BA$1)>0,(L98/INDEX($C98:$L98,1,aux!$BA$1))^(1/($L$3-INDEX($C$3:$L$3,1,aux!$BA$1)))-1,"n.d.") -> 0.02770420911 | AF98: =IF(INDEX($C98:$L98,1,aux!$BA$1)>0,(L98-INDEX($C98:$L98,1,aux!$BA$1))/INDEX($C98:$L98,1,aux!$BA$1),"n.d.") -> 0.278831182 | AH98: =X98-INDEX($O98:$X98,1,aux!$BA$1) -> -88.113 | AI98: -0.0001025144562 | AJ98: =+IF(INDEX($O98:$X98,1,aux!$BA$1)>0,(X98/INDEX($O98:$X98,1,aux!$BA$1))^(1/($X$3-INDEX($O$3:$X$3,1,aux!$BA$1)))-1,"n.d.") -> -0.01190448447 | AK98: =IF(INDEX($O98:$X98,1,aux!$BA$1)>0,(X98-INDEX($O98:$X98,1,aux!$BA$1))/INDEX($O98:$X98,1,aux!$BA$1),"n.d.") -> -0.10217777 | CC98: =+IF(ISNA(MATCH('5.1'!A98,AUX_2d_pais!$G$2:$G$40000,0)),0,1) -> 1
A99: 0406 | B99: Gronelândia | C99: 0 | D99: 0 | E99: 0 | F99: 0 | G99: 0 | H99: 0 | I99: 0 | J99: 0 | K99: 0 | L99: 0 | M99: 0 | N99: 0 | O99: 0 | P99: 0 | Q99: 0 | R99: 0 | S99: 0 | T99: 0 | U99: 0 | V99: 0 | W99: 0 | X99: 0 | Y99: 0 | Z99: 0 | AA99: 0 | AC99: =L99-INDEX($C99:$L99,1,aux!$BA$1) -> 0 | AD99: 0 | AE99: =+IF(INDEX($C99:$L99,1,aux!$BA$1)>0,(L99/INDEX($C99:$L99,1,aux!$BA$1))^(1/($L$3-INDEX($C$3:$L$3,1,aux!$BA$1)))-1,"n.d.") -> n.d. | AF99: =IF(INDEX($C99:$L99,1,aux!$BA$1)>0,(L99-INDEX($C99:$L99,1,aux!$BA$1))/INDEX($C99:$L99,1,aux!$BA$1),"n.d.") -> n.d. | AH99: =X99-INDEX($O99:$X99,1,aux!$BA$1) -> 0 | AI99: 0 | AJ99: =+IF(INDEX($O99:$X99,1,aux!$BA$1)>0,(X99/INDEX($O99:$X99,1,aux!$BA$1))^(1/($X$3-INDEX($O$3:$X$3,1,aux!$BA$1)))-1,"n.d.") -> n.d. | AK99: =IF(INDEX($O99:$X99,1,aux!$BA$1)>0,(X99-INDEX($O99:$X99,1,aux!$BA$1))/INDEX($O99:$X99,1,aux!$BA$1),"n.d.") -> n.d. | AM99: 0 | BO99: 0 | CC99: =+IF(ISNA(MATCH('5.1'!A99,AUX_2d_pais!$G$2:$G$40000,0)),0,1) -> 0
A100: 0458 | B100: Guadalupe | C100: 0 | D100: 0 | E100: 0 | F100: 0 | G100: 0 | H100: 0 | I100: 0 | J100: 0 | K100: 0 | L100: 0 | M100: 0 | N100: 0 | O100: 0 | P100: 0 | Q100: 0 | R100: 0 | S100: 0 | T100: 0 | U100: 0 | V100: 0 | W100: 0 | X100: 0 | Y100: 0 | Z100: 0 | AA100: 0 | AC100: =L100-INDEX($C100:$L100,1,aux!$BA$1) -> 0 | AD100: =AC100/$AC$252 -> 0 | AE100: =+IF(INDEX($C100:$L100,1,aux!$BA$1)>0,(L100/INDEX($C100:$L100,1,aux!$BA$1))^(1/($L$3-INDEX($C$3:$L$3,1,aux!$BA$1)))-1,"n.d.") -> n.d. | AF100: =IF(INDEX($C100:$L100,1,aux!$BA$1)>0,(L100-INDEX($C100:$L100,1,aux!$BA$1))/INDEX($C100:$L100,1,aux!$BA$1),"n.d.") -> n.d. | AH100: =X100-INDEX($O100:$X100,1,aux!$BA$1) -> 0 | AI100: =AH100/$AH$252 -> 0 | AJ100: =+IF(INDEX($O100:$X100,1,aux!$BA$1)>0,(X100/INDEX($O100:$X100,1,aux!$BA$1))^(1/($X$3-INDEX($O$3:$X$3,1,aux!$BA$1)))-1,"n.d.") -> n.d. | AK100: =IF(INDEX($O100:$X100,1,aux!$BA$1)>0,(X100-INDEX($O100:$X100,1,aux!$BA$1))/INDEX($O100:$X100,1,aux!$BA$1),"n.d.") -> n.d. | AM100: 0 | BO100: 0 | CC100: =+IF(ISNA(MATCH('5.1'!A100,AUX_2d_pais!$G$2:$G$40000,0)),0,1) -> 0
A101: 0831 | B101: Guam | C101: 0 | D101: 0 | E101: 0 | F101: 0 | G101: 0 | H101: 0 | I101: 0 | J101: 0 | K101: 0 | L101: 0 | M101: 0 | N101: 0 | O101: 0 | P101: 0 | Q101: 0 | R101: 0 | S101: 0 | T101: 0 | U101: 0 | V101: 0 | W101: 0.077 | X101: 0.123 | Y101: 0.02 | Z101: 1.585141417e-08 | AA101: 0.02 | AC101: =L101-INDEX($C101:$L101,1,aux!$BA$1) -> 0 | AD101: =AC101/$AC$252 -> 0 | AE101: =+IF(INDEX($C101:$L101,1,aux!$BA$1)>0,(L101/INDEX($C101:$L101,1,aux!$BA$1))^(1/($L$3-INDEX($C$3:$L$3,1,aux!$BA$1)))-1,"n.d.") -> n.d. | AF101: =IF(INDEX($C101:$L101,1,aux!$BA$1)>0,(L101-INDEX($C101:$L101,1,aux!$BA$1))/INDEX($C101:$L101,1,aux!$BA$1),"n.d.") -> n.d. | AH101: =X101-INDEX($O101:$X101,1,aux!$BA$1) -> 0.123 | AI101: =AH101/$AH$252 -> 1.431034934e-07 | AJ101: =+IF(INDEX($O101:$X101,1,aux!$BA$1)>0,(X101/INDEX($O101:$X101,1,aux!$BA$1))^(1/($X$3-INDEX($O$3:$X$3,1,aux!$BA$1)))-1,"n.d.") -> n.d. | AK101: =IF(INDEX($O101:$X101,1,aux!$BA$1)>0,(X101-INDEX($O101:$X101,1,aux!$BA$1))/INDEX($O101:$X101,1,aux!$BA$1),"n.d.") -> n.d. | BO101: 0.2 | CC101: =+IF(ISNA(MATCH('5.1'!A101,AUX_2d_pais!$G$2:$G$40000,0)),0,1) -> 1
A102: 0416 | B102: Guatemala | C102: 81.24 | D102: 251.791 | E102: 121.031 | F102: 125.652 | G102: 255.583 | H102: 170.744 | I102: 196.551 | J102: 151.725 | K102: 119.022 | L102: 95.679 | M102: 156.9018 | N102: 0.000109484398 | O102: 0.078 | P102: 0.132 | Q102: 0 | R102: 0.134 | S102: 0.13 | T102: 0.141 | U102: 150.939 | V102: 165.979 | W102: 183.278 | X102: 39.793 | Y102: 54.0604 | Z102: 4.284668953e-05 | AA102: -102.8414 | AC102: =L102-INDEX($C102:$L102,1,aux!$BA$1) -> 14.439 | AD102: 2.19029149e-05 | AE102: =+IF(INDEX($C102:$L102,1,aux!$BA$1)>0,(L102/INDEX($C102:$L102,1,aux!$BA$1))^(1/($L$3-INDEX($C$3:$L$3,1,aux!$BA$1)))-1,"n.d.") -> 0.01834299242 | AF102: =IF(INDEX($C102:$L102,1,aux!$BA$1)>0,(L102-INDEX($C102:$L102,1,aux!$BA$1))/INDEX($C102:$L102,1,aux!$BA$1),"n.d.") -> 0.177732644 | AH102: =X102-INDEX($O102:$X102,1,aux!$BA$1) -> 39.715 | AI102: 4.620614018e-05 | AJ102: =+IF(INDEX($O102:$X102,1,aux!$BA$1)>0,(X102/INDEX($O102:$X102,1,aux!$BA$1))^(1/($X$3-INDEX($O$3:$X$3,1,aux!$BA$1)))-1,"n.d.") -> 0.9992030132 | AK102: =IF(INDEX($O102:$X102,1,aux!$BA$1)>0,(X102-INDEX($O102:$X102,1,aux!$BA$1))/INDEX($O102:$X102,1,aux!$BA$1),"n.d.") -> 509.1666667 | CC102: =+IF(ISNA(MATCH('5.1'!A102,AUX_2d_pais!$G$2:$G$40000,0)),0,1) -> 1
A103: 0488 | B103: Guiana | C103: 0 | D103: 0 | E103: 0 | F103: 0 | G103: 0 | H103: 0 | I103: 0 | J103: 0 | K103: 0 | L103: 0 | M103: 0 | N103: 0 | O103: 0 | P103: 0 | Q103: 0 | R103: 0 | S103: 0 | T103: 0 | U103: 0 | V103: 0 | W103: 0 | X103: 0 | Y103: 0 | Z103: 0 | AA103: 0 | AC103: =L103-INDEX($C103:$L103,1,aux!$BA$1) -> 0 | AD103: 0 | AE103: =+IF(INDEX($C103:$L103,1,aux!$BA$1)>0,(L103/INDEX($C103:$L103,1,aux!$BA$1))^(1/($L$3-INDEX($C$3:$L$3,1,aux!$BA$1)))-1,"n.d.") -> n.d. | AF103: =IF(INDEX($C103:$L103,1,aux!$BA$1)>0,(L103-INDEX($C103:$L103,1,aux!$BA$1))/INDEX($C103:$L103,1,aux!$BA$1),"n.d.") -> n.d. | AH103: =X103-INDEX($O103:$X103,1,aux!$BA$1) -> 0 | AI103: 0 | AJ103: =+IF(INDEX($O103:$X103,1,aux!$BA$1)>0,(X103/INDEX($O103:$X103,1,aux!$BA$1))^(1/($X$3-INDEX($O$3:$X$3,1,aux!$BA$1)))-1,"n.d.") -> n.d. | AK103: =IF(INDEX($O103:$X103,1,aux!$BA$1)>0,(X103-INDEX($O103:$X103,1,aux!$BA$1))/INDEX($O103:$X103,1,aux!$BA$1),"n.d.") -> n.d. | AM103: 0 | BO103: 0 | CC103: =+IF(ISNA(MATCH('5.1'!A103,AUX_2d_pais!$G$2:$G$40000,0)),0,1) -> 0
A104: 0496 | B104: Guiana Francesa | C104: 0 | D104: 0 | E104: 0 | F104: 0 | G104: 0 | H104: 0 | I104: 0 | J104: 0 | K104: 0 | L104: 0 | M104: 0 | N104: 0 | O104: 0 | P104: 0 | Q104: 0 | R104: 0 | S104: 0 | T104: 0 | U104: 0 | V104: 0 | W104: 0 | X104: 0 | Y104: 0 | Z104: 0 | AA104: 0 | AC104: =L104-INDEX($C104:$L104,1,aux!$BA$1) -> 0 | AD104: 0 | AE104: =+IF(INDEX($C104:$L104,1,aux!$BA$1)>0,(L104/INDEX($C104:$L104,1,aux!$BA$1))^(1/($L$3-INDEX($C$3:$L$3,1,aux!$BA$1)))-1,"n.d.") -> n.d. | AF104: =IF(INDEX($C104:$L104,1,aux!$BA$1)>0,(L104-INDEX($C104:$L104,1,aux!$BA$1))/INDEX($C104:$L104,1,aux!$BA$1),"n.d.") -> n.d. | AH104: =X104-INDEX($O104:$X104,1,aux!$BA$1) -> 0 | AI104: 0 | AJ104: =+IF(INDEX($O104:$X104,1,aux!$BA$1)>0,(X104/INDEX($O104:$X104,1,aux!$BA$1))^(1/($X$3-INDEX($O$3:$X$3,1,aux!$BA$1)))-1,"n.d.") -> n.d. | AK104: =IF(INDEX($O104:$X104,1,aux!$BA$1)>0,(X104-INDEX($O104:$X104,1,aux!$BA$1))/INDEX($O104:$X104,1,aux!$BA$1),"n.d.") -> n.d. | AM104: 0 | BO104: 0 | CC104: =+IF(ISNA(MATCH('5.1'!A104,AUX_2d_pais!$G$2:$G$40000,0)),0,1) -> 0
A105: 0260 | B105: Guiné | C105: 0 | D105: 0 | E105: 2.883 | F105: 0 | G105: 0.831 | H105: 0 | I105: 138.404 | J105: 134.186 | K105: 0 | L105: 0 | M105: 27.6304 | N105: 1.928019762e-05 | O105: 8.852 | P105: 30.705 | Q105: 22.854 | R105: 150.266 | S105: 75.124 | T105: 87.74 | U105: 141.076 | V105: 141.373 | W105: 104.597 | X105: 128.88 | Y105: 89.1467 | Z105: 7.065506318e-05 | AA105: 61.5163 | AC105: =L105-INDEX($C105:$L105,1,aux!$BA$1) -> 0 | AD105: 0 | AE105: =+IF(INDEX($C105:$L105,1,aux!$BA$1)>0,(L105/INDEX($C105:$L105,1,aux!$BA$1))^(1/($L$3-INDEX($C$3:$L$3,1,aux!$BA$1)))-1,"n.d.") -> n.d. | AF105: =IF(INDEX($C105:$L105,1,aux!$BA$1)>0,(L105-INDEX($C105:$L105,1,aux!$BA$1))/INDEX($C105:$L105,1,aux!$BA$1),"n.d.") -> n.d. | AH105: =X105-INDEX($O105:$X105,1,aux!$BA$1) -> 120.028 | AI105: 0.0001396457407 | AJ105: =+IF(INDEX($O105:$X105,1,aux!$BA$1)>0,(X105/INDEX($O105:$X105,1,aux!$BA$1))^(1/($X$3-INDEX($O$3:$X$3,1,aux!$BA$1)))-1,"n.d.") -> 0.3465988393 | AK105: =IF(INDEX($O105:$X105,1,aux!$BA$1)>0,(X105-INDEX($O105:$X105,1,aux!$BA$1))/INDEX($O105:$X105,1,aux!$BA$1),"n.d.") -> 13.5594216 | CC105: =+IF(ISNA(MATCH('5.1'!A105,AUX_2d_pais!$G$2:$G$40000,0)),0,1) -> 1
A106: 0310 | B106: Guiné Equatorial | C106: 0 | D106: 0 | E106: 0 | F106: 0 | G106: 0 | H106: 0 | I106: 0 | J106: 0 | K106: 0 | L106: 0 | M106: 0 | N106: 0 | O106: 32.088 | P106: 110.002 | Q106: 99.082 | R106: 110.502 | S106: 34.217 | T106: 36.003 | U106: 80.071 | V106: 48.254 | W106: 132.674 | X106: 149.187 | Y106: 83.208 | Z106: 6.594822352e-05 | AA106: 83.208 | AC106: =L106-INDEX($C106:$L106,1,aux!$BA$1) -> 0 | AD106: 0 | AE106: =+IF(INDEX($C106:$L106,1,aux!$BA$1)>0,(L106/INDEX($C106:$L106,1,aux!$BA$1))^(1/($L$3-INDEX($C$3:$L$3,1,aux!$BA$1)))-1,"n.d.") -> n.d. | AF106: =IF(INDEX($C106:$L106,1,aux!$BA$1)>0,(L106-INDEX($C106:$L106,1,aux!$BA$1))/INDEX($C106:$L106,1,aux!$BA$1),"n.d.") -> n.d. | AH106: =X106-INDEX($O106:$X106,1,aux!$BA$1) -> 117.099 | AI106: 0.0001362380161 | AJ106: =+IF(INDEX($O106:$X106,1,aux!$BA$1)>0,(X106/INDEX($O106:$X106,1,aux!$BA$1))^(1/($X$3-INDEX($O$3:$X$3,1,aux!$BA$1)))-1,"n.d.") -> 0.1861900017 | AK106: =IF(INDEX($O106:$X106,1,aux!$BA$1)>0,(X106-INDEX($O106:$X106,1,aux!$BA$1))/INDEX($O106:$X106,1,aux!$BA$1),"n.d.") -> 3.649308153 | CC106: =+IF(ISNA(MATCH('5.1'!A106,AUX_2d_pais!$G$2:$G$40000,0)),0,1) -> 1
A107: 0257 | B107: Guiné-Bissau | C107: 38.405 | D107: 12.035 | E107: 10.089 | F107: 1.252 | G107: 0 | H107: 0 | I107: 148.501 | J107: 482.687 | K107: 704.828 | L107: 288.168 | M107: 168.5965 | N107: 0.0001176448346 | O107: 388.607 | P107: 400.044 | Q107: 355.535 | R107: 519.164 | S107: 595.845 | T107: 738.293 | U107: 859.78 | V107: 984.442 | W107: 798.974 | X107: 832.76 | Y107: 647.3444 | Z107: 0.0005130662098 | AA107: 478.7479 | AC107: =L107-INDEX($C107:$L107,1,aux!$BA$1) -> 249.763 | AD107: 0.0003788723412 | AE107: =+IF(INDEX($C107:$L107,1,aux!$BA$1)>0,(L107/INDEX($C107:$L107,1,aux!$BA$1))^(1/($L$3-INDEX($C$3:$L$3,1,aux!$BA$1)))-1,"n.d.") -> 0.2509814993 | AF107: =IF(INDEX($C107:$L107,1,aux!$BA$1)>0,(L107-INDEX($C107:$L107,1,aux!$BA$1))/INDEX($C107:$L107,1,aux!$BA$1),"n.d.") -> 6.503397995 | AH107: =X107-INDEX($O107:$X107,1,aux!$BA$1) -> 444.153 | AI107: 0.0005167467148 | AJ107: =+IF(INDEX($O107:$X107,1,aux!$BA$1)>0,(X107/INDEX($O107:$X107,1,aux!$BA$1))^(1/($X$3-INDEX($O$3:$X$3,1,aux!$BA$1)))-1,"n.d.") -> 0.08837561817 | AK107: =IF(INDEX($O107:$X107,1,aux!$BA$1)>0,(X107-INDEX($O107:$X107,1,aux!$BA$1))/INDEX($O107:$X107,1,aux!$BA$1),"n.d.") -> 1.14293618 | CC107: =+IF(ISNA(MATCH('5.1'!A107,AUX_2d_pais!$G$2:$G$40000,0)),0,1) -> 1
A108: 0452 | B108: Haiti | C108: 0 | D108: 0 | E108: 0 | F108: 0 | G108: 0 | H108: 0 | I108: 0 | J108: 0 | K108: 0 | L108: 0 | M108: 0 | N108: 0 | O108: 1.798 | P108: 2.85 | Q108: 1.097 | R108: 0.415 | S108: 16.372 | T108: 0.316 | U108: 0.758 | V108: 0.455 | W108: 0.685 | X108: 0.172 | Y108: 2.4918 | Z108: 1.974927692e-06 | AA108: 2.4918 | AC108: =L108-INDEX($C108:$L108,1,aux!$BA$1) -> 0 | AD108: 0 | AE108: =+IF(INDEX($C108:$L108,1,aux!$BA$1)>0,(L108/INDEX($C108:$L108,1,aux!$BA$1))^(1/($L$3-INDEX($C$3:$L$3,1,aux!$BA$1)))-1,"n.d.") -> n.d. | AF108: =IF(INDEX($C108:$L108,1,aux!$BA$1)>0,(L108-INDEX($C108:$L108,1,aux!$BA$1))/INDEX($C108:$L108,1,aux!$BA$1),"n.d.") -> n.d. | AH108: =X108-INDEX($O108:$X108,1,aux!$BA$1) -> -1.626 | AI108: -1.891758377e-06 | AJ108: =+IF(INDEX($O108:$X108,1,aux!$BA$1)>0,(X108/INDEX($O108:$X108,1,aux!$BA$1))^(1/($X$3-INDEX($O$3:$X$3,1,aux!$BA$1)))-1,"n.d.") -> -0.2295423866 | AK108: =IF(INDEX($O108:$X108,1,aux!$BA$1)>0,(X108-INDEX($O108:$X108,1,aux!$BA$1))/INDEX($O108:$X108,1,aux!$BA$1),"n.d.") -> -0.9043381535 | CC108: =+IF(ISNA(MATCH('5.1'!A108,AUX_2d_pais!$G$2:$G$40000,0)),0,1) -> 1
A109: 0835 | B109: Heard, Ilha e McDonald, Ilhas | C109: 0 | D109: 0 | E109: 0 | F109: 0 | G109: 0 | H109: 0 | I109: 0 | J109: 0 | K109: 0 | L109: 0 | M109: 0 | N109: 0 | O109: 0 | P109: 0 | Q109: 0 | R109: 0 | S109: 0 | T109: 0 | U109: 0 | V109: 0 | W109: 0 | X109: 0 | Y109: 0 | Z109: 0 | AA109: 0 | AC109: =L109-INDEX($C109:$L109,1,aux!$BA$1) -> 0 | AD109: 0 | AE109: =+IF(INDEX($C109:$L109,1,aux!$BA$1)>0,(L109/INDEX($C109:$L109,1,aux!$BA$1))^(1/($L$3-INDEX($C$3:$L$3,1,aux!$BA$1)))-1,"n.d.") -> n.d. | AF109: =IF(INDEX($C109:$L109,1,aux!$BA$1)>0,(L109-INDEX($C109:$L109,1,aux!$BA$1))/INDEX($C109:$L109,1,aux!$BA$1),"n.d.") -> n.d. | AH109: =X109-INDEX($O109:$X109,1,aux!$BA$1) -> 0 | AI109: 0 | AJ109: =+IF(INDEX($O109:$X109,1,aux!$BA$1)>0,(X109/INDEX($O109:$X109,1,aux!$BA$1))^(1/($X$3-INDEX($O$3:$X$3,1,aux!$BA$1)))-1,"n.d.") -> n.d. | AK109: =IF(INDEX($O109:$X109,1,aux!$BA$1)>0,(X109-INDEX($O109:$X109,1,aux!$BA$1))/INDEX($O109:$X109,1,aux!$BA$1),"n.d.") -> n.d. | AM109: 0 | BO109: 0 | CC109: =+IF(ISNA(MATCH('5.1'!A109,AUX_2d_pais!$G$2:$G$40000,0)),0,1) -> 0
A110: 0424 | B110: Honduras | C110: 0 | D110: 0 | E110: 0 | F110: 27.964 | G110: 68.875 | H110: 74.274 | I110: 204.411 | J110: 324.345 | K110: 604.429 | L110: 529.649 | M110: 183.3947 | N110: 0.0001279708603 | O110: 0 | P110: 0 | Q110: 0 | R110: 0 | S110: 0 | T110: 0 | U110: 0 | V110: 0 | W110: 0 | X110: 0 | Y110: 0 | Z110: 0 | AA110: -183.3947 | AC110: =L110-INDEX($C110:$L110,1,aux!$BA$1) -> 529.649 | AD110: 0.0008034390868 | AE110: =+IF(INDEX($C110:$L110,1,aux!$BA$1)>0,(L110/INDEX($C110:$L110,1,aux!$BA$1))^(1/($L$3-INDEX($C$3:$L$3,1,aux!$BA$1)))-1,"n.d.") -> n.d. | AF110: =IF(INDEX($C110:$L110,1,aux!$BA$1)>0,(L110-INDEX($C110:$L110,1,aux!$BA$1))/INDEX($C110:$L110,1,aux!$BA$1),"n.d.") -> n.d. | AH110: =X110-INDEX($O110:$X110,1,aux!$BA$1) -> 0 | AI110: 0 | AJ110: =+IF(INDEX($O110:$X110,1,aux!$BA$1)>0,(X110/INDEX($O110:$X110,1,aux!$BA$1))^(1/($X$3-INDEX($O$3:$X$3,1,aux!$BA$1)))-1,"n.d.") -> n.d. | AK110: =IF(INDEX($O110:$X110,1,aux!$BA$1)>0,(X110-INDEX($O110:$X110,1,aux!$BA$1))/INDEX($O110:$X110,1,aux!$BA$1),"n.d.") -> n.d. | CC110: =+IF(ISNA(MATCH('5.1'!A110,AUX_2d_pais!$G$2:$G$40000,0)),0,1) -> 1
A111: 0740 | B111: HongKong | C111: 0 | D111: 0 | E111: 0 | F111: 6.195 | G111: 19.836 | H111: 3.264 | I111: 32.994 | J111: 15.351 | K111: 38.606 | L111: 133.397 | M111: 24.9643 | N111: 1.741982156e-05 | O111: 123.504 | P111: 116.459 | Q111: 213.63 | R111: 203.359 | S111: 162.862 | T111: 57.786 | U111: 29.248 | V111: 55.003 | W111: 52.341 | X111: 34.79 | Y111: 104.8982 | Z111: 8.31392407e-05 | AA111: 79.9339 | AC111: =L111-INDEX($C111:$L111,1,aux!$BA$1) -> 133.397 | AD111: 0.000202353566 | AE111: =+IF(INDEX($C111:$L111,1,aux!$BA$1)>0,(L111/INDEX($C111:$L111,1,aux!$BA$1))^(1/($L$3-INDEX($C$3:$L$3,1,aux!$BA$1)))-1,"n.d.") -> n.d. | AF111: =IF(INDEX($C111:$L111,1,aux!$BA$1)>0,(L111-INDEX($C111:$L111,1,aux!$BA$1))/INDEX($C111:$L111,1,aux!$BA$1),"n.d.") -> n.d. | AH111: =X111-INDEX($O111:$X111,1,aux!$BA$1) -> -88.714 | AI111: -0.0001032136855 | AJ111: =+IF(INDEX($O111:$X111,1,aux!$BA$1)>0,(X111/INDEX($O111:$X111,1,aux!$BA$1))^(1/($X$3-INDEX($O$3:$X$3,1,aux!$BA$1)))-1,"n.d.") -> -0.1313122211 | AK111: =IF(INDEX($O111:$X111,1,aux!$BA$1)>0,(X111-INDEX($O111:$X111,1,aux!$BA$1))/INDEX($O111:$X111,1,aux!$BA$1),"n.d.") -> -0.7183087187 | CC111: =+IF(ISNA(MATCH('5.1'!A111,AUX_2d_pais!$G$2:$G$40000,0)),0,1) -> 1
A112: 0064 | B112: Hungria | C112: 5.068 | D112: 0.355 | E112: 7.777 | F112: 87.385 | G112: 9.785 | H112: 42.303 | I112: 82.093 | J112: 176.39 | K112: 193.532 | L112: 418.004 | M112: 102.2692 | N112: 7.136235402e-05 | O112: 498.086 | P112: 474.497 | Q112: 568.078 | R112: 1046.928 | S112: 1360.584 | T112: 1552.773 | U112: 1651.253 | V112: 1933.752 | W112: 2776.862 | X112: 4044.798 | Y112: 1590.7611 | Z112: 0.001260790652 | AA112: 1488.4919 | AC112: =L112-INDEX($C112:$L112,1,aux!$BA$1) -> 412.936 | AD112: 0.0006263939378 | AE112: =+IF(INDEX($C112:$L112,1,aux!$BA$1)>0,(L112/INDEX($C112:$L112,1,aux!$BA$1))^(1/($L$3-INDEX($C$3:$L$3,1,aux!$BA$1)))-1,"n.d.") -> 0.6327778207 | AF112: =IF(INDEX($C112:$L112,1,aux!$BA$1)>0,(L112-INDEX($C112:$L112,1,aux!$BA$1))/INDEX($C112:$L112,1,aux!$BA$1),"n.d.") -> 81.47908445 | AH112: =X112-INDEX($O112:$X112,1,aux!$BA$1) -> 3546.712 | AI112: 0.004126397378 | AJ112: =+IF(INDEX($O112:$X112,1,aux!$BA$1)>0,(X112/INDEX($O112:$X112,1,aux!$BA$1))^(1/($X$3-INDEX($O$3:$X$3,1,aux!$BA$1)))-1,"n.d.") -> 0.2620188264 | AK112: =IF(INDEX($O112:$X112,1,aux!$BA$1)>0,(X112-INDEX($O112:$X112,1,aux!$BA$1))/INDEX($O112:$X112,1,aux!$BA$1),"n.d.") -> 7.120681971 | CC112: =+IF(ISNA(MATCH('5.1'!A112,AUX_2d_pais!$G$2:$G$40000,0)),0,1) -> 1
A113: 0653 | B113: Iémen | C113: 0 | D113: 0 | E113: 0 | F113: 0 | G113: 0 | H113: 0 | I113: 0 | J113: 0 | K113: 0 | L113: 0 | M113: 0 | N113: 0 | O113: 0 | P113: 0.043 | Q113: 0 | R113: 0 | S113: 0 | T113: 0 | U113: 0 | V113: 0 | W113: 0 | X113: 0 | Y113: 0.0043 | Z113: 3.408054047e-09 | AA113: 0.0043 | AC113: =L113-INDEX($C113:$L113,1,aux!$BA$1) -> 0 | AD113: 0 | AE113: =+IF(INDEX($C113:$L113,1,aux!$BA$1)>0,(L113/INDEX($C113:$L113,1,aux!$BA$1))^(1/($L$3-INDEX($C$3:$L$3,1,aux!$BA$1)))-1,"n.d.") -> n.d. | AF113: =IF(INDEX($C113:$L113,1,aux!$BA$1)>0,(L113-INDEX($C113:$L113,1,aux!$BA$1))/INDEX($C113:$L113,1,aux!$BA$1),"n.d.") -> n.d. | AH113: =X113-INDEX($O113:$X113,1,aux!$BA$1) -> 0 | AI113: 0 | AJ113: =+IF(INDEX($O113:$X113,1,aux!$BA$1)>0,(X113/INDEX($O113:$X113,1,aux!$BA$1))^(1/($X$3-INDEX($O$3:$X$3,1,aux!$BA$1)))-1,"n.d.") -> n.d. | AK113: =IF(INDEX($O113:$X113,1,aux!$BA$1)>0,(X113-INDEX($O113:$X113,1,aux!$BA$1))/INDEX($O113:$X113,1,aux!$BA$1),"n.d.") -> n.d. | BO113: 0.043 | CC113: =+IF(ISNA(MATCH('5.1'!A113,AUX_2d_pais!$G$2:$G$40000,0)),0,1) -> 1
A114: 0664 | B114: Índia | C114: 6618.602 | D114: 3284.221 | E114: 4652.751 | F114: 2833.889 | G114: 2631.622 | H114: 3204.096 | I114: 3662.166 | J114: 3251.384 | K114: 2359.024 | L114: 2455.729 | M114: 3495.3484 | N114: 0.002439016732 | O114: 251.191 | P114: 55.686 | Q114: 89.151 | R114: 35.471 | S114: 57.45 | T114: 132.264 | U114: 267.705 | V114: 160.619 | W114: 282.14 | X114: 131.423 | Y114: 146.31 | Z114: 0.0001159610204 | AA114: -3349.0384 | AC114: =L114-INDEX($C114:$L114,1,aux!$BA$1) -> -4162.873 | AD114: -0.006314776166 | AE114: =+IF(INDEX($C114:$L114,1,aux!$BA$1)>0,(L114/INDEX($C114:$L114,1,aux!$BA$1))^(1/($L$3-INDEX($C$3:$L$3,1,aux!$BA$1)))-1,"n.d.") -> -0.1043112276 | AF114: =IF(INDEX($C114:$L114,1,aux!$BA$1)>0,(L114-INDEX($C114:$L114,1,aux!$BA$1))/INDEX($C114:$L114,1,aux!$BA$1),"n.d.") -> -0.6289656033 | AH114: =X114-INDEX($O114:$X114,1,aux!$BA$1) -> -119.768 | AI114: -0.0001393432456 | AJ114: =+IF(INDEX($O114:$X114,1,aux!$BA$1)>0,(X114/INDEX($O114:$X114,1,aux!$BA$1))^(1/($X$3-INDEX($O$3:$X$3,1,aux!$BA$1)))-1,"n.d.") -> -0.06944764767 | AK114: =IF(INDEX($O114:$X114,1,aux!$BA$1)>0,(X114-INDEX($O114:$X114,1,aux!$BA$1))/INDEX($O114:$X114,1,aux!$BA$1),"n.d.") -> -0.4768005223 | CC114: =+IF(ISNA(MATCH('5.1'!A114,AUX_2d_pais!$G$2:$G$40000,0)),0,1) -> 1
A115: 0700 | B115: Indonésia | C115: 859.318 | D115: 535.236 | E115: 689.747 | F115: 960.23 | G115: 1967.679 | H115: 929.184 | I115: 2805.474 | J115: 2145.677 | K115: 948.211 | L115: 1454.095 | M115: 1329.4851 | N115: 0.0009277004844 | O115: 7.462 | P115: 5.908 | Q115: 3.391 | R115: 6.648 | S115: 2.869 | T115: 11.675 | U115: 64.865 | V115: 17.555 | W115: 39.351 | X115: 22.923 | Y115: 18.2647 | Z115: 1.447606622e-05 | AA115: -1311.2204 | AC115: =L115-INDEX($C115:$L115,1,aux!$BA$1) -> 594.777 | AD115: 0.0009022335353 | AE115: =+IF(INDEX($C115:$L115,1,aux!$BA$1)>0,(L115/INDEX($C115:$L115,1,aux!$BA$1))^(1/($L$3-INDEX($C$3:$L$3,1,aux!$BA$1)))-1,"n.d.") -> 0.06018607795 | AF115: =IF(INDEX($C115:$L115,1,aux!$BA$1)>0,(L115-INDEX($C115:$L115,1,aux!$BA$1))/INDEX($C115:$L115,1,aux!$BA$1),"n.d.") -> 0.6921500539 | AH115: =X115-INDEX($O115:$X115,1,aux!$BA$1) -> 15.461 | AI115: 1.798799278e-05 | AJ115: =+IF(INDEX($O115:$X115,1,aux!$BA$1)>0,(X115/INDEX($O115:$X115,1,aux!$BA$1))^(1/($X$3-INDEX($O$3:$X$3,1,aux!$BA$1)))-1,"n.d.") -> 0.1328107368 | AK115: =IF(INDEX($O115:$X115,1,aux!$BA$1)>0,(X115-INDEX($O115:$X115,1,aux!$BA$1))/INDEX($O115:$X115,1,aux!$BA$1),"n.d.") -> 2.071964621 | CC115: =+IF(ISNA(MATCH('5.1'!A115,AUX_2d_pais!$G$2:$G$40000,0)),0,1) -> 1
A116: 0616 | B116: Irão, República Islâmica do | C116: 317.753 | D116: 327.203 | E116: 570.045 | F116: 187.497 | G116: 555.171 | H116: 649.354 | I116: 40.5 | J116: 98.759 | K116: 106.067 | L116: 41.662 | M116: 289.4011 | N116: 0.0002019409925 | O116: 421.801 | P116: 260.532 | Q116: 219.924 | R116: 217.728 | S116: 257.772 | T116: 311.188 | U116: 299.622 | V116: 323.92 | W116: 316.551 | X116: 0 | Y116: 262.9038 | Z116: 0.000208369851 | AA116: -26.4973 | AC116: =L116-INDEX($C116:$L116,1,aux!$BA$1) -> -276.091 | AD116: -0.0004188100061 | AE116: =+IF(INDEX($C116:$L116,1,aux!$BA$1)>0,(L116/INDEX($C116:$L116,1,aux!$BA$1))^(1/($L$3-INDEX($C$3:$L$3,1,aux!$BA$1)))-1,"n.d.") -> -0.2020766731 | AF116: =IF(INDEX($C116:$L116,1,aux!$BA$1)>0,(L116-INDEX($C116:$L116,1,aux!$BA$1))/INDEX($C116:$L116,1,aux!$BA$1),"n.d.") -> -0.8688855809 | AH116: =X116-INDEX($O116:$X116,1,aux!$BA$1) -> -421.801 | AI116: -0.0004907414361 | AJ116: =+IF(INDEX($O116:$X116,1,aux!$BA$1)>0,(X116/INDEX($O116:$X116,1,aux!$BA$1))^(1/($X$3-INDEX($O$3:$X$3,1,aux!$BA$1)))-1,"n.d.") -> -1 | AK116: =IF(INDEX($O116:$X116,1,aux!$BA$1)>0,(X116-INDEX($O116:$X116,1,aux!$BA$1))/INDEX($O116:$X116,1,aux!$BA$1),"n.d.") -> -1 | CC116: =+IF(ISNA(MATCH('5.1'!A116,AUX_2d_pais!$G$2:$G$40000,0)),0,1) -> 1
A117: 0612 | B117: Iraque | C117: 0 | D117: 0 | E117: 0 | F117: 0 | G117: 0 | H117: 0 | I117: 9.198 | J117: 0 | K117: 0 | L117: 0 | M117: 0.9198 | N117: 6.41826603e-07 | O117: 0 | P117: 0 | Q117: 671.774 | R117: 393.651 | S117: 1549.392 | T117: 1176.716 | U117: 2272.33 | V117: 1788.68 | W117: 533.866 | X117: 740.208 | Y117: 912.6617 | Z117: 0.0007233489302 | AA117: 911.7419 | AC117: =L117-INDEX($C117:$L117,1,aux!$BA$1) -> 0 | AD117: 0 | AE117: =+IF(INDEX($C117:$L117,1,aux!$BA$1)>0,(L117/INDEX($C117:$L117,1,aux!$BA$1))^(1/($L$3-INDEX($C$3:$L$3,1,aux!$BA$1)))-1,"n.d.") -> n.d. | AF117: =IF(INDEX($C117:$L117,1,aux!$BA$1)>0,(L117-INDEX($C117:$L117,1,aux!$BA$1))/INDEX($C117:$L117,1,aux!$BA$1),"n.d.") -> n.d. | AH117: =X117-INDEX($O117:$X117,1,aux!$BA$1) -> 740.208 | AI117: 0.0008611898429 | AJ117: =+IF(INDEX($O117:$X117,1,aux!$BA$1)>0,(X117/INDEX($O117:$X117,1,aux!$BA$1))^(1/($X$3-INDEX($O$3:$X$3,1,aux!$BA$1)))-1,"n.d.") -> n.d. | AK117: =IF(INDEX($O117:$X117,1,aux!$BA$1)>0,(X117-INDEX($O117:$X117,1,aux!$BA$1))/INDEX($O117:$X117,1,aux!$BA$1),"n.d.") -> n.d. | CC117: =+IF(ISNA(MATCH('5.1'!A117,AUX_2d_pais!$G$2:$G$40000,0)),0,1) -> 1
A118: 0007 | B118: Irlanda | C118: 22039.012 | D118: 19117.085 | E118: 20903.936 | F118: 29416.504 | G118: 23716.94 | H118: 27037.452 | I118: 24297.746 | J118: 28010.701 | K118: 32733.118 | L118: 28036.53 | M118: 25530.9024 | N118: 0.01781519065 | O118: 5163.293 | P118: 6619.023 | Q118: 7556.922 | R118: 8540.987 | S118: 9718.066 | T118: 10897.621 | U118: 9875.269 | V118: 9903.632 | W118: 10421.01 | X118: 12904.265 | Y118: 9160.0088 | Z118: 0.007259954665 | AA118: -16370.8936 | AC118: =L118-INDEX($C118:$L118,1,aux!$BA$1) -> 5997.518 | AD118: 0.009097799458 | AE118: =+IF(INDEX($C118:$L118,1,aux!$BA$1)>0,(L118/INDEX($C118:$L118,1,aux!$BA$1))^(1/($L$3-INDEX($C$3:$L$3,1,aux!$BA$1)))-1,"n.d.") -> 0.0271046188 | AF118: =IF(INDEX($C118:$L118,1,aux!$BA$1)>0,(L118-INDEX($C118:$L118,1,aux!$BA$1))/INDEX($C118:$L118,1,aux!$BA$1),"n.d.") -> 0.2721318905 | AH118: =X118-INDEX($O118:$X118,1,aux!$BA$1) -> 7740.972 | AI118: 0.009006179966 | AJ118: =+IF(INDEX($O118:$X118,1,aux!$BA$1)>0,(X118/INDEX($O118:$X118,1,aux!$BA$1))^(1/($X$3-INDEX($O$3:$X$3,1,aux!$BA$1)))-1,"n.d.") -> 0.1071353623 | AK118: =IF(INDEX($O118:$X118,1,aux!$BA$1)>0,(X118-INDEX($O118:$X118,1,aux!$BA$1))/INDEX($O118:$X118,1,aux!$BA$1),"n.d.") -> 1.499231595 | CC118: =+IF(ISNA(MATCH('5.1'!A118,AUX_2d_pais!$G$2:$G$40000,0)),0,1) -> 1
A119: 0024 | B119: Islândia | C119: 0 | D119: 0 | E119: 0 | F119: 0 | G119: 0 | H119: 0 | I119: 0 | J119: 0 | K119: 0 | L119: 0 | M119: 0 | N119: 0 | O119: 0 | P119: 0 | Q119: 26.518 | R119: 52.5 | S119: 132.915 | T119: 103.761 | U119: 48.4 | V119: 490.722 | W119: 0 | X119: 392.843 | Y119: 124.7659 | Z119: 9.888579777e-05 | AA119: 124.7659 | AC119: =L119-INDEX($C119:$L119,1,aux!$BA$1) -> 0 | AD119: 0 | AE119: =+IF(INDEX($C119:$L119,1,aux!$BA$1)>0,(L119/INDEX($C119:$L119,1,aux!$BA$1))^(1/($L$3-INDEX($C$3:$L$3,1,aux!$BA$1)))-1,"n.d.") -> n.d. | AF119: =IF(INDEX($C119:$L119,1,aux!$BA$1)>0,(L119-INDEX($C119:$L119,1,aux!$BA$1))/INDEX($C119:$L119,1,aux!$BA$1),"n.d.") -> n.d. | AH119: =X119-INDEX($O119:$X119,1,aux!$BA$1) -> 392.843 | AI119: 0.0004570504526 | AJ119: =+IF(INDEX($O119:$X119,1,aux!$BA$1)>0,(X119/INDEX($O119:$X119,1,aux!$BA$1))^(1/($X$3-INDEX($O$3:$X$3,1,aux!$BA$1)))-1,"n.d.") -> n.d. | AK119: =IF(INDEX($O119:$X119,1,aux!$BA$1)>0,(X119-INDEX($O119:$X119,1,aux!$BA$1))/INDEX($O119:$X119,1,aux!$BA$1),"n.d.") -> n.d. | CC119: =+IF(ISNA(MATCH('5.1'!A119,AUX_2d_pais!$G$2:$G$40000,0)),0,1) -> 1
A120: 0624 | B120: Israel | C120: 834.543 | D120: 430.633 | E120: 510.79 | F120: 418.939 | G120: 687.488 | H120: 805.309 | I120: 535.441 | J120: 673.011 | K120: 352.294 | L120: 452.349 | M120: 570.0797 | N120: 0.0003977955178 | O120: 13.986 | P120: 40.918 | Q120: 35.455 | R120: 49.501 | S120: 531.954 | T120: 407.499 | U120: 858.275 | V120: 1323.05 | W120: 2000.75 | X120: 1717.397 | Y120: 697.8785 | Z120: 0.0005531180572 | AA120: 127.7988 | AC120: =L120-INDEX($C120:$L120,1,aux!$BA$1) -> -382.194 | AD120: -0.0005797605553 | AE120: =+IF(INDEX($C120:$L120,1,aux!$BA$1)>0,(L120/INDEX($C120:$L120,1,aux!$BA$1))^(1/($L$3-INDEX($C$3:$L$3,1,aux!$BA$1)))-1,"n.d.") -> -0.06578418963 | AF120: =IF(INDEX($C120:$L120,1,aux!$BA$1)>0,(L120-INDEX($C120:$L120,1,aux!$BA$1))/INDEX($C120:$L120,1,aux!$BA$1),"n.d.") -> -0.4579680136 | AH120: =X120-INDEX($O120:$X120,1,aux!$BA$1) -> 1703.411 | AI120: 0.001981821666 | AJ120: =+IF(INDEX($O120:$X120,1,aux!$BA$1)>0,(X120/INDEX($O120:$X120,1,aux!$BA$1))^(1/($X$3-INDEX($O$3:$X$3,1,aux!$BA$1)))-1,"n.d.") -> 0.7065962906 | AK120: =IF(INDEX($O120:$X120,1,aux!$BA$1)>0,(X120-INDEX($O120:$X120,1,aux!$BA$1))/INDEX($O120:$X120,1,aux!$BA$1),"n.d.") -> 121.7940083 | CC120: =+IF(ISNA(MATCH('5.1'!A120,AUX_2d_pais!$G$2:$G$40000,0)),0,1) -> 1
A121: 0005 | B121: Itália | C121: 17098.09 | D121: 11752.107 | E121: 15862.444 | F121: 32003.23 | G121: 25459.109 | H121: 28278.63 | I121: 32909.909 | J121: 31250.491 | K121: 25793.89 | L121: 18929.251 | M121: 23933.7151 | N121: 0.01670069043 | O121: 39691.764 | P121: 31040.087 | Q121: 41561.786 | R121: 46030.506 | S121: 41476.256 | T121: 59985.263 | U121: 46417.451 | V121: 57862.158 | W121: 64307.278 | X121: 63609.044 | Y121: 49198.1593 | Z121: 0.03899301998 | AA121: 25264.4442 | AC121: =L121-INDEX($C121:$L121,1,aux!$BA$1) -> 1831.161 | AD121: 0.002777738317 | AE121: =+IF(INDEX($C121:$L121,1,aux!$BA$1)>0,(L121/INDEX($C121:$L121,1,aux!$BA$1))^(1/($L$3-INDEX($C$3:$L$3,1,aux!$BA$1)))-1,"n.d.") -> 0.011368765 | AF121: =IF(INDEX($C121:$L121,1,aux!$BA$1)>0,(L121-INDEX($C121:$L121,1,aux!$BA$1))/INDEX($C121:$L121,1,aux!$BA$1),"n.d.") -> 0.1070974009 | AH121: =X121-INDEX($O121:$X121,1,aux!$BA$1) -> 23917.28 | AI121: 0.02782639286 | AJ121: =+IF(INDEX($O121:$X121,1,aux!$BA$1)>0,(X121/INDEX($O121:$X121,1,aux!$BA$1))^(1/($X$3-INDEX($O$3:$X$3,1,aux!$BA$1)))-1,"n.d.") -> 0.05379857645 | AK121: =IF(INDEX($O121:$X121,1,aux!$BA$1)>0,(X121-INDEX($O121:$X121,1,aux!$BA$1))/INDEX($O121:$X121,1,aux!$BA$1),"n.d.") -> 0.6025753857 | CC121: =+IF(ISNA(MATCH('5.1'!A121,AUX_2d_pais!$G$2:$G$40000,0)),0,1) -> 1
A122: 0464 | B122: Jamaica | C122: 0 | D122: 0 | E122: 0 | F122: 0 | G122: 0 | H122: 0 | I122: 0 | J122: 0 | K122: 0 | L122: 0 | M122: 0 | N122: 0 | O122: 0 | P122: 0 | Q122: 0 | R122: 0 | S122: 0 | T122: 11.585 | U122: 38.144 | V122: 50.174 | W122: 22.556 | X122: 0 | Y122: 12.2459 | Z122: 9.70574164e-06 | AA122: 12.2459 | AC122: =L122-INDEX($C122:$L122,1,aux!$BA$1) -> 0 | AD122: 0 | AE122: =+IF(INDEX($C122:$L122,1,aux!$BA$1)>0,(L122/INDEX($C122:$L122,1,aux!$BA$1))^(1/($L$3-INDEX($C$3:$L$3,1,aux!$BA$1)))-1,"n.d.") -> n.d. | AF122: =IF(INDEX($C122:$L122,1,aux!$BA$1)>0,(L122-INDEX($C122:$L122,1,aux!$BA$1))/INDEX($C122:$L122,1,aux!$BA$1),"n.d.") -> n.d. | AH122: =X122-INDEX($O122:$X122,1,aux!$BA$1) -> 0 | AI122: 0 | AJ122: =+IF(INDEX($O122:$X122,1,aux!$BA$1)>0,(X122/INDEX($O122:$X122,1,aux!$BA$1))^(1/($X$3-INDEX($O$3:$X$3,1,aux!$BA$1)))-1,"n.d.") -> n.d. | AK122: =IF(INDEX($O122:$X122,1,aux!$BA$1)>0,(X122-INDEX($O122:$X122,1,aux!$BA$1))/INDEX($O122:$X122,1,aux!$BA$1),"n.d.") -> n.d. | CC122: =+IF(ISNA(MATCH('5.1'!A122,AUX_2d_pais!$G$2:$G$40000,0)),0,1) -> 1
A123: 0732 | B123: Japão | C123: 103.668 | D123: 111.931 | E123: 271.915 | F123: 148.784 | G123: 308.304 | H123: 280.287 | I123: 467.418 | J123: 277.272 | K123: 478.665 | L123: 249.185 | M123: 269.7429 | N123: 0.0001882237108 | O123: 20203.007 | P123: 25510.668 | Q123: 32675.876 | R123: 23860.366 | S123: 27444.435 | T123: 23656.845 | U123: 32836.356 | V123: 29335.015 | W123: 32572.079 | X123: 32922.893 | Y123: 28101.754 | Z123: 0.02227262708 | AA123: 27832.0111 | AC123: =L123-INDEX($C123:$L123,1,aux!$BA$1) -> 145.517 | AD123: 0.0002207387262 | AE123: =+IF(INDEX($C123:$L123,1,aux!$BA$1)>0,(L123/INDEX($C123:$L123,1,aux!$BA$1))^(1/($L$3-INDEX($C$3:$L$3,1,aux!$BA$1)))-1,"n.d.") -> 0.1023504563 | AF123: =IF(INDEX($C123:$L123,1,aux!$BA$1)>0,(L123-INDEX($C123:$L123,1,aux!$BA$1))/INDEX($C123:$L123,1,aux!$BA$1),"n.d.") -> 1.403682911 | AH123: =X123-INDEX($O123:$X123,1,aux!$BA$1) -> 12719.886 | AI123: 0.01479886279 | AJ123: =+IF(INDEX($O123:$X123,1,aux!$BA$1)>0,(X123/INDEX($O123:$X123,1,aux!$BA$1))^(1/($X$3-INDEX($O$3:$X$3,1,aux!$BA$1)))-1,"n.d.") -> 0.05575868809 | AK123: =IF(INDEX($O123:$X123,1,aux!$BA$1)>0,(X123-INDEX($O123:$X123,1,aux!$BA$1))/INDEX($O123:$X123,1,aux!$BA$1),"n.d.") -> 0.6296036031 | CC123: =+IF(ISNA(MATCH('5.1'!A123,AUX_2d_pais!$G$2:$G$40000,0)),0,1) -> 1
A124: 0338 | B124: Jibuti | C124: 0 | D124: 0 | E124: 0 | F124: 0 | G124: 0 | H124: 0 | I124: 20.296 | J124: 0 | K124: 0 | L124: 0 | M124: 2.0296 | N124: 1.416233174e-06 | O124: 0 | P124: 0 | Q124: 0 | R124: 0 | S124: 0 | T124: 0 | U124: 0 | V124: 2.742 | W124: 0 | X124: 0 | Y124: 0.2742 | Z124: 2.173228883e-07 | AA124: -1.7554 | AC124: =L124-INDEX($C124:$L124,1,aux!$BA$1) -> 0 | AD124: 0 | AE124: =+IF(INDEX($C124:$L124,1,aux!$BA$1)>0,(L124/INDEX($C124:$L124,1,aux!$BA$1))^(1/($L$3-INDEX($C$3:$L$3,1,aux!$BA$1)))-1,"n.d.") -> n.d. | AF124: =IF(INDEX($C124:$L124,1,aux!$BA$1)>0,(L124-INDEX($C124:$L124,1,aux!$BA$1))/INDEX($C124:$L124,1,aux!$BA$1),"n.d.") -> n.d. | AH124: =X124-INDEX($O124:$X124,1,aux!$BA$1) -> 0 | AI124: 0 | AJ124: =+IF(INDEX($O124:$X124,1,aux!$BA$1)>0,(X124/INDEX($O124:$X124,1,aux!$BA$1))^(1/($X$3-INDEX($O$3:$X$3,1,aux!$BA$1)))-1,"n.d.") -> n.d. | AK124: =IF(INDEX($O124:$X124,1,aux!$BA$1)>0,(X124-INDEX($O124:$X124,1,aux!$BA$1))/INDEX($O124:$X124,1,aux!$BA$1),"n.d.") -> n.d. | BO124: 23.038 | CC124: =+IF(ISNA(MATCH('5.1'!A124,AUX_2d_pais!$G$2:$G$40000,0)),0,1) -> 1
A125: 0628 | B125: Jordânia | C125: 0 | D125: 0 | E125: 0 | F125: 0 | G125: 0 | H125: 0 | I125: 0 | J125: 0 | K125: 0 | L125: 0.18 | M125: 0.018 | N125: 1.25602075e-08 | O125: 0 | P125: 14.217 | Q125: 6.695 | R125: 0 | S125: 43.29 | T125: 11.826 | U125: 130.202 | V125: 144.593 | W125: 313.163 | X125: 1148.148 | Y125: 181.2134 | Z125: 0.0001436244328 | AA125: 181.1954 | AC125: =L125-INDEX($C125:$L125,1,aux!$BA$1) -> 0.18 | AD125: 2.730469342e-07 | AE125: =+IF(INDEX($C125:$L125,1,aux!$BA$1)>0,(L125/INDEX($C125:$L125,1,aux!$BA$1))^(1/($L$3-INDEX($C$3:$L$3,1,aux!$BA$1)))-1,"n.d.") -> n.d. | AF125: =IF(INDEX($C125:$L125,1,aux!$BA$1)>0,(L125-INDEX($C125:$L125,1,aux!$BA$1))/INDEX($C125:$L125,1,aux!$BA$1),"n.d.") -> n.d. | AH125: =X125-INDEX($O125:$X125,1,aux!$BA$1) -> 1148.148 | AI125: 0.001335804795 | AJ125: =+IF(INDEX($O125:$X125,1,aux!$BA$1)>0,(X125/INDEX($O125:$X125,1,aux!$BA$1))^(1/($X$3-INDEX($O$3:$X$3,1,aux!$BA$1)))-1,"n.d.") -> n.d. | AK125: =IF(INDEX($O125:$X125,1,aux!$BA$1)>0,(X125-INDEX($O125:$X125,1,aux!$BA$1))/INDEX($O125:$X125,1,aux!$BA$1),"n.d.") -> n.d. | CC125: =+IF(ISNA(MATCH('5.1'!A125,AUX_2d_pais!$G$2:$G$40000,0)),0,1) -> 1
A126: 0812 | B126: Kiribati | C126: 0 | D126: 0 | E126: 0 | F126: 0 | G126: 0 | H126: 0 | I126: 0 | J126: 0 | K126: 0 | L126: 0 | M126: 0 | N126: 0 | O126: 0 | P126: 0 | Q126: 0 | R126: 0 | S126: 0 | T126: 0 | U126: 0 | V126: 0 | W126: 0 | X126: 0 | Y126: 0 | Z126: 0 | AA126: 0 | AC126: =L126-INDEX($C126:$L126,1,aux!$BA$1) -> 0 | AD126: 0 | AE126: =+IF(INDEX($C126:$L126,1,aux!$BA$1)>0,(L126/INDEX($C126:$L126,1,aux!$BA$1))^(1/($L$3-INDEX($C$3:$L$3,1,aux!$BA$1)))-1,"n.d.") -> n.d. | AF126: =IF(INDEX($C126:$L126,1,aux!$BA$1)>0,(L126-INDEX($C126:$L126,1,aux!$BA$1))/INDEX($C126:$L126,1,aux!$BA$1),"n.d.") -> n.d. | AH126: =X126-INDEX($O126:$X126,1,aux!$BA$1) -> 0 | AI126: 0 | AJ126: =+IF(INDEX($O126:$X126,1,aux!$BA$1)>0,(X126/INDEX($O126:$X126,1,aux!$BA$1))^(1/($X$3-INDEX($O$3:$X$3,1,aux!$BA$1)))-1,"n.d.") -> n.d. | AK126: =IF(INDEX($O126:$X126,1,aux!$BA$1)>0,(X126-INDEX($O126:$X126,1,aux!$BA$1))/INDEX($O126:$X126,1,aux!$BA$1),"n.d.") -> n.d. | AM126: 0 | BO126: 0 | CC126: =+IF(ISNA(MATCH('5.1'!A126,AUX_2d_pais!$G$2:$G$40000,0)),0,1) -> 0
A127: 0095 | B127: Kosovo | C127: 0 | D127: 0 | E127: 0 | F127: 0 | G127: 0 | H127: 0 | I127: 0 | J127: 0 | K127: 0 | L127: 0 | M127: 0 | N127: 0 | O127: 0 | P127: 0 | Q127: 0 | R127: 0 | S127: 0 | T127: 0 | U127: 0 | V127: 0 | W127: 0 | X127: 0 | Y127: 0 | Z127: 0 | AA127: 0 | AC127: =L127-INDEX($C127:$L127,1,aux!$BA$1) -> 0 | AD127: 0 | AE127: =+IF(INDEX($C127:$L127,1,aux!$BA$1)>0,(L127/INDEX($C127:$L127,1,aux!$BA$1))^(1/($L$3-INDEX($C$3:$L$3,1,aux!$BA$1)))-1,"n.d.") -> n.d. | AF127: =IF(INDEX($C127:$L127,1,aux!$BA$1)>0,(L127-INDEX($C127:$L127,1,aux!$BA$1))/INDEX($C127:$L127,1,aux!$BA$1),"n.d.") -> n.d. | AH127: =X127-INDEX($O127:$X127,1,aux!$BA$1) -> 0 | AI127: 0 | AJ127: =+IF(INDEX($O127:$X127,1,aux!$BA$1)>0,(X127/INDEX($O127:$X127,1,aux!$BA$1))^(1/($X$3-INDEX($O$3:$X$3,1,aux!$BA$1)))-1,"n.d.") -> n.d. | AK127: =IF(INDEX($O127:$X127,1,aux!$BA$1)>0,(X127-INDEX($O127:$X127,1,aux!$BA$1))/INDEX($O127:$X127,1,aux!$BA$1),"n.d.") -> n.d. | AM127: 0 | BO127: 0 | CC127: =+IF(ISNA(MATCH('5.1'!A127,AUX_2d_pais!$G$2:$G$40000,0)),0,1) -> 0
A128: 0636 | B128: Kuwait | C128: 0 | D128: 0 | E128: 0 | F128: 0 | G128: 0.118 | H128: 0 | I128: 0 | J128: 0 | K128: 0 | L128: 0 | M128: 0.0118 | N128: 8.233913803e-09 | O128: 6066.427 | P128: 6019.093 | Q128: 6126.918 | R128: 6727.377 | S128: 5064.499 | T128: 4700.739 | U128: 2620.994 | V128: 2713.364 | W128: 514.294 | X128: 4200.778 | Y128: 4475.4483 | Z128: 0.00354710923 | AA128: 4475.4365 | AC128: =L128-INDEX($C128:$L128,1,aux!$BA$1) -> 0 | AD128: 0 | AE128: =+IF(INDEX($C128:$L128,1,aux!$BA$1)>0,(L128/INDEX($C128:$L128,1,aux!$BA$1))^(1/($L$3-INDEX($C$3:$L$3,1,aux!$BA$1)))-1,"n.d.") -> n.d. | AF128: =IF(INDEX($C128:$L128,1,aux!$BA$1)>0,(L128-INDEX($C128:$L128,1,aux!$BA$1))/INDEX($C128:$L128,1,aux!$BA$1),"n.d.") -> n.d. | AH128: =X128-INDEX($O128:$X128,1,aux!$BA$1) -> -1865.649 | AI128: -0.002170576337 | AJ128: =+IF(INDEX($O128:$X128,1,aux!$BA$1)>0,(X128/INDEX($O128:$X128,1,aux!$BA$1))^(1/($X$3-INDEX($O$3:$X$3,1,aux!$BA$1)))-1,"n.d.") -> -0.04001089084 | AK128: =IF(INDEX($O128:$X128,1,aux!$BA$1)>0,(X128-INDEX($O128:$X128,1,aux!$BA$1))/INDEX($O128:$X128,1,aux!$BA$1),"n.d.") -> -0.3075367098 | CC128: =+IF(ISNA(MATCH('5.1'!A128,AUX_2d_pais!$G$2:$G$40000,0)),0,1) -> 1
A129: 0684 | B129: Laos, República Democrática Popular do | C129: 0 | D129: 0 | E129: 0 | F129: 0 | G129: 0 | H129: 0 | I129: 0 | J129: 0 | K129: 0 | L129: 0 | M129: 0 | N129: 0 | O129: 0 | P129: 0 | Q129: 0 | R129: 0 | S129: 0 | T129: 0 | U129: 0 | V129: 0 | W129: 0 | X129: 0 | Y129: 0 | Z129: 0 | AA129: 0 | AC129: =L129-INDEX($C129:$L129,1,aux!$BA$1) -> 0 | AD129: 0 | AE129: =+IF(INDEX($C129:$L129,1,aux!$BA$1)>0,(L129/INDEX($C129:$L129,1,aux!$BA$1))^(1/($L$3-INDEX($C$3:$L$3,1,aux!$BA$1)))-1,"n.d.") -> n.d. | AF129: =IF(INDEX($C129:$L129,1,aux!$BA$1)>0,(L129-INDEX($C129:$L129,1,aux!$BA$1))/INDEX($C129:$L129,1,aux!$BA$1),"n.d.") -> n.d. | AH129: =X129-INDEX($O129:$X129,1,aux!$BA$1) -> 0 | AI129: 0 | AJ129: =+IF(INDEX($O129:$X129,1,aux!$BA$1)>0,(X129/INDEX($O129:$X129,1,aux!$BA$1))^(1/($X$3-INDEX($O$3:$X$3,1,aux!$BA$1)))-1,"n.d.") -> n.d. | AK129: =IF(INDEX($O129:$X129,1,aux!$BA$1)>0,(X129-INDEX($O129:$X129,1,aux!$BA$1))/INDEX($O129:$X129,1,aux!$BA$1),"n.d.") -> n.d. | AM129: 0 | BO129: 0 | CC129: =+IF(ISNA(MATCH('5.1'!A129,AUX_2d_pais!$G$2:$G$40000,0)),0,1) -> 0
A130: 0395 | B130: Lesoto | C130: 0 | D130: 0 | E130: 0 | F130: 0 | G130: 0 | H130: 0 | I130: 0 | J130: 0 | K130: 0 | L130: 0 | M130: 0 | N130: 0 | O130: 0 | P130: 0 | Q130: 0 | R130: 0 | S130: 0 | T130: 0 | U130: 0 | V130: 0 | W130: 0 | X130: 0 | Y130: 0 | Z130: 0 | AA130: 0 | AC130: =L130-INDEX($C130:$L130,1,aux!$BA$1) -> 0 | AD130: 0 | AE130: =+IF(INDEX($C130:$L130,1,aux!$BA$1)>0,(L130/INDEX($C130:$L130,1,aux!$BA$1))^(1/($L$3-INDEX($C$3:$L$3,1,aux!$BA$1)))-1,"n.d.") -> n.d. | AF130: =IF(INDEX($C130:$L130,1,aux!$BA$1)>0,(L130-INDEX($C130:$L130,1,aux!$BA$1))/INDEX($C130:$L130,1,aux!$BA$1),"n.d.") -> n.d. | AH130: =X130-INDEX($O130:$X130,1,aux!$BA$1) -> 0 | AI130: 0 | AJ130: =+IF(INDEX($O130:$X130,1,aux!$BA$1)>0,(X130/INDEX($O130:$X130,1,aux!$BA$1))^(1/($X$3-INDEX($O$3:$X$3,1,aux!$BA$1)))-1,"n.d.") -> n.d. | AK130: =IF(INDEX($O130:$X130,1,aux!$BA$1)>0,(X130-INDEX($O130:$X130,1,aux!$BA$1))/INDEX($O130:$X130,1,aux!$BA$1),"n.d.") -> n.d. | AM130: 0 | BO130: 0 | CC130: =+IF(ISNA(MATCH('5.1'!A130,AUX_2d_pais!$G$2:$G$40000,0)),0,1) -> 0
A131: 0054 | B131: Letónia | C131: 0.639 | D131: 0.713 | E131: 0 | F131: 35.757 | G131: 0 | H131: 0 | I131: 0 | J131: 17.1 | K131: 0 | L131: 102.948 | M131: 15.7157 | N131: 1.096624739e-05 | O131: 103.706 | P131: 166.868 | Q131: 220.087 | R131: 598.272 | S131: 1407.045 | T131: 954.528 | U131: 1564.374 | V131: 1041.45 | W131: 1684.332 | X131: 1323.154 | Y131: 906.3816 | Z131: 0.0007183715069 | AA131: 890.6659 | AC131: =L131-INDEX($C131:$L131,1,aux!$BA$1) -> 102.309 | AD131: 0.0001551953266 | AE131: =+IF(INDEX($C131:$L131,1,aux!$BA$1)>0,(L131/INDEX($C131:$L131,1,aux!$BA$1))^(1/($L$3-INDEX($C$3:$L$3,1,aux!$BA$1)))-1,"n.d.") -> 0.7588760221 | AF131: =IF(INDEX($C131:$L131,1,aux!$BA$1)>0,(L131-INDEX($C131:$L131,1,aux!$BA$1))/INDEX($C131:$L131,1,aux!$BA$1),"n.d.") -> 160.1079812 | AH131: =X131-INDEX($O131:$X131,1,aux!$BA$1) -> 1219.448 | AI131: 0.001418758284 | AJ131: =+IF(INDEX($O131:$X131,1,aux!$BA$1)>0,(X131/INDEX($O131:$X131,1,aux!$BA$1))^(1/($X$3-INDEX($O$3:$X$3,1,aux!$BA$1)))-1,"n.d.") -> 0.3269892054 | AK131: =IF(INDEX($O131:$X131,1,aux!$BA$1)>0,(X131-INDEX($O131:$X131,1,aux!$BA$1))/INDEX($O131:$X131,1,aux!$BA$1),"n.d.") -> 11.75870249 | CC131: =+IF(ISNA(MATCH('5.1'!A131,AUX_2d_pais!$G$2:$G$40000,0)),0,1) -> 1
A132: 0604 | B132: Líbano | C132: 0 | D132: 0 | E132: 0 | F132: 0 | G132: 0 | H132: 0.27 | I132: 0.323 | J132: 0.169 | K132: 0.286 | L132: 0.493 | M132: 0.1541 | N132: 1.07529332e-07 | O132: 15.32 | P132: 174.736 | Q132: 58.957 | R132: 76.99 | S132: 414.032 | T132: 491.321 | U132: 384.847 | V132: 143.284 | W132: 233.533 | X132: 29.12 | Y132: 202.214 | Z132: 0.0001602688933 | AA132: 202.0599 | AC132: =L132-INDEX($C132:$L132,1,aux!$BA$1) -> 0.493 | AD132: 7.478452141e-07 | AE132: =+IF(INDEX($C132:$L132,1,aux!$BA$1)>0,(L132/INDEX($C132:$L132,1,aux!$BA$1))^(1/($L$3-INDEX($C$3:$L$3,1,aux!$BA$1)))-1,"n.d.") -> n.d. | AF132: =IF(INDEX($C132:$L132,1,aux!$BA$1)>0,(L132-INDEX($C132:$L132,1,aux!$BA$1))/INDEX($C132:$L132,1,aux!$BA$1),"n.d.") -> n.d. | AH132: =X132-INDEX($O132:$X132,1,aux!$BA$1) -> 13.8 | AI132: 1.60555139e-05 | AJ132: =+IF(INDEX($O132:$X132,1,aux!$BA$1)>0,(X132/INDEX($O132:$X132,1,aux!$BA$1))^(1/($X$3-INDEX($O$3:$X$3,1,aux!$BA$1)))-1,"n.d.") -> 0.07397089431 | AK132: =IF(INDEX($O132:$X132,1,aux!$BA$1)>0,(X132-INDEX($O132:$X132,1,aux!$BA$1))/INDEX($O132:$X132,1,aux!$BA$1),"n.d.") -> 0.9007832898 | CC132: =+IF(ISNA(MATCH('5.1'!A132,AUX_2d_pais!$G$2:$G$40000,0)),0,1) -> 1
A133: 0268 | B133: Libéria | C133: 0 | D133: 0 | E133: 0 | F133: 0 | G133: 0 | H133: 0 | I133: 0 | J133: 0 | K133: 0 | L133: 0 | M133: 0 | N133: 0 | O133: 0 | P133: 0 | Q133: 0 | R133: 0 | S133: 0 | T133: 0 | U133: 0 | V133: 15.023 | W133: 53.96 | X133: 34.36 | Y133: 10.3343 | Z133: 8.190663473e-06 | AA133: 10.3343 | AC133: =L133-INDEX($C133:$L133,1,aux!$BA$1) -> 0 | AD133: 0 | AE133: =+IF(INDEX($C133:$L133,1,aux!$BA$1)>0,(L133/INDEX($C133:$L133,1,aux!$BA$1))^(1/($L$3-INDEX($C$3:$L$3,1,aux!$BA$1)))-1,"n.d.") -> n.d. | AF133: =IF(INDEX($C133:$L133,1,aux!$BA$1)>0,(L133-INDEX($C133:$L133,1,aux!$BA$1))/INDEX($C133:$L133,1,aux!$BA$1),"n.d.") -> n.d. | AH133: =X133-INDEX($O133:$X133,1,aux!$BA$1) -> 34.36 | AI133: 3.997590272e-05 | AJ133: =+IF(INDEX($O133:$X133,1,aux!$BA$1)>0,(X133/INDEX($O133:$X133,1,aux!$BA$1))^(1/($X$3-INDEX($O$3:$X$3,1,aux!$BA$1)))-1,"n.d.") -> n.d. | AK133: =IF(INDEX($O133:$X133,1,aux!$BA$1)>0,(X133-INDEX($O133:$X133,1,aux!$BA$1))/INDEX($O133:$X133,1,aux!$BA$1),"n.d.") -> n.d. | CC133: =+IF(ISNA(MATCH('5.1'!A133,AUX_2d_pais!$G$2:$G$40000,0)),0,1) -> 1
A134: 0216 | B134: Líbia, Jamahira Árabe da | C134: 0 | D134: 0 | E134: 0 | F134: 0 | G134: 0 | H134: 0 | I134: 0 | J134: 0 | K134: 0 | L134: 0 | M134: 0 | N134: 0 | O134: 228.701 | P134: 1594.527 | Q134: 997.885 | R134: 783.328 | S134: 515.791 | T134: 367.047 | U134: 288.577 | V134: 532.701 | W134: 1738.279 | X134: 2814.809 | Y134: 986.1645 | Z134: 0.0007816050965 | AA134: 986.1645 | AC134: =L134-INDEX($C134:$L134,1,aux!$BA$1) -> 0 | AD134: 0 | AE134: =+IF(INDEX($C134:$L134,1,aux!$BA$1)>0,(L134/INDEX($C134:$L134,1,aux!$BA$1))^(1/($L$3-INDEX($C$3:$L$3,1,aux!$BA$1)))-1,"n.d.") -> n.d. | AF134: =IF(INDEX($C134:$L134,1,aux!$BA$1)>0,(L134-INDEX($C134:$L134,1,aux!$BA$1))/INDEX($C134:$L134,1,aux!$BA$1),"n.d.") -> n.d. | AH134: =X134-INDEX($O134:$X134,1,aux!$BA$1) -> 2586.108 | AI134: 0.003008789343 | AJ134: =+IF(INDEX($O134:$X134,1,aux!$BA$1)>0,(X134/INDEX($O134:$X134,1,aux!$BA$1))^(1/($X$3-INDEX($O$3:$X$3,1,aux!$BA$1)))-1,"n.d.") -> 0.3216948796 | AK134: =IF(INDEX($O134:$X134,1,aux!$BA$1)>0,(X134-INDEX($O134:$X134,1,aux!$BA$1))/INDEX($O134:$X134,1,aux!$BA$1),"n.d.") -> 11.30781238 | CC134: =+IF(ISNA(MATCH('5.1'!A134,AUX_2d_pais!$G$2:$G$40000,0)),0,1) -> 1
A135: 0037 | B135: Liechtenstein | C135: 0 | D135: 0 | E135: 0 | F135: 0 | G135: 0 | H135: 0 | I135: 0 | J135: 0 | K135: 0 | L135: 0 | M135: 0 | N135: 0 | O135: 21.452 | P135: 62.737 | Q135: 106.44 | R135: 152.516 | S135: 107.136 | T135: 154.156 | U135: 0 | V135: 0 | W135: 0 | X135: 0.1 | Y135: 60.4537 | Z135: 4.791383184e-05 | AA135: 60.4537 | AC135: =L135-INDEX($C135:$L135,1,aux!$BA$1) -> 0 | AD135: 0 | AE135: =+IF(INDEX($C135:$L135,1,aux!$BA$1)>0,(L135/INDEX($C135:$L135,1,aux!$BA$1))^(1/($L$3-INDEX($C$3:$L$3,1,aux!$BA$1)))-1,"n.d.") -> n.d. | AF135: =IF(INDEX($C135:$L135,1,aux!$BA$1)>0,(L135-INDEX($C135:$L135,1,aux!$BA$1))/INDEX($C135:$L135,1,aux!$BA$1),"n.d.") -> n.d. | AH135: =X135-INDEX($O135:$X135,1,aux!$BA$1) -> -21.352 | AI135: -2.484183571e-05 | AJ135: =+IF(INDEX($O135:$X135,1,aux!$BA$1)>0,(X135/INDEX($O135:$X135,1,aux!$BA$1))^(1/($X$3-INDEX($O$3:$X$3,1,aux!$BA$1)))-1,"n.d.") -> -0.4492582205 | AK135: =IF(INDEX($O135:$X135,1,aux!$BA$1)>0,(X135-INDEX($O135:$X135,1,aux!$BA$1))/INDEX($O135:$X135,1,aux!$BA$1),"n.d.") -> -0.99533843 | CC135: =+IF(ISNA(MATCH('5.1'!A135,AUX_2d_pais!$G$2:$G$40000,0)),0,1) -> 1
A136: 0055 | B136: Lituânia | C136: 0 | D136: 64.052 | E136: 127.725 | F136: 69.322 | G136: 3.451 | H136: 102.825 | I136: 6.175 | J136: 1.544 | K136: 18.64 | L136: 46.904 | M136: 44.0638 | N136: 3.074724839e-05 | O136: 401.431 | P136: 623.268 | Q136: 1236.674 | R136: 713.661 | S136: 808.301 | T136: 1037.753 | U136: 890.674 | V136: 729.906 | W136: 797.655 | X136: 834.84 | Y136: 807.4163 | Z136: 0.000639934509 | AA136: 763.3525 | AC136: =L136-INDEX($C136:$L136,1,aux!$BA$1) -> 46.904 | AD136: 7.114996333e-05 | AE136: =+IF(INDEX($C136:$L136,1,aux!$BA$1)>0,(L136/INDEX($C136:$L136,1,aux!$BA$1))^(1/($L$3-INDEX($C$3:$L$3,1,aux!$BA$1)))-1,"n.d.") -> n.d. | AF136: =IF(INDEX($C136:$L136,1,aux!$BA$1)>0,(L136-INDEX($C136:$L136,1,aux!$BA$1))/INDEX($C136:$L136,1,aux!$BA$1),"n.d.") -> n.d. | AH136: =X136-INDEX($O136:$X136,1,aux!$BA$1) -> 433.409 | AI136: 0.0005042466828 | AJ136: =+IF(INDEX($O136:$X136,1,aux!$BA$1)>0,(X136/INDEX($O136:$X136,1,aux!$BA$1))^(1/($X$3-INDEX($O$3:$X$3,1,aux!$BA$1)))-1,"n.d.") -> 0.08475705275 | AK136: =IF(INDEX($O136:$X136,1,aux!$BA$1)>0,(X136-INDEX($O136:$X136,1,aux!$BA$1))/INDEX($O136:$X136,1,aux!$BA$1),"n.d.") -> 1.079660016 | CC136: =+IF(ISNA(MATCH('5.1'!A136,AUX_2d_pais!$G$2:$G$40000,0)),0,1) -> 1
A137: 0018 | B137: Luxemburgo | C137: 185.9 | D137: 1148.252 | E137: 902.688 | F137: 331.979 | G137: 878.73 | H137: 778.762 | I137: 101.858 | J137: 1004.56 | K137: 644.864 | L137: 2766.069 | M137: 874.3662 | N137: 0.0006101233833 | O137: 3179.033 | P137: 3074.653 | Q137: 3044.055 | R137: 3113.78 | S137: 3802.791 | T137: 4206.013 | U137: 4066.537 | V137: 4800.466 | W137: 5007.726 | X137: 5505.628 | Y137: 3980.0682 | Z137: 0.003154485473 | AA137: 3105.702 | AC137: =L137-INDEX($C137:$L137,1,aux!$BA$1) -> 2580.169 | AD137: 0.003913929084 | AE137: =+IF(INDEX($C137:$L137,1,aux!$BA$1)>0,(L137/INDEX($C137:$L137,1,aux!$BA$1))^(1/($L$3-INDEX($C$3:$L$3,1,aux!$BA$1)))-1,"n.d.") -> 0.3498548424 | AF137: =IF(INDEX($C137:$L137,1,aux!$BA$1)>0,(L137-INDEX($C137:$L137,1,aux!$BA$1))/INDEX($C137:$L137,1,aux!$BA$1),"n.d.") -> 13.87933835 | AH137: =X137-INDEX($O137:$X137,1,aux!$BA$1) -> 2326.595 | AI137: 0.002706860751 | AJ137: =+IF(INDEX($O137:$X137,1,aux!$BA$1)>0,(X137/INDEX($O137:$X137,1,aux!$BA$1))^(1/($X$3-INDEX($O$3:$X$3,1,aux!$BA$1)))-1,"n.d.") -> 0.06292179974 | AK137: =IF(INDEX($O137:$X137,1,aux!$BA$1)>0,(X137-INDEX($O137:$X137,1,aux!$BA$1))/INDEX($O137:$X137,1,aux!$BA$1),"n.d.") -> 0.7318561965 | CC137: =+IF(ISNA(MATCH('5.1'!A137,AUX_2d_pais!$G$2:$G$40000,0)),0,1) -> 1
A138: 0743 | B138: Macau | C138: 0 | D138: 0.895 | E138: 0 | F138: 0 | G138: 0 | H138: 0 | I138: 0 | J138: 0 | K138: 0 | L138: 0 | M138: 0.0895 | N138: 6.245214283e-08 | O138: 101.228 | P138: 183.792 | Q138: 114.986 | R138: 145.687 | S138: 218.93 | T138: 160.816 | U138: 261.922 | V138: 200.76 | W138: 217.587 | X138: 217.143 | Y138: 182.2851 | Z138: 0.0001444738309 | AA138: 182.1956 | AC138: =L138-INDEX($C138:$L138,1,aux!$BA$1) -> 0 | AD138: 0 | AE138: =+IF(INDEX($C138:$L138,1,aux!$BA$1)>0,(L138/INDEX($C138:$L138,1,aux!$BA$1))^(1/($L$3-INDEX($C$3:$L$3,1,aux!$BA$1)))-1,"n.d.") -> n.d. | AF138: =IF(INDEX($C138:$L138,1,aux!$BA$1)>0,(L138-INDEX($C138:$L138,1,aux!$BA$1))/INDEX($C138:$L138,1,aux!$BA$1),"n.d.") -> n.d. | AH138: =X138-INDEX($O138:$X138,1,aux!$BA$1) -> 115.915 | AI138: 0.0001348604995 | AJ138: =+IF(INDEX($O138:$X138,1,aux!$BA$1)>0,(X138/INDEX($O138:$X138,1,aux!$BA$1))^(1/($X$3-INDEX($O$3:$X$3,1,aux!$BA$1)))-1,"n.d.") -> 0.08849701377 | AK138: =IF(INDEX($O138:$X138,1,aux!$BA$1)>0,(X138-INDEX($O138:$X138,1,aux!$BA$1))/INDEX($O138:$X138,1,aux!$BA$1),"n.d.") -> 1.145088315 | CC138: =+IF(ISNA(MATCH('5.1'!A138,AUX_2d_pais!$G$2:$G$40000,0)),0,1) -> 1
A139: 0096 | B139: Macedónia, Antiga República jugoslava da | C139: 1.483 | D139: 0.848 | E139: 0.49 | F139: 0.82 | G139: 0.592 | H139: 0.023 | I139: 0 | J139: 0 | K139: 0 | L139: 0 | M139: 0.4256 | N139: 2.969791283e-07 | O139: 0 | P139: 0 | Q139: 0 | R139: 0 | S139: 0 | T139: 0 | U139: 0 | V139: 0 | W139: 17.299 | X139: 18.532 | Y139: 3.5831 | Z139: 2.839860106e-06 | AA139: 3.1575 | AC139: =L139-INDEX($C139:$L139,1,aux!$BA$1) -> -1.483 | AD139: -2.249603352e-06 | AE139: =+IF(INDEX($C139:$L139,1,aux!$BA$1)>0,(L139/INDEX($C139:$L139,1,aux!$BA$1))^(1/($L$3-INDEX($C$3:$L$3,1,aux!$BA$1)))-1,"n.d.") -> -1 | AF139: =IF(INDEX($C139:$L139,1,aux!$BA$1)>0,(L139-INDEX($C139:$L139,1,aux!$BA$1))/INDEX($C139:$L139,1,aux!$BA$1),"n.d.") -> -1 | AH139: =X139-INDEX($O139:$X139,1,aux!$BA$1) -> 18.532 | AI139: 2.156092635e-05 | AJ139: =+IF(INDEX($O139:$X139,1,aux!$BA$1)>0,(X139/INDEX($O139:$X139,1,aux!$BA$1))^(1/($X$3-INDEX($O$3:$X$3,1,aux!$BA$1)))-1,"n.d.") -> n.d. | AK139: =IF(INDEX($O139:$X139,1,aux!$BA$1)>0,(X139-INDEX($O139:$X139,1,aux!$BA$1))/INDEX($O139:$X139,1,aux!$BA$1),"n.d.") -> n.d. | CC139: =+IF(ISNA(MATCH('5.1'!A139,AUX_2d_pais!$G$2:$G$40000,0)),0,1) -> 1
A140: 0370 | B140: Madagáscar | C140: 1327.802 | D140: 1036.746 | E140: 1814.756 | F140: 1925.012 | G140: 2285.735 | H140: 1792.259 | I140: 1841.709 | J140: 1024.805 | K140: 661.283 | L140: 1748.964 | M140: 1545.9071 | N140: 0.001078717441 | O140: 0 | P140: 9.888 | Q140: 40.981 | R140: 9.147 | S140: 0 | T140: 44.001 | U140: 0 | V140: 0 | W140: 0 | X140: 0 | Y140: 10.4017 | Z140: 8.244082739e-06 | AA140: -1535.5054 | AC140: =L140-INDEX($C140:$L140,1,aux!$BA$1) -> 421.162 | AD140: 0.0006388721827 | AE140: =+IF(INDEX($C140:$L140,1,aux!$BA$1)>0,(L140/INDEX($C140:$L140,1,aux!$BA$1))^(1/($L$3-INDEX($C$3:$L$3,1,aux!$BA$1)))-1,"n.d.") -> 0.03108429615 | AF140: =IF(INDEX($C140:$L140,1,aux!$BA$1)>0,(L140-INDEX($C140:$L140,1,aux!$BA$1))/INDEX($C140:$L140,1,aux!$BA$1),"n.d.") -> 0.3171873517 | AH140: =X140-INDEX($O140:$X140,1,aux!$BA$1) -> 0 | AI140: 0 | AJ140: =+IF(INDEX($O140:$X140,1,aux!$BA$1)>0,(X140/INDEX($O140:$X140,1,aux!$BA$1))^(1/($X$3-INDEX($O$3:$X$3,1,aux!$BA$1)))-1,"n.d.") -> n.d. | AK140: =IF(INDEX($O140:$X140,1,aux!$BA$1)>0,(X140-INDEX($O140:$X140,1,aux!$BA$1))/INDEX($O140:$X140,1,aux!$BA$1),"n.d.") -> n.d. | CC140: =+IF(ISNA(MATCH('5.1'!A140,AUX_2d_pais!$G$2:$G$40000,0)),0,1) -> 1
A141: 0701 | B141: Malásia | C141: 16.939 | D141: 57.303 | E141: 7.33 | F141: 2.468 | G141: 4.936 | H141: 4.307 | I141: 2.468 | J141: 0.174 | K141: 0 | L141: 0 | M141: 9.5925 | N141: 6.693543911e-06 | O141: 208.787 | P141: 18.02 | Q141: 74.92 | R141: 25.145 | S141: 93.4 | T141: 87.741 | U141: 176.479 | V141: 18.97 | W141: 182.723 | X141: 104.295 | Y141: 99.048 | Z141: 7.850254354e-05 | AA141: 89.4555 | AC141: =L141-INDEX($C141:$L141,1,aux!$BA$1) -> -16.939 | AD141: -2.569523343e-05 | AE141: =+IF(INDEX($C141:$L141,1,aux!$BA$1)>0,(L141/INDEX($C141:$L141,1,aux!$BA$1))^(1/($L$3-INDEX($C$3:$L$3,1,aux!$BA$1)))-1,"n.d.") -> -1 | AF141: =IF(INDEX($C141:$L141,1,aux!$BA$1)>0,(L141-INDEX($C141:$L141,1,aux!$BA$1))/INDEX($C141:$L141,1,aux!$BA$1),"n.d.") -> -1 | AH141: =X141-INDEX($O141:$X141,1,aux!$BA$1) -> -104.492 | AI141: -0.0001215704897 | AJ141: =+IF(INDEX($O141:$X141,1,aux!$BA$1)>0,(X141/INDEX($O141:$X141,1,aux!$BA$1))^(1/($X$3-INDEX($O$3:$X$3,1,aux!$BA$1)))-1,"n.d.") -> -0.07422239564 | AK141: =IF(INDEX($O141:$X141,1,aux!$BA$1)>0,(X141-INDEX($O141:$X141,1,aux!$BA$1))/INDEX($O141:$X141,1,aux!$BA$1),"n.d.") -> -0.5004717727 | CC141: =+IF(ISNA(MATCH('5.1'!A141,AUX_2d_pais!$G$2:$G$40000,0)),0,1) -> 1
A142: 0386 | B142: Malavi | C142: 0 | D142: 0 | E142: 0 | F142: 0 | G142: 0 | H142: 0 | I142: 0 | J142: 0 | K142: 0 | L142: 0 | M142: 0 | N142: 0 | O142: 0 | P142: 0 | Q142: 0 | R142: 0 | S142: 0 | T142: 0 | U142: 0 | V142: 0.188 | W142: 0 | X142: 0 | Y142: 0.0188 | Z142: 1.490032932e-08 | AA142: 0.0188 | AC142: =L142-INDEX($C142:$L142,1,aux!$BA$1) -> 0 | AD142: 0 | AE142: =+IF(INDEX($C142:$L142,1,aux!$BA$1)>0,(L142/INDEX($C142:$L142,1,aux!$BA$1))^(1/($L$3-INDEX($C$3:$L$3,1,aux!$BA$1)))-1,"n.d.") -> n.d. | AF142: =IF(INDEX($C142:$L142,1,aux!$BA$1)>0,(L142-INDEX($C142:$L142,1,aux!$BA$1))/INDEX($C142:$L142,1,aux!$BA$1),"n.d.") -> n.d. | AH142: =X142-INDEX($O142:$X142,1,aux!$BA$1) -> 0 | AI142: 0 | AJ142: =+IF(INDEX($O142:$X142,1,aux!$BA$1)>0,(X142/INDEX($O142:$X142,1,aux!$BA$1))^(1/($X$3-INDEX($O$3:$X$3,1,aux!$BA$1)))-1,"n.d.") -> n.d. | AK142: =IF(INDEX($O142:$X142,1,aux!$BA$1)>0,(X142-INDEX($O142:$X142,1,aux!$BA$1))/INDEX($O142:$X142,1,aux!$BA$1),"n.d.") -> n.d. | CC142: =+IF(ISNA(MATCH('5.1'!A142,AUX_2d_pais!$G$2:$G$40000,0)),0,1) -> 1
A143: 0667 | B143: Maldivas | C143: 0 | D143: 0 | E143: 0 | F143: 0 | G143: 0 | H143: 0 | I143: 0 | J143: 0 | K143: 0 | L143: 0 | M143: 0 | N143: 0 | O143: 0 | P143: 0 | Q143: 0.063 | R143: 0 | S143: 0 | T143: 20.538 | U143: 19.178 | V143: 15.005 | W143: 14.991 | X143: 8.229 | Y143: 7.8004 | Z143: 6.182368555e-06 | AA143: 7.8004 | AC143: =L143-INDEX($C143:$L143,1,aux!$BA$1) -> 0 | AD143: 0 | AE143: =+IF(INDEX($C143:$L143,1,aux!$BA$1)>0,(L143/INDEX($C143:$L143,1,aux!$BA$1))^(1/($L$3-INDEX($C$3:$L$3,1,aux!$BA$1)))-1,"n.d.") -> n.d. | AF143: =IF(INDEX($C143:$L143,1,aux!$BA$1)>0,(L143-INDEX($C143:$L143,1,aux!$BA$1))/INDEX($C143:$L143,1,aux!$BA$1),"n.d.") -> n.d. | AH143: =X143-INDEX($O143:$X143,1,aux!$BA$1) -> 8.229 | AI143: 9.573972744e-06 | AJ143: =+IF(INDEX($O143:$X143,1,aux!$BA$1)>0,(X143/INDEX($O143:$X143,1,aux!$BA$1))^(1/($X$3-INDEX($O$3:$X$3,1,aux!$BA$1)))-1,"n.d.") -> n.d. | AK143: =IF(INDEX($O143:$X143,1,aux!$BA$1)>0,(X143-INDEX($O143:$X143,1,aux!$BA$1))/INDEX($O143:$X143,1,aux!$BA$1),"n.d.") -> n.d. | CC143: =+IF(ISNA(MATCH('5.1'!A143,AUX_2d_pais!$G$2:$G$40000,0)),0,1) -> 1
A144: 0232 | B144: Mali | C144: 0 | D144: 0 | E144: 360.918 | F144: 420.33 | G144: 385.969 | H144: 118.557 | I144: 216.001 | J144: 331.74 | K144: 149.139 | L144: 247.156 | M144: 222.981 | N144: 0.0001555937571 | O144: 0 | P144: 0 | Q144: 0 | R144: 0 | S144: 78.597 | T144: 56.377 | U144: 43.593 | V144: 76.129 | W144: 42.713 | X144: 21.906 | Y144: 31.9315 | Z144: 2.530797158e-05 | AA144: -191.0495 | AC144: =L144-INDEX($C144:$L144,1,aux!$BA$1) -> 247.156 | AD144: 0.0003749177114 | AE144: =+IF(INDEX($C144:$L144,1,aux!$BA$1)>0,(L144/INDEX($C144:$L144,1,aux!$BA$1))^(1/($L$3-INDEX($C$3:$L$3,1,aux!$BA$1)))-1,"n.d.") -> n.d. | AF144: =IF(INDEX($C144:$L144,1,aux!$BA$1)>0,(L144-INDEX($C144:$L144,1,aux!$BA$1))/INDEX($C144:$L144,1,aux!$BA$1),"n.d.") -> n.d. | AH144: =X144-INDEX($O144:$X144,1,aux!$BA$1) -> 21.906 | AI144: 2.548638315e-05 | AJ144: =+IF(INDEX($O144:$X144,1,aux!$BA$1)>0,(X144/INDEX($O144:$X144,1,aux!$BA$1))^(1/($X$3-INDEX($O$3:$X$3,1,aux!$BA$1)))-1,"n.d.") -> n.d. | AK144: =IF(INDEX($O144:$X144,1,aux!$BA$1)>0,(X144-INDEX($O144:$X144,1,aux!$BA$1))/INDEX($O144:$X144,1,aux!$BA$1),"n.d.") -> n.d. | CC144: =+IF(ISNA(MATCH('5.1'!A144,AUX_2d_pais!$G$2:$G$40000,0)),0,1) -> 1
A145: 0046 | B145: Malta | C145: 0 | D145: 2.072 | E145: 8.085 | F145: 0 | G145: 1.698 | H145: 174.203 | I145: 69.043 | J145: 60.088 | K145: 40.948 | L145: 74.411 | M145: 43.0548 | N145: 3.004317898e-05 | O145: 1.611 | P145: 14.675 | Q145: 7.991 | R145: 32.772 | S145: 15.124 | T145: 64.083 | U145: 17.825 | V145: 30.513 | W145: 188.531 | X145: 123.966 | Y145: 49.7091 | Z145: 3.939797661e-05 | AA145: 6.6543 | AC145: =L145-INDEX($C145:$L145,1,aux!$BA$1) -> 74.411 | AD145: 0.0001128760857 | AE145: =+IF(INDEX($C145:$L145,1,aux!$BA$1)>0,(L145/INDEX($C145:$L145,1,aux!$BA$1))^(1/($L$3-INDEX($C$3:$L$3,1,aux!$BA$1)))-1,"n.d.") -> n.d. | AF145: =IF(INDEX($C145:$L145,1,aux!$BA$1)>0,(L145-INDEX($C145:$L145,1,aux!$BA$1))/INDEX($C145:$L145,1,aux!$BA$1),"n.d.") -> n.d. | AH145: =X145-INDEX($O145:$X145,1,aux!$BA$1) -> 122.355 | AI145: 0.0001423530727 | AJ145: =+IF(INDEX($O145:$X145,1,aux!$BA$1)>0,(X145/INDEX($O145:$X145,1,aux!$BA$1))^(1/($X$3-INDEX($O$3:$X$3,1,aux!$BA$1)))-1,"n.d.") -> 0.620237057 | AK145: =IF(INDEX($O145:$X145,1,aux!$BA$1)>0,(X145-INDEX($O145:$X145,1,aux!$BA$1))/INDEX($O145:$X145,1,aux!$BA$1),"n.d.") -> 75.94972067 | CC145: =+IF(ISNA(MATCH('5.1'!A145,AUX_2d_pais!$G$2:$G$40000,0)),0,1) -> 1
A146: 0820 | B146: Marianas do Norte, Ilhas | C146: 0 | D146: 0 | E146: 0 | F146: 0 | G146: 0 | H146: 0 | I146: 0 | J146: 0 | K146: 0 | L146: 0 | M146: 0 | N146: 0 | O146: 0 | P146: 0 | Q146: 0 | R146: 0 | S146: 0 | T146: 0 | U146: 0 | V146: 0 | W146: 0 | X146: 0 | Y146: 0 | Z146: 0 | AA146: 0 | AC146: =L146-INDEX($C146:$L146,1,aux!$BA$1) -> 0 | AD146: 0 | AE146: =+IF(INDEX($C146:$L146,1,aux!$BA$1)>0,(L146/INDEX($C146:$L146,1,aux!$BA$1))^(1/($L$3-INDEX($C$3:$L$3,1,aux!$BA$1)))-1,"n.d.") -> n.d. | AF146: =IF(INDEX($C146:$L146,1,aux!$BA$1)>0,(L146-INDEX($C146:$L146,1,aux!$BA$1))/INDEX($C146:$L146,1,aux!$BA$1),"n.d.") -> n.d. | AH146: =X146-INDEX($O146:$X146,1,aux!$BA$1) -> 0 | AI146: 0 | AJ146: =+IF(INDEX($O146:$X146,1,aux!$BA$1)>0,(X146/INDEX($O146:$X146,1,aux!$BA$1))^(1/($X$3-INDEX($O$3:$X$3,1,aux!$BA$1)))-1,"n.d.") -> n.d. | AK146: =IF(INDEX($O146:$X146,1,aux!$BA$1)>0,(X146-INDEX($O146:$X146,1,aux!$BA$1))/INDEX($O146:$X146,1,aux!$BA$1),"n.d.") -> n.d. | AM146: =SUM(A146:AA146) -> 0 | BO146: =SUM(C146:L146,O146:X146) -> 0 | CC146: =+IF(ISNA(MATCH('5.1'!A146,AUX_2d_pais!$G$2:$G$40000,0)),0,1) -> 0
A147: 0204 | B147: Marrocos | C147: 1112.754 | D147: 778.403 | E147: 2066.146 | F147: 2003.481 | G147: 1831.566 | H147: 3098.74 | I147: 2967.817 | J147: 4413.493 | K147: 1657.82 | L147: 3127.434 | M147: 2305.7654 | N147: 0.001608938437 | O147: 3191.637 | P147: 2654.26 | Q147: 3432.479 | R147: 4712.177 | S147: 2709.08 | T147: 2215.134 | U147: 3657.136 | V147: 2524.208 | W147: 2287.861 | X147: 1787.899 | Y147: 2917.1871 | Z147: 0.002312077047 | AA147: 611.4217 | AC147: =L147-INDEX($C147:$L147,1,aux!$BA$1) -> 2014.68 | AD147: 0.003056123318 | AE147: =+IF(INDEX($C147:$L147,1,aux!$BA$1)>0,(L147/INDEX($C147:$L147,1,aux!$BA$1))^(1/($L$3-INDEX($C$3:$L$3,1,aux!$BA$1)))-1,"n.d.") -> 0.121670875 | AF147: =IF(INDEX($C147:$L147,1,aux!$BA$1)>0,(L147-INDEX($C147:$L147,1,aux!$BA$1))/INDEX($C147:$L147,1,aux!$BA$1),"n.d.") -> 1.810534943 | AH147: =X147-INDEX($O147:$X147,1,aux!$BA$1) -> -1403.738 | AI147: -0.001633169201 | AJ147: =+IF(INDEX($O147:$X147,1,aux!$BA$1)>0,(X147/INDEX($O147:$X147,1,aux!$BA$1))^(1/($X$3-INDEX($O$3:$X$3,1,aux!$BA$1)))-1,"n.d.") -> -0.06235895539 | AK147: =IF(INDEX($O147:$X147,1,aux!$BA$1)>0,(X147-INDEX($O147:$X147,1,aux!$BA$1))/INDEX($O147:$X147,1,aux!$BA$1),"n.d.") -> -0.4398175607 | CC147: =+IF(ISNA(MATCH('5.1'!A147,AUX_2d_pais!$G$2:$G$40000,0)),0,1) -> 1
A148: 0824 | B148: Marshall, Ilhas | C148: 0 | D148: 0 | E148: 0 | F148: 0 | G148: 0 | H148: 0 | I148: 0 | J148: 0 | K148: 0 | L148: 0 | M148: 0 | N148: 0 | O148: 0 | P148: 0 | Q148: 0 | R148: 0 | S148: 0 | T148: 0 | U148: 0 | V148: 0 | W148: 0 | X148: 0 | Y148: 0 | Z148: 0 | AA148: 0 | AC148: =L148-INDEX($C148:$L148,1,aux!$BA$1) -> 0 | AD148: 0 | AE148: =+IF(INDEX($C148:$L148,1,aux!$BA$1)>0,(L148/INDEX($C148:$L148,1,aux!$BA$1))^(1/($L$3-INDEX($C$3:$L$3,1,aux!$BA$1)))-1,"n.d.") -> n.d. | AF148: =IF(INDEX($C148:$L148,1,aux!$BA$1)>0,(L148-INDEX($C148:$L148,1,aux!$BA$1))/INDEX($C148:$L148,1,aux!$BA$1),"n.d.") -> n.d. | AH148: =X148-INDEX($O148:$X148,1,aux!$BA$1) -> 0 | AI148: 0 | AJ148: =+IF(INDEX($O148:$X148,1,aux!$BA$1)>0,(X148/INDEX($O148:$X148,1,aux!$BA$1))^(1/($X$3-INDEX($O$3:$X$3,1,aux!$BA$1)))-1,"n.d.") -> n.d. | AK148: =IF(INDEX($O148:$X148,1,aux!$BA$1)>0,(X148-INDEX($O148:$X148,1,aux!$BA$1))/INDEX($O148:$X148,1,aux!$BA$1),"n.d.") -> n.d. | AM148: 0 | CC148: =+IF(ISNA(MATCH('5.1'!A148,AUX_2d_pais!$G$2:$G$40000,0)),0,1) -> 0
A149: 0462 | B149: Martinica | C149: 0 | D149: 0 | E149: 0 | F149: 0 | G149: 0 | H149: 0 | I149: 0 | J149: 0 | K149: 0 | L149: 0 | M149: 0 | N149: 0 | O149: 0 | P149: 0 | Q149: 0 | R149: 0 | S149: 0 | T149: 0 | U149: 0 | V149: 0 | W149: 0 | X149: 0 | Y149: 0 | Z149: 0 | AA149: 0 | AC149: =L149-INDEX($C149:$L149,1,aux!$BA$1) -> 0 | AD149: 0 | AE149: =+IF(INDEX($C149:$L149,1,aux!$BA$1)>0,(L149/INDEX($C149:$L149,1,aux!$BA$1))^(1/($L$3-INDEX($C$3:$L$3,1,aux!$BA$1)))-1,"n.d.") -> n.d. | AF149: =IF(INDEX($C149:$L149,1,aux!$BA$1)>0,(L149-INDEX($C149:$L149,1,aux!$BA$1))/INDEX($C149:$L149,1,aux!$BA$1),"n.d.") -> n.d. | AH149: =X149-INDEX($O149:$X149,1,aux!$BA$1) -> 0 | AI149: 0 | AJ149: =+IF(INDEX($O149:$X149,1,aux!$BA$1)>0,(X149/INDEX($O149:$X149,1,aux!$BA$1))^(1/($X$3-INDEX($O$3:$X$3,1,aux!$BA$1)))-1,"n.d.") -> n.d. | AK149: =IF(INDEX($O149:$X149,1,aux!$BA$1)>0,(X149-INDEX($O149:$X149,1,aux!$BA$1))/INDEX($O149:$X149,1,aux!$BA$1),"n.d.") -> n.d. | AM149: 0 | BO149: 0 | CC149: =+IF(ISNA(MATCH('5.1'!A149,AUX_2d_pais!$G$2:$G$40000,0)),0,1) -> 0
A150: 0373 | B150: Maurícias | C150: 0 | D150: 0 | E150: 0 | F150: 38.778 | G150: 0 | H150: 34.183 | I150: 0 | J150: 0 | K150: 0 | L150: 0 | M150: 7.2961 | N150: 5.091140551e-06 | O150: 0 | P150: 0 | Q150: 75.193 | R150: 244.812 | S150: 755.115 | T150: 1404.546 | U150: 947.794 | V150: 1113.411 | W150: 822.215 | X150: 1038.558 | Y150: 640.1644 | Z150: 0.0005073755521 | AA150: 632.8683 | AC150: =L150-INDEX($C150:$L150,1,aux!$BA$1) -> 0 | AD150: 0 | AE150: =+IF(INDEX($C150:$L150,1,aux!$BA$1)>0,(L150/INDEX($C150:$L150,1,aux!$BA$1))^(1/($L$3-INDEX($C$3:$L$3,1,aux!$BA$1)))-1,"n.d.") -> n.d. | AF150: =IF(INDEX($C150:$L150,1,aux!$BA$1)>0,(L150-INDEX($C150:$L150,1,aux!$BA$1))/INDEX($C150:$L150,1,aux!$BA$1),"n.d.") -> n.d. | AH150: =X150-INDEX($O150:$X150,1,aux!$BA$1) -> 1038.558 | AI150: 0.001208303073 | AJ150: =+IF(INDEX($O150:$X150,1,aux!$BA$1)>0,(X150/INDEX($O150:$X150,1,aux!$BA$1))^(1/($X$3-INDEX($O$3:$X$3,1,aux!$BA$1)))-1,"n.d.") -> n.d. | AK150: =IF(INDEX($O150:$X150,1,aux!$BA$1)>0,(X150-INDEX($O150:$X150,1,aux!$BA$1))/INDEX($O150:$X150,1,aux!$BA$1),"n.d.") -> n.d. | CC150: =+IF(ISNA(MATCH('5.1'!A150,AUX_2d_pais!$G$2:$G$40000,0)),0,1) -> 1
A151: 0228 | B151: Mauritânia | C151: 0 | D151: 0 | E151: 0 | F151: 0 | G151: 0 | H151: 0 | I151: 0 | J151: 0 | K151: 0 | L151: 0 | M151: 0 | N151: 0 | O151: 36.173 | P151: 76.151 | Q151: 87.932 | R151: 157.595 | S151: 65.603 | T151: 17.085 | U151: 20.232 | V151: 29.519 | W151: 13.066 | X151: 88.452 | Y151: 59.1808 | Z151: 4.690496859e-05 | AA151: 59.1808 | AC151: =L151-INDEX($C151:$L151,1,aux!$BA$1) -> 0 | AD151: 0 | AE151: =+IF(INDEX($C151:$L151,1,aux!$BA$1)>0,(L151/INDEX($C151:$L151,1,aux!$BA$1))^(1/($L$3-INDEX($C$3:$L$3,1,aux!$BA$1)))-1,"n.d.") -> n.d. | AF151: =IF(INDEX($C151:$L151,1,aux!$BA$1)>0,(L151-INDEX($C151:$L151,1,aux!$BA$1))/INDEX($C151:$L151,1,aux!$BA$1),"n.d.") -> n.d. | AH151: =X151-INDEX($O151:$X151,1,aux!$BA$1) -> 52.279 | AI151: 6.082363849e-05 | AJ151: =+IF(INDEX($O151:$X151,1,aux!$BA$1)>0,(X151/INDEX($O151:$X151,1,aux!$BA$1))^(1/($X$3-INDEX($O$3:$X$3,1,aux!$BA$1)))-1,"n.d.") -> 0.1044524281 | AK151: =IF(INDEX($O151:$X151,1,aux!$BA$1)>0,(X151-INDEX($O151:$X151,1,aux!$BA$1))/INDEX($O151:$X151,1,aux!$BA$1),"n.d.") -> 1.445249219 | CC151: =+IF(ISNA(MATCH('5.1'!A151,AUX_2d_pais!$G$2:$G$40000,0)),0,1) -> 1
A152: 0377 | B152: Mayotte | C152: 0 | D152: 0 | E152: 0 | F152: 0 | G152: 0 | H152: 0 | I152: 0 | J152: 0 | K152: 0 | L152: 0 | M152: 0 | N152: 0 | O152: 0 | P152: 0 | Q152: 0 | R152: 0 | S152: 0 | T152: 0 | U152: 0 | V152: 0 | W152: 0 | X152: 0 | Y152: 0 | Z152: 0 | AA152: 0 | AC152: =L152-INDEX($C152:$L152,1,aux!$BA$1) -> 0 | AD152: 0 | AE152: =+IF(INDEX($C152:$L152,1,aux!$BA$1)>0,(L152/INDEX($C152:$L152,1,aux!$BA$1))^(1/($L$3-INDEX($C$3:$L$3,1,aux!$BA$1)))-1,"n.d.") -> n.d. | AF152: =IF(INDEX($C152:$L152,1,aux!$BA$1)>0,(L152-INDEX($C152:$L152,1,aux!$BA$1))/INDEX($C152:$L152,1,aux!$BA$1),"n.d.") -> n.d. | AH152: =X152-INDEX($O152:$X152,1,aux!$BA$1) -> 0 | AI152: 0 | AJ152: =+IF(INDEX($O152:$X152,1,aux!$BA$1)>0,(X152/INDEX($O152:$X152,1,aux!$BA$1))^(1/($X$3-INDEX($O$3:$X$3,1,aux!$BA$1)))-1,"n.d.") -> n.d. | AK152: =IF(INDEX($O152:$X152,1,aux!$BA$1)>0,(X152-INDEX($O152:$X152,1,aux!$BA$1))/INDEX($O152:$X152,1,aux!$BA$1),"n.d.") -> n.d. | AM152: 0 | BO152: 0 | CC152: =+IF(ISNA(MATCH('5.1'!A152,AUX_2d_pais!$G$2:$G$40000,0)),0,1) -> 0
A153: 0023 | B153: Melilha | C153: 0 | D153: 0 | E153: 0 | F153: 0 | G153: 0 | H153: 0 | I153: 0 | J153: 0 | K153: 0 | L153: 0 | M153: 0 | N153: 0 | O153: 0.023 | P153: 0 | Q153: 10.549 | R153: 96.093 | S153: 0 | T153: 0 | U153: 0 | V153: 1.296 | W153: 0 | X153: 0 | Y153: 10.7961 | Z153: 8.556672627e-06 | AA153: 10.7961 | AC153: =L153-INDEX($C153:$L153,1,aux!$BA$1) -> 0 | AD153: 0 | AE153: =+IF(INDEX($C153:$L153,1,aux!$BA$1)>0,(L153/INDEX($C153:$L153,1,aux!$BA$1))^(1/($L$3-INDEX($C$3:$L$3,1,aux!$BA$1)))-1,"n.d.") -> n.d. | AF153: =IF(INDEX($C153:$L153,1,aux!$BA$1)>0,(L153-INDEX($C153:$L153,1,aux!$BA$1))/INDEX($C153:$L153,1,aux!$BA$1),"n.d.") -> n.d. | AH153: =X153-INDEX($O153:$X153,1,aux!$BA$1) -> -0.023 | AI153: -2.675918983e-08 | AJ153: =+IF(INDEX($O153:$X153,1,aux!$BA$1)>0,(X153/INDEX($O153:$X153,1,aux!$BA$1))^(1/($X$3-INDEX($O$3:$X$3,1,aux!$BA$1)))-1,"n.d.") -> -1 | AK153: =IF(INDEX($O153:$X153,1,aux!$BA$1)>0,(X153-INDEX($O153:$X153,1,aux!$BA$1))/INDEX($O153:$X153,1,aux!$BA$1),"n.d.") -> -1 | CC153: =+IF(ISNA(MATCH('5.1'!A153,AUX_2d_pais!$G$2:$G$40000,0)),0,1) -> 1
A154: 0832 | B154: Menores distantes dos Estados Unidos, lhas | C154: 0 | D154: 0 | E154: 0 | F154: 0 | G154: 0 | H154: 0 | I154: 0 | J154: 0 | K154: 0 | L154: 0 | M154: 0 | N154: 0 | O154: 0 | P154: 0 | Q154: 0 | R154: 0 | S154: 0 | T154: 0 | U154: 0 | V154: 0 | W154: 0 | X154: 0 | Y154: 0 | Z154: 0 | AA154: 0 | AC154: =L154-INDEX($C154:$L154,1,aux!$BA$1) -> 0 | AD154: 0 | AE154: =+IF(INDEX($C154:$L154,1,aux!$BA$1)>0,(L154/INDEX($C154:$L154,1,aux!$BA$1))^(1/($L$3-INDEX($C$3:$L$3,1,aux!$BA$1)))-1,"n.d.") -> n.d. | AF154: =IF(INDEX($C154:$L154,1,aux!$BA$1)>0,(L154-INDEX($C154:$L154,1,aux!$BA$1))/INDEX($C154:$L154,1,aux!$BA$1),"n.d.") -> n.d. | AH154: =X154-INDEX($O154:$X154,1,aux!$BA$1) -> 0 | AI154: 0 | AJ154: =+IF(INDEX($O154:$X154,1,aux!$BA$1)>0,(X154/INDEX($O154:$X154,1,aux!$BA$1))^(1/($X$3-INDEX($O$3:$X$3,1,aux!$BA$1)))-1,"n.d.") -> n.d. | AK154: =IF(INDEX($O154:$X154,1,aux!$BA$1)>0,(X154-INDEX($O154:$X154,1,aux!$BA$1))/INDEX($O154:$X154,1,aux!$BA$1),"n.d.") -> n.d. | AM154: 0 | BO154: 0 | CC154: =+IF(ISNA(MATCH('5.1'!A154,AUX_2d_pais!$G$2:$G$40000,0)),0,1) -> 0
A155: 0412 | B155: México | C155: 869.885 | D155: 3569.156 | E155: 5075.642 | F155: 4646.643 | G155: 5835.77 | H155: 3908.6 | I155: 4267.649 | J155: 6314.914 | K155: 9716.77 | L155: 4320.106 | M155: 4852.5135 | N155: 0.003386032024 | O155: 58.436 | P155: 44.862 | Q155: 44.905 | R155: 19.063 | S155: 7.113 | T155: 32.422 | U155: 48.007 | V155: 74.809 | W155: 81.51 | X155: 37.896 | Y155: 44.9023 | Z155: 3.558824773e-05 | AA155: -4807.6112 | AC155: =L155-INDEX($C155:$L155,1,aux!$BA$1) -> 3450.221 | AD155: 0.005233734812 | AE155: =+IF(INDEX($C155:$L155,1,aux!$BA$1)>0,(L155/INDEX($C155:$L155,1,aux!$BA$1))^(1/($L$3-INDEX($C$3:$L$3,1,aux!$BA$1)))-1,"n.d.") -> 0.1949148301 | AF155: =IF(INDEX($C155:$L155,1,aux!$BA$1)>0,(L155-INDEX($C155:$L155,1,aux!$BA$1))/INDEX($C155:$L155,1,aux!$BA$1),"n.d.") -> 3.966295545 | AH155: =X155-INDEX($O155:$X155,1,aux!$BA$1) -> -20.54 | AI155: -2.389711996e-05 | AJ155: =+IF(INDEX($O155:$X155,1,aux!$BA$1)>0,(X155/INDEX($O155:$X155,1,aux!$BA$1))^(1/($X$3-INDEX($O$3:$X$3,1,aux!$BA$1)))-1,"n.d.") -> -0.0469812781 | AK155: =IF(INDEX($O155:$X155,1,aux!$BA$1)>0,(X155-INDEX($O155:$X155,1,aux!$BA$1))/INDEX($O155:$X155,1,aux!$BA$1),"n.d.") -> -0.3514956534 | CC155: =+IF(ISNA(MATCH('5.1'!A155,AUX_2d_pais!$G$2:$G$40000,0)),0,1) -> 1
A156: 0823 | B156: Micronésia, Estados Federados da | C156: 0 | D156: 0 | E156: 0 | F156: 0 | G156: 0 | H156: 0 | I156: 0 | J156: 0 | K156: 0 | L156: 0 | M156: 0 | N156: 0 | O156: 0 | P156: 0 | Q156: 0 | R156: 0 | S156: 0 | T156: 0 | U156: 0 | V156: 0 | W156: 0 | X156: 0 | Y156: 0 | Z156: 0 | AA156: 0 | AC156: =L156-INDEX($C156:$L156,1,aux!$BA$1) -> 0 | AD156: 0 | AE156: =+IF(INDEX($C156:$L156,1,aux!$BA$1)>0,(L156/INDEX($C156:$L156,1,aux!$BA$1))^(1/($L$3-INDEX($C$3:$L$3,1,aux!$BA$1)))-1,"n.d.") -> n.d. | AF156: =IF(INDEX($C156:$L156,1,aux!$BA$1)>0,(L156-INDEX($C156:$L156,1,aux!$BA$1))/INDEX($C156:$L156,1,aux!$BA$1),"n.d.") -> n.d. | AH156: =X156-INDEX($O156:$X156,1,aux!$BA$1) -> 0 | AI156: 0 | AJ156: =+IF(INDEX($O156:$X156,1,aux!$BA$1)>0,(X156/INDEX($O156:$X156,1,aux!$BA$1))^(1/($X$3-INDEX($O$3:$X$3,1,aux!$BA$1)))-1,"n.d.") -> n.d. | AK156: =IF(INDEX($O156:$X156,1,aux!$BA$1)>0,(X156-INDEX($O156:$X156,1,aux!$BA$1))/INDEX($O156:$X156,1,aux!$BA$1),"n.d.") -> n.d. | AM156: 0 | BO156: 0 | CC156: =+IF(ISNA(MATCH('5.1'!A156,AUX_2d_pais!$G$2:$G$40000,0)),0,1) -> 0
A157: 0366 | B157: Moçambique | C157: 85.573 | D157: 127.192 | E157: 92.355 | F157: 266.427 | G157: 234.009 | H157: 131.925 | I157: 802.377 | J157: 1803.499 | K157: 1017.527 | L157: 390.476 | M157: 495.136 | N157: 0.0003455006055 | O157: 1747.163 | P157: 2693.731 | Q157: 2914.676 | R157: 2891.304 | S157: 3095.67 | T157: 2140.94 | U157: 2669.899 | V157: 2810.764 | W157: 3066.072 | X157: 2389.27 | Y157: 2641.9489 | Z157: 0.002093931312 | AA157: 2146.8129 | AC157: =L157-INDEX($C157:$L157,1,aux!$BA$1) -> 304.903 | AD157: 0.0004625157187 | AE157: =+IF(INDEX($C157:$L157,1,aux!$BA$1)>0,(L157/INDEX($C157:$L157,1,aux!$BA$1))^(1/($L$3-INDEX($C$3:$L$3,1,aux!$BA$1)))-1,"n.d.") -> 0.1837250633 | AF157: =IF(INDEX($C157:$L157,1,aux!$BA$1)>0,(L157-INDEX($C157:$L157,1,aux!$BA$1))/INDEX($C157:$L157,1,aux!$BA$1),"n.d.") -> 3.563074802 | AH157: =X157-INDEX($O157:$X157,1,aux!$BA$1) -> 642.107 | AI157: 0.0007470549176 | AJ157: =+IF(INDEX($O157:$X157,1,aux!$BA$1)>0,(X157/INDEX($O157:$X157,1,aux!$BA$1))^(1/($X$3-INDEX($O$3:$X$3,1,aux!$BA$1)))-1,"n.d.") -> 0.03538896971 | AK157: =IF(INDEX($O157:$X157,1,aux!$BA$1)>0,(X157-INDEX($O157:$X157,1,aux!$BA$1))/INDEX($O157:$X157,1,aux!$BA$1),"n.d.") -> 0.3675140785 | CC157: =+IF(ISNA(MATCH('5.1'!A157,AUX_2d_pais!$G$2:$G$40000,0)),0,1) -> 1
A158: 0074 | B158: Moldava, República de | C158: 0 | D158: 0 | E158: 0 | F158: 141.7 | G158: 230.512 | H158: 678.27 | I158: 159 | J158: 306.05 | K158: 189.95 | L158: 0 | M158: 170.5482 | N158: 0.00011900671 | O158: 0 | P158: 0 | Q158: 0 | R158: 0 | S158: 34.658 | T158: 2.246 | U158: 13.673 | V158: 43.728 | W158: 19.775 | X158: 62.445 | Y158: 17.6525 | Z158: 1.399085443e-05 | AA158: -152.8957 | AC158: =L158-INDEX($C158:$L158,1,aux!$BA$1) -> 0 | AD158: 0 | AE158: =+IF(INDEX($C158:$L158,1,aux!$BA$1)>0,(L158/INDEX($C158:$L158,1,aux!$BA$1))^(1/($L$3-INDEX($C$3:$L$3,1,aux!$BA$1)))-1,"n.d.") -> n.d. | AF158: =IF(INDEX($C158:$L158,1,aux!$BA$1)>0,(L158-INDEX($C158:$L158,1,aux!$BA$1))/INDEX($C158:$L158,1,aux!$BA$1),"n.d.") -> n.d. | AH158: =X158-INDEX($O158:$X158,1,aux!$BA$1) -> 62.445 | AI158: 7.265120039e-05 | AJ158: =+IF(INDEX($O158:$X158,1,aux!$BA$1)>0,(X158/INDEX($O158:$X158,1,aux!$BA$1))^(1/($X$3-INDEX($O$3:$X$3,1,aux!$BA$1)))-1,"n.d.") -> n.d. | AK158: =IF(INDEX($O158:$X158,1,aux!$BA$1)>0,(X158-INDEX($O158:$X158,1,aux!$BA$1))/INDEX($O158:$X158,1,aux!$BA$1),"n.d.") -> n.d. | CC158: =+IF(ISNA(MATCH('5.1'!A158,AUX_2d_pais!$G$2:$G$40000,0)),0,1) -> 1
A159: 0716 | B159: Mongólia | C159: 0 | D159: 0 | E159: 0 | F159: 0 | G159: 0 | H159: 0 | I159: 0 | J159: 0 | K159: 0 | L159: 0 | M159: 0 | N159: 0 | O159: 0 | P159: 0 | Q159: 0 | R159: 0 | S159: 0 | T159: 0 | U159: 0 | V159: 0 | W159: 0 | X159: 0 | Y159: 0 | Z159: 0 | AA159: 0 | AC159: =L159-INDEX($C159:$L159,1,aux!$BA$1) -> 0 | AD159: 0 | AE159: =+IF(INDEX($C159:$L159,1,aux!$BA$1)>0,(L159/INDEX($C159:$L159,1,aux!$BA$1))^(1/($L$3-INDEX($C$3:$L$3,1,aux!$BA$1)))-1,"n.d.") -> n.d. | AF159: =IF(INDEX($C159:$L159,1,aux!$BA$1)>0,(L159-INDEX($C159:$L159,1,aux!$BA$1))/INDEX($C159:$L159,1,aux!$BA$1),"n.d.") -> n.d. | AH159: =X159-INDEX($O159:$X159,1,aux!$BA$1) -> 0 | AI159: 0 | AJ159: =+IF(INDEX($O159:$X159,1,aux!$BA$1)>0,(X159/INDEX($O159:$X159,1,aux!$BA$1))^(1/($X$3-INDEX($O$3:$X$3,1,aux!$BA$1)))-1,"n.d.") -> n.d. | AK159: =IF(INDEX($O159:$X159,1,aux!$BA$1)>0,(X159-INDEX($O159:$X159,1,aux!$BA$1))/INDEX($O159:$X159,1,aux!$BA$1),"n.d.") -> n.d. | AM159: 0 | BO159: 0 | CC159: =+IF(ISNA(MATCH('5.1'!A159,AUX_2d_pais!$G$2:$G$40000,0)),0,1) -> 0
A160: 0470 | B160: Monserrate | C160: 0 | D160: 0 | E160: 0 | F160: 0 | G160: 0 | H160: 0 | I160: 0 | J160: 0 | K160: 0 | L160: 0 | M160: 0 | N160: 0 | O160: 0 | P160: 0 | Q160: 0 | R160: 0 | S160: 0 | T160: 0 | U160: 0 | V160: 0 | W160: 0 | X160: 0 | Y160: 0 | Z160: 0 | AA160: 0 | AC160: =L160-INDEX($C160:$L160,1,aux!$BA$1) -> 0 | AD160: 0 | AE160: =+IF(INDEX($C160:$L160,1,aux!$BA$1)>0,(L160/INDEX($C160:$L160,1,aux!$BA$1))^(1/($L$3-INDEX($C$3:$L$3,1,aux!$BA$1)))-1,"n.d.") -> n.d. | AF160: =IF(INDEX($C160:$L160,1,aux!$BA$1)>0,(L160-INDEX($C160:$L160,1,aux!$BA$1))/INDEX($C160:$L160,1,aux!$BA$1),"n.d.") -> n.d. | AH160: =X160-INDEX($O160:$X160,1,aux!$BA$1) -> 0 | AI160: 0 | AJ160: =+IF(INDEX($O160:$X160,1,aux!$BA$1)>0,(X160/INDEX($O160:$X160,1,aux!$BA$1))^(1/($X$3-INDEX($O$3:$X$3,1,aux!$BA$1)))-1,"n.d.") -> n.d. | AK160: =IF(INDEX($O160:$X160,1,aux!$BA$1)>0,(X160-INDEX($O160:$X160,1,aux!$BA$1))/INDEX($O160:$X160,1,aux!$BA$1),"n.d.") -> n.d. | AM160: 0 | BO160: 0 | CC160: =+IF(ISNA(MATCH('5.1'!A160,AUX_2d_pais!$G$2:$G$40000,0)),0,1) -> 0
A161: 0097 | B161: Montenegro | C161: 0 | D161: 0 | E161: 0 | F161: 0 | G161: 0 | H161: 0 | I161: 0 | J161: 0 | K161: 0 | L161: 0 | M161: 0 | N161: 0 | O161: 0 | P161: 0 | Q161: 0 | R161: 0 | S161: 0 | T161: 0 | U161: 0 | V161: 0 | W161: 0 | X161: 0 | Y161: 0 | Z161: 0 | AA161: 0 | AC161: =L161-INDEX($C161:$L161,1,aux!$BA$1) -> 0 | AD161: 0 | AE161: =+IF(INDEX($C161:$L161,1,aux!$BA$1)>0,(L161/INDEX($C161:$L161,1,aux!$BA$1))^(1/($L$3-INDEX($C$3:$L$3,1,aux!$BA$1)))-1,"n.d.") -> n.d. | AF161: =IF(INDEX($C161:$L161,1,aux!$BA$1)>0,(L161-INDEX($C161:$L161,1,aux!$BA$1))/INDEX($C161:$L161,1,aux!$BA$1),"n.d.") -> n.d. | AH161: =X161-INDEX($O161:$X161,1,aux!$BA$1) -> 0 | AI161: 0 | AJ161: =+IF(INDEX($O161:$X161,1,aux!$BA$1)>0,(X161/INDEX($O161:$X161,1,aux!$BA$1))^(1/($X$3-INDEX($O$3:$X$3,1,aux!$BA$1)))-1,"n.d.") -> n.d. | AK161: =IF(INDEX($O161:$X161,1,aux!$BA$1)>0,(X161-INDEX($O161:$X161,1,aux!$BA$1))/INDEX($O161:$X161,1,aux!$BA$1),"n.d.") -> n.d. | AM161: 0 | BO161: 0 | CC161: =+IF(ISNA(MATCH('5.1'!A161,AUX_2d_pais!$G$2:$G$40000,0)),0,1) -> 0
A162: 0676 | B162: Myanmar | C162: 42.66 | D162: 215.232 | E162: 0 | F162: 2213.023 | G162: 333.702 | H162: 0 | I162: 34.348 | J162: 838.83 | K162: 541.341 | L162: 338.001 | M162: 455.7137 | N162: 0.0003179921462 | O162: 0 | P162: 0 | Q162: 0 | R162: 0 | S162: 0 | T162: 0 | U162: 0 | V162: 143.206 | W162: 0 | X162: 0 | Y162: 14.3206 | Z162: 1.135008809e-05 | AA162: -441.3931 | AC162: =L162-INDEX($C162:$L162,1,aux!$BA$1) -> 295.341 | AD162: 0.0004480108588 | AE162: =+IF(INDEX($C162:$L162,1,aux!$BA$1)>0,(L162/INDEX($C162:$L162,1,aux!$BA$1))^(1/($L$3-INDEX($C$3:$L$3,1,aux!$BA$1)))-1,"n.d.") -> 0.2585702431 | AF162: =IF(INDEX($C162:$L162,1,aux!$BA$1)>0,(L162-INDEX($C162:$L162,1,aux!$BA$1))/INDEX($C162:$L162,1,aux!$BA$1),"n.d.") -> 6.923136428 | AH162: =X162-INDEX($O162:$X162,1,aux!$BA$1) -> 0 | AI162: 0 | AJ162: =+IF(INDEX($O162:$X162,1,aux!$BA$1)>0,(X162/INDEX($O162:$X162,1,aux!$BA$1))^(1/($X$3-INDEX($O$3:$X$3,1,aux!$BA$1)))-1,"n.d.") -> n.d. | AK162: =IF(INDEX($O162:$X162,1,aux!$BA$1)>0,(X162-INDEX($O162:$X162,1,aux!$BA$1))/INDEX($O162:$X162,1,aux!$BA$1),"n.d.") -> n.d. | CC162: =+IF(ISNA(MATCH('5.1'!A162,AUX_2d_pais!$G$2:$G$40000,0)),0,1) -> 1
A163: 0389 | B163: Namíbia | C163: 0 | D163: 13.6 | E163: 0 | F163: 0 | G163: 36.097 | H163: 131.999 | I163: 46.886 | J163: 89.607 | K163: 74.755 | L163: 81.62 | M163: 47.4564 | N163: 3.311456839e-05 | O163: 21.427 | P163: 21.247 | Q163: 42.653 | R163: 14.632 | S163: 24.851 | T163: 11.64 | U163: 35.767 | V163: 31.958 | W163: 10.752 | X163: 5.224 | Y163: 22.0151 | Z163: 1.744852341e-05 | AA163: -25.4413 | AC163: =L163-INDEX($C163:$L163,1,aux!$BA$1) -> 81.62 | AD163: 0.0001238116154 | AE163: =+IF(INDEX($C163:$L163,1,aux!$BA$1)>0,(L163/INDEX($C163:$L163,1,aux!$BA$1))^(1/($L$3-INDEX($C$3:$L$3,1,aux!$BA$1)))-1,"n.d.") -> n.d. | AF163: =IF(INDEX($C163:$L163,1,aux!$BA$1)>0,(L163-INDEX($C163:$L163,1,aux!$BA$1))/INDEX($C163:$L163,1,aux!$BA$1),"n.d.") -> n.d. | AH163: =X163-INDEX($O163:$X163,1,aux!$BA$1) -> -16.203 | AI163: -1.885126751e-05 | AJ163: =+IF(INDEX($O163:$X163,1,aux!$BA$1)>0,(X163/INDEX($O163:$X163,1,aux!$BA$1))^(1/($X$3-INDEX($O$3:$X$3,1,aux!$BA$1)))-1,"n.d.") -> -0.1451428801 | AK163: =IF(INDEX($O163:$X163,1,aux!$BA$1)>0,(X163-INDEX($O163:$X163,1,aux!$BA$1))/INDEX($O163:$X163,1,aux!$BA$1),"n.d.") -> -0.7561954543 | CC163: =+IF(ISNA(MATCH('5.1'!A163,AUX_2d_pais!$G$2:$G$40000,0)),0,1) -> 1
A164: 0803 | B164: Nauru | C164: 0 | D164: 0 | E164: 0 | F164: 0 | G164: 0 | H164: 0 | I164: 0 | J164: 0 | K164: 0 | L164: 0 | M164: 0 | N164: 0 | O164: 0 | P164: 0 | Q164: 0 | R164: 0 | S164: 0 | T164: 0 | U164: 0 | V164: 0 | W164: 0 | X164: 0 | Y164: 0 | Z164: 0 | AA164: 0 | AC164: =L164-INDEX($C164:$L164,1,aux!$BA$1) -> 0 | AD164: 0 | AE164: =+IF(INDEX($C164:$L164,1,aux!$BA$1)>0,(L164/INDEX($C164:$L164,1,aux!$BA$1))^(1/($L$3-INDEX($C$3:$L$3,1,aux!$BA$1)))-1,"n.d.") -> n.d. | AF164: =IF(INDEX($C164:$L164,1,aux!$BA$1)>0,(L164-INDEX($C164:$L164,1,aux!$BA$1))/INDEX($C164:$L164,1,aux!$BA$1),"n.d.") -> n.d. | AH164: =X164-INDEX($O164:$X164,1,aux!$BA$1) -> 0 | AI164: 0 | AJ164: =+IF(INDEX($O164:$X164,1,aux!$BA$1)>0,(X164/INDEX($O164:$X164,1,aux!$BA$1))^(1/($X$3-INDEX($O$3:$X$3,1,aux!$BA$1)))-1,"n.d.") -> n.d. | AK164: =IF(INDEX($O164:$X164,1,aux!$BA$1)>0,(X164-INDEX($O164:$X164,1,aux!$BA$1))/INDEX($O164:$X164,1,aux!$BA$1),"n.d.") -> n.d. | AM164: 0 | BO164: 0 | CC164: =+IF(ISNA(MATCH('5.1'!A164,AUX_2d_pais!$G$2:$G$40000,0)),0,1) -> 0
A165: 0672 | B165: Nepal | C165: 0 | D165: 0 | E165: 0 | F165: 0 | G165: 0 | H165: 0 | I165: 0 | J165: 0 | K165: 0 | L165: 2.037 | M165: 0.2037 | N165: 1.421396815e-07 | O165: 0 | P165: 0 | Q165: 0 | R165: 0 | S165: 0 | T165: 0 | U165: 0 | V165: 0 | W165: 20.217 | X165: 0 | Y165: 2.0217 | Z165: 1.602340201e-06 | AA165: 1.818 | AC165: =L165-INDEX($C165:$L165,1,aux!$BA$1) -> 2.037 | AD165: =AC165/$AC$252 -> 3.089981138e-06 | AE165: =+IF(INDEX($C165:$L165,1,aux!$BA$1)>0,(L165/INDEX($C165:$L165,1,aux!$BA$1))^(1/($L$3-INDEX($C$3:$L$3,1,aux!$BA$1)))-1,"n.d.") -> n.d. | AF165: =IF(INDEX($C165:$L165,1,aux!$BA$1)>0,(L165-INDEX($C165:$L165,1,aux!$BA$1))/INDEX($C165:$L165,1,aux!$BA$1),"n.d.") -> n.d. | AH165: =X165-INDEX($O165:$X165,1,aux!$BA$1) -> 0 | AI165: =AH165/$AH$252 -> 0 | AJ165: =+IF(INDEX($O165:$X165,1,aux!$BA$1)>0,(X165/INDEX($O165:$X165,1,aux!$BA$1))^(1/($X$3-INDEX($O$3:$X$3,1,aux!$BA$1)))-1,"n.d.") -> n.d. | AK165: =IF(INDEX($O165:$X165,1,aux!$BA$1)>0,(X165-INDEX($O165:$X165,1,aux!$BA$1))/INDEX($O165:$X165,1,aux!$BA$1),"n.d.") -> n.d. | BO165: 22.254 | CC165: =+IF(ISNA(MATCH('5.1'!A165,AUX_2d_pais!$G$2:$G$40000,0)),0,1) -> 1
A166: 0432 | B166: Nicarágua | C166: 0 | D166: 0 | E166: 1.154 | F166: 5.17 | G166: 5.249 | H166: 5.42 | I166: 4.252 | J166: 2.439 | K166: 2.774 | L166: 13.919 | M166: 4.0377 | N166: 2.817463878e-06 | O166: 0 | P166: 0 | Q166: 0 | R166: 0 | S166: 0 | T166: 0 | U166: 13.224 | V166: 31.736 | W166: 69.53 | X166: 68.667 | Y166: 18.3157 | Z166: 1.451648733e-05 | AA166: 14.278 | AC166: =L166-INDEX($C166:$L166,1,aux!$BA$1) -> 13.919 | AD166: 2.111411265e-05 | AE166: =+IF(INDEX($C166:$L166,1,aux!$BA$1)>0,(L166/INDEX($C166:$L166,1,aux!$BA$1))^(1/($L$3-INDEX($C$3:$L$3,1,aux!$BA$1)))-1,"n.d.") -> n.d. | AF166: =IF(INDEX($C166:$L166,1,aux!$BA$1)>0,(L166-INDEX($C166:$L166,1,aux!$BA$1))/INDEX($C166:$L166,1,aux!$BA$1),"n.d.") -> n.d. | AH166: =X166-INDEX($O166:$X166,1,aux!$BA$1) -> 68.667 | AI166: 7.989014296e-05 | AJ166: =+IF(INDEX($O166:$X166,1,aux!$BA$1)>0,(X166/INDEX($O166:$X166,1,aux!$BA$1))^(1/($X$3-INDEX($O$3:$X$3,1,aux!$BA$1)))-1,"n.d.") -> n.d. | AK166: =IF(INDEX($O166:$X166,1,aux!$BA$1)>0,(X166-INDEX($O166:$X166,1,aux!$BA$1))/INDEX($O166:$X166,1,aux!$BA$1),"n.d.") -> n.d. | CC166: =+IF(ISNA(MATCH('5.1'!A166,AUX_2d_pais!$G$2:$G$40000,0)),0,1) -> 1
A167: 0240 | B167: Niger | C167: 0 | D167: 0 | E167: 0 | F167: 0 | G167: 0 | H167: 0 | I167: 0 | J167: 0 | K167: 0 | L167: 0 | M167: 0 | N167: 0 | O167: 0 | P167: 0 | Q167: 46.279 | R167: 39.394 | S167: 0 | T167: 0 | U167: 0 | V167: 7.412 | W167: 8.842 | X167: 16.087 | Y167: 11.8014 | Z167: 9.35344396e-06 | AA167: 11.8014 | AC167: =L167-INDEX($C167:$L167,1,aux!$BA$1) -> 0 | AD167: 0 | AE167: =+IF(INDEX($C167:$L167,1,aux!$BA$1)>0,(L167/INDEX($C167:$L167,1,aux!$BA$1))^(1/($L$3-INDEX($C$3:$L$3,1,aux!$BA$1)))-1,"n.d.") -> n.d. | AF167: =IF(INDEX($C167:$L167,1,aux!$BA$1)>0,(L167-INDEX($C167:$L167,1,aux!$BA$1))/INDEX($C167:$L167,1,aux!$BA$1),"n.d.") -> n.d. | AH167: =X167-INDEX($O167:$X167,1,aux!$BA$1) -> 16.087 | AI167: 1.871630812e-05 | AJ167: =+IF(INDEX($O167:$X167,1,aux!$BA$1)>0,(X167/INDEX($O167:$X167,1,aux!$BA$1))^(1/($X$3-INDEX($O$3:$X$3,1,aux!$BA$1)))-1,"n.d.") -> n.d. | AK167: =IF(INDEX($O167:$X167,1,aux!$BA$1)>0,(X167-INDEX($O167:$X167,1,aux!$BA$1))/INDEX($O167:$X167,1,aux!$BA$1),"n.d.") -> n.d. | CC167: =+IF(ISNA(MATCH('5.1'!A167,AUX_2d_pais!$G$2:$G$40000,0)),0,1) -> 1
A168: 0288 | B168: Nigéria | C168: 0 | D168: 0 | E168: 0 | F168: 0 | G168: 0 | H168: 0 | I168: 0 | J168: 0.439 | K168: 105.25 | L168: 4.662 | M168: 11.0351 | N168: 7.700174763e-06 | O168: 117.497 | P168: 39.942 | Q168: 115.618 | R168: 41.781 | S168: 577.616 | T168: 144.7 | U168: 166.848 | V168: 194.821 | W168: 533.039 | X168: 1136.106 | Y168: 306.7968 | Z168: 0.0002431581572 | AA168: 295.7617 | AC168: =L168-INDEX($C168:$L168,1,aux!$BA$1) -> 4.662 | AD168: 7.071915595e-06 | AE168: =+IF(INDEX($C168:$L168,1,aux!$BA$1)>0,(L168/INDEX($C168:$L168,1,aux!$BA$1))^(1/($L$3-INDEX($C$3:$L$3,1,aux!$BA$1)))-1,"n.d.") -> n.d. | AF168: =IF(INDEX($C168:$L168,1,aux!$BA$1)>0,(L168-INDEX($C168:$L168,1,aux!$BA$1))/INDEX($C168:$L168,1,aux!$BA$1),"n.d.") -> n.d. | AH168: =X168-INDEX($O168:$X168,1,aux!$BA$1) -> 1018.609 | AI168: 0.001185093548 | AJ168: =+IF(INDEX($O168:$X168,1,aux!$BA$1)>0,(X168/INDEX($O168:$X168,1,aux!$BA$1))^(1/($X$3-INDEX($O$3:$X$3,1,aux!$BA$1)))-1,"n.d.") -> 0.2867317236 | AK168: =IF(INDEX($O168:$X168,1,aux!$BA$1)>0,(X168-INDEX($O168:$X168,1,aux!$BA$1))/INDEX($O168:$X168,1,aux!$BA$1),"n.d.") -> 8.669234108 | CC168: =+IF(ISNA(MATCH('5.1'!A168,AUX_2d_pais!$G$2:$G$40000,0)),0,1) -> 1
A169: 0838 | B169: Niue | C169: 0 | D169: 0 | E169: 0 | F169: 0 | G169: 0 | H169: 0 | I169: 0 | J169: 0 | K169: 0 | L169: 0 | M169: 0 | N169: 0 | O169: 0 | P169: 0 | Q169: 0 | R169: 0 | S169: 0 | T169: 0 | U169: 0 | V169: 0 | W169: 0 | X169: 0 | Y169: 0 | Z169: 0 | AA169: 0 | AC169: =L169-INDEX($C169:$L169,1,aux!$BA$1) -> 0 | AD169: 0 | AE169: =+IF(INDEX($C169:$L169,1,aux!$BA$1)>0,(L169/INDEX($C169:$L169,1,aux!$BA$1))^(1/($L$3-INDEX($C$3:$L$3,1,aux!$BA$1)))-1,"n.d.") -> n.d. | AF169: =IF(INDEX($C169:$L169,1,aux!$BA$1)>0,(L169-INDEX($C169:$L169,1,aux!$BA$1))/INDEX($C169:$L169,1,aux!$BA$1),"n.d.") -> n.d. | AH169: =X169-INDEX($O169:$X169,1,aux!$BA$1) -> 0 | AI169: 0 | AJ169: =+IF(INDEX($O169:$X169,1,aux!$BA$1)>0,(X169/INDEX($O169:$X169,1,aux!$BA$1))^(1/($X$3-INDEX($O$3:$X$3,1,aux!$BA$1)))-1,"n.d.") -> n.d. | AK169: =IF(INDEX($O169:$X169,1,aux!$BA$1)>0,(X169-INDEX($O169:$X169,1,aux!$BA$1))/INDEX($O169:$X169,1,aux!$BA$1),"n.d.") -> n.d. | AM169: 0 | BO169: 0 | CC169: =+IF(ISNA(MATCH('5.1'!A169,AUX_2d_pais!$G$2:$G$40000,0)),0,1) -> 0
A170: 0836 | B170: Norfolk, Ilha | C170: 0 | D170: 0 | E170: 0 | F170: 0 | G170: 0 | H170: 0 | I170: 0 | J170: 0 | K170: 0 | L170: 0 | M170: 0 | N170: 0 | O170: 0 | P170: 0 | Q170: 0 | R170: 0 | S170: 0 | T170: 0 | U170: 0 | V170: 0 | W170: 0 | X170: 0 | Y170: 0 | Z170: 0 | AA170: 0 | AC170: =L170-INDEX($C170:$L170,1,aux!$BA$1) -> 0 | AD170: 0 | AE170: =+IF(INDEX($C170:$L170,1,aux!$BA$1)>0,(L170/INDEX($C170:$L170,1,aux!$BA$1))^(1/($L$3-INDEX($C$3:$L$3,1,aux!$BA$1)))-1,"n.d.") -> n.d. | AF170: =IF(INDEX($C170:$L170,1,aux!$BA$1)>0,(L170-INDEX($C170:$L170,1,aux!$BA$1))/INDEX($C170:$L170,1,aux!$BA$1),"n.d.") -> n.d. | AH170: =X170-INDEX($O170:$X170,1,aux!$BA$1) -> 0 | AI170: 0 | AJ170: =+IF(INDEX($O170:$X170,1,aux!$BA$1)>0,(X170/INDEX($O170:$X170,1,aux!$BA$1))^(1/($X$3-INDEX($O$3:$X$3,1,aux!$BA$1)))-1,"n.d.") -> n.d. | AK170: =IF(INDEX($O170:$X170,1,aux!$BA$1)>0,(X170-INDEX($O170:$X170,1,aux!$BA$1))/INDEX($O170:$X170,1,aux!$BA$1),"n.d.") -> n.d. | AM170: 0 | BO170: 0 | CC170: =+IF(ISNA(MATCH('5.1'!A170,AUX_2d_pais!$G$2:$G$40000,0)),0,1) -> 0
A171: 0028 | B171: Noruega | C171: 1.739 | D171: 0 | E171: 0 | F171: 0 | G171: 22.583 | H171: 0 | I171: 0.782 | J171: 0 | K171: 0 | L171: 11.892 | M171: 3.6996 | N171: 2.581541314e-06 | O171: 1343.811 | P171: 2958.917 | Q171: 1777.794 | R171: 2127.443 | S171: 2174.475 | T171: 2457.994 | U171: 3137.612 | V171: 3111.601 | W171: 3015.207 | X171: 4047.264 | Y171: 2615.2118 | Z171: 0.002072740269 | AA171: 2611.5122 | AC171: =L171-INDEX($C171:$L171,1,aux!$BA$1) -> 10.153 | AD171: 1.540136401e-05 | AE171: =+IF(INDEX($C171:$L171,1,aux!$BA$1)>0,(L171/INDEX($C171:$L171,1,aux!$BA$1))^(1/($L$3-INDEX($C$3:$L$3,1,aux!$BA$1)))-1,"n.d.") -> 0.2381487204 | AF171: =IF(INDEX($C171:$L171,1,aux!$BA$1)>0,(L171-INDEX($C171:$L171,1,aux!$BA$1))/INDEX($C171:$L171,1,aux!$BA$1),"n.d.") -> 5.838412881 | AH171: =X171-INDEX($O171:$X171,1,aux!$BA$1) -> 2703.453 | AI171: 0.003145313566 | AJ171: =+IF(INDEX($O171:$X171,1,aux!$BA$1)>0,(X171/INDEX($O171:$X171,1,aux!$BA$1))^(1/($X$3-INDEX($O$3:$X$3,1,aux!$BA$1)))-1,"n.d.") -> 0.1303230749 | AK171: =IF(INDEX($O171:$X171,1,aux!$BA$1)>0,(X171-INDEX($O171:$X171,1,aux!$BA$1))/INDEX($O171:$X171,1,aux!$BA$1),"n.d.") -> 2.011780675 | CC171: =+IF(ISNA(MATCH('5.1'!A171,AUX_2d_pais!$G$2:$G$40000,0)),0,1) -> 1
A172: 0809 | B172: Nova Caledónia | C172: 0 | D172: 0 | E172: 0 | F172: 0 | G172: 0 | H172: 0 | I172: 0 | J172: 0 | K172: 0 | L172: 0 | M172: 0 | N172: 0 | O172: 12.576 | P172: 28.287 | Q172: 69.203 | R172: 41.604 | S172: 39.692 | T172: 50.055 | U172: 33.533 | V172: 34.111 | W172: 41.393 | X172: 43.985 | Y172: 39.4439 | Z172: 3.126207977e-05 | AA172: 39.4439 | AC172: =L172-INDEX($C172:$L172,1,aux!$BA$1) -> 0 | AD172: 0 | AE172: =+IF(INDEX($C172:$L172,1,aux!$BA$1)>0,(L172/INDEX($C172:$L172,1,aux!$BA$1))^(1/($L$3-INDEX($C$3:$L$3,1,aux!$BA$1)))-1,"n.d.") -> n.d. | AF172: =IF(INDEX($C172:$L172,1,aux!$BA$1)>0,(L172-INDEX($C172:$L172,1,aux!$BA$1))/INDEX($C172:$L172,1,aux!$BA$1),"n.d.") -> n.d. | AH172: =X172-INDEX($O172:$X172,1,aux!$BA$1) -> 31.409 | AI172: 3.654258232e-05 | AJ172: =+IF(INDEX($O172:$X172,1,aux!$BA$1)>0,(X172/INDEX($O172:$X172,1,aux!$BA$1))^(1/($X$3-INDEX($O$3:$X$3,1,aux!$BA$1)))-1,"n.d.") -> 0.1492592489 | AK172: =IF(INDEX($O172:$X172,1,aux!$BA$1)>0,(X172-INDEX($O172:$X172,1,aux!$BA$1))/INDEX($O172:$X172,1,aux!$BA$1),"n.d.") -> 2.497534987 | CC172: =+IF(ISNA(MATCH('5.1'!A172,AUX_2d_pais!$G$2:$G$40000,0)),0,1) -> 1
A173: 0804 | B173: Nova Zelânda | C173: 1865.787 | D173: 790.316 | E173: 546.658 | F173: 325.363 | G173: 484.088 | H173: 54.132 | I173: 26.441 | J173: 17.18 | K173: 21.803 | L173: 248.004 | M173: 437.9772 | N173: 0.0003056158061 | O173: 49.761 | P173: 7.954 | Q173: 0 | R173: 44.63 | S173: 161.959 | T173: 184.746 | U173: 243.649 | V173: 386.491 | W173: 572.306 | X173: 185.967 | Y173: 183.7463 | Z173: 0.0001456319352 | AA173: -254.2309 | AC173: =L173-INDEX($C173:$L173,1,aux!$BA$1) -> -1617.783 | AD173: -0.002454059379 | AE173: =+IF(INDEX($C173:$L173,1,aux!$BA$1)>0,(L173/INDEX($C173:$L173,1,aux!$BA$1))^(1/($L$3-INDEX($C$3:$L$3,1,aux!$BA$1)))-1,"n.d.") -> -0.2008618812 | AF173: =IF(INDEX($C173:$L173,1,aux!$BA$1)>0,(L173-INDEX($C173:$L173,1,aux!$BA$1))/INDEX($C173:$L173,1,aux!$BA$1),"n.d.") -> -0.8670780748 | AH173: =X173-INDEX($O173:$X173,1,aux!$BA$1) -> 136.206 | AI173: 0.0001584679222 | AJ173: =+IF(INDEX($O173:$X173,1,aux!$BA$1)>0,(X173/INDEX($O173:$X173,1,aux!$BA$1))^(1/($X$3-INDEX($O$3:$X$3,1,aux!$BA$1)))-1,"n.d.") -> 0.1577540517 | AK173: =IF(INDEX($O173:$X173,1,aux!$BA$1)>0,(X173-INDEX($O173:$X173,1,aux!$BA$1))/INDEX($O173:$X173,1,aux!$BA$1),"n.d.") -> 2.737203834 | CC173: =+IF(ISNA(MATCH('5.1'!A173,AUX_2d_pais!$G$2:$G$40000,0)),0,1) -> 1
A174: 0357 | B174: Oceano Indico, Território Britânico do | C174: 0 | D174: 0 | E174: 0 | F174: 0 | G174: 0 | H174: 0 | I174: 0 | J174: 0 | K174: 0 | L174: 0 | M174: 0 | N174: 0 | O174: 0 | P174: 0 | Q174: 0 | R174: 0 | S174: 0 | T174: 0 | U174: 0 | V174: 0 | W174: 0 | X174: 0 | Y174: 0 | Z174: 0 | AA174: 0 | AC174: =L174-INDEX($C174:$L174,1,aux!$BA$1) -> 0 | AD174: 0 | AE174: =+IF(INDEX($C174:$L174,1,aux!$BA$1)>0,(L174/INDEX($C174:$L174,1,aux!$BA$1))^(1/($L$3-INDEX($C$3:$L$3,1,aux!$BA$1)))-1,"n.d.") -> n.d. | AF174: =IF(INDEX($C174:$L174,1,aux!$BA$1)>0,(L174-INDEX($C174:$L174,1,aux!$BA$1))/INDEX($C174:$L174,1,aux!$BA$1),"n.d.") -> n.d. | AH174: =X174-INDEX($O174:$X174,1,aux!$BA$1) -> 0 | AI174: 0 | AJ174: =+IF(INDEX($O174:$X174,1,aux!$BA$1)>0,(X174/INDEX($O174:$X174,1,aux!$BA$1))^(1/($X$3-INDEX($O$3:$X$3,1,aux!$BA$1)))-1,"n.d.") -> n.d. | AK174: =IF(INDEX($O174:$X174,1,aux!$BA$1)>0,(X174-INDEX($O174:$X174,1,aux!$BA$1))/INDEX($O174:$X174,1,aux!$BA$1),"n.d.") -> n.d. | AM174: 0 | BO174: 0 | CC174: =+IF(ISNA(MATCH('5.1'!A174,AUX_2d_pais!$G$2:$G$40000,0)),0,1) -> 0
A175: 0649 | B175: Omã | C175: 0 | D175: 0 | E175: 0 | F175: 0 | G175: 0 | H175: 0 | I175: 0 | J175: 0 | K175: 0 | L175: 0 | M175: 0 | N175: 0 | O175: 1301.248 | P175: 1596.896 | Q175: 2507.638 | R175: 3121.894 | S175: 6021.595 | T175: 3928.968 | U175: 3338.152 | V175: 2398.277 | W175: 4502.467 | X175: 2636.753 | Y175: 3135.3888 | Z175: 0.002485017323 | AA175: 3135.3888 | AC175: =L175-INDEX($C175:$L175,1,aux!$BA$1) -> 0 | AD175: 0 | AE175: =+IF(INDEX($C175:$L175,1,aux!$BA$1)>0,(L175/INDEX($C175:$L175,1,aux!$BA$1))^(1/($L$3-INDEX($C$3:$L$3,1,aux!$BA$1)))-1,"n.d.") -> n.d. | AF175: =IF(INDEX($C175:$L175,1,aux!$BA$1)>0,(L175-INDEX($C175:$L175,1,aux!$BA$1))/INDEX($C175:$L175,1,aux!$BA$1),"n.d.") -> n.d. | AH175: =X175-INDEX($O175:$X175,1,aux!$BA$1) -> 1335.505 | AI175: 0.001553783992 | AJ175: =+IF(INDEX($O175:$X175,1,aux!$BA$1)>0,(X175/INDEX($O175:$X175,1,aux!$BA$1))^(1/($X$3-INDEX($O$3:$X$3,1,aux!$BA$1)))-1,"n.d.") -> 0.08163023658 | AK175: =IF(INDEX($O175:$X175,1,aux!$BA$1)>0,(X175-INDEX($O175:$X175,1,aux!$BA$1))/INDEX($O175:$X175,1,aux!$BA$1),"n.d.") -> 1.026326265 | CC175: =+IF(ISNA(MATCH('5.1'!A175,AUX_2d_pais!$G$2:$G$40000,0)),0,1) -> 1
A176: 0003 | B176: Países Baixos | C176: 104080.648 | D176: 91052.09 | E176: 99211.35 | F176: 96521.093 | G176: 106527.243 | H176: 127369.765 | I176: 122771.796 | J176: 132744.702 | K176: 140554.191 | L176: 128331.19 | M176: 114916.4068 | N176: 0.08018743967 | O176: 73008.908 | P176: 86107.609 | Q176: 91935.578 | R176: 113216.942 | S176: 106988.388 | T176: 109804.487 | U176: 121033.816 | V176: 132953.393 | W176: 150077.515 | X176: 173793.287 | Y176: 115891.9923 | Z176: 0.09185259845 | AA176: 975.5855 | AC176: =L176-INDEX($C176:$L176,1,aux!$BA$1) -> 24250.542 | AD176: 0.03678631191 | AE176: =+IF(INDEX($C176:$L176,1,aux!$BA$1)>0,(L176/INDEX($C176:$L176,1,aux!$BA$1))^(1/($L$3-INDEX($C$3:$L$3,1,aux!$BA$1)))-1,"n.d.") -> 0.0235449382 | AF176: =IF(INDEX($C176:$L176,1,aux!$BA$1)>0,(L176-INDEX($C176:$L176,1,aux!$BA$1))/INDEX($C176:$L176,1,aux!$BA$1),"n.d.") -> 0.2329976078 | AH176: =X176-INDEX($O176:$X176,1,aux!$BA$1) -> 100784.379 | AI176: 0.1172568839 | AJ176: =+IF(INDEX($O176:$X176,1,aux!$BA$1)>0,(X176/INDEX($O176:$X176,1,aux!$BA$1))^(1/($X$3-INDEX($O$3:$X$3,1,aux!$BA$1)))-1,"n.d.") -> 0.1011609298 | AK176: =IF(INDEX($O176:$X176,1,aux!$BA$1)>0,(X176-INDEX($O176:$X176,1,aux!$BA$1))/INDEX($O176:$X176,1,aux!$BA$1),"n.d.") -> 1.38043948 | CC176: =+IF(ISNA(MATCH('5.1'!A176,AUX_2d_pais!$G$2:$G$40000,0)),0,1) -> 1
A177: 0825 | B177: Palau | C177: 0 | D177: 0 | E177: 0 | F177: 0 | G177: 0 | H177: 0 | I177: 0 | J177: 0 | K177: 0 | L177: 0 | M177: 0 | N177: 0 | O177: 0 | P177: 0 | Q177: 0 | R177: 0 | S177: 0 | T177: 0 | U177: 0 | V177: 0 | W177: 0 | X177: 0 | Y177: 0 | Z177: 0 | AA177: 0 | AC177: =L177-INDEX($C177:$L177,1,aux!$BA$1) -> 0 | AD177: 0 | AE177: =+IF(INDEX($C177:$L177,1,aux!$BA$1)>0,(L177/INDEX($C177:$L177,1,aux!$BA$1))^(1/($L$3-INDEX($C$3:$L$3,1,aux!$BA$1)))-1,"n.d.") -> n.d. | AF177: =IF(INDEX($C177:$L177,1,aux!$BA$1)>0,(L177-INDEX($C177:$L177,1,aux!$BA$1))/INDEX($C177:$L177,1,aux!$BA$1),"n.d.") -> n.d. | AH177: =X177-INDEX($O177:$X177,1,aux!$BA$1) -> 0 | AI177: 0 | AJ177: =+IF(INDEX($O177:$X177,1,aux!$BA$1)>0,(X177/INDEX($O177:$X177,1,aux!$BA$1))^(1/($X$3-INDEX($O$3:$X$3,1,aux!$BA$1)))-1,"n.d.") -> n.d. | AK177: =IF(INDEX($O177:$X177,1,aux!$BA$1)>0,(X177-INDEX($O177:$X177,1,aux!$BA$1))/INDEX($O177:$X177,1,aux!$BA$1),"n.d.") -> n.d. | AM177: 0 | BO177: 0 | CC177: =+IF(ISNA(MATCH('5.1'!A177,AUX_2d_pais!$G$2:$G$40000,0)),0,1) -> 0
A178: 0442 | B178: Panamá | C178: 1344.284 | D178: 1598.334 | E178: 1701.374 | F178: 383.081 | G178: 148.409 | H178: 420.813 | I178: 530.23 | J178: 331.872 | K178: 12.359 | L178: 187.965 | M178: 665.8721 | N178: 0.0004646384301 | O178: 9.445 | P178: 237.577 | Q178: 0 | R178: 0.005 | S178: 0.317 | T178: 0.792 | U178: 23.441 | V178: 91.361 | W178: 334.253 | X178: 123.476 | Y178: 82.0667 | Z178: 6.504366257e-05 | AA178: -583.8054 | AC178: =L178-INDEX($C178:$L178,1,aux!$BA$1) -> -1156.319 | AD178: -0.001754051988 | AE178: =+IF(INDEX($C178:$L178,1,aux!$BA$1)>0,(L178/INDEX($C178:$L178,1,aux!$BA$1))^(1/($L$3-INDEX($C$3:$L$3,1,aux!$BA$1)))-1,"n.d.") -> -0.1963534094 | AF178: =IF(INDEX($C178:$L178,1,aux!$BA$1)>0,(L178-INDEX($C178:$L178,1,aux!$BA$1))/INDEX($C178:$L178,1,aux!$BA$1),"n.d.") -> -0.8601746357 | AH178: =X178-INDEX($O178:$X178,1,aux!$BA$1) -> 114.031 | AI178: 0.0001326685729 | AJ178: =+IF(INDEX($O178:$X178,1,aux!$BA$1)>0,(X178/INDEX($O178:$X178,1,aux!$BA$1))^(1/($X$3-INDEX($O$3:$X$3,1,aux!$BA$1)))-1,"n.d.") -> 0.3305839722 | AK178: =IF(INDEX($O178:$X178,1,aux!$BA$1)>0,(X178-INDEX($O178:$X178,1,aux!$BA$1))/INDEX($O178:$X178,1,aux!$BA$1),"n.d.") -> 12.0731604 | CC178: =+IF(ISNA(MATCH('5.1'!A178,AUX_2d_pais!$G$2:$G$40000,0)),0,1) -> 1
A179: 0801 | B179: Papuásia-Nova Guiné | C179: 0 | D179: 0 | E179: 0 | F179: 0 | G179: 0 | H179: 0 | I179: 0 | J179: 0 | K179: 0 | L179: 0 | M179: 0 | N179: 0 | O179: 0 | P179: 0 | Q179: 0 | R179: 0 | S179: 0 | T179: 0 | U179: 0 | V179: 0 | W179: 0 | X179: 0 | Y179: 0 | Z179: 0 | AA179: 0 | AC179: =L179-INDEX($C179:$L179,1,aux!$BA$1) -> 0 | AD179: 0 | AE179: =+IF(INDEX($C179:$L179,1,aux!$BA$1)>0,(L179/INDEX($C179:$L179,1,aux!$BA$1))^(1/($L$3-INDEX($C$3:$L$3,1,aux!$BA$1)))-1,"n.d.") -> n.d. | AF179: =IF(INDEX($C179:$L179,1,aux!$BA$1)>0,(L179-INDEX($C179:$L179,1,aux!$BA$1))/INDEX($C179:$L179,1,aux!$BA$1),"n.d.") -> n.d. | AH179: =X179-INDEX($O179:$X179,1,aux!$BA$1) -> 0 | AI179: 0 | AJ179: =+IF(INDEX($O179:$X179,1,aux!$BA$1)>0,(X179/INDEX($O179:$X179,1,aux!$BA$1))^(1/($X$3-INDEX($O$3:$X$3,1,aux!$BA$1)))-1,"n.d.") -> n.d. | AK179: =IF(INDEX($O179:$X179,1,aux!$BA$1)>0,(X179-INDEX($O179:$X179,1,aux!$BA$1))/INDEX($O179:$X179,1,aux!$BA$1),"n.d.") -> n.d. | AM179: 0 | BO179: 0 | CC179: =+IF(ISNA(MATCH('5.1'!A179,AUX_2d_pais!$G$2:$G$40000,0)),0,1) -> 0
A180: 0662 | B180: Paquistão | C180: 0 | D180: 38.578 | E180: 115.482 | F180: 165.923 | G180: 300.726 | H180: 53.065 | I180: 81.091 | J180: 0 | K180: 45.619 | L180: 0 | M180: 80.0484 | N180: 5.585691743e-05 | O180: 4.273 | P180: 0.011 | Q180: 0 | R180: 0 | S180: 3.594 | T180: 211.78 | U180: 326.886 | V180: 12.398 | W180: 27.032 | X180: 264.007 | Y180: 84.9981 | Z180: 6.736700434e-05 | AA180: 4.9497 | AC180: =L180-INDEX($C180:$L180,1,aux!$BA$1) -> 0 | AD180: 0 | AE180: =+IF(INDEX($C180:$L180,1,aux!$BA$1)>0,(L180/INDEX($C180:$L180,1,aux!$BA$1))^(1/($L$3-INDEX($C$3:$L$3,1,aux!$BA$1)))-1,"n.d.") -> n.d. | AF180: =IF(INDEX($C180:$L180,1,aux!$BA$1)>0,(L180-INDEX($C180:$L180,1,aux!$BA$1))/INDEX($C180:$L180,1,aux!$BA$1),"n.d.") -> n.d. | AH180: =X180-INDEX($O180:$X180,1,aux!$BA$1) -> 259.734 | AI180: 0.0003021857135 | AJ180: =+IF(INDEX($O180:$X180,1,aux!$BA$1)>0,(X180/INDEX($O180:$X180,1,aux!$BA$1))^(1/($X$3-INDEX($O$3:$X$3,1,aux!$BA$1)))-1,"n.d.") -> 0.5812005252 | AK180: =IF(INDEX($O180:$X180,1,aux!$BA$1)>0,(X180-INDEX($O180:$X180,1,aux!$BA$1))/INDEX($O180:$X180,1,aux!$BA$1),"n.d.") -> 60.78492862 | CC180: =+IF(ISNA(MATCH('5.1'!A180,AUX_2d_pais!$G$2:$G$40000,0)),0,1) -> 1
A181: 0520 | B181: Paraguai | C181: 0 | D181: 0 | E181: 0 | F181: 0 | G181: 0 | H181: 7.533 | I181: 3.511 | J181: 29.508 | K181: 53.938 | L181: 34.37 | M181: 12.886 | N181: 8.991712988e-06 | O181: 0 | P181: 0.96 | Q181: 0 | R181: 0 | S181: 13.418 | T181: 0.998 | U181: 0 | V181: 0.001 | W181: 0.306 | X181: 2.825 | Y181: 1.8508 | Z181: 1.466889867e-06 | AA181: -11.0352 | AC181: =L181-INDEX($C181:$L181,1,aux!$BA$1) -> 34.37 | AD181: 5.213679515e-05 | AE181: =+IF(INDEX($C181:$L181,1,aux!$BA$1)>0,(L181/INDEX($C181:$L181,1,aux!$BA$1))^(1/($L$3-INDEX($C$3:$L$3,1,aux!$BA$1)))-1,"n.d.") -> n.d. | AF181: =IF(INDEX($C181:$L181,1,aux!$BA$1)>0,(L181-INDEX($C181:$L181,1,aux!$BA$1))/INDEX($C181:$L181,1,aux!$BA$1),"n.d.") -> n.d. | AH181: =X181-INDEX($O181:$X181,1,aux!$BA$1) -> 2.825 | AI181: 3.286726577e-06 | AJ181: =+IF(INDEX($O181:$X181,1,aux!$BA$1)>0,(X181/INDEX($O181:$X181,1,aux!$BA$1))^(1/($X$3-INDEX($O$3:$X$3,1,aux!$BA$1)))-1,"n.d.") -> n.d. | AK181: =IF(INDEX($O181:$X181,1,aux!$BA$1)>0,(X181-INDEX($O181:$X181,1,aux!$BA$1))/INDEX($O181:$X181,1,aux!$BA$1),"n.d.") -> n.d. | CC181: =+IF(ISNA(MATCH('5.1'!A181,AUX_2d_pais!$G$2:$G$40000,0)),0,1) -> 1
A182: 0504 | B182: Peru | C182: 4619.798 | D182: 4730.65 | E182: 4695.708 | F182: 3803.178 | G182: 4449.78 | H182: 3763.935 | I182: 5283.036 | J182: 4939.751 | K182: 7066.606 | L182: 7577.455 | M182: 5092.9897 | N182: 0.003553833745 | O182: 0 | P182: 0.054 | Q182: 0 | R182: 0 | S182: 0 | T182: 0 | U182: 14.58 | V182: 8.565 | W182: 484.048 | X182: 48.926 | Y182: 55.6173 | Z182: 4.408064287e-05 | AA182: -5037.3724 | AC182: =L182-INDEX($C182:$L182,1,aux!$BA$1) -> 2957.657 | AD182: 0.004486550978 | AE182: =+IF(INDEX($C182:$L182,1,aux!$BA$1)>0,(L182/INDEX($C182:$L182,1,aux!$BA$1))^(1/($L$3-INDEX($C$3:$L$3,1,aux!$BA$1)))-1,"n.d.") -> 0.05652023656 | AF182: =IF(INDEX($C182:$L182,1,aux!$BA$1)>0,(L182-INDEX($C182:$L182,1,aux!$BA$1))/INDEX($C182:$L182,1,aux!$BA$1),"n.d.") -> 0.6402134899 | AH182: =X182-INDEX($O182:$X182,1,aux!$BA$1) -> 48.926 | AI182: 5.692261399e-05 | AJ182: =+IF(INDEX($O182:$X182,1,aux!$BA$1)>0,(X182/INDEX($O182:$X182,1,aux!$BA$1))^(1/($X$3-INDEX($O$3:$X$3,1,aux!$BA$1)))-1,"n.d.") -> n.d. | AK182: =IF(INDEX($O182:$X182,1,aux!$BA$1)>0,(X182-INDEX($O182:$X182,1,aux!$BA$1))/INDEX($O182:$X182,1,aux!$BA$1),"n.d.") -> n.d. | CC182: =+IF(ISNA(MATCH('5.1'!A182,AUX_2d_pais!$G$2:$G$40000,0)),0,1) -> 1
A183: 0813 | B183: Pitcairn | C183: 0 | D183: 0 | E183: 0 | F183: 0 | G183: 0 | H183: 0 | I183: 0 | J183: 0 | K183: 0 | L183: 0 | M183: 0 | N183: 0 | O183: 0 | P183: 0 | Q183: 0 | R183: 0 | S183: 0 | T183: 0 | U183: 0 | V183: 0 | W183: 0 | X183: 0 | Y183: 0 | Z183: 0 | AA183: 0 | AC183: =L183-INDEX($C183:$L183,1,aux!$BA$1) -> 0 | AD183: 0 | AE183: =+IF(INDEX($C183:$L183,1,aux!$BA$1)>0,(L183/INDEX($C183:$L183,1,aux!$BA$1))^(1/($L$3-INDEX($C$3:$L$3,1,aux!$BA$1)))-1,"n.d.") -> n.d. | AF183: =IF(INDEX($C183:$L183,1,aux!$BA$1)>0,(L183-INDEX($C183:$L183,1,aux!$BA$1))/INDEX($C183:$L183,1,aux!$BA$1),"n.d.") -> n.d. | AH183: =X183-INDEX($O183:$X183,1,aux!$BA$1) -> 0 | AI183: 0 | AJ183: =+IF(INDEX($O183:$X183,1,aux!$BA$1)>0,(X183/INDEX($O183:$X183,1,aux!$BA$1))^(1/($X$3-INDEX($O$3:$X$3,1,aux!$BA$1)))-1,"n.d.") -> n.d. | AK183: =IF(INDEX($O183:$X183,1,aux!$BA$1)>0,(X183-INDEX($O183:$X183,1,aux!$BA$1))/INDEX($O183:$X183,1,aux!$BA$1),"n.d.") -> n.d. | AM183: 0 | BO183: 0 | CC183: =+IF(ISNA(MATCH('5.1'!A183,AUX_2d_pais!$G$2:$G$40000,0)),0,1) -> 0
A184: 0822 | B184: Polinésia Francesa | C184: 0 | D184: 0 | E184: 0 | F184: 0 | G184: 0 | H184: 0 | I184: 0 | J184: 0 | K184: 0 | L184: 0 | M184: 0 | N184: 0 | O184: 0.927 | P184: 0 | Q184: 0 | R184: 0 | S184: 0 | T184: 0 | U184: 0 | V184: 0 | W184: 0 | X184: 0.017 | Y184: 0.0944 | Z184: 7.481867489e-08 | AA184: 0.0944 | AC184: =L184-INDEX($C184:$L184,1,aux!$BA$1) -> 0 | AD184: 0 | AE184: =+IF(INDEX($C184:$L184,1,aux!$BA$1)>0,(L184/INDEX($C184:$L184,1,aux!$BA$1))^(1/($L$3-INDEX($C$3:$L$3,1,aux!$BA$1)))-1,"n.d.") -> n.d. | AF184: =IF(INDEX($C184:$L184,1,aux!$BA$1)>0,(L184-INDEX($C184:$L184,1,aux!$BA$1))/INDEX($C184:$L184,1,aux!$BA$1),"n.d.") -> n.d. | AH184: =X184-INDEX($O184:$X184,1,aux!$BA$1) -> -0.91 | AI184: -1.058733163e-06 | AJ184: =+IF(INDEX($O184:$X184,1,aux!$BA$1)>0,(X184/INDEX($O184:$X184,1,aux!$BA$1))^(1/($X$3-INDEX($O$3:$X$3,1,aux!$BA$1)))-1,"n.d.") -> -0.3587298558 | AK184: =IF(INDEX($O184:$X184,1,aux!$BA$1)>0,(X184-INDEX($O184:$X184,1,aux!$BA$1))/INDEX($O184:$X184,1,aux!$BA$1),"n.d.") -> -0.9816612729 | CC184: =+IF(ISNA(MATCH('5.1'!A184,AUX_2d_pais!$G$2:$G$40000,0)),0,1) -> 1
A185: 0060 | B185: Polónia | C185: 572.944 | D185: 1501.484 | E185: 4965.963 | F185: 3040.075 | G185: 4295.132 | H185: 6522.334 | I185: 6769.039 | J185: 7277.324 | K185: 13135.455 | L185: 11554.616 | M185: 5963.4366 | N185: 0.004161222282 | O185: 17356.079 | P185: 18382.232 | Q185: 26022.945 | R185: 37569.437 | S185: 46920.704 | T185: 54528.631 | U185: 72991.161 | V185: 84837.751 | W185: 65270.631 | X185: 45792.872 | Y185: 46967.2443 | Z185: 0.03722486209 | AA185: 41003.8077 | AC185: =L185-INDEX($C185:$L185,1,aux!$BA$1) -> 10981.672 | AD185: 0.01665839929 | AE185: =+IF(INDEX($C185:$L185,1,aux!$BA$1)>0,(L185/INDEX($C185:$L185,1,aux!$BA$1))^(1/($L$3-INDEX($C$3:$L$3,1,aux!$BA$1)))-1,"n.d.") -> 0.3962409502 | AF185: =IF(INDEX($C185:$L185,1,aux!$BA$1)>0,(L185-INDEX($C185:$L185,1,aux!$BA$1))/INDEX($C185:$L185,1,aux!$BA$1),"n.d.") -> 19.16709486 | AH185: =X185-INDEX($O185:$X185,1,aux!$BA$1) -> 28436.793 | AI185: 0.03308458879 | AJ185: =+IF(INDEX($O185:$X185,1,aux!$BA$1)>0,(X185/INDEX($O185:$X185,1,aux!$BA$1))^(1/($X$3-INDEX($O$3:$X$3,1,aux!$BA$1)))-1,"n.d.") -> 0.1138231792 | AK185: =IF(INDEX($O185:$X185,1,aux!$BA$1)>0,(X185-INDEX($O185:$X185,1,aux!$BA$1))/INDEX($O185:$X185,1,aux!$BA$1),"n.d.") -> 1.638434176 | CC185: =+IF(ISNA(MATCH('5.1'!A185,AUX_2d_pais!$G$2:$G$40000,0)),0,1) -> 1
A186: 0346 | B186: Quénia | C186: 841.025 | D186: 436.621 | E186: 964.831 | F186: 1737.203 | G186: 1470.877 | H186: 3059.571 | I186: 1570.34 | J186: 1489.413 | K186: 2090.141 | L186: 1740.435 | M186: 1540.0457 | N186: 0.001074627419 | O186: 15.121 | P186: 6.334 | Q186: 3.59 | R186: 37.234 | S186: 25.672 | T186: 24.139 | U186: 19.197 | V186: 6.763 | W186: 6.004 | X186: 5.727 | Y186: 14.9781 | Z186: 1.187120333e-05 | AA186: -1525.0676 | AC186: =L186-INDEX($C186:$L186,1,aux!$BA$1) -> 899.41 | AD186: 0.001364339684 | AE186: =+IF(INDEX($C186:$L186,1,aux!$BA$1)>0,(L186/INDEX($C186:$L186,1,aux!$BA$1))^(1/($L$3-INDEX($C$3:$L$3,1,aux!$BA$1)))-1,"n.d.") -> 0.08416235293 | AF186: =IF(INDEX($C186:$L186,1,aux!$BA$1)>0,(L186-INDEX($C186:$L186,1,aux!$BA$1))/INDEX($C186:$L186,1,aux!$BA$1),"n.d.") -> 1.069421242 | AH186: =X186-INDEX($O186:$X186,1,aux!$BA$1) -> -9.394 | AI186: -1.092938388e-05 | AJ186: =+IF(INDEX($O186:$X186,1,aux!$BA$1)>0,(X186/INDEX($O186:$X186,1,aux!$BA$1))^(1/($X$3-INDEX($O$3:$X$3,1,aux!$BA$1)))-1,"n.d.") -> -0.1022619559 | AK186: =IF(INDEX($O186:$X186,1,aux!$BA$1)>0,(X186-INDEX($O186:$X186,1,aux!$BA$1))/INDEX($O186:$X186,1,aux!$BA$1),"n.d.") -> -0.621255208 | CC186: =+IF(ISNA(MATCH('5.1'!A186,AUX_2d_pais!$G$2:$G$40000,0)),0,1) -> 1
A187: 0083 | B187: Quirguizistão | C187: 0 | D187: 0 | E187: 72.712 | F187: 143.196 | G187: 0 | H187: 0 | I187: 0 | J187: 0 | K187: 12.285 | L187: 0 | M187: 22.8193 | N187: 1.59230635e-05 | O187: 0 | P187: 0 | Q187: 0 | R187: 0 | S187: 0 | T187: 0 | U187: 0 | V187: 0 | W187: 0 | X187: 0 | Y187: 0 | Z187: 0 | AA187: -22.8193 | AC187: =L187-INDEX($C187:$L187,1,aux!$BA$1) -> 0 | AD187: 0 | AE187: =+IF(INDEX($C187:$L187,1,aux!$BA$1)>0,(L187/INDEX($C187:$L187,1,aux!$BA$1))^(1/($L$3-INDEX($C$3:$L$3,1,aux!$BA$1)))-1,"n.d.") -> n.d. | AF187: =IF(INDEX($C187:$L187,1,aux!$BA$1)>0,(L187-INDEX($C187:$L187,1,aux!$BA$1))/INDEX($C187:$L187,1,aux!$BA$1),"n.d.") -> n.d. | AH187: =X187-INDEX($O187:$X187,1,aux!$BA$1) -> 0 | AI187: 0 | AJ187: =+IF(INDEX($O187:$X187,1,aux!$BA$1)>0,(X187/INDEX($O187:$X187,1,aux!$BA$1))^(1/($X$3-INDEX($O$3:$X$3,1,aux!$BA$1)))-1,"n.d.") -> n.d. | AK187: =IF(INDEX($O187:$X187,1,aux!$BA$1)>0,(X187-INDEX($O187:$X187,1,aux!$BA$1))/INDEX($O187:$X187,1,aux!$BA$1),"n.d.") -> n.d. | CC187: =+IF(ISNA(MATCH('5.1'!A187,AUX_2d_pais!$G$2:$G$40000,0)),0,1) -> 1
A188: 0890 | B188: Região Polar | C188: 0 | D188: 0 | E188: 0 | F188: 0 | G188: 0 | H188: 0 | I188: 0 | J188: 0 | K188: 0 | L188: 0 | M188: 0 | N188: 0 | O188: 0 | P188: 0 | Q188: 0 | R188: 0 | S188: 0 | T188: 0 | U188: 0 | V188: 0 | W188: 0 | X188: 0 | Y188: 0 | Z188: 0 | AA188: 0 | AC188: =L188-INDEX($C188:$L188,1,aux!$BA$1) -> 0 | AD188: 0 | AE188: =+IF(INDEX($C188:$L188,1,aux!$BA$1)>0,(L188/INDEX($C188:$L188,1,aux!$BA$1))^(1/($L$3-INDEX($C$3:$L$3,1,aux!$BA$1)))-1,"n.d.") -> n.d. | AF188: =IF(INDEX($C188:$L188,1,aux!$BA$1)>0,(L188-INDEX($C188:$L188,1,aux!$BA$1))/INDEX($C188:$L188,1,aux!$BA$1),"n.d.") -> n.d. | AH188: =X188-INDEX($O188:$X188,1,aux!$BA$1) -> 0 | AI188: 0 | AJ188: =+IF(INDEX($O188:$X188,1,aux!$BA$1)>0,(X188/INDEX($O188:$X188,1,aux!$BA$1))^(1/($X$3-INDEX($O$3:$X$3,1,aux!$BA$1)))-1,"n.d.") -> n.d. | AK188: =IF(INDEX($O188:$X188,1,aux!$BA$1)>0,(X188-INDEX($O188:$X188,1,aux!$BA$1))/INDEX($O188:$X188,1,aux!$BA$1),"n.d.") -> n.d. | AM188: 0 | BO188: 0 | CC188: =+IF(ISNA(MATCH('5.1'!A188,AUX_2d_pais!$G$2:$G$40000,0)),0,1) -> 0
A189: 0006 | B189: Reino Unido | C189: 7407.142 | D189: 8269.614 | E189: 8244.558 | F189: 7813.774 | G189: 7967.319 | H189: 9687.572 | I189: 9189.255 | J189: 9325.24 | K189: 11453.183 | L189: 10902.6 | M189: 9026.0257 | N189: 0.006298264203 | O189: 95456.809 | P189: 107719.178 | Q189: 104681.041 | R189: 113299.471 | S189: 117898.05 | T189: 117346.592 | U189: 138371.168 | V189: 141362.532 | W189: 142537.303 | X189: 153560.231 | Y189: 123223.2375 | Z189: 0.09766312865 | AA189: 114197.2118 | AC189: =L189-INDEX($C189:$L189,1,aux!$BA$1) -> 3495.458 | AD189: 0.005302356058 | AE189: =+IF(INDEX($C189:$L189,1,aux!$BA$1)>0,(L189/INDEX($C189:$L189,1,aux!$BA$1))^(1/($L$3-INDEX($C$3:$L$3,1,aux!$BA$1)))-1,"n.d.") -> 0.04388646744 | AF189: =IF(INDEX($C189:$L189,1,aux!$BA$1)>0,(L189-INDEX($C189:$L189,1,aux!$BA$1))/INDEX($C189:$L189,1,aux!$BA$1),"n.d.") -> 0.4719037383 | AH189: =X189-INDEX($O189:$X189,1,aux!$BA$1) -> 58103.422 | AI189: 0.0676000217 | AJ189: =+IF(INDEX($O189:$X189,1,aux!$BA$1)>0,(X189/INDEX($O189:$X189,1,aux!$BA$1))^(1/($X$3-INDEX($O$3:$X$3,1,aux!$BA$1)))-1,"n.d.") -> 0.0542444322 | AK189: =IF(INDEX($O189:$X189,1,aux!$BA$1)>0,(X189-INDEX($O189:$X189,1,aux!$BA$1))/INDEX($O189:$X189,1,aux!$BA$1),"n.d.") -> 0.6086880822 | CC189: =+IF(ISNA(MATCH('5.1'!A189,AUX_2d_pais!$G$2:$G$40000,0)),0,1) -> 1
A190: 0372 | B190: Reunião, Ilha da | C190: 0 | D190: 0 | E190: 0 | F190: 0 | G190: 0 | H190: 0 | I190: 0 | J190: 0 | K190: 0 | L190: 0 | M190: 0 | N190: 0 | O190: 0 | P190: 0 | Q190: 0 | R190: 0 | S190: 0 | T190: 0 | U190: 0 | V190: 0 | W190: 0 | X190: 0 | Y190: 0 | Z190: 0 | AA190: 0 | AC190: =L190-INDEX($C190:$L190,1,aux!$BA$1) -> 0 | AD190: 0 | AE190: =+IF(INDEX($C190:$L190,1,aux!$BA$1)>0,(L190/INDEX($C190:$L190,1,aux!$BA$1))^(1/($L$3-INDEX($C$3:$L$3,1,aux!$BA$1)))-1,"n.d.") -> n.d. | AF190: =IF(INDEX($C190:$L190,1,aux!$BA$1)>0,(L190-INDEX($C190:$L190,1,aux!$BA$1))/INDEX($C190:$L190,1,aux!$BA$1),"n.d.") -> n.d. | AH190: =X190-INDEX($O190:$X190,1,aux!$BA$1) -> 0 | AI190: 0 | AJ190: =+IF(INDEX($O190:$X190,1,aux!$BA$1)>0,(X190/INDEX($O190:$X190,1,aux!$BA$1))^(1/($X$3-INDEX($O$3:$X$3,1,aux!$BA$1)))-1,"n.d.") -> n.d. | AK190: =IF(INDEX($O190:$X190,1,aux!$BA$1)>0,(X190-INDEX($O190:$X190,1,aux!$BA$1))/INDEX($O190:$X190,1,aux!$BA$1),"n.d.") -> n.d. | AM190: 0 | BO190: 0 | CC190: =+IF(ISNA(MATCH('5.1'!A190,AUX_2d_pais!$G$2:$G$40000,0)),0,1) -> 0
A191: 0066 | B191: Roménia | C191: 599.438 | D191: 689.759 | E191: 1155.408 | F191: 1561.368 | G191: 1569.962 | H191: 1131.21 | I191: 1301.633 | J191: 1109.692 | K191: 1100.89 | L191: 1159.172 | M191: 1137.8532 | N191: 0.000793981794 | O191: 552.419 | P191: 552.977 | Q191: 1143.358 | R191: 540.937 | S191: 907.568 | T191: 708.271 | U191: 935.381 | V191: 1128.768 | W191: 970.29 | X191: 1502.096 | Y191: 894.2065 | Z191: 0.0007087218793 | AA191: -243.6467 | AC191: =L191-INDEX($C191:$L191,1,aux!$BA$1) -> 559.734 | AD191: 0.000849075848 | AE191: =+IF(INDEX($C191:$L191,1,aux!$BA$1)>0,(L191/INDEX($C191:$L191,1,aux!$BA$1))^(1/($L$3-INDEX($C$3:$L$3,1,aux!$BA$1)))-1,"n.d.") -> 0.07602564866 | AF191: =IF(INDEX($C191:$L191,1,aux!$BA$1)>0,(L191-INDEX($C191:$L191,1,aux!$BA$1))/INDEX($C191:$L191,1,aux!$BA$1),"n.d.") -> 0.9337646262 | AH191: =X191-INDEX($O191:$X191,1,aux!$BA$1) -> 949.677 | AI191: 0.001104895092 | AJ191: =+IF(INDEX($O191:$X191,1,aux!$BA$1)>0,(X191/INDEX($O191:$X191,1,aux!$BA$1))^(1/($X$3-INDEX($O$3:$X$3,1,aux!$BA$1)))-1,"n.d.") -> 0.1175575529 | AK191: =IF(INDEX($O191:$X191,1,aux!$BA$1)>0,(X191-INDEX($O191:$X191,1,aux!$BA$1))/INDEX($O191:$X191,1,aux!$BA$1),"n.d.") -> 1.719124433 | CC191: =+IF(ISNA(MATCH('5.1'!A191,AUX_2d_pais!$G$2:$G$40000,0)),0,1) -> 1
A192: 0324 | B192: Ruanda | C192: 0 | D192: 0 | E192: 0 | F192: 0 | G192: 0 | H192: 0 | I192: 0 | J192: 0 | K192: 0 | L192: 0 | M192: 0 | N192: 0 | O192: 0 | P192: 0 | Q192: 0 | R192: 0 | S192: 0 | T192: 0 | U192: 0 | V192: 0 | W192: 0 | X192: 0 | Y192: 0 | Z192: 0 | AA192: 0 | AC192: =L192-INDEX($C192:$L192,1,aux!$BA$1) -> 0 | AD192: 0 | AE192: =+IF(INDEX($C192:$L192,1,aux!$BA$1)>0,(L192/INDEX($C192:$L192,1,aux!$BA$1))^(1/($L$3-INDEX($C$3:$L$3,1,aux!$BA$1)))-1,"n.d.") -> n.d. | AF192: =IF(INDEX($C192:$L192,1,aux!$BA$1)>0,(L192-INDEX($C192:$L192,1,aux!$BA$1))/INDEX($C192:$L192,1,aux!$BA$1),"n.d.") -> n.d. | AH192: =X192-INDEX($O192:$X192,1,aux!$BA$1) -> 0 | AI192: 0 | AJ192: =+IF(INDEX($O192:$X192,1,aux!$BA$1)>0,(X192/INDEX($O192:$X192,1,aux!$BA$1))^(1/($X$3-INDEX($O$3:$X$3,1,aux!$BA$1)))-1,"n.d.") -> n.d. | AK192: =IF(INDEX($O192:$X192,1,aux!$BA$1)>0,(X192-INDEX($O192:$X192,1,aux!$BA$1))/INDEX($O192:$X192,1,aux!$BA$1),"n.d.") -> n.d. | AM192: 0 | BO192: 0 | CC192: =+IF(ISNA(MATCH('5.1'!A192,AUX_2d_pais!$G$2:$G$40000,0)),0,1) -> 0
A193: 0075 | B193: Rússia, Federação da | C193: 42.914 | D193: 0 | E193: 0 | F193: 41.638 | G193: 0 | H193: 0 | I193: 93.245 | J193: 0.316 | K193: 19.224 | L193: 0.06 | M193: 19.7397 | N193: 1.377415155e-05 | O193: 9281.336 | P193: 11558.183 | Q193: 16728.425 | R193: 15176.971 | S193: 6499.061 | T193: 12016.613 | U193: 14200.788 | V193: 17861.457 | W193: 16070.123 | X193: 17292.423 | Y193: 13668.538 | Z193: 0.01083328285 | AA193: 13648.7983 | AC193: =L193-INDEX($C193:$L193,1,aux!$BA$1) -> -42.854 | AD193: -6.500640731e-05 | AE193: =+IF(INDEX($C193:$L193,1,aux!$BA$1)>0,(L193/INDEX($C193:$L193,1,aux!$BA$1))^(1/($L$3-INDEX($C$3:$L$3,1,aux!$BA$1)))-1,"n.d.") -> -0.5182306806 | AF193: =IF(INDEX($C193:$L193,1,aux!$BA$1)>0,(L193-INDEX($C193:$L193,1,aux!$BA$1))/INDEX($C193:$L193,1,aux!$BA$1),"n.d.") -> -0.9986018549 | AH193: =X193-INDEX($O193:$X193,1,aux!$BA$1) -> 8011.087 | AI193: 0.009320443382 | AJ193: =+IF(INDEX($O193:$X193,1,aux!$BA$1)>0,(X193/INDEX($O193:$X193,1,aux!$BA$1))^(1/($X$3-INDEX($O$3:$X$3,1,aux!$BA$1)))-1,"n.d.") -> 0.07158656919 | AK193: =IF(INDEX($O193:$X193,1,aux!$BA$1)>0,(X193-INDEX($O193:$X193,1,aux!$BA$1))/INDEX($O193:$X193,1,aux!$BA$1),"n.d.") -> 0.863139423 | CC193: =+IF(ISNA(MATCH('5.1'!A193,AUX_2d_pais!$G$2:$G$40000,0)),0,1) -> 1
A194: 0806 | B194: Salomão, Ilhas | C194: 0 | D194: 0 | E194: 0 | F194: 0 | G194: 0 | H194: 0 | I194: 0 | J194: 0 | K194: 0 | L194: 0 | M194: 0 | N194: 0 | O194: 0 | P194: 0 | Q194: 0 | R194: 0 | S194: 0 | T194: 0 | U194: 0 | V194: 0 | W194: 0 | X194: 0 | Y194: 0 | Z194: 0 | AA194: 0 | AC194: =L194-INDEX($C194:$L194,1,aux!$BA$1) -> 0 | AD194: 0 | AE194: =+IF(INDEX($C194:$L194,1,aux!$BA$1)>0,(L194/INDEX($C194:$L194,1,aux!$BA$1))^(1/($L$3-INDEX($C$3:$L$3,1,aux!$BA$1)))-1,"n.d.") -> n.d. | AF194: =IF(INDEX($C194:$L194,1,aux!$BA$1)>0,(L194-INDEX($C194:$L194,1,aux!$BA$1))/INDEX($C194:$L194,1,aux!$BA$1),"n.d.") -> n.d. | AH194: =X194-INDEX($O194:$X194,1,aux!$BA$1) -> 0 | AI194: 0 | AJ194: =+IF(INDEX($O194:$X194,1,aux!$BA$1)>0,(X194/INDEX($O194:$X194,1,aux!$BA$1))^(1/($X$3-INDEX($O$3:$X$3,1,aux!$BA$1)))-1,"n.d.") -> n.d. | AK194: =IF(INDEX($O194:$X194,1,aux!$BA$1)>0,(X194-INDEX($O194:$X194,1,aux!$BA$1))/INDEX($O194:$X194,1,aux!$BA$1),"n.d.") -> n.d. | AM194: 0 | BO194: 0 | CC194: =+IF(ISNA(MATCH('5.1'!A194,AUX_2d_pais!$G$2:$G$40000,0)),0,1) -> 0
A195: 0819 | B195: Samoa | C195: 0 | D195: 0 | E195: 0 | F195: 0 | G195: 0 | H195: 0 | I195: 0 | J195: 0 | K195: 0 | L195: 0 | M195: 0 | N195: 0 | O195: 0 | P195: 0 | Q195: 0 | R195: 0 | S195: 0 | T195: 0 | U195: 0 | V195: 0 | W195: 0 | X195: 0 | Y195: 0 | Z195: 0 | AA195: 0 | AC195: =L195-INDEX($C195:$L195,1,aux!$BA$1) -> 0 | AD195: 0 | AE195: =+IF(INDEX($C195:$L195,1,aux!$BA$1)>0,(L195/INDEX($C195:$L195,1,aux!$BA$1))^(1/($L$3-INDEX($C$3:$L$3,1,aux!$BA$1)))-1,"n.d.") -> n.d. | AF195: =IF(INDEX($C195:$L195,1,aux!$BA$1)>0,(L195-INDEX($C195:$L195,1,aux!$BA$1))/INDEX($C195:$L195,1,aux!$BA$1),"n.d.") -> n.d. | AH195: =X195-INDEX($O195:$X195,1,aux!$BA$1) -> 0 | AI195: 0 | AJ195: =+IF(INDEX($O195:$X195,1,aux!$BA$1)>0,(X195/INDEX($O195:$X195,1,aux!$BA$1))^(1/($X$3-INDEX($O$3:$X$3,1,aux!$BA$1)))-1,"n.d.") -> n.d. | AK195: =IF(INDEX($O195:$X195,1,aux!$BA$1)>0,(X195-INDEX($O195:$X195,1,aux!$BA$1))/INDEX($O195:$X195,1,aux!$BA$1),"n.d.") -> n.d. | AM195: 0 | BO195: 0 | CC195: =+IF(ISNA(MATCH('5.1'!A195,AUX_2d_pais!$G$2:$G$40000,0)),0,1) -> 0
A196: 0830 | B196: Samoa Americana | C196: 0 | D196: 0 | E196: 0 | F196: 0 | G196: 0 | H196: 0 | I196: 0 | J196: 0 | K196: 0 | L196: 0 | M196: 0 | N196: 0 | O196: 0 | P196: 0 | Q196: 0 | R196: 0 | S196: 0 | T196: 0 | U196: 0 | V196: 0 | W196: 0 | X196: 0 | Y196: 0 | Z196: 0 | AA196: 0 | AC196: =L196-INDEX($C196:$L196,1,aux!$BA$1) -> 0 | AD196: 0 | AE196: =+IF(INDEX($C196:$L196,1,aux!$BA$1)>0,(L196/INDEX($C196:$L196,1,aux!$BA$1))^(1/($L$3-INDEX($C$3:$L$3,1,aux!$BA$1)))-1,"n.d.") -> n.d. | AF196: =IF(INDEX($C196:$L196,1,aux!$BA$1)>0,(L196-INDEX($C196:$L196,1,aux!$BA$1))/INDEX($C196:$L196,1,aux!$BA$1),"n.d.") -> n.d. | AH196: =X196-INDEX($O196:$X196,1,aux!$BA$1) -> 0 | AI196: 0 | AJ196: =+IF(INDEX($O196:$X196,1,aux!$BA$1)>0,(X196/INDEX($O196:$X196,1,aux!$BA$1))^(1/($X$3-INDEX($O$3:$X$3,1,aux!$BA$1)))-1,"n.d.") -> n.d. | AK196: =IF(INDEX($O196:$X196,1,aux!$BA$1)>0,(X196-INDEX($O196:$X196,1,aux!$BA$1))/INDEX($O196:$X196,1,aux!$BA$1),"n.d.") -> n.d. | AM196: =SUM(A196:AA196) -> 0 | BO196: =SUM(C196:L196,O196:X196) -> 0 | CC196: =+IF(ISNA(MATCH('5.1'!A196,AUX_2d_pais!$G$2:$G$40000,0)),0,1) -> 0
A197: 0329 | B197: Santa Helena | C197: 0 | D197: 0 | E197: 0 | F197: 0 | G197: 0 | H197: 0 | I197: 0 | J197: 0 | K197: 0 | L197: 0 | M197: 0 | N197: 0 | O197: 0 | P197: 0 | Q197: 0 | R197: 0 | S197: 0 | T197: 0 | U197: 0 | V197: 0 | W197: 0 | X197: 0 | Y197: 0 | Z197: 0 | AA197: 0 | AC197: =L197-INDEX($C197:$L197,1,aux!$BA$1) -> 0 | AD197: 0 | AE197: =+IF(INDEX($C197:$L197,1,aux!$BA$1)>0,(L197/INDEX($C197:$L197,1,aux!$BA$1))^(1/($L$3-INDEX($C$3:$L$3,1,aux!$BA$1)))-1,"n.d.") -> n.d. | AF197: =IF(INDEX($C197:$L197,1,aux!$BA$1)>0,(L197-INDEX($C197:$L197,1,aux!$BA$1))/INDEX($C197:$L197,1,aux!$BA$1),"n.d.") -> n.d. | AH197: =X197-INDEX($O197:$X197,1,aux!$BA$1) -> 0 | AI197: 0 | AJ197: =+IF(INDEX($O197:$X197,1,aux!$BA$1)>0,(X197/INDEX($O197:$X197,1,aux!$BA$1))^(1/($X$3-INDEX($O$3:$X$3,1,aux!$BA$1)))-1,"n.d.") -> n.d. | AK197: =IF(INDEX($O197:$X197,1,aux!$BA$1)>0,(X197-INDEX($O197:$X197,1,aux!$BA$1))/INDEX($O197:$X197,1,aux!$BA$1),"n.d.") -> n.d. | AM197: 0 | BO197: 0 | CC197: =+IF(ISNA(MATCH('5.1'!A197,AUX_2d_pais!$G$2:$G$40000,0)),0,1) -> 0
A198: 0465 | B198: Santa Lúcia | C198: 0 | D198: 0 | E198: 0 | F198: 0 | G198: 0 | H198: 0 | I198: 0 | J198: 0 | K198: 0 | L198: 0 | M198: 0 | N198: 0 | O198: 0 | P198: 0 | Q198: 0 | R198: 0 | S198: 0 | T198: 0 | U198: 0 | V198: 0 | W198: 0 | X198: 0 | Y198: 0 | Z198: 0 | AA198: 0 | AC198: =L198-INDEX($C198:$L198,1,aux!$BA$1) -> 0 | AD198: 0 | AE198: =+IF(INDEX($C198:$L198,1,aux!$BA$1)>0,(L198/INDEX($C198:$L198,1,aux!$BA$1))^(1/($L$3-INDEX($C$3:$L$3,1,aux!$BA$1)))-1,"n.d.") -> n.d. | AF198: =IF(INDEX($C198:$L198,1,aux!$BA$1)>0,(L198-INDEX($C198:$L198,1,aux!$BA$1))/INDEX($C198:$L198,1,aux!$BA$1),"n.d.") -> n.d. | AH198: =X198-INDEX($O198:$X198,1,aux!$BA$1) -> 0 | AI198: 0 | AJ198: =+IF(INDEX($O198:$X198,1,aux!$BA$1)>0,(X198/INDEX($O198:$X198,1,aux!$BA$1))^(1/($X$3-INDEX($O$3:$X$3,1,aux!$BA$1)))-1,"n.d.") -> n.d. | AK198: =IF(INDEX($O198:$X198,1,aux!$BA$1)>0,(X198-INDEX($O198:$X198,1,aux!$BA$1))/INDEX($O198:$X198,1,aux!$BA$1),"n.d.") -> n.d. | AM198: 0 | BO198: 0 | CC198: =+IF(ISNA(MATCH('5.1'!A198,AUX_2d_pais!$G$2:$G$40000,0)),0,1) -> 0
A199: 0045 | B199: Santa Sé (Cidade Estado do Vaticano) | C199: 0 | D199: 0 | E199: 0 | F199: 0 | G199: 0 | H199: 0 | I199: 0 | J199: 0 | K199: 0 | L199: 0 | M199: 0 | N199: 0 | O199: 0 | P199: 0 | Q199: 0 | R199: 0 | S199: 0 | T199: 0 | U199: 0 | V199: 0 | W199: 0 | X199: 0 | Y199: 0 | Z199: 0 | AA199: 0 | AC199: =L199-INDEX($C199:$L199,1,aux!$BA$1) -> 0 | AD199: 0 | AE199: =+IF(INDEX($C199:$L199,1,aux!$BA$1)>0,(L199/INDEX($C199:$L199,1,aux!$BA$1))^(1/($L$3-INDEX($C$3:$L$3,1,aux!$BA$1)))-1,"n.d.") -> n.d. | AF199: =IF(INDEX($C199:$L199,1,aux!$BA$1)>0,(L199-INDEX($C199:$L199,1,aux!$BA$1))/INDEX($C199:$L199,1,aux!$BA$1),"n.d.") -> n.d. | AH199: =X199-INDEX($O199:$X199,1,aux!$BA$1) -> 0 | AI199: 0 | AJ199: =+IF(INDEX($O199:$X199,1,aux!$BA$1)>0,(X199/INDEX($O199:$X199,1,aux!$BA$1))^(1/($X$3-INDEX($O$3:$X$3,1,aux!$BA$1)))-1,"n.d.") -> n.d. | AK199: =IF(INDEX($O199:$X199,1,aux!$BA$1)>0,(X199-INDEX($O199:$X199,1,aux!$BA$1))/INDEX($O199:$X199,1,aux!$BA$1),"n.d.") -> n.d. | AM199: 0 | BO199: 0 | CC199: =+IF(ISNA(MATCH('5.1'!A199,AUX_2d_pais!$G$2:$G$40000,0)),0,1) -> 0
A200: 0466 | B200: São Bartolomeu | C200: 0 | D200: 0 | E200: 0 | F200: 0 | G200: 0 | H200: 0 | I200: 0 | J200: 0 | K200: 0 | L200: 0 | M200: 0 | N200: 0 | O200: 0 | P200: 0 | Q200: 16.32 | R200: 28.225 | S200: 29.47 | T200: 17.787 | U200: 49.023 | V200: 18.361 | W200: 22.395 | X200: 34.666 | Y200: 21.6247 | Z200: 1.71391038e-05 | AA200: 21.6247 | AC200: =L200-INDEX($C200:$L200,1,aux!$BA$1) -> 0 | AD200: 0 | AE200: =+IF(INDEX($C200:$L200,1,aux!$BA$1)>0,(L200/INDEX($C200:$L200,1,aux!$BA$1))^(1/($L$3-INDEX($C$3:$L$3,1,aux!$BA$1)))-1,"n.d.") -> n.d. | AF200: =IF(INDEX($C200:$L200,1,aux!$BA$1)>0,(L200-INDEX($C200:$L200,1,aux!$BA$1))/INDEX($C200:$L200,1,aux!$BA$1),"n.d.") -> n.d. | AH200: =X200-INDEX($O200:$X200,1,aux!$BA$1) -> 34.666 | AI200: 4.033191629e-05 | AJ200: =+IF(INDEX($O200:$X200,1,aux!$BA$1)>0,(X200/INDEX($O200:$X200,1,aux!$BA$1))^(1/($X$3-INDEX($O$3:$X$3,1,aux!$BA$1)))-1,"n.d.") -> n.d. | AK200: =IF(INDEX($O200:$X200,1,aux!$BA$1)>0,(X200-INDEX($O200:$X200,1,aux!$BA$1))/INDEX($O200:$X200,1,aux!$BA$1),"n.d.") -> n.d. | CC200: =+IF(ISNA(MATCH('5.1'!A200,AUX_2d_pais!$G$2:$G$40000,0)),0,1) -> 1
... 53 more rows

Sheet 5.1_var
A1: ="Principais contributos por país para a variação das trocas comerciais PT-Todo o Mundo_x000D_ no período " & INDEX('5.2'!P3:X3,1,aux!BA1) & "-2020 Frutas, Hortícolas & Flores (valores em milhares de euros)" -> Principais contributos por país para a variação das trocas comerciais PT-Todo o Mundo no período 2011-2020 Frutas, Hortícolas & Flores (valores em milhares de euros)
E5: aumento das importações | J5: aumento das exportações
E17: redução das importações | J17: redução das exportações
A28: Fonte: GPP a partir de dados INE/Comércio Internacional (2019 provisórios; 2020 preliminares) | H28: ='3'!Y116 -> 2021-12-30
A29: Cód. NC | B29: Descritivo | C29: ="Variação das Importações " & INDEX('5.2'!C3:L3,1,aux!BA1) & "-"& '5.2'!L3&"" -> Variação das Importações 2011-2020 | F29: Cód. NC | G29: Descritivo | H29: ="Variação das Exportações " & INDEX('5.2'!P3:X3,1,aux!BA1) & "-"& '5.2'!Y3 &"" -> Variação das Exportações 2011-2020
C30: variação total em valor | D30: % do aumento/ redução total | H30: variação total em valor | I30: % do aumento/ redução total
A31: =IF(C31>0,aux!CY6,"") -> 0011 | B31: =IF(C31>0,aux!CZ6,"") -> Espanha | C31: =IF(aux!DA6>0,aux!DA6,0) -> 397193.632 | D31: =IF(SUM($C$31:$C$41)<>0,C31/SUM($C$31:$C$41),0) -> 0.5574487985 | F31: =IF(H31>0,aux!DD6,"") -> 0011 | G31: =IF(H31>0,aux!DE6,"") -> Espanha | H31: =IF(aux!DF6>0,aux!DF6,0) -> 299045.227 | I31: =IF(SUM($H$31:$H$41)<>0,H31/SUM($H$31:$H$41),0) -> 0.3279651845
A32: =IF(C32>0,aux!CY7,"") -> 0388 | B32: =IF(C32>0,aux!CZ7,"") -> África do Sul | C32: =IF(aux!DA7>0,aux!DA7,0) -> 98314.767 | D32: =IF(SUM($C$31:$C$41)<>0,C32/SUM($C$31:$C$41),0) -> 0.1379816904 | F32: =IF(H32>0,aux!DD7,"") -> 0001 | G32: =IF(H32>0,aux!DE7,"") -> França | H32: =IF(aux!DF7>0,aux!DF7,0) -> 125832.804 | I32: =IF(SUM($H$31:$H$41)<>0,H32/SUM($H$31:$H$41),0) -> 0.1380017972
A33: =IF(C33>0,aux!CY8,"") -> 0004 | B33: =IF(C33>0,aux!CZ8,"") -> Alemanha | C33: =IF(aux!DA8>0,aux!DA8,0) -> 60222.676 | D33: 0.08452063597 | F33: =IF(H33>0,aux!DD8,"") -> 0003 | G33: =IF(H33>0,aux!DE8,"") -> Países Baixos | H33: =IF(aux!DF8>0,aux!DF8,0) -> 100784.379 | I33: 0.1105309982
A34: =IF(C34>0,aux!CY9,"") -> 0003 | B34: =IF(C34>0,aux!CZ9,"") -> Países Baixos | C34: =IF(aux!DA9>0,aux!DA9,0) -> 24250.542 | D34: 0.03403487471 | F34: =IF(H34>0,aux!DD9,"") -> 0004 | G34: =IF(H34>0,aux!DE9,"") -> Alemanha | H34: =IF(aux!DF9>0,aux!DF9,0) -> 91374.528 | I34: 0.1002111428
A35: =IF(C35>0,aux!CY10,"") -> 0436 | B35: =IF(C35>0,aux!CZ10,"") -> Costa Rica | C35: =IF(aux!DA10>0,aux!DA10,0) -> 19896.735 | D35: 0.02792444321 | F35: =IF(H35>0,aux!DD10,"") -> 0006 | G35: =IF(H35>0,aux!DE10,"") -> Reino Unido | H35: =IF(aux!DF10>0,aux!DF10,0) -> 58103.422 | I35: 0.06372246669
A36: =IF(C36>0,aux!CY11,"") -> 0480 | B36: =IF(C36>0,aux!CZ11,"") -> Colômbia | C36: =IF(aux!DA11>0,aux!DA11,0) -> 11438.654 | D36: 0.01605379194 | F36: =IF(H36>0,aux!DD11,"") -> 0017 | G36: =IF(H36>0,aux!DE11,"") -> Bélgica | H36: =IF(aux!DF11>0,aux!DF11,0) -> 45278.582 | I36: 0.04965736671
A37: =IF(C37>0,aux!CY12,"") -> 0060 | B37: =IF(C37>0,aux!CZ12,"") -> Polónia | C37: =IF(aux!DA12>0,aux!DA12,0) -> 10981.672 | D37: 0.01541243205 | F37: =IF(H37>0,aux!DD12,"") -> 0060 | G37: =IF(H37>0,aux!DE12,"") -> Polónia | H37: =IF(aux!DF12>0,aux!DF12,0) -> 28436.793 | I37: 0.03118684808
A38: =IF(C38>0,aux!CY13,"") -> 0508 | B38: =IF(C38>0,aux!CZ13,"") -> Brasil | C38: =IF(aux!DA13>0,aux!DA13,0) -> 10721.554 | D38: 0.0150473646 | F38: =IF(H38>0,aux!DD13,"") -> 0005 | G38: =IF(H38>0,aux!DE13,"") -> Itália | H38: =IF(aux!DF13>0,aux!DF13,0) -> 23917.28 | I38: 0.02623026365
A39: =IF(C39>0,aux!CY14,"") -> 0017 | B39: =IF(C39>0,aux!CZ14,"") -> Bélgica | C39: =IF(aux!DA14>0,aux!DA14,0) -> 8278.267 | D39: 0.01161828796 | F39: =IF(H39>0,aux!DD14,"") -> 0400 | G39: =IF(H39>0,aux!DE14,"") -> Estados Unidos | H39: =IF(aux!DF14>0,aux!DF14,0) -> 18718.634 | I39: 0.02052886888
A40: =IF(C40>0,aux!CY15,"") -> 0512 | B40: =IF(C40>0,aux!CZ15,"") -> Chile | C40: =IF(aux!DA15>0,aux!DA15,0) -> 7123.676 | D40: 0.009997855725 | F40: =IF(H40>0,aux!DD15,"") -> 0732 | G40: =IF(H40>0,aux!DE15,"") -> Japão | H40: =IF(aux!DF15>0,aux!DF15,0) -> 12719.886 | I40: 0.01394999613
B41: Outros contributos para o aumento das importações | C41: =SUMIF(aux!DA16:DA252,">0") -> 64098.209 | D41: 0.08995982492 | G41: Outros contributos para o aumento das exportações | H41: =SUMIF(aux!DF16:DF252,">0") -> 107608.503 | I41: 0.1180150671
B42: Outros contributos para a redução das importações | C42: =SUMIF(aux!DA6:DA242,"<0") -> -2811.872 | D42: =IF(SUM($C$42:$C$52)<>0,C42/SUM($C$42:$C$52),0) -> 0.05276246105 | G42: Outros contributos para a redução das exportações | H42: =SUMIF(aux!DF6:DF242,"<0") -> -653.566 | I42: =IF(SUM($H$42:$H$52)<>0,H42/SUM($H$42:$H$52),0) -> 0.01273340373
A43: =IF(C43<>0,aux!CY243,"") -> 0442 | B43: =IF(C43<0,aux!CZ243,"") -> Panamá | C43: =IF(aux!DA243<0,aux!DA243,0) -> -1156.319 | D43: =IF(SUM($C$42:$C$52)<>0,C43/SUM($C$42:$C$52),0) -> 0.02169737321 | F43: =IF(H43<>0,aux!DD243,"") -> 0484 | G43: =IF(H43<>0,aux!DE243,"") -> Venezuela | H43: =IF(aux!DF243<0,aux!DF243,0) -> -296.414 | I43: =IF(SUM($H$42:$H$52)<>0,H43/SUM($H$42:$H$52),0) -> 0.005775023692
A44: =IF(C44<>0,aux!CY244,"") -> 0528 | B44: =IF(C44<0,aux!CZ244,"") -> Argentina | C44: =IF(aux!DA244<0,aux!DA244,0) -> -1253.342 | D44: 0.02351792986 | F44: =IF(H44<>0,aux!DD244,"") -> 0616 | G44: =IF(H44<>0,aux!DE244,"") -> Irão, República Islâmica do | H44: =IF(aux!DF244<0,aux!DF244,0) -> -421.801 | I44: 0.008217934268
A45: =IF(C45<>0,aux!CY245,"") -> 0669 | B45: =IF(C45<0,aux!CZ245,"") -> Sri Lanca | C45: =IF(aux!DA245<0,aux!DA245,0) -> -1417.412 | D45: 0.02659656821 | F45: =IF(H45<>0,aux!DD245,"") -> 0073 | G45: =IF(H45<>0,aux!DE245,"") -> Belarus | H45: =IF(aux!DF245<0,aux!DF245,0) -> -488.826 | I45: 0.009523780021
A46: =IF(C46<>0,aux!CY246,"") -> 0804 | B46: =IF(C46<0,aux!CZ246,"") -> Nova Zelânda | C46: =IF(aux!DA246<0,aux!DA246,0) -> -1617.783 | D46: 0.03035636491 | F46: =IF(H46<>0,aux!DD246,"") -> 0076 | G46: =IF(H46<>0,aux!DE246,"") -> Geórgia | H46: =IF(aux!DF246<0,aux!DF246,0) -> -529.334 | I46: 0.01031299598
A47: =IF(C47<>0,aux!CY247,"") -> 0720 | B47: =IF(C47<0,aux!CZ247,"") -> China, República Popular da | C47: =IF(aux!DA247<0,aux!DA247,0) -> -3553.385 | D47: 0.06667634148 | F47: =IF(H47<>0,aux!DD247,"") -> 0052 | G47: =IF(H47<>0,aux!DE247,"") -> Turquia | H47: =IF(aux!DF247<0,aux!DF247,0) -> -633.46 | I47: 0.01234167923
A48: =IF(C48<>0,aux!CY248,"") -> 0664 | B48: =IF(C48<0,aux!CZ248,"") -> Índia | C48: =IF(aux!DA248<0,aux!DA248,0) -> -4162.873 | D48: 0.07811288157 | F48: =IF(H48<>0,aux!DD248,"") -> 0204 | G48: =IF(H48<>0,aux!DE248,"") -> Marrocos | H48: =IF(aux!DF248<0,aux!DF248,0) -> -1403.738 | I48: 0.02734897882
A49: =IF(C49<>0,aux!CY249,"") -> 0500 | B49: =IF(C49<0,aux!CZ249,"") -> Equador | C49: =IF(aux!DA249<0,aux!DA249,0) -> -5792.949 | D49: 0.1086999145 | F49: =IF(H49<>0,aux!DD249,"") -> 0636 | G49: =IF(H49<>0,aux!DE249,"") -> Kuwait | H49: =IF(aux!DF249<0,aux!DF249,0) -> -1865.649 | I49: 0.03634837483
A50: =IF(C50<>0,aux!CY250,"") -> 0680 | B50: =IF(C50<0,aux!CZ250,"") -> Tailândia | C50: =IF(aux!DA250<0,aux!DA250,0) -> -6806.427 | D50: 0.127716994 | F50: =IF(H50<>0,aux!DD250,"") -> 0800 | G50: =IF(H50<>0,aux!DE250,"") -> Austrália | H50: =IF(aux!DF250<0,aux!DF250,0) -> -4847.274 | I50: 0.09443927139
A51: =IF(C51<>0,aux!CY251,"") -> 0008 | B51: =IF(C51<0,aux!CZ251,"") -> Dinamarca | C51: =IF(aux!DA251<0,aux!DA251,0) -> -10810.644 | D51: 0.2028528265 | F51: =IF(H51<>0,aux!DD251,"") -> 0508 | G51: =IF(H51<>0,aux!DE251,"") -> Brasil | H51: =IF(aux!DF251<0,aux!DF251,0) -> -4962.313 | I51: 0.09668057224
A52: =IF(C52<>0,aux!CY252,"") -> 0001 | B52: =IF(C52<0,aux!CZ252,"") -> França | C52: =IF(aux!DA252<0,aux!DA252,0) -> -13910.035 | D52: 0.2610103447 | F52: =IF(H52<>0,aux!DD252,"") -> 0330 | G52: =IF(H52<>0,aux!DE252,"") -> Angola | H52: =IF(aux!DF252<0,aux!DF252,0) -> -35224.514 | I52: 0.6862779858
A53: TOTAL | C53: =SUM(C31:C52) -> 659227.343 | F53: TOTAL | H53: =SUM(H31:H52) -> 860493.149

Sheet 5.2
A1: Trocas comerciais Portugal-Todo o Mundo 2011-2020 em milhares de euros (NC 2 dígitos) | C1: Frutas, Hortícolas & Flores
A2: Cód. NC | B2: Descritivo | C2: Importações | P2: Exportações | AC2: Saldo período (exp-imp) | AD2: Evolução das importações | AE2: =+"Variação das Importações " & INDEX(C3:K3,1,aux!BA1) & "-"& L3 &"" -> Variação das Importações 2011-2020 | AJ2: Evolução das exportações | AK2: ="Variação das Exportações " & INDEX(P3:X3,1,aux!BA1) & "-"& Y3 &"" -> Variação das Exportações 2011-2020
C3: 2011 | D3: 2012 | E3: 2013 | F3: 2014 | G3: 2015 | H3: 2016 | I3: 2017 | J3: 2018 | K3: 2019 | L3: 2020 | M3: média período | N3: % Subtot | O3: % Total | P3: 2011 | Q3: 2012 | R3: 2013 | S3: 2014 | T3: 2015 | U3: 2016 | V3: 2017 | W3: 2018 | X3: 2019 | Y3: 2020 | Z3: média período | AA3: % Subtot | AB3: % Total | AE3: variação total em valor | AF3: % no subtotal de variação | AG3: % no total de variação | AH3: taxa de variação média anual | AI3: taxa de variação total | AK3: variação total em valor | AL3: % no subtotal de variação | AM3: % no total de variação | AN3: taxa de variação média anual | AO3: taxa de variação total | CC3: filtro
A4: 01 | B4: Animais vivos | C4: 0 | D4: 0 | E4: 0 | F4: 0 | G4: 0 | H4: 0 | I4: 0 | J4: 0 | K4: 0 | L4: 0 | M4: 0 | N4: 0 | O4: 0 | P4: 0 | Q4: 0 | R4: 0 | S4: 0 | T4: 0 | U4: 0 | V4: 0 | W4: 0 | X4: 0 | Y4: 0 | Z4: 0 | AA4: 0 | AB4: 0 | AC4: 0 | AE4: =L4-INDEX($C4:$L4,1,aux!$BA$1) -> 0 | AF4: =IF($AE$37<>0,AE4/$AE$37, "n.d.") -> 0 | AG4: =IF($AE$53<>0,AE4/$AE$53, "n.d.") -> 0 | AH4: =+IF(INDEX($C4:$L4,1,aux!$BA$1)>0,(L4/INDEX($C4:$L4,1,aux!$BA$1))^(1/($L$3-INDEX($C$3:$L$3,1,aux!$BA$1)))-1,"n.d.") -> n.d. | AI4: =IF(INDEX($C4:$L4,1,aux!$BA$1)>0,(L4-INDEX($C4:$L4,1,aux!$BA$1))/INDEX($C4:$L4,1,aux!$BA$1),"n.d.") -> n.d. | AK4: =Y4-INDEX($P4:$Y4,1,aux!$BA$1) -> 0 | AL4: =IF($AK$37<>0,AK4/$AK$37, "n.d.") -> 0 | AM4: =IF($AK$53<>0,AK4/$AK$53, "n.d.") -> 0 | AN4: =+IF(INDEX($P4:$Y4,1,aux!$BA$1)>0,(Y4/INDEX($P4:$Y4,1,aux!$BA$1))^(1/($Y$3-INDEX($P$3:$Y$3,1,aux!$BA$1)))-1,"n.d.") -> n.d. | AO4: =IF(INDEX($P4:$Y4,1,aux!$BA$1)>0,(Y4-INDEX($P4:$Y4,1,aux!$BA$1))/INDEX($P4:$Y4,1,aux!$BA$1),"n.d.") -> n.d. | AP4: =SUM(C4:AC4) -> 0 | CC4: =SUM(C4:L4,P4:Y4) -> 0
A5: 02 | B5: Carnes e miudezas | C5: 0 | D5: 0 | E5: 0 | F5: 0 | G5: 0 | H5: 0 | I5: 0 | J5: 0 | K5: 0 | L5: 0 | M5: 0 | N5: 0 | O5: 0 | P5: 0 | Q5: 0 | R5: 0 | S5: 0 | T5: 0 | U5: 0 | V5: 0 | W5: 0 | X5: 0 | Y5: 0 | Z5: 0 | AA5: 0 | AB5: 0 | AC5: 0 | AE5: =L5-INDEX($C5:$L5,1,aux!$BA$1) -> 0 | AF5: 0 | AG5: 0 | AH5: =+IF(INDEX($C5:$L5,1,aux!$BA$1)>0,(L5/INDEX($C5:$L5,1,aux!$BA$1))^(1/($L$3-INDEX($C$3:$L$3,1,aux!$BA$1)))-1,"n.d.") -> n.d. | AI5: =IF(INDEX($C5:$L5,1,aux!$BA$1)>0,(L5-INDEX($C5:$L5,1,aux!$BA$1))/INDEX($C5:$L5,1,aux!$BA$1),"n.d.") -> n.d. | AK5: =Y5-INDEX($P5:$Y5,1,aux!$BA$1) -> 0 | AL5: 0 | AM5: 0 | AN5: =+IF(INDEX($P5:$Y5,1,aux!$BA$1)>0,(Y5/INDEX($P5:$Y5,1,aux!$BA$1))^(1/($Y$3-INDEX($P$3:$Y$3,1,aux!$BA$1)))-1,"n.d.") -> n.d. | AO5: =IF(INDEX($P5:$Y5,1,aux!$BA$1)>0,(Y5-INDEX($P5:$Y5,1,aux!$BA$1))/INDEX($P5:$Y5,1,aux!$BA$1),"n.d.") -> n.d. | AP5: 0 | CC5: 0
A6: 04 | B6: Leite e laticínios; ovos; mel, etc. | C6: 0 | D6: 0 | E6: 0 | F6: 0 | G6: 0 | H6: 0 | I6: 0 | J6: 0 | K6: 0 | L6: 0 | M6: 0 | N6: 0 | O6: 0 | P6: 0 | Q6: 0 | R6: 0 | S6: 0 | T6: 0 | U6: 0 | V6: 0 | W6: 0 | X6: 0 | Y6: 0 | Z6: 0 | AA6: 0 | AB6: 0 | AC6: 0 | AE6: =L6-INDEX($C6:$L6,1,aux!$BA$1) -> 0 | AF6: 0 | AG6: 0 | AH6: =+IF(INDEX($C6:$L6,1,aux!$BA$1)>0,(L6/INDEX($C6:$L6,1,aux!$BA$1))^(1/($L$3-INDEX($C$3:$L$3,1,aux!$BA$1)))-1,"n.d.") -> n.d. | AI6: =IF(INDEX($C6:$L6,1,aux!$BA$1)>0,(L6-INDEX($C6:$L6,1,aux!$BA$1))/INDEX($C6:$L6,1,aux!$BA$1),"n.d.") -> n.d. | AK6: =Y6-INDEX($P6:$Y6,1,aux!$BA$1) -> 0 | AL6: 0 | AM6: 0 | AN6: =+IF(INDEX($P6:$Y6,1,aux!$BA$1)>0,(Y6/INDEX($P6:$Y6,1,aux!$BA$1))^(1/($Y$3-INDEX($P$3:$Y$3,1,aux!$BA$1)))-1,"n.d.") -> n.d. | AO6: =IF(INDEX($P6:$Y6,1,aux!$BA$1)>0,(Y6-INDEX($P6:$Y6,1,aux!$BA$1))/INDEX($P6:$Y6,1,aux!$BA$1),"n.d.") -> n.d. | AP6: 0 | CC6: 0
A7: 05a | B7: Outros produtos de origem animal (exc. NC 0508, 051191) (a) | C7: 0 | D7: 0 | E7: 0 | F7: 0 | G7: 0 | H7: 0 | I7: 0 | J7: 0 | K7: 0 | L7: 0 | M7: 0 | N7: 0 | O7: 0 | P7: 0 | Q7: 0 | R7: 0 | S7: 0 | T7: 0 | U7: 0 | V7: 0 | W7: 0 | X7: 0 | Y7: 0 | Z7: 0 | AA7: 0 | AB7: 0 | AC7: 0 | AE7: =L7-INDEX($C7:$L7,1,aux!$BA$1) -> 0 | AF7: 0 | AG7: 0 | AH7: =+IF(INDEX($C7:$L7,1,aux!$BA$1)>0,(L7/INDEX($C7:$L7,1,aux!$BA$1))^(1/($L$3-INDEX($C$3:$L$3,1,aux!$BA$1)))-1,"n.d.") -> n.d. | AI7: =IF(INDEX($C7:$L7,1,aux!$BA$1)>0,(L7-INDEX($C7:$L7,1,aux!$BA$1))/INDEX($C7:$L7,1,aux!$BA$1),"n.d.") -> n.d. | AK7: =Y7-INDEX($P7:$Y7,1,aux!$BA$1) -> 0 | AL7: 0 | AM7: 0 | AN7: =+IF(INDEX($P7:$Y7,1,aux!$BA$1)>0,(Y7/INDEX($P7:$Y7,1,aux!$BA$1))^(1/($Y$3-INDEX($P$3:$Y$3,1,aux!$BA$1)))-1,"n.d.") -> n.d. | AO7: =IF(INDEX($P7:$Y7,1,aux!$BA$1)>0,(Y7-INDEX($P7:$Y7,1,aux!$BA$1))/INDEX($P7:$Y7,1,aux!$BA$1),"n.d.") -> n.d. | AP7: 0 | CC7: 0
A8: 06 | B8: Plantas vivas e produtos de floricultura | C8: 78796.592 | D8: 72610.395 | E8: 74703.023 | F8: 83902.042 | G8: 87093.379 | H8: 103181.849 | I8: 123898.52 | J8: 126586.031 | K8: 127266.038 | L8: 128381.405 | M8: 100641.9274 | N8: 0.07022686061 | O8: 0.07022686061 | P8: 61304.538 | Q8: 54849.606 | R8: 51309.462 | S8: 54445.197 | T8: 64975.834 | U8: 76839.183 | V8: 79173.641 | W8: 78579.01 | X8: 98160.496 | Y8: 108753.416 | Z8: 72839.0383 | AA8: 0.0577300882 | AB8: 0.0577300882 | AC8: -27802.8891 | AE8: =L8-INDEX($C8:$L8,1,aux!$BA$1) -> 49584.813 | AF8: 0.07521656206 | AG8: 0.07521656206 | AH8: =+IF(INDEX($C8:$L8,1,aux!$BA$1)>0,(L8/INDEX($C8:$L8,1,aux!$BA$1))^(1/($L$3-INDEX($C$3:$L$3,1,aux!$BA$1)))-1,"n.d.") -> 0.05573511159 | AI8: =IF(INDEX($C8:$L8,1,aux!$BA$1)>0,(L8-INDEX($C8:$L8,1,aux!$BA$1))/INDEX($C8:$L8,1,aux!$BA$1),"n.d.") -> 0.6292761113 | AK8: =Y8-INDEX($P8:$Y8,1,aux!$BA$1) -> 47448.878 | AL8: 0.05520406668 | AM8: 0.05520406668 | AN8: =+IF(INDEX($P8:$Y8,1,aux!$BA$1)>0,(Y8/INDEX($P8:$Y8,1,aux!$BA$1))^(1/($Y$3-INDEX($P$3:$Y$3,1,aux!$BA$1)))-1,"n.d.") -> 0.06576423632 | AO8: =IF(INDEX($P8:$Y8,1,aux!$BA$1)>0,(Y8-INDEX($P8:$Y8,1,aux!$BA$1))/INDEX($P8:$Y8,1,aux!$BA$1),"n.d.") -> 0.7739863891 | CC8: 1734809.657
A9: 07 | B9: Produtos hortícolas | C9: 309382.59 | D9: 277848.51 | E9: 345245.708 | F9: 303304.601 | G9: 329173.364 | H9: 384765.203 | I9: 384427.992 | J9: 418728.772 | K9: 455255.074 | L9: 428985.103 | M9: 363711.6917 | N9: 0.2537941287 | O9: 0.2537941287 | P9: 171004.098 | Q9: 196913.816 | R9: 219304.317 | S9: 211465.956 | T9: 250309.243 | U9: 267880.634 | V9: 295566.522 | W9: 295844.097 | X9: 334874.96 | Y9: 320699.474 | Z9: 256386.3117 | AA9: 0.2032042807 | AB9: 0.2032042807 | AC9: -107325.38 | AE9: =L9-INDEX($C9:$L9,1,aux!$BA$1) -> 119602.513 | AF9: 0.1814283305 | AG9: 0.1814283305 | AH9: =+IF(INDEX($C9:$L9,1,aux!$BA$1)>0,(L9/INDEX($C9:$L9,1,aux!$BA$1))^(1/($L$3-INDEX($C$3:$L$3,1,aux!$BA$1)))-1,"n.d.") -> 0.03698342701 | AI9: =IF(INDEX($C9:$L9,1,aux!$BA$1)>0,(L9-INDEX($C9:$L9,1,aux!$BA$1))/INDEX($C9:$L9,1,aux!$BA$1),"n.d.") -> 0.3865844972 | AK9: =Y9-INDEX($P9:$Y9,1,aux!$BA$1) -> 149695.376 | AL9: 0.1741620427 | AM9: 0.1741620427 | AN9: =+IF(INDEX($P9:$Y9,1,aux!$BA$1)>0,(Y9/INDEX($P9:$Y9,1,aux!$BA$1))^(1/($Y$3-INDEX($P$3:$Y$3,1,aux!$BA$1)))-1,"n.d.") -> 0.07236720877 | AO9: =IF(INDEX($P9:$Y9,1,aux!$BA$1)>0,(Y9-INDEX($P9:$Y9,1,aux!$BA$1))/INDEX($P9:$Y9,1,aux!$BA$1),"n.d.") -> 0.8753905769 | CC9: 6200980.034
A10: 08 | B10: Frutas | C10: 478958.235 | D10: 450238.29 | E10: 535091.613 | F10: 509633.802 | G10: 553923.014 | H10: 673769.371 | I10: 755955.282 | J10: 814572.377 | K10: 779192.888 | L10: 886341.496 | M10: 643767.6368 | N10: 0.4492141721 | O10: 0.4492141721 | P10: 284786.575 | Q10: 324815.1 | R10: 341087.977 | S10: 435806.584 | T10: 476570.357 | U10: 493125.153 | V10: 637352.063 | W10: 681485.425 | X10: 745963.948 | Y10: 799836.901 | Z10: 522083.0083 | AA10: 0.4137876998 | AB10: 0.4137876998 | AC10: -121684.6285 | AE10: =L10-INDEX($C10:$L10,1,aux!$BA$1) -> 407383.261 | AF10: 0.6179708358 | AG10: 0.6179708358 | AH10: =+IF(INDEX($C10:$L10,1,aux!$BA$1)>0,(L10/INDEX($C10:$L10,1,aux!$BA$1))^(1/($L$3-INDEX($C$3:$L$3,1,aux!$BA$1)))-1,"n.d.") -> 0.07078032322 | AI10: =IF(INDEX($C10:$L10,1,aux!$BA$1)>0,(L10-INDEX($C10:$L10,1,aux!$BA$1))/INDEX($C10:$L10,1,aux!$BA$1),"n.d.") -> 0.8505611371 | AK10: =Y10-INDEX($P10:$Y10,1,aux!$BA$1) -> 515050.326 | AL10: 0.599231715 | AM10: 0.599231715 | AN10: =+IF(INDEX($P10:$Y10,1,aux!$BA$1)>0,(Y10/INDEX($P10:$Y10,1,aux!$BA$1))^(1/($Y$3-INDEX($P$3:$Y$3,1,aux!$BA$1)))-1,"n.d.") -> 0.1215827596 | AO10: =IF(INDEX($P10:$Y10,1,aux!$BA$1)>0,(Y10-INDEX($P10:$Y10,1,aux!$BA$1))/INDEX($P10:$Y10,1,aux!$BA$1),"n.d.") -> 1.808548475 | CC10: 11658506.45
A11: 09 | B11: Café, chá, mate e especiarias | C11: 0 | D11: 0 | E11: 0 | F11: 0 | G11: 0 | H11: 0 | I11: 0 | J11: 0 | K11: 0 | L11: 0 | M11: 0 | N11: 0 | O11: 0 | P11: 0 | Q11: 0 | R11: 0 | S11: 0 | T11: 0 | U11: 0 | V11: 0 | W11: 0 | X11: 0 | Y11: 0 | Z11: 0 | AA11: 0 | AB11: 0 | AC11: 0 | AE11: =L11-INDEX($C11:$L11,1,aux!$BA$1) -> 0 | AF11: 0 | AG11: 0 | AH11: =+IF(INDEX($C11:$L11,1,aux!$BA$1)>0,(L11/INDEX($C11:$L11,1,aux!$BA$1))^(1/($L$3-INDEX($C$3:$L$3,1,aux!$BA$1)))-1,"n.d.") -> n.d. | AI11: =IF(INDEX($C11:$L11,1,aux!$BA$1)>0,(L11-INDEX($C11:$L11,1,aux!$BA$1))/INDEX($C11:$L11,1,aux!$BA$1),"n.d.") -> n.d. | AK11: =Y11-INDEX($P11:$Y11,1,aux!$BA$1) -> 0 | AL11: 0 | AM11: 0 | AN11: =+IF(INDEX($P11:$Y11,1,aux!$BA$1)>0,(Y11/INDEX($P11:$Y11,1,aux!$BA$1))^(1/($Y$3-INDEX($P$3:$Y$3,1,aux!$BA$1)))-1,"n.d.") -> n.d. | AO11: =IF(INDEX($P11:$Y11,1,aux!$BA$1)>0,(Y11-INDEX($P11:$Y11,1,aux!$BA$1))/INDEX($P11:$Y11,1,aux!$BA$1),"n.d.") -> n.d. | AP11: 0 | CC11: 0
A12: 10 | B12: Cereais | C12: 0 | D12: 0 | E12: 0 | F12: 0 | G12: 0 | H12: 0 | I12: 0 | J12: 0 | K12: 0 | L12: 0 | M12: 0 | N12: 0 | O12: 0 | P12: 0 | Q12: 0 | R12: 0 | S12: 0 | T12: 0 | U12: 0 | V12: 0 | W12: 0 | X12: 0 | Y12: 0 | Z12: 0 | AA12: 0 | AB12: 0 | AC12: 0 | AE12: =L12-INDEX($C12:$L12,1,aux!$BA$1) -> 0 | AF12: 0 | AG12: 0 | AH12: =+IF(INDEX($C12:$L12,1,aux!$BA$1)>0,(L12/INDEX($C12:$L12,1,aux!$BA$1))^(1/($L$3-INDEX($C$3:$L$3,1,aux!$BA$1)))-1,"n.d.") -> n.d. | AI12: =IF(INDEX($C12:$L12,1,aux!$BA$1)>0,(L12-INDEX($C12:$L12,1,aux!$BA$1))/INDEX($C12:$L12,1,aux!$BA$1),"n.d.") -> n.d. | AK12: =Y12-INDEX($P12:$Y12,1,aux!$BA$1) -> 0 | AL12: 0 | AM12: 0 | AN12: =+IF(INDEX($P12:$Y12,1,aux!$BA$1)>0,(Y12/INDEX($P12:$Y12,1,aux!$BA$1))^(1/($Y$3-INDEX($P$3:$Y$3,1,aux!$BA$1)))-1,"n.d.") -> n.d. | AO12: =IF(INDEX($P12:$Y12,1,aux!$BA$1)>0,(Y12-INDEX($P12:$Y12,1,aux!$BA$1))/INDEX($P12:$Y12,1,aux!$BA$1),"n.d.") -> n.d. | AP12: 0 | CC12: 0
A13: 11 | B13: Produtos da indústria de moagem e outros | C13: 0 | D13: 0 | E13: 0 | F13: 0 | G13: 0 | H13: 0 | I13: 0 | J13: 0 | K13: 0 | L13: 0 | M13: 0 | N13: 0 | O13: 0 | P13: 0 | Q13: 0 | R13: 0 | S13: 0 | T13: 0 | U13: 0 | V13: 0 | W13: 0 | X13: 0 | Y13: 0 | Z13: 0 | AA13: 0 | AB13: 0 | AC13: 0 | AE13: =L13-INDEX($C13:$L13,1,aux!$BA$1) -> 0 | AF13: 0 | AG13: 0 | AH13: =+IF(INDEX($C13:$L13,1,aux!$BA$1)>0,(L13/INDEX($C13:$L13,1,aux!$BA$1))^(1/($L$3-INDEX($C$3:$L$3,1,aux!$BA$1)))-1,"n.d.") -> n.d. | AI13: =IF(INDEX($C13:$L13,1,aux!$BA$1)>0,(L13-INDEX($C13:$L13,1,aux!$BA$1))/INDEX($C13:$L13,1,aux!$BA$1),"n.d.") -> n.d. | AK13: =Y13-INDEX($P13:$Y13,1,aux!$BA$1) -> 0 | AL13: 0 | AM13: 0 | AN13: =+IF(INDEX($P13:$Y13,1,aux!$BA$1)>0,(Y13/INDEX($P13:$Y13,1,aux!$BA$1))^(1/($Y$3-INDEX($P$3:$Y$3,1,aux!$BA$1)))-1,"n.d.") -> n.d. | AO13: =IF(INDEX($P13:$Y13,1,aux!$BA$1)>0,(Y13-INDEX($P13:$Y13,1,aux!$BA$1))/INDEX($P13:$Y13,1,aux!$BA$1),"n.d.") -> n.d. | AP13: 0 | CC13: 0
A14: 12 | B14: Sementes e frutos oleaginosos | C14: 0 | D14: 0 | E14: 0 | F14: 0 | G14: 0 | H14: 0 | I14: 0 | J14: 0 | K14: 0 | L14: 0 | M14: 0 | N14: 0 | O14: 0 | P14: 0 | Q14: 0 | R14: 0 | S14: 0 | T14: 0 | U14: 0 | V14: 0 | W14: 0 | X14: 0 | Y14: 0 | Z14: 0 | AA14: 0 | AB14: 0 | AC14: 0 | AE14: =L14-INDEX($C14:$L14,1,aux!$BA$1) -> 0 | AF14: 0 | AG14: 0 | AH14: =+IF(INDEX($C14:$L14,1,aux!$BA$1)>0,(L14/INDEX($C14:$L14,1,aux!$BA$1))^(1/($L$3-INDEX($C$3:$L$3,1,aux!$BA$1)))-1,"n.d.") -> n.d. | AI14: =IF(INDEX($C14:$L14,1,aux!$BA$1)>0,(L14-INDEX($C14:$L14,1,aux!$BA$1))/INDEX($C14:$L14,1,aux!$BA$1),"n.d.") -> n.d. | AK14: =Y14-INDEX($P14:$Y14,1,aux!$BA$1) -> 0 | AL14: 0 | AM14: 0 | AN14: =+IF(INDEX($P14:$Y14,1,aux!$BA$1)>0,(Y14/INDEX($P14:$Y14,1,aux!$BA$1))^(1/($Y$3-INDEX($P$3:$Y$3,1,aux!$BA$1)))-1,"n.d.") -> n.d. | AO14: =IF(INDEX($P14:$Y14,1,aux!$BA$1)>0,(Y14-INDEX($P14:$Y14,1,aux!$BA$1))/INDEX($P14:$Y14,1,aux!$BA$1),"n.d.") -> n.d. | AP14: 0 | CC14: 0
A15: 13a | B15: Sucos e extratos vegetais (exc. NC 1301) (a) | C15: 0 | D15: 0 | E15: 0 | F15: 0 | G15: 0 | H15: 0 | I15: 0 | J15: 0 | K15: 0 | L15: 0 | M15: 0 | N15: 0 | O15: 0 | P15: 0 | Q15: 0 | R15: 0 | S15: 0 | T15: 0 | U15: 0 | V15: 0 | W15: 0 | X15: 0 | Y15: 0 | Z15: 0 | AA15: 0 | AB15: 0 | AC15: 0 | AE15: =L15-INDEX($C15:$L15,1,aux!$BA$1) -> 0 | AF15: 0 | AG15: 0 | AH15: =+IF(INDEX($C15:$L15,1,aux!$BA$1)>0,(L15/INDEX($C15:$L15,1,aux!$BA$1))^(1/($L$3-INDEX($C$3:$L$3,1,aux!$BA$1)))-1,"n.d.") -> n.d. | AI15: =IF(INDEX($C15:$L15,1,aux!$BA$1)>0,(L15-INDEX($C15:$L15,1,aux!$BA$1))/INDEX($C15:$L15,1,aux!$BA$1),"n.d.") -> n.d. | AK15: =Y15-INDEX($P15:$Y15,1,aux!$BA$1) -> 0 | AL15: 0 | AM15: 0 | AN15: =+IF(INDEX($P15:$Y15,1,aux!$BA$1)>0,(Y15/INDEX($P15:$Y15,1,aux!$BA$1))^(1/($Y$3-INDEX($P$3:$Y$3,1,aux!$BA$1)))-1,"n.d.") -> n.d. | AO15: =IF(INDEX($P15:$Y15,1,aux!$BA$1)>0,(Y15-INDEX($P15:$Y15,1,aux!$BA$1))/INDEX($P15:$Y15,1,aux!$BA$1),"n.d.") -> n.d. | AP15: 0 | CC15: 0
A16: 14 | B16: Matérias para entrançar e outros | C16: 0 | D16: 0 | E16: 0 | F16: 0 | G16: 0 | H16: 0 | I16: 0 | J16: 0 | K16: 0 | L16: 0 | M16: 0 | N16: 0 | O16: 0 | P16: 0 | Q16: 0 | R16: 0 | S16: 0 | T16: 0 | U16: 0 | V16: 0 | W16: 0 | X16: 0 | Y16: 0 | Z16: 0 | AA16: 0 | AB16: 0 | AC16: 0 | AE16: =L16-INDEX($C16:$L16,1,aux!$BA$1) -> 0 | AF16: 0 | AG16: 0 | AH16: =+IF(INDEX($C16:$L16,1,aux!$BA$1)>0,(L16/INDEX($C16:$L16,1,aux!$BA$1))^(1/($L$3-INDEX($C$3:$L$3,1,aux!$BA$1)))-1,"n.d.") -> n.d. | AI16: =IF(INDEX($C16:$L16,1,aux!$BA$1)>0,(L16-INDEX($C16:$L16,1,aux!$BA$1))/INDEX($C16:$L16,1,aux!$BA$1),"n.d.") -> n.d. | AK16: =Y16-INDEX($P16:$Y16,1,aux!$BA$1) -> 0 | AL16: 0 | AM16: 0 | AN16: =+IF(INDEX($P16:$Y16,1,aux!$BA$1)>0,(Y16/INDEX($P16:$Y16,1,aux!$BA$1))^(1/($Y$3-INDEX($P$3:$Y$3,1,aux!$BA$1)))-1,"n.d.") -> n.d. | AO16: =IF(INDEX($P16:$Y16,1,aux!$BA$1)>0,(Y16-INDEX($P16:$Y16,1,aux!$BA$1))/INDEX($P16:$Y16,1,aux!$BA$1),"n.d.") -> n.d. | AP16: 0 | CC16: 0
A17: 15 | B17: Gorduras e óleos animais ou vegetais | C17: 0 | D17: 0 | E17: 0 | F17: 0 | G17: 0 | H17: 0 | I17: 0 | J17: 0 | K17: 0 | L17: 0 | M17: 0 | N17: 0 | O17: 0 | P17: 0 | Q17: 0 | R17: 0 | S17: 0 | T17: 0 | U17: 0 | V17: 0 | W17: 0 | X17: 0 | Y17: 0 | Z17: 0 | AA17: 0 | AB17: 0 | AC17: 0 | AE17: =L17-INDEX($C17:$L17,1,aux!$BA$1) -> 0 | AF17: 0 | AG17: 0 | AH17: =+IF(INDEX($C17:$L17,1,aux!$BA$1)>0,(L17/INDEX($C17:$L17,1,aux!$BA$1))^(1/($L$3-INDEX($C$3:$L$3,1,aux!$BA$1)))-1,"n.d.") -> n.d. | AI17: =IF(INDEX($C17:$L17,1,aux!$BA$1)>0,(L17-INDEX($C17:$L17,1,aux!$BA$1))/INDEX($C17:$L17,1,aux!$BA$1),"n.d.") -> n.d. | AK17: =Y17-INDEX($P17:$Y17,1,aux!$BA$1) -> 0 | AL17: 0 | AM17: 0 | AN17: =+IF(INDEX($P17:$Y17,1,aux!$BA$1)>0,(Y17/INDEX($P17:$Y17,1,aux!$BA$1))^(1/($Y$3-INDEX($P$3:$Y$3,1,aux!$BA$1)))-1,"n.d.") -> n.d. | AO17: =IF(INDEX($P17:$Y17,1,aux!$BA$1)>0,(Y17-INDEX($P17:$Y17,1,aux!$BA$1))/INDEX($P17:$Y17,1,aux!$BA$1),"n.d.") -> n.d. | AP17: 0 | CC17: 0
A18: 16a | B18: Preparações de carnes (exc. NC 1604-05) (a) | C18: 0 | D18: 0 | E18: 0 | F18: 0 | G18: 0 | H18: 0 | I18: 0 | J18: 0 | K18: 0 | L18: 0 | M18: 0 | N18: 0 | O18: 0 | P18: 0 | Q18: 0 | R18: 0 | S18: 0 | T18: 0 | U18: 0 | V18: 0 | W18: 0 | X18: 0 | Y18: 0 | Z18: 0 | AA18: 0 | AB18: 0 | AC18: 0 | AE18: =L18-INDEX($C18:$L18,1,aux!$BA$1) -> 0 | AF18: 0 | AG18: 0 | AH18: =+IF(INDEX($C18:$L18,1,aux!$BA$1)>0,(L18/INDEX($C18:$L18,1,aux!$BA$1))^(1/($L$3-INDEX($C$3:$L$3,1,aux!$BA$1)))-1,"n.d.") -> n.d. | AI18: =IF(INDEX($C18:$L18,1,aux!$BA$1)>0,(L18-INDEX($C18:$L18,1,aux!$BA$1))/INDEX($C18:$L18,1,aux!$BA$1),"n.d.") -> n.d. | AK18: =Y18-INDEX($P18:$Y18,1,aux!$BA$1) -> 0 | AL18: 0 | AM18: 0 | AN18: =+IF(INDEX($P18:$Y18,1,aux!$BA$1)>0,(Y18/INDEX($P18:$Y18,1,aux!$BA$1))^(1/($Y$3-INDEX($P$3:$Y$3,1,aux!$BA$1)))-1,"n.d.") -> n.d. | AO18: =IF(INDEX($P18:$Y18,1,aux!$BA$1)>0,(Y18-INDEX($P18:$Y18,1,aux!$BA$1))/INDEX($P18:$Y18,1,aux!$BA$1),"n.d.") -> n.d. | AP18: 0 | CC18: 0
